Workbook

Sheet Resumen
P1: 9 | Q1: 5
U2: www.ree.es
B3: Balance mensual de energía eléctrica CCAA (MWh) | U3: Fecha de actualización: 29/01/2018
A4: Septiembre 2017 | N4: GENERACIÓN NETA (MWh)
B5: Andalucía | C5: Aragón | D5: Asturias | E5: Baleares | F5: C. Valen. | G5: Canarias | H5: Cantabria | I5: Castilla La Mancha | J5: Castilla León | K5: Cataluña
A6: Hidraulica | B6: =OFFSET(Andalucía_datos!N30,0,($P$1-1)+(($Q$1-1)*12)) -> 56943.89909 | C6: =OFFSET(Aragón_datos!N30,0,($P$1-1)+(($Q$1-1)*12)) -> 148563.722 | D6: =OFFSET(Asturias_datos!N30,0,($P$1-1)+(($Q$1-1)*12)) -> 50836.9724 | E6: =OFFSET(Baleares_datos!N30,0,($P$1-1)+(($Q$1-1)*12)) -> 0 | F6: =OFFSET(C_Valenciana_datos!N30,0,($P$1-1)+(($Q$1-1)*12)) -> 93300.17961 | G6: =OFFSET(Canarias_datos!N30,0,($P$1-1)+(($Q$1-1)*12)) -> 266.979 | H6: =OFFSET(Cantabria_datos!N30,0,($P$1-1)+(($Q$1-1)*12)) -> 29943.87702 | I6: =OFFSET('Castilla la Mancha_datos'!N30,0,($P$1-1)+(($Q$1-1)*12)) -> 29683.16718 | J6: =OFFSET('Castilla León_datos'!N30,0,($P$1-1)+(($Q$1-1)*12)) -> 172900.8223 | K6: =OFFSET(Cataluña_datos!N30,0,($P$1-1)+(($Q$1-1)*12)) -> 238013.5344
A7: Nuclear | B7: =OFFSET(Andalucía_datos!N31,0,($P$1-1)+(($Q$1-1)*12)) -> - | C7: =OFFSET(Aragón_datos!N31,0,($P$1-1)+(($Q$1-1)*12)) -> - | D7: =OFFSET(Asturias_datos!N31,0,($P$1-1)+(($Q$1-1)*12)) -> - | E7: =OFFSET(Baleares_datos!N31,0,($P$1-1)+(($Q$1-1)*12)) -> - | F7: =OFFSET(C_Valenciana_datos!N31,0,($P$1-1)+(($Q$1-1)*12)) -> 465372 | G7: =OFFSET(Canarias_datos!N31,0,($P$1-1)+(($Q$1-1)*12)) -> - | H7: =OFFSET(Cantabria_datos!N31,0,($P$1-1)+(($Q$1-1)*12)) -> - | I7: =OFFSET('Castilla la Mancha_datos'!N31,0,($P$1-1)+(($Q$1-1)*12)) -> 714547 | J7: =OFFSET('Castilla León_datos'!N31,0,($P$1-1)+(($Q$1-1)*12)) -> 0 | K7: =OFFSET(Cataluña_datos!N31,0,($P$1-1)+(($Q$1-1)*12)) -> 2129958
A8: Carbón | B8: =OFFSET(Andalucía_datos!N32,0,($P$1-1)+(($Q$1-1)*12)) -> 882715 | C8: =OFFSET(Aragón_datos!N32,0,($P$1-1)+(($Q$1-1)*12)) -> 448052 | D8: =OFFSET(Asturias_datos!N32,0,($P$1-1)+(($Q$1-1)*12)) -> 656998 | E8: =OFFSET(Baleares_datos!N32,0,($P$1-1)+(($Q$1-1)*12)) -> 238125 | F8: =OFFSET(C_Valenciana_datos!N32,0,($P$1-1)+(($Q$1-1)*12)) -> 0 | G8: =OFFSET(Canarias_datos!N32,0,($P$1-1)+(($Q$1-1)*12)) -> 0 | H8: =OFFSET(Cantabria_datos!N32,0,($P$1-1)+(($Q$1-1)*12)) -> 0 | I8: =OFFSET('Castilla la Mancha_datos'!N32,0,($P$1-1)+(($Q$1-1)*12)) -> 0 | J8: =OFFSET('Castilla León_datos'!N32,0,($P$1-1)+(($Q$1-1)*12)) -> 81421 | K8: =OFFSET(Cataluña_datos!N32,0,($P$1-1)+(($Q$1-1)*12)) -> 0
A9: Fuel-Gas | B9: =OFFSET(Andalucía_datos!N33,0,($P$1-1)+(($Q$1-1)*12)) -> 0 | C9: =OFFSET(Aragón_datos!N33,0,($P$1-1)+(($Q$1-1)*12)) -> 0 | D9: =OFFSET(Asturias_datos!N33,0,($P$1-1)+(($Q$1-1)*12)) -> 0 | E9: =OFFSET(Baleares_datos!N33,0,($P$1-1)+(($Q$1-1)*12)) -> 126507 | F9: =OFFSET(C_Valenciana_datos!N33,0,($P$1-1)+(($Q$1-1)*12)) -> 0 | G9: =OFFSET(Canarias_datos!N33,0,($P$1-1)+(($Q$1-1)*12)) -> 444238 | H9: =OFFSET(Cantabria_datos!N33,0,($P$1-1)+(($Q$1-1)*12)) -> 0 | I9: =OFFSET('Castilla la Mancha_datos'!N33,0,($P$1-1)+(($Q$1-1)*12)) -> 0 | J9: =OFFSET('Castilla León_datos'!N33,0,($P$1-1)+(($Q$1-1)*12)) -> 0 | K9: =OFFSET(Cataluña_datos!N33,0,($P$1-1)+(($Q$1-1)*12)) -> 0
A10: Ciclo combinado | B10: =OFFSET(Andalucía_datos!N34,0,($P$1-1)+(($Q$1-1)*12)) -> 1039407 | C10: =OFFSET(Aragón_datos!N34,0,($P$1-1)+(($Q$1-1)*12)) -> 1 | D10: =OFFSET(Asturias_datos!N34,0,($P$1-1)+(($Q$1-1)*12)) -> 112359 | E10: =OFFSET(Baleares_datos!N34,0,($P$1-1)+(($Q$1-1)*12)) -> 13675 | F10: =OFFSET(C_Valenciana_datos!N34,0,($P$1-1)+(($Q$1-1)*12)) -> 339997 | G10: =OFFSET(Canarias_datos!N34,0,($P$1-1)+(($Q$1-1)*12)) -> 236370 | H10: =OFFSET(Cantabria_datos!N34,0,($P$1-1)+(($Q$1-1)*12)) -> - | I10: =OFFSET('Castilla la Mancha_datos'!N34,0,($P$1-1)+(($Q$1-1)*12)) -> 159797 | J10: =OFFSET('Castilla León_datos'!N34,0,($P$1-1)+(($Q$1-1)*12)) -> - | K10: =OFFSET(Cataluña_datos!N34,0,($P$1-1)+(($Q$1-1)*12)) -> 624824
A11: Hidroeólica | B11: =OFFSET(Andalucía_datos!N35,0,($P$1-1)+(($Q$1-1)*12)) -> 0 | C11: =OFFSET(Aragón_datos!N35,0,($P$1-1)+(($Q$1-1)*12)) -> 0 | D11: =OFFSET(Asturias_datos!N35,0,($P$1-1)+(($Q$1-1)*12)) -> 0 | E11: =OFFSET(Baleares_datos!N35,0,($P$1-1)+(($Q$1-1)*12)) -> 0 | F11: =OFFSET(C_Valenciana_datos!N35,0,($P$1-1)+(($Q$1-1)*12)) -> 0 | G11: =OFFSET(Canarias_datos!N35,0,($P$1-1)+(($Q$1-1)*12)) -> 2340.878 | H11: =OFFSET(Cantabria_datos!N35,0,($P$1-1)+(($Q$1-1)*12)) -> 0 | I11: =OFFSET('Castilla la Mancha_datos'!N35,0,($P$1-1)+(($Q$1-1)*12)) -> 0 | J11: =OFFSET('Castilla León_datos'!N35,0,($P$1-1)+(($Q$1-1)*12)) -> 0 | K11: =OFFSET(Cataluña_datos!N35,0,($P$1-1)+(($Q$1-1)*12)) -> 0
A12: Eólica | B12: =OFFSET(Andalucía_datos!N36,0,($P$1-1)+(($Q$1-1)*12)) -> 470562.621 | C12: =OFFSET(Aragón_datos!N36,0,($P$1-1)+(($Q$1-1)*12)) -> 307259.018 | D12: =OFFSET(Asturias_datos!N36,0,($P$1-1)+(($Q$1-1)*12)) -> 51569.115 | E12: =OFFSET(Baleares_datos!N36,0,($P$1-1)+(($Q$1-1)*12)) -> 182.989 | F12: =OFFSET(C_Valenciana_datos!N36,0,($P$1-1)+(($Q$1-1)*12)) -> 119105.401 | G12: =OFFSET(Canarias_datos!N36,0,($P$1-1)+(($Q$1-1)*12)) -> 54583.527 | H12: =OFFSET(Cantabria_datos!N36,0,($P$1-1)+(($Q$1-1)*12)) -> 3334.726 | I12: =OFFSET('Castilla la Mancha_datos'!N36,0,($P$1-1)+(($Q$1-1)*12)) -> 393822.347 | J12: =OFFSET('Castilla León_datos'!N36,0,($P$1-1)+(($Q$1-1)*12)) -> 615927.071 | K12: =OFFSET(Cataluña_datos!N36,0,($P$1-1)+(($Q$1-1)*12)) -> 187786.548
A13: Solar fotovoltaico | B13: =OFFSET(Andalucía_datos!N37,0,($P$1-1)+(($Q$1-1)*12)) -> 144814.901 | C13: =OFFSET(Aragón_datos!N37,0,($P$1-1)+(($Q$1-1)*12)) -> 27854.027 | D13: =OFFSET(Asturias_datos!N37,0,($P$1-1)+(($Q$1-1)*12)) -> 3.113 | E13: =OFFSET(Baleares_datos!N37,0,($P$1-1)+(($Q$1-1)*12)) -> 10173.526 | F13: =OFFSET(C_Valenciana_datos!N37,0,($P$1-1)+(($Q$1-1)*12)) -> 45783.469 | G13: =OFFSET(Canarias_datos!N37,0,($P$1-1)+(($Q$1-1)*12)) -> 22927.019 | H13: =OFFSET(Cantabria_datos!N37,0,($P$1-1)+(($Q$1-1)*12)) -> 173.374 | I13: =OFFSET('Castilla la Mancha_datos'!N37,0,($P$1-1)+(($Q$1-1)*12)) -> 163572.624 | J13: =OFFSET('Castilla León_datos'!N37,0,($P$1-1)+(($Q$1-1)*12)) -> 88877.888 | K13: =OFFSET(Cataluña_datos!N37,0,($P$1-1)+(($Q$1-1)*12)) -> 35583.901
A14: Solar térmica | B14: =OFFSET(Andalucía_datos!N38,0,($P$1-1)+(($Q$1-1)*12)) -> 259824.087 | C14: =OFFSET(Aragón_datos!N38,0,($P$1-1)+(($Q$1-1)*12)) -> 0 | D14: =OFFSET(Asturias_datos!N38,0,($P$1-1)+(($Q$1-1)*12)) -> 0 | E14: =OFFSET(Baleares_datos!N38,0,($P$1-1)+(($Q$1-1)*12)) -> 0 | F14: =OFFSET(C_Valenciana_datos!N38,0,($P$1-1)+(($Q$1-1)*12)) -> 9258.135 | G14: =OFFSET(Canarias_datos!N38,0,($P$1-1)+(($Q$1-1)*12)) -> 0 | H14: =OFFSET(Cantabria_datos!N38,0,($P$1-1)+(($Q$1-1)*12)) -> 0 | I14: =OFFSET('Castilla la Mancha_datos'!N38,0,($P$1-1)+(($Q$1-1)*12)) -> 85515.02 | J14: =OFFSET('Castilla León_datos'!N38,0,($P$1-1)+(($Q$1-1)*12)) -> 0 | K14: =OFFSET(Cataluña_datos!N38,0,($P$1-1)+(($Q$1-1)*12)) -> 6974.969
A15: Otras renovables | B15: =OFFSET(Andalucía_datos!N39,0,($P$1-1)+(($Q$1-1)*12)) -> 117290.294 | C15: =OFFSET(Aragón_datos!N39,0,($P$1-1)+(($Q$1-1)*12)) -> 5126.674 | D15: =OFFSET(Asturias_datos!N39,0,($P$1-1)+(($Q$1-1)*12)) -> 24074.119 | E15: =OFFSET(Baleares_datos!N39,0,($P$1-1)+(($Q$1-1)*12)) -> 87.362 | F15: =OFFSET(C_Valenciana_datos!N39,0,($P$1-1)+(($Q$1-1)*12)) -> 3176.187 | G15: =OFFSET(Canarias_datos!N39,0,($P$1-1)+(($Q$1-1)*12)) -> 802.313 | H15: =OFFSET(Cantabria_datos!N39,0,($P$1-1)+(($Q$1-1)*12)) -> 7204.197 | I15: =OFFSET('Castilla la Mancha_datos'!N39,0,($P$1-1)+(($Q$1-1)*12)) -> 22532.511 | J15: =OFFSET('Castilla León_datos'!N39,0,($P$1-1)+(($Q$1-1)*12)) -> 22792.612 | K15: =OFFSET(Cataluña_datos!N39,0,($P$1-1)+(($Q$1-1)*12)) -> 12819.569
A16: Cogeneración | B16: =OFFSET(Andalucía_datos!N40,0,($P$1-1)+(($Q$1-1)*12)) -> 417219.156 | C16: =OFFSET(Aragón_datos!N40,0,($P$1-1)+(($Q$1-1)*12)) -> 232123.835 | D16: =OFFSET(Asturias_datos!N40,0,($P$1-1)+(($Q$1-1)*12)) -> 31927.181 | E16: =OFFSET(Baleares_datos!N40,0,($P$1-1)+(($Q$1-1)*12)) -> 3215.986 | F16: =OFFSET(C_Valenciana_datos!N40,0,($P$1-1)+(($Q$1-1)*12)) -> 130165.915 | G16: =OFFSET(Canarias_datos!N40,0,($P$1-1)+(($Q$1-1)*12)) -> 0 | H16: =OFFSET(Cantabria_datos!N40,0,($P$1-1)+(($Q$1-1)*12)) -> 86556.846 | I16: =OFFSET('Castilla la Mancha_datos'!N40,0,($P$1-1)+(($Q$1-1)*12)) -> 75449.963 | J16: =OFFSET('Castilla León_datos'!N40,0,($P$1-1)+(($Q$1-1)*12)) -> 204464.031 | K16: =OFFSET(Cataluña_datos!N40,0,($P$1-1)+(($Q$1-1)*12)) -> 402965.138
A17: Residuos | B17: =OFFSET(Andalucía_datos!N41,0,($P$1-1)+(($Q$1-1)*12)) -> 24676.581 | C17: =OFFSET(Aragón_datos!N41,0,($P$1-1)+(($Q$1-1)*12)) -> 33089.865 | D17: =OFFSET(Asturias_datos!N41,0,($P$1-1)+(($Q$1-1)*12)) -> 67018.762 | E17: =OFFSET(Baleares_datos!N41,0,($P$1-1)+(($Q$1-1)*12)) -> 30053.25 | F17: =OFFSET(C_Valenciana_datos!N41,0,($P$1-1)+(($Q$1-1)*12)) -> 4813.845 | G17: =OFFSET(Canarias_datos!N41,0,($P$1-1)+(($Q$1-1)*12)) -> 0 | H17: =OFFSET(Cantabria_datos!N41,0,($P$1-1)+(($Q$1-1)*12)) -> 6562.31 | I17: =OFFSET('Castilla la Mancha_datos'!N41,0,($P$1-1)+(($Q$1-1)*12)) -> 0 | J17: =OFFSET('Castilla León_datos'!N41,0,($P$1-1)+(($Q$1-1)*12)) -> 0 | K17: =OFFSET(Cataluña_datos!N41,0,($P$1-1)+(($Q$1-1)*12)) -> 25696.503 | U17: =datos_mapa!G23 -> < 250.600
A18: Generación neta | B18: =SUM(B6:B17) -> 3413453.539 | C18: 1202070.141 | D18: 994786.2624 | E18: 422020.113 | F18: 1210972.132 | G18: 761528.716 | H18: 133775.33 | I18: 1644919.632 | J18: 1186383.424 | K18: 3664622.162 | U18: =datos_mapa!G24 -> (250.600 - 763.000)
A19: Consumos en bombeo | B19: =OFFSET(Andalucía_datos!N43,0,($P$1-1)+(($Q$1-1)*12)) -> -9863 | C19: =OFFSET(Aragón_datos!N43,0,($P$1-1)+(($Q$1-1)*12)) -> -1337 | D19: =OFFSET(Asturias_datos!N43,0,($P$1-1)+(($Q$1-1)*12)) -> -1321 | E19: =OFFSET(Baleares_datos!N43,0,($P$1-1)+(($Q$1-1)*12)) -> - | F19: =OFFSET(C_Valenciana_datos!N43,0,($P$1-1)+(($Q$1-1)*12)) -> -69094 | G19: =OFFSET(Canarias_datos!N43,0,($P$1-1)+(($Q$1-1)*12)) -> - | H19: =OFFSET(Cantabria_datos!N43,0,($P$1-1)+(($Q$1-1)*12)) -> -34266 | I19: =OFFSET('Castilla la Mancha_datos'!N43,0,($P$1-1)+(($Q$1-1)*12)) -> -10315 | J19: =OFFSET('Castilla León_datos'!N43,0,($P$1-1)+(($Q$1-1)*12)) -> -28262 | K19: =OFFSET(Cataluña_datos!N43,0,($P$1-1)+(($Q$1-1)*12)) -> -7154 | U19: =datos_mapa!G25 -> (763.000 - 1.960.000)
A20: Saldo Intercambios | B20: =OFFSET(Andalucía_datos!N44,0,($P$1-1)+(($Q$1-1)*12)) -> -108626 | C20: =OFFSET(Aragón_datos!N44,0,($P$1-1)+(($Q$1-1)*12)) -> -353954 | D20: =OFFSET(Asturias_datos!N44,0,($P$1-1)+(($Q$1-1)*12)) -> -150662 | E20: =OFFSET(Baleares_datos!N44,0,($P$1-1)+(($Q$1-1)*12)) -> 116105 | F20: =OFFSET(C_Valenciana_datos!N44,0,($P$1-1)+(($Q$1-1)*12)) -> 1063777 | G20: =OFFSET(Canarias_datos!N44,0,($P$1-1)+(($Q$1-1)*12)) -> - | H20: =OFFSET(Cantabria_datos!N44,0,($P$1-1)+(($Q$1-1)*12)) -> 259336 | I20: =OFFSET('Castilla la Mancha_datos'!N44,0,($P$1-1)+(($Q$1-1)*12)) -> -699865 | J20: =OFFSET('Castilla León_datos'!N44,0,($P$1-1)+(($Q$1-1)*12)) -> -46186 | K20: =OFFSET(Cataluña_datos!N44,0,($P$1-1)+(($Q$1-1)*12)) -> 146260 | U20: =datos_mapa!G26 -> > 1.960.000
A21: Demanda B.C | B21: =SUM(B18:B20) -> 3294964.539 | C21: =SUM(C18:C20) -> 846779.141 | D21: 842803.2624 | E21: =SUM(E18:E20) -> 538125.113 | F21: 2205655.132 | G21: 761528.716 | H21: 358845.33 | I21: 934739.6322 | J21: 1111935.424 | K21: 3803728.162
A22: %Δ 17/16 | B22: =OFFSET(Andalucía_datos!N46,0,($P$1-1)+(($Q$1-1)*12)) -> -2.561522159 | C22: =OFFSET(Aragón_datos!N46,0,($P$1-1)+(($Q$1-1)*12)) -> -3.319016757 | D22: =OFFSET(Asturias_datos!N46,0,($P$1-1)+(($Q$1-1)*12)) -> 0.009909086577 | E22: =OFFSET(Baleares_datos!N46,0,($P$1-1)+(($Q$1-1)*12)) -> -5.590197775 | F22: =OFFSET(C_Valenciana_datos!N46,0,($P$1-1)+(($Q$1-1)*12)) -> -4.947951876 | G22: =OFFSET(Canarias_datos!N46,0,($P$1-1)+(($Q$1-1)*12)) -> 1.417855528 | H22: =OFFSET(Cantabria_datos!N46,0,($P$1-1)+(($Q$1-1)*12)) -> 0.3286508009 | I22: =OFFSET('Castilla la Mancha_datos'!N46,0,($P$1-1)+(($Q$1-1)*12)) -> -4.117527353 | J22: =OFFSET('Castilla León_datos'!N46,0,($P$1-1)+(($Q$1-1)*12)) -> -0.7963090385 | K22: =OFFSET(Cataluña_datos!N46,0,($P$1-1)+(($Q$1-1)*12)) -> -4.571728434
N25: DEMANDA B.C. (MWh)
B26: Ceuta | C26: Extrem. | D26: Galicia | E26: La Rioja | F26: Madrid | G26: Melilla | H26: Murcia | I26: Navarra | J26: País Vasco | K26: Total
A27: Hidraulica | B27: =OFFSET(Ceuta_datos!N30,0,($P$1-1)+(($Q$1-1)*12)) -> 0 | C27: =OFFSET(Extremadura_datos!N30,0,($P$1-1)+(($Q$1-1)*12)) -> 32996.9059 | D27: =OFFSET(Galicia_datos!N30,0,($P$1-1)+(($Q$1-1)*12)) -> 410812.3274 | E27: =OFFSET('La Rioja_datos'!N30,0,($P$1-1)+(($Q$1-1)*12)) -> 3347.252474 | F27: =OFFSET(Madrid_datos!N30,0,($P$1-1)+(($Q$1-1)*12)) -> 7717.708239 | G27: =OFFSET(Melilla_datos!N30,0,($P$1-1)+(($Q$1-1)*12)) -> 0 | H27: =OFFSET(Murcia_datos!N30,0,($P$1-1)+(($Q$1-1)*12)) -> 5727.850978 | I27: =OFFSET(Navarra_datos!N30,0,($P$1-1)+(($Q$1-1)*12)) -> 11801.60517 | J27: =OFFSET('País Vasco_datos'!N30,0,($P$1-1)+(($Q$1-1)*12)) -> 13458.93188 | K27: =SUM(B6:K6,B27:J27) -> 1306315.735
A28: Nuclear | B28: =OFFSET(Ceuta_datos!N31,0,($P$1-1)+(($Q$1-1)*12)) -> - | C28: =OFFSET(Extremadura_datos!N31,0,($P$1-1)+(($Q$1-1)*12)) -> 1415754 | D28: =OFFSET(Galicia_datos!N31,0,($P$1-1)+(($Q$1-1)*12)) -> - | E28: =OFFSET('La Rioja_datos'!N31,0,($P$1-1)+(($Q$1-1)*12)) -> - | F28: =OFFSET(Madrid_datos!N31,0,($P$1-1)+(($Q$1-1)*12)) -> - | G28: =OFFSET(Melilla_datos!N31,0,($P$1-1)+(($Q$1-1)*12)) -> - | H28: =OFFSET(Murcia_datos!N31,0,($P$1-1)+(($Q$1-1)*12)) -> - | I28: =OFFSET(Navarra_datos!N31,0,($P$1-1)+(($Q$1-1)*12)) -> - | J28: =OFFSET('País Vasco_datos'!N31,0,($P$1-1)+(($Q$1-1)*12)) -> - | K28: 4725631
A29: Carbón | B29: =OFFSET(Ceuta_datos!N32,0,($P$1-1)+(($Q$1-1)*12)) -> 0 | C29: =OFFSET(Extremadura_datos!N32,0,($P$1-1)+(($Q$1-1)*12)) -> 0 | D29: =OFFSET(Galicia_datos!N32,0,($P$1-1)+(($Q$1-1)*12)) -> 766337 | E29: =OFFSET('La Rioja_datos'!N32,0,($P$1-1)+(($Q$1-1)*12)) -> 0 | F29: =OFFSET(Madrid_datos!N32,0,($P$1-1)+(($Q$1-1)*12)) -> 0 | G29: =OFFSET(Melilla_datos!N32,0,($P$1-1)+(($Q$1-1)*12)) -> 0 | H29: =OFFSET(Murcia_datos!N32,0,($P$1-1)+(($Q$1-1)*12)) -> 0 | I29: =OFFSET(Navarra_datos!N32,0,($P$1-1)+(($Q$1-1)*12)) -> 0 | J29: =OFFSET('País Vasco_datos'!N32,0,($P$1-1)+(($Q$1-1)*12)) -> 0 | K29: 3073648
A30: Fuel-Gas | B30: =OFFSET(Ceuta_datos!N33,0,($P$1-1)+(($Q$1-1)*12)) -> 17177 | C30: =OFFSET(Extremadura_datos!N33,0,($P$1-1)+(($Q$1-1)*12)) -> 0 | D30: =OFFSET(Galicia_datos!N33,0,($P$1-1)+(($Q$1-1)*12)) -> 0 | E30: =OFFSET('La Rioja_datos'!N33,0,($P$1-1)+(($Q$1-1)*12)) -> 0 | F30: =OFFSET(Madrid_datos!N33,0,($P$1-1)+(($Q$1-1)*12)) -> 0 | G30: =OFFSET(Melilla_datos!N33,0,($P$1-1)+(($Q$1-1)*12)) -> 16939 | H30: =OFFSET(Murcia_datos!N33,0,($P$1-1)+(($Q$1-1)*12)) -> 0 | I30: =OFFSET(Navarra_datos!N33,0,($P$1-1)+(($Q$1-1)*12)) -> 0 | J30: =OFFSET('País Vasco_datos'!N33,0,($P$1-1)+(($Q$1-1)*12)) -> 0 | K30: 604861
A31: Ciclo combinado | B31: =OFFSET(Ceuta_datos!N34,0,($P$1-1)+(($Q$1-1)*12)) -> - | C31: =OFFSET(Extremadura_datos!N34,0,($P$1-1)+(($Q$1-1)*12)) -> - | D31: =OFFSET(Galicia_datos!N34,0,($P$1-1)+(($Q$1-1)*12)) -> 159844 | E31: =OFFSET('La Rioja_datos'!N34,0,($P$1-1)+(($Q$1-1)*12)) -> 165654 | F31: =OFFSET(Madrid_datos!N34,0,($P$1-1)+(($Q$1-1)*12)) -> - | G31: =OFFSET(Melilla_datos!N34,0,($P$1-1)+(($Q$1-1)*12)) -> - | H31: =OFFSET(Murcia_datos!N34,0,($P$1-1)+(($Q$1-1)*12)) -> 248101 | I31: =OFFSET(Navarra_datos!N34,0,($P$1-1)+(($Q$1-1)*12)) -> 113211 | J31: =OFFSET('País Vasco_datos'!N34,0,($P$1-1)+(($Q$1-1)*12)) -> 251981 | K31: 3465221
A32: Hidroeólica | B32: =OFFSET(Ceuta_datos!N35,0,($P$1-1)+(($Q$1-1)*12)) -> 0 | C32: =OFFSET(Extremadura_datos!N35,0,($P$1-1)+(($Q$1-1)*12)) -> 0 | D32: =OFFSET(Galicia_datos!N35,0,($P$1-1)+(($Q$1-1)*12)) -> 0 | E32: =OFFSET('La Rioja_datos'!N35,0,($P$1-1)+(($Q$1-1)*12)) -> 0 | F32: =OFFSET(Madrid_datos!N35,0,($P$1-1)+(($Q$1-1)*12)) -> 0 | G32: =OFFSET(Melilla_datos!N35,0,($P$1-1)+(($Q$1-1)*12)) -> 0 | H32: =OFFSET(Murcia_datos!N35,0,($P$1-1)+(($Q$1-1)*12)) -> 0 | I32: =OFFSET(Navarra_datos!N35,0,($P$1-1)+(($Q$1-1)*12)) -> 0 | J32: =OFFSET('País Vasco_datos'!N35,0,($P$1-1)+(($Q$1-1)*12)) -> 0 | K32: 2340.878
A33: Eólica | B33: =OFFSET(Ceuta_datos!N36,0,($P$1-1)+(($Q$1-1)*12)) -> - | C33: =OFFSET(Extremadura_datos!N36,0,($P$1-1)+(($Q$1-1)*12)) -> - | D33: =OFFSET(Galicia_datos!N36,0,($P$1-1)+(($Q$1-1)*12)) -> 398066.507 | E33: =OFFSET('La Rioja_datos'!N36,0,($P$1-1)+(($Q$1-1)*12)) -> 49441.82 | F33: =OFFSET(Madrid_datos!N36,0,($P$1-1)+(($Q$1-1)*12)) -> - | G33: =OFFSET(Melilla_datos!N36,0,($P$1-1)+(($Q$1-1)*12)) -> - | H33: =OFFSET(Murcia_datos!N36,0,($P$1-1)+(($Q$1-1)*12)) -> 23044.02 | I33: =OFFSET(Navarra_datos!N36,0,($P$1-1)+(($Q$1-1)*12)) -> 180673.616 | J33: =OFFSET('País Vasco_datos'!N36,0,($P$1-1)+(($Q$1-1)*12)) -> 17500.344 | K33: 2872859.67
A34: Solar fotovoltaico | B34: =OFFSET(Ceuta_datos!N37,0,($P$1-1)+(($Q$1-1)*12)) -> 0 | C34: =OFFSET(Extremadura_datos!N37,0,($P$1-1)+(($Q$1-1)*12)) -> 104081.438 | D34: =OFFSET(Galicia_datos!N37,0,($P$1-1)+(($Q$1-1)*12)) -> 1876.752 | E34: =OFFSET('La Rioja_datos'!N37,0,($P$1-1)+(($Q$1-1)*12)) -> 12339.15 | F34: =OFFSET(Madrid_datos!N37,0,($P$1-1)+(($Q$1-1)*12)) -> 8886.099 | G34: =OFFSET(Melilla_datos!N37,0,($P$1-1)+(($Q$1-1)*12)) -> 7.804 | H34: =OFFSET(Murcia_datos!N37,0,($P$1-1)+(($Q$1-1)*12)) -> 68455.435 | I34: =OFFSET(Navarra_datos!N37,0,($P$1-1)+(($Q$1-1)*12)) -> 36240.551 | J34: =OFFSET('País Vasco_datos'!N37,0,($P$1-1)+(($Q$1-1)*12)) -> 2761.012 | K34: 774412.083
A35: Solar térmica | B35: =OFFSET(Ceuta_datos!N38,0,($P$1-1)+(($Q$1-1)*12)) -> 0 | C35: =OFFSET(Extremadura_datos!N38,0,($P$1-1)+(($Q$1-1)*12)) -> 242411.923 | D35: =OFFSET(Galicia_datos!N38,0,($P$1-1)+(($Q$1-1)*12)) -> 0 | E35: =OFFSET('La Rioja_datos'!N38,0,($P$1-1)+(($Q$1-1)*12)) -> 0 | F35: =OFFSET(Madrid_datos!N38,0,($P$1-1)+(($Q$1-1)*12)) -> 0 | G35: =OFFSET(Melilla_datos!N38,0,($P$1-1)+(($Q$1-1)*12)) -> 0 | H35: =OFFSET(Murcia_datos!N38,0,($P$1-1)+(($Q$1-1)*12)) -> 4155.85 | I35: =OFFSET(Navarra_datos!N38,0,($P$1-1)+(($Q$1-1)*12)) -> 0 | J35: =OFFSET('País Vasco_datos'!N38,0,($P$1-1)+(($Q$1-1)*12)) -> 0 | K35: 608139.984
A36: Otras renovables | B36: =OFFSET(Ceuta_datos!N39,0,($P$1-1)+(($Q$1-1)*12)) -> 0 | C36: =OFFSET(Extremadura_datos!N39,0,($P$1-1)+(($Q$1-1)*12)) -> 22984.532 | D36: =OFFSET(Galicia_datos!N39,0,($P$1-1)+(($Q$1-1)*12)) -> 22026.635 | E36: =OFFSET('La Rioja_datos'!N39,0,($P$1-1)+(($Q$1-1)*12)) -> 931.94 | F36: =OFFSET(Madrid_datos!N39,0,($P$1-1)+(($Q$1-1)*12)) -> 12239.498 | G36: =OFFSET(Melilla_datos!N39,0,($P$1-1)+(($Q$1-1)*12)) -> 0 | H36: =OFFSET(Murcia_datos!N39,0,($P$1-1)+(($Q$1-1)*12)) -> 4403.004 | I36: =OFFSET(Navarra_datos!N39,0,($P$1-1)+(($Q$1-1)*12)) -> 26662.817 | J36: =OFFSET('País Vasco_datos'!N39,0,($P$1-1)+(($Q$1-1)*12)) -> 4856.913 | K36: 310011.177
A37: Cogeneración | B37: =OFFSET(Ceuta_datos!N40,0,($P$1-1)+(($Q$1-1)*12)) -> 0 | C37: =OFFSET(Extremadura_datos!N40,0,($P$1-1)+(($Q$1-1)*12)) -> 4868.578 | D37: =OFFSET(Galicia_datos!N40,0,($P$1-1)+(($Q$1-1)*12)) -> 247923.584 | E37: =OFFSET('La Rioja_datos'!N40,0,($P$1-1)+(($Q$1-1)*12)) -> 5827.229 | F37: =OFFSET(Madrid_datos!N40,0,($P$1-1)+(($Q$1-1)*12)) -> 61848.894 | G37: =OFFSET(Melilla_datos!N40,0,($P$1-1)+(($Q$1-1)*12)) -> 0 | H37: =OFFSET(Murcia_datos!N40,0,($P$1-1)+(($Q$1-1)*12)) -> 129845.764 | I37: =OFFSET(Navarra_datos!N40,0,($P$1-1)+(($Q$1-1)*12)) -> 75707.113 | J37: =OFFSET('País Vasco_datos'!N40,0,($P$1-1)+(($Q$1-1)*12)) -> 161725.022 | K37: 2271834.235
A38: Residuos | B38: =OFFSET(Ceuta_datos!N41,0,($P$1-1)+(($Q$1-1)*12)) -> 0 | C38: =OFFSET(Extremadura_datos!N41,0,($P$1-1)+(($Q$1-1)*12)) -> 0 | D38: =OFFSET(Galicia_datos!N41,0,($P$1-1)+(($Q$1-1)*12)) -> 22826.769 | E38: =OFFSET('La Rioja_datos'!N41,0,($P$1-1)+(($Q$1-1)*12)) -> 0 | F38: =OFFSET(Madrid_datos!N41,0,($P$1-1)+(($Q$1-1)*12)) -> 13369.354 | G38: =OFFSET(Melilla_datos!N41,0,($P$1-1)+(($Q$1-1)*12)) -> 897.829 | H38: =OFFSET(Murcia_datos!N41,0,($P$1-1)+(($Q$1-1)*12)) -> 0 | I38: =OFFSET(Navarra_datos!N41,0,($P$1-1)+(($Q$1-1)*12)) -> 0 | J38: =OFFSET('País Vasco_datos'!N41,0,($P$1-1)+(($Q$1-1)*12)) -> 77690.937 | K38: 306696.005 | U38: =datos_mapa!G52 -> < 387.000
A39: Generación neta | B39: =SUM(B27:B38) -> 17177 | C39: 1823097.377 | D39: 2029713.574 | E39: 237541.3915 | F39: 104061.5532 | G39: 17844.633 | H39: 483732.924 | I39: 444296.7022 | J39: 529974.1599 | K39: 20321970.77 | U39: =datos_mapa!G53 -> (387.000 - 826.000)
A40: Consumos en bombeo | B40: =OFFSET(Ceuta_datos!N43,0,($P$1-1)+(($Q$1-1)*12)) -> - | C40: =OFFSET(Extremadura_datos!N43,0,($P$1-1)+(($Q$1-1)*12)) -> 0 | D40: =OFFSET(Galicia_datos!N43,0,($P$1-1)+(($Q$1-1)*12)) -> -3936 | E40: =OFFSET('La Rioja_datos'!N43,0,($P$1-1)+(($Q$1-1)*12)) -> - | F40: =OFFSET(Madrid_datos!N43,0,($P$1-1)+(($Q$1-1)*12)) -> - | G40: =OFFSET(Melilla_datos!N43,0,($P$1-1)+(($Q$1-1)*12)) -> - | H40: =OFFSET(Murcia_datos!N43,0,($P$1-1)+(($Q$1-1)*12)) -> - | I40: =OFFSET(Navarra_datos!N43,0,($P$1-1)+(($Q$1-1)*12)) -> - | J40: =OFFSET('País Vasco_datos'!N43,0,($P$1-1)+(($Q$1-1)*12)) -> - | K40: =SUM(B19:K19,B40:J40) -> -165548 | U40: =datos_mapa!G54 -> (826.000 - 1.585.400)
A41: Saldo Intercambios | B41: =OFFSET(Ceuta_datos!N44,0,($P$1-1)+(($Q$1-1)*12)) -> - | C41: =OFFSET(Extremadura_datos!N44,0,($P$1-1)+(($Q$1-1)*12)) -> -1408204 | D41: =OFFSET(Galicia_datos!N44,0,($P$1-1)+(($Q$1-1)*12)) -> -468791 | E41: =OFFSET('La Rioja_datos'!N44,0,($P$1-1)+(($Q$1-1)*12)) -> -98723 | F41: =OFFSET(Madrid_datos!N44,0,($P$1-1)+(($Q$1-1)*12)) -> 2069303 | G41: =OFFSET(Melilla_datos!N44,0,($P$1-1)+(($Q$1-1)*12)) -> - | H41: =OFFSET(Murcia_datos!N44,0,($P$1-1)+(($Q$1-1)*12)) -> 287986 | I41: =OFFSET(Navarra_datos!N44,0,($P$1-1)+(($Q$1-1)*12)) -> -27809 | J41: =OFFSET('País Vasco_datos'!N44,0,($P$1-1)+(($Q$1-1)*12)) -> 813364 | K41: =SUM(B20:K20,B41:J41) -> 1393311 | U41: =datos_mapa!G55 -> > 1.585.400
A42: Demanda B.C | B42: =SUM(B39:B41) -> 17177 | C42: =SUM(C39:C41) -> 414893.3769 | D42: 1556986.574 | E42: 138818.3915 | F42: 2173364.553 | G42: 17844.633 | H42: 771718.924 | I42: 416487.7022 | J42: 1343338.16 | K42: 21549733.77
A43: %Δ 17/16 | B43: =OFFSET(Ceuta_datos!N46,0,($P$1-1)+(($Q$1-1)*12)) -> -5.66265722 | C43: =OFFSET(Extremadura_datos!N46,0,($P$1-1)+(($Q$1-1)*12)) -> -4.144046387 | D43: =OFFSET(Galicia_datos!N46,0,($P$1-1)+(($Q$1-1)*12)) -> -1.725908609 | E43: =OFFSET('La Rioja_datos'!N46,0,($P$1-1)+(($Q$1-1)*12)) -> -2.5570322 | F43: =OFFSET(Madrid_datos!N46,0,($P$1-1)+(($Q$1-1)*12)) -> -5.803817825 | G43: =OFFSET(Melilla_datos!N46,0,($P$1-1)+(($Q$1-1)*12)) -> -4.658850651 | H43: =OFFSET(Murcia_datos!N46,0,($P$1-1)+(($Q$1-1)*12)) -> -1.169547208 | I43: =OFFSET(Navarra_datos!N46,0,($P$1-1)+(($Q$1-1)*12)) -> -0.6202757755 | J43: =OFFSET('País Vasco_datos'!N46,0,($P$1-1)+(($Q$1-1)*12)) -> 1.910550519 | K43: =OFFSET(Nacional_datos!N46,0,($P$1-1)+(($Q$1-1)*12)) -> -2.941259899

Sheet Andalucía
A1: Andalucía | B1: 1 | C1: 2 | D1: 3 | E1: 4 | F1: 5 | G1: 6 | H1: 7 | I1: 8 | J1: 9 | K1: 10 | L1: 11 | M1: 12
A2: Balance mensual de energía electrica. MWh
B3: 2017
B4: Ene | C4: Feb | D4: Mar | E4: Abr | F4: May | G4: Jun | H4: Jul | I4: Ago | J4: Sep | K4: Oct | L4: Nov | M4: Dic | N4: TOTAL
A5: Hidraulica | B5: =IF(B$1<=Resumen!$P$1,IF(OFFSET(Andalucía_datos!N30,0,((Resumen!$Q$1-1)*12))=0," ",OFFSET(Andalucía_datos!N30,0,((Resumen!$Q$1-1)*12)))," ") -> 50412.92277 | C5: =IF(C$1<=Resumen!$P$1,IF(OFFSET(Andalucía_datos!O30,0,((Resumen!$Q$1-1)*12))=0," ",OFFSET(Andalucía_datos!O30,0,((Resumen!$Q$1-1)*12)))," ") -> 55250.2562 | D5: =IF(D$1<=Resumen!$P$1,IF(OFFSET(Andalucía_datos!P30,0,((Resumen!$Q$1-1)*12))=0," ",OFFSET(Andalucía_datos!P30,0,((Resumen!$Q$1-1)*12)))," ") -> 68712.56173 | E5: =IF(E$1<=Resumen!$P$1,IF(OFFSET(Andalucía_datos!Q30,0,((Resumen!$Q$1-1)*12))=0," ",OFFSET(Andalucía_datos!Q30,0,((Resumen!$Q$1-1)*12)))," ") -> 70093.33943 | F5: =IF(F$1<=Resumen!$P$1,IF(OFFSET(Andalucía_datos!R30,0,((Resumen!$Q$1-1)*12))=0," ",OFFSET(Andalucía_datos!R30,0,((Resumen!$Q$1-1)*12)))," ") -> 63788.18813 | G5: =IF(G$1<=Resumen!$P$1,IF(OFFSET(Andalucía_datos!S30,0,((Resumen!$Q$1-1)*12))=0," ",OFFSET(Andalucía_datos!S30,0,((Resumen!$Q$1-1)*12)))," ") -> 68530.9531 | H5: =IF(H$1<=Resumen!$P$1,IF(OFFSET(Andalucía_datos!T30,0,((Resumen!$Q$1-1)*12))=0," ",OFFSET(Andalucía_datos!T30,0,((Resumen!$Q$1-1)*12)))," ") -> 90420.19711 | I5: =IF(I$1<=Resumen!$P$1,IF(OFFSET(Andalucía_datos!U30,0,((Resumen!$Q$1-1)*12))=0," ",OFFSET(Andalucía_datos!U30,0,((Resumen!$Q$1-1)*12)))," ") -> 88008.24352 | J5: =IF(J$1<=Resumen!$P$1,IF(OFFSET(Andalucía_datos!V30,0,((Resumen!$Q$1-1)*12))=0," ",OFFSET(Andalucía_datos!V30,0,((Resumen!$Q$1-1)*12)))," ") -> 56943.89909 | K5: =IF(K$1<=Resumen!$P$1,IF(OFFSET(Andalucía_datos!W30,0,((Resumen!$Q$1-1)*12))=0," ",OFFSET(Andalucía_datos!W30,0,((Resumen!$Q$1-1)*12)))," ") ->  | L5: =IF(L$1<=Resumen!$P$1,IF(OFFSET(Andalucía_datos!X30,0,((Resumen!$Q$1-1)*12))=0," ",OFFSET(Andalucía_datos!X30,0,((Resumen!$Q$1-1)*12)))," ") ->  | M5: =IF(M$1<=Resumen!$P$1,IF(OFFSET(Andalucía_datos!Y30,0,((Resumen!$Q$1-1)*12))=0," ",OFFSET(Andalucía_datos!Y30,0,((Resumen!$Q$1-1)*12)))," ") ->  | N5: =IF(SUM(B5:M5)=0," ",SUM(B5:M5)) -> 612160.5611
A6: Nuclear | B6: =IF(B$1<=Resumen!$P$1,IF(OFFSET(Andalucía_datos!N31,0,((Resumen!$Q$1-1)*12))=0," ",OFFSET(Andalucía_datos!N31,0,((Resumen!$Q$1-1)*12)))," ") -> - | C6: =IF(C$1<=Resumen!$P$1,IF(OFFSET(Andalucía_datos!O31,0,((Resumen!$Q$1-1)*12))=0," ",OFFSET(Andalucía_datos!O31,0,((Resumen!$Q$1-1)*12)))," ") -> - | D6: =IF(D$1<=Resumen!$P$1,IF(OFFSET(Andalucía_datos!P31,0,((Resumen!$Q$1-1)*12))=0," ",OFFSET(Andalucía_datos!P31,0,((Resumen!$Q$1-1)*12)))," ") -> - | E6: =IF(E$1<=Resumen!$P$1,IF(OFFSET(Andalucía_datos!Q31,0,((Resumen!$Q$1-1)*12))=0," ",OFFSET(Andalucía_datos!Q31,0,((Resumen!$Q$1-1)*12)))," ") -> - | F6: =IF(F$1<=Resumen!$P$1,IF(OFFSET(Andalucía_datos!R31,0,((Resumen!$Q$1-1)*12))=0," ",OFFSET(Andalucía_datos!R31,0,((Resumen!$Q$1-1)*12)))," ") -> - | G6: =IF(G$1<=Resumen!$P$1,IF(OFFSET(Andalucía_datos!S31,0,((Resumen!$Q$1-1)*12))=0," ",OFFSET(Andalucía_datos!S31,0,((Resumen!$Q$1-1)*12)))," ") -> - | H6: =IF(H$1<=Resumen!$P$1,IF(OFFSET(Andalucía_datos!T31,0,((Resumen!$Q$1-1)*12))=0," ",OFFSET(Andalucía_datos!T31,0,((Resumen!$Q$1-1)*12)))," ") -> - | I6: =IF(I$1<=Resumen!$P$1,IF(OFFSET(Andalucía_datos!U31,0,((Resumen!$Q$1-1)*12))=0," ",OFFSET(Andalucía_datos!U31,0,((Resumen!$Q$1-1)*12)))," ") -> - | J6: =IF(J$1<=Resumen!$P$1,IF(OFFSET(Andalucía_datos!V31,0,((Resumen!$Q$1-1)*12))=0," ",OFFSET(Andalucía_datos!V31,0,((Resumen!$Q$1-1)*12)))," ") -> - | K6: =IF(K$1<=Resumen!$P$1,IF(OFFSET(Andalucía_datos!W31,0,((Resumen!$Q$1-1)*12))=0," ",OFFSET(Andalucía_datos!W31,0,((Resumen!$Q$1-1)*12)))," ") ->  | L6: =IF(L$1<=Resumen!$P$1,IF(OFFSET(Andalucía_datos!X31,0,((Resumen!$Q$1-1)*12))=0," ",OFFSET(Andalucía_datos!X31,0,((Resumen!$Q$1-1)*12)))," ") ->  | M6: =IF(M$1<=Resumen!$P$1,IF(OFFSET(Andalucía_datos!Y31,0,((Resumen!$Q$1-1)*12))=0," ",OFFSET(Andalucía_datos!Y31,0,((Resumen!$Q$1-1)*12)))," ") ->  | N6: =IF(SUM(B6:M6)=0," ",SUM(B6:M6)) -> 
A7: Carbón | B7: =IF(B$1<=Resumen!$P$1,IF(OFFSET(Andalucía_datos!N32,0,((Resumen!$Q$1-1)*12))=0," ",OFFSET(Andalucía_datos!N32,0,((Resumen!$Q$1-1)*12)))," ") -> 810449 | C7: =IF(C$1<=Resumen!$P$1,IF(OFFSET(Andalucía_datos!O32,0,((Resumen!$Q$1-1)*12))=0," ",OFFSET(Andalucía_datos!O32,0,((Resumen!$Q$1-1)*12)))," ") -> 594920 | D7: =IF(D$1<=Resumen!$P$1,IF(OFFSET(Andalucía_datos!P32,0,((Resumen!$Q$1-1)*12))=0," ",OFFSET(Andalucía_datos!P32,0,((Resumen!$Q$1-1)*12)))," ") -> 583839 | E7: =IF(E$1<=Resumen!$P$1,IF(OFFSET(Andalucía_datos!Q32,0,((Resumen!$Q$1-1)*12))=0," ",OFFSET(Andalucía_datos!Q32,0,((Resumen!$Q$1-1)*12)))," ") -> 796975 | F7: =IF(F$1<=Resumen!$P$1,IF(OFFSET(Andalucía_datos!R32,0,((Resumen!$Q$1-1)*12))=0," ",OFFSET(Andalucía_datos!R32,0,((Resumen!$Q$1-1)*12)))," ") -> 998467 | G7: =IF(G$1<=Resumen!$P$1,IF(OFFSET(Andalucía_datos!S32,0,((Resumen!$Q$1-1)*12))=0," ",OFFSET(Andalucía_datos!S32,0,((Resumen!$Q$1-1)*12)))," ") -> 943613 | H7: =IF(H$1<=Resumen!$P$1,IF(OFFSET(Andalucía_datos!T32,0,((Resumen!$Q$1-1)*12))=0," ",OFFSET(Andalucía_datos!T32,0,((Resumen!$Q$1-1)*12)))," ") -> 1127137 | I7: =IF(I$1<=Resumen!$P$1,IF(OFFSET(Andalucía_datos!U32,0,((Resumen!$Q$1-1)*12))=0," ",OFFSET(Andalucía_datos!U32,0,((Resumen!$Q$1-1)*12)))," ") -> 1090954 | J7: =IF(J$1<=Resumen!$P$1,IF(OFFSET(Andalucía_datos!V32,0,((Resumen!$Q$1-1)*12))=0," ",OFFSET(Andalucía_datos!V32,0,((Resumen!$Q$1-1)*12)))," ") -> 882715 | K7: =IF(K$1<=Resumen!$P$1,IF(OFFSET(Andalucía_datos!W32,0,((Resumen!$Q$1-1)*12))=0," ",OFFSET(Andalucía_datos!W32,0,((Resumen!$Q$1-1)*12)))," ") ->  | L7: =IF(L$1<=Resumen!$P$1,IF(OFFSET(Andalucía_datos!X32,0,((Resumen!$Q$1-1)*12))=0," ",OFFSET(Andalucía_datos!X32,0,((Resumen!$Q$1-1)*12)))," ") ->  | M7: =IF(M$1<=Resumen!$P$1,IF(OFFSET(Andalucía_datos!Y32,0,((Resumen!$Q$1-1)*12))=0," ",OFFSET(Andalucía_datos!Y32,0,((Resumen!$Q$1-1)*12)))," ") ->  | N7: 7829069
A8: Fuel-Gas | B8: =IF(B$1<=Resumen!$P$1,IF(OFFSET(Andalucía_datos!N33,0,((Resumen!$Q$1-1)*12))=0," ",OFFSET(Andalucía_datos!N33,0,((Resumen!$Q$1-1)*12)))," ") ->  | C8: =IF(C$1<=Resumen!$P$1,IF(OFFSET(Andalucía_datos!O33,0,((Resumen!$Q$1-1)*12))=0," ",OFFSET(Andalucía_datos!O33,0,((Resumen!$Q$1-1)*12)))," ") ->  | D8: =IF(D$1<=Resumen!$P$1,IF(OFFSET(Andalucía_datos!P33,0,((Resumen!$Q$1-1)*12))=0," ",OFFSET(Andalucía_datos!P33,0,((Resumen!$Q$1-1)*12)))," ") ->  | E8: =IF(E$1<=Resumen!$P$1,IF(OFFSET(Andalucía_datos!Q33,0,((Resumen!$Q$1-1)*12))=0," ",OFFSET(Andalucía_datos!Q33,0,((Resumen!$Q$1-1)*12)))," ") ->  | F8: =IF(F$1<=Resumen!$P$1,IF(OFFSET(Andalucía_datos!R33,0,((Resumen!$Q$1-1)*12))=0," ",OFFSET(Andalucía_datos!R33,0,((Resumen!$Q$1-1)*12)))," ") ->  | G8: =IF(G$1<=Resumen!$P$1,IF(OFFSET(Andalucía_datos!S33,0,((Resumen!$Q$1-1)*12))=0," ",OFFSET(Andalucía_datos!S33,0,((Resumen!$Q$1-1)*12)))," ") ->  | H8: =IF(H$1<=Resumen!$P$1,IF(OFFSET(Andalucía_datos!T33,0,((Resumen!$Q$1-1)*12))=0," ",OFFSET(Andalucía_datos!T33,0,((Resumen!$Q$1-1)*12)))," ") ->  | I8: =IF(I$1<=Resumen!$P$1,IF(OFFSET(Andalucía_datos!U33,0,((Resumen!$Q$1-1)*12))=0," ",OFFSET(Andalucía_datos!U33,0,((Resumen!$Q$1-1)*12)))," ") ->  | J8: =IF(J$1<=Resumen!$P$1,IF(OFFSET(Andalucía_datos!V33,0,((Resumen!$Q$1-1)*12))=0," ",OFFSET(Andalucía_datos!V33,0,((Resumen!$Q$1-1)*12)))," ") ->  | K8: =IF(K$1<=Resumen!$P$1,IF(OFFSET(Andalucía_datos!W33,0,((Resumen!$Q$1-1)*12))=0," ",OFFSET(Andalucía_datos!W33,0,((Resumen!$Q$1-1)*12)))," ") ->  | L8: =IF(L$1<=Resumen!$P$1,IF(OFFSET(Andalucía_datos!X33,0,((Resumen!$Q$1-1)*12))=0," ",OFFSET(Andalucía_datos!X33,0,((Resumen!$Q$1-1)*12)))," ") ->  | M8: =IF(M$1<=Resumen!$P$1,IF(OFFSET(Andalucía_datos!Y33,0,((Resumen!$Q$1-1)*12))=0," ",OFFSET(Andalucía_datos!Y33,0,((Resumen!$Q$1-1)*12)))," ") -> 
A9: Ciclo combinado | B9: =IF(B$1<=Resumen!$P$1,IF(OFFSET(Andalucía_datos!N34,0,((Resumen!$Q$1-1)*12))=0," ",OFFSET(Andalucía_datos!N34,0,((Resumen!$Q$1-1)*12)))," ") -> 517012 | C9: =IF(C$1<=Resumen!$P$1,IF(OFFSET(Andalucía_datos!O34,0,((Resumen!$Q$1-1)*12))=0," ",OFFSET(Andalucía_datos!O34,0,((Resumen!$Q$1-1)*12)))," ") -> 288861 | D9: =IF(D$1<=Resumen!$P$1,IF(OFFSET(Andalucía_datos!P34,0,((Resumen!$Q$1-1)*12))=0," ",OFFSET(Andalucía_datos!P34,0,((Resumen!$Q$1-1)*12)))," ") -> 251393 | E9: =IF(E$1<=Resumen!$P$1,IF(OFFSET(Andalucía_datos!Q34,0,((Resumen!$Q$1-1)*12))=0," ",OFFSET(Andalucía_datos!Q34,0,((Resumen!$Q$1-1)*12)))," ") -> 187683 | F9: =IF(F$1<=Resumen!$P$1,IF(OFFSET(Andalucía_datos!R34,0,((Resumen!$Q$1-1)*12))=0," ",OFFSET(Andalucía_datos!R34,0,((Resumen!$Q$1-1)*12)))," ") -> 354883 | G9: =IF(G$1<=Resumen!$P$1,IF(OFFSET(Andalucía_datos!S34,0,((Resumen!$Q$1-1)*12))=0," ",OFFSET(Andalucía_datos!S34,0,((Resumen!$Q$1-1)*12)))," ") -> 716949 | H9: =IF(H$1<=Resumen!$P$1,IF(OFFSET(Andalucía_datos!T34,0,((Resumen!$Q$1-1)*12))=0," ",OFFSET(Andalucía_datos!T34,0,((Resumen!$Q$1-1)*12)))," ") -> 841648 | I9: =IF(I$1<=Resumen!$P$1,IF(OFFSET(Andalucía_datos!U34,0,((Resumen!$Q$1-1)*12))=0," ",OFFSET(Andalucía_datos!U34,0,((Resumen!$Q$1-1)*12)))," ") -> 855659 | J9: =IF(J$1<=Resumen!$P$1,IF(OFFSET(Andalucía_datos!V34,0,((Resumen!$Q$1-1)*12))=0," ",OFFSET(Andalucía_datos!V34,0,((Resumen!$Q$1-1)*12)))," ") -> 1039407 | K9: =IF(K$1<=Resumen!$P$1,IF(OFFSET(Andalucía_datos!W34,0,((Resumen!$Q$1-1)*12))=0," ",OFFSET(Andalucía_datos!W34,0,((Resumen!$Q$1-1)*12)))," ") ->  | L9: =IF(L$1<=Resumen!$P$1,IF(OFFSET(Andalucía_datos!X34,0,((Resumen!$Q$1-1)*12))=0," ",OFFSET(Andalucía_datos!X34,0,((Resumen!$Q$1-1)*12)))," ") ->  | M9: =IF(M$1<=Resumen!$P$1,IF(OFFSET(Andalucía_datos!Y34,0,((Resumen!$Q$1-1)*12))=0," ",OFFSET(Andalucía_datos!Y34,0,((Resumen!$Q$1-1)*12)))," ") ->  | N9: 5053495
A10: Hidroeólica | B10: =IF(B$1<=Resumen!$P$1,IF(OFFSET(Andalucía_datos!N35,0,((Resumen!$Q$1-1)*12))=0," ",OFFSET(Andalucía_datos!N35,0,((Resumen!$Q$1-1)*12)))," ") ->  | C10: =IF(C$1<=Resumen!$P$1,IF(OFFSET(Andalucía_datos!O35,0,((Resumen!$Q$1-1)*12))=0," ",OFFSET(Andalucía_datos!O35,0,((Resumen!$Q$1-1)*12)))," ") ->  | D10: =IF(D$1<=Resumen!$P$1,IF(OFFSET(Andalucía_datos!P35,0,((Resumen!$Q$1-1)*12))=0," ",OFFSET(Andalucía_datos!P35,0,((Resumen!$Q$1-1)*12)))," ") ->  | E10: =IF(E$1<=Resumen!$P$1,IF(OFFSET(Andalucía_datos!Q35,0,((Resumen!$Q$1-1)*12))=0," ",OFFSET(Andalucía_datos!Q35,0,((Resumen!$Q$1-1)*12)))," ") ->  | F10: =IF(F$1<=Resumen!$P$1,IF(OFFSET(Andalucía_datos!R35,0,((Resumen!$Q$1-1)*12))=0," ",OFFSET(Andalucía_datos!R35,0,((Resumen!$Q$1-1)*12)))," ") ->  | G10: =IF(G$1<=Resumen!$P$1,IF(OFFSET(Andalucía_datos!S35,0,((Resumen!$Q$1-1)*12))=0," ",OFFSET(Andalucía_datos!S35,0,((Resumen!$Q$1-1)*12)))," ") ->  | H10: =IF(H$1<=Resumen!$P$1,IF(OFFSET(Andalucía_datos!T35,0,((Resumen!$Q$1-1)*12))=0," ",OFFSET(Andalucía_datos!T35,0,((Resumen!$Q$1-1)*12)))," ") ->  | I10: =IF(I$1<=Resumen!$P$1,IF(OFFSET(Andalucía_datos!U35,0,((Resumen!$Q$1-1)*12))=0," ",OFFSET(Andalucía_datos!U35,0,((Resumen!$Q$1-1)*12)))," ") ->  | J10: =IF(J$1<=Resumen!$P$1,IF(OFFSET(Andalucía_datos!V35,0,((Resumen!$Q$1-1)*12))=0," ",OFFSET(Andalucía_datos!V35,0,((Resumen!$Q$1-1)*12)))," ") ->  | K10: =IF(K$1<=Resumen!$P$1,IF(OFFSET(Andalucía_datos!W35,0,((Resumen!$Q$1-1)*12))=0," ",OFFSET(Andalucía_datos!W35,0,((Resumen!$Q$1-1)*12)))," ") ->  | L10: =IF(L$1<=Resumen!$P$1,IF(OFFSET(Andalucía_datos!X35,0,((Resumen!$Q$1-1)*12))=0," ",OFFSET(Andalucía_datos!X35,0,((Resumen!$Q$1-1)*12)))," ") ->  | M10: =IF(M$1<=Resumen!$P$1,IF(OFFSET(Andalucía_datos!Y35,0,((Resumen!$Q$1-1)*12))=0," ",OFFSET(Andalucía_datos!Y35,0,((Resumen!$Q$1-1)*12)))," ") -> 
A11: Eólica | B11: =IF(B$1<=Resumen!$P$1,IF(OFFSET(Andalucía_datos!N36,0,((Resumen!$Q$1-1)*12))=0," ",OFFSET(Andalucía_datos!N36,0,((Resumen!$Q$1-1)*12)))," ") -> 486002.615 | C11: =IF(C$1<=Resumen!$P$1,IF(OFFSET(Andalucía_datos!O36,0,((Resumen!$Q$1-1)*12))=0," ",OFFSET(Andalucía_datos!O36,0,((Resumen!$Q$1-1)*12)))," ") -> 655982.971 | D11: =IF(D$1<=Resumen!$P$1,IF(OFFSET(Andalucía_datos!P36,0,((Resumen!$Q$1-1)*12))=0," ",OFFSET(Andalucía_datos!P36,0,((Resumen!$Q$1-1)*12)))," ") -> 689848.193 | E11: =IF(E$1<=Resumen!$P$1,IF(OFFSET(Andalucía_datos!Q36,0,((Resumen!$Q$1-1)*12))=0," ",OFFSET(Andalucía_datos!Q36,0,((Resumen!$Q$1-1)*12)))," ") -> 734690.912 | F11: =IF(F$1<=Resumen!$P$1,IF(OFFSET(Andalucía_datos!R36,0,((Resumen!$Q$1-1)*12))=0," ",OFFSET(Andalucía_datos!R36,0,((Resumen!$Q$1-1)*12)))," ") -> 719689.026 | G11: =IF(G$1<=Resumen!$P$1,IF(OFFSET(Andalucía_datos!S36,0,((Resumen!$Q$1-1)*12))=0," ",OFFSET(Andalucía_datos!S36,0,((Resumen!$Q$1-1)*12)))," ") -> 666900.311 | H11: =IF(H$1<=Resumen!$P$1,IF(OFFSET(Andalucía_datos!T36,0,((Resumen!$Q$1-1)*12))=0," ",OFFSET(Andalucía_datos!T36,0,((Resumen!$Q$1-1)*12)))," ") -> 498080.698 | I11: =IF(I$1<=Resumen!$P$1,IF(OFFSET(Andalucía_datos!U36,0,((Resumen!$Q$1-1)*12))=0," ",OFFSET(Andalucía_datos!U36,0,((Resumen!$Q$1-1)*12)))," ") -> 555463.712 | J11: =IF(J$1<=Resumen!$P$1,IF(OFFSET(Andalucía_datos!V36,0,((Resumen!$Q$1-1)*12))=0," ",OFFSET(Andalucía_datos!V36,0,((Resumen!$Q$1-1)*12)))," ") -> 470562.621 | K11: =IF(K$1<=Resumen!$P$1,IF(OFFSET(Andalucía_datos!W36,0,((Resumen!$Q$1-1)*12))=0," ",OFFSET(Andalucía_datos!W36,0,((Resumen!$Q$1-1)*12)))," ") ->  | L11: =IF(L$1<=Resumen!$P$1,IF(OFFSET(Andalucía_datos!X36,0,((Resumen!$Q$1-1)*12))=0," ",OFFSET(Andalucía_datos!X36,0,((Resumen!$Q$1-1)*12)))," ") ->  | M11: =IF(M$1<=Resumen!$P$1,IF(OFFSET(Andalucía_datos!Y36,0,((Resumen!$Q$1-1)*12))=0," ",OFFSET(Andalucía_datos!Y36,0,((Resumen!$Q$1-1)*12)))," ") ->  | N11: 5477221.059
A12: Solar fotovoltaico | B12: =IF(B$1<=Resumen!$P$1,IF(OFFSET(Andalucía_datos!N37,0,((Resumen!$Q$1-1)*12))=0," ",OFFSET(Andalucía_datos!N37,0,((Resumen!$Q$1-1)*12)))," ") -> 105877.885 | C12: =IF(C$1<=Resumen!$P$1,IF(OFFSET(Andalucía_datos!O37,0,((Resumen!$Q$1-1)*12))=0," ",OFFSET(Andalucía_datos!O37,0,((Resumen!$Q$1-1)*12)))," ") -> 79081.219 | D12: =IF(D$1<=Resumen!$P$1,IF(OFFSET(Andalucía_datos!P37,0,((Resumen!$Q$1-1)*12))=0," ",OFFSET(Andalucía_datos!P37,0,((Resumen!$Q$1-1)*12)))," ") -> 132708.122 | E12: =IF(E$1<=Resumen!$P$1,IF(OFFSET(Andalucía_datos!Q37,0,((Resumen!$Q$1-1)*12))=0," ",OFFSET(Andalucía_datos!Q37,0,((Resumen!$Q$1-1)*12)))," ") -> 150594.476 | F12: =IF(F$1<=Resumen!$P$1,IF(OFFSET(Andalucía_datos!R37,0,((Resumen!$Q$1-1)*12))=0," ",OFFSET(Andalucía_datos!R37,0,((Resumen!$Q$1-1)*12)))," ") -> 162710.83 | G12: =IF(G$1<=Resumen!$P$1,IF(OFFSET(Andalucía_datos!S37,0,((Resumen!$Q$1-1)*12))=0," ",OFFSET(Andalucía_datos!S37,0,((Resumen!$Q$1-1)*12)))," ") -> 164775.086 | H12: =IF(H$1<=Resumen!$P$1,IF(OFFSET(Andalucía_datos!T37,0,((Resumen!$Q$1-1)*12))=0," ",OFFSET(Andalucía_datos!T37,0,((Resumen!$Q$1-1)*12)))," ") -> 165364.985 | I12: =IF(I$1<=Resumen!$P$1,IF(OFFSET(Andalucía_datos!U37,0,((Resumen!$Q$1-1)*12))=0," ",OFFSET(Andalucía_datos!U37,0,((Resumen!$Q$1-1)*12)))," ") -> 147822.429 | J12: =IF(J$1<=Resumen!$P$1,IF(OFFSET(Andalucía_datos!V37,0,((Resumen!$Q$1-1)*12))=0," ",OFFSET(Andalucía_datos!V37,0,((Resumen!$Q$1-1)*12)))," ") -> 144814.901 | K12: =IF(K$1<=Resumen!$P$1,IF(OFFSET(Andalucía_datos!W37,0,((Resumen!$Q$1-1)*12))=0," ",OFFSET(Andalucía_datos!W37,0,((Resumen!$Q$1-1)*12)))," ") ->  | L12: =IF(L$1<=Resumen!$P$1,IF(OFFSET(Andalucía_datos!X37,0,((Resumen!$Q$1-1)*12))=0," ",OFFSET(Andalucía_datos!X37,0,((Resumen!$Q$1-1)*12)))," ") ->  | M12: =IF(M$1<=Resumen!$P$1,IF(OFFSET(Andalucía_datos!Y37,0,((Resumen!$Q$1-1)*12))=0," ",OFFSET(Andalucía_datos!Y37,0,((Resumen!$Q$1-1)*12)))," ") ->  | N12: 1253749.933
A13: Solar térmica | B13: =IF(B$1<=Resumen!$P$1,IF(OFFSET(Andalucía_datos!N38,0,((Resumen!$Q$1-1)*12))=0," ",OFFSET(Andalucía_datos!N38,0,((Resumen!$Q$1-1)*12)))," ") -> 71769.211 | C13: =IF(C$1<=Resumen!$P$1,IF(OFFSET(Andalucía_datos!O38,0,((Resumen!$Q$1-1)*12))=0," ",OFFSET(Andalucía_datos!O38,0,((Resumen!$Q$1-1)*12)))," ") -> 30729.586 | D13: =IF(D$1<=Resumen!$P$1,IF(OFFSET(Andalucía_datos!P38,0,((Resumen!$Q$1-1)*12))=0," ",OFFSET(Andalucía_datos!P38,0,((Resumen!$Q$1-1)*12)))," ") -> 153472.04 | E13: =IF(E$1<=Resumen!$P$1,IF(OFFSET(Andalucía_datos!Q38,0,((Resumen!$Q$1-1)*12))=0," ",OFFSET(Andalucía_datos!Q38,0,((Resumen!$Q$1-1)*12)))," ") -> 221765.518 | F13: =IF(F$1<=Resumen!$P$1,IF(OFFSET(Andalucía_datos!R38,0,((Resumen!$Q$1-1)*12))=0," ",OFFSET(Andalucía_datos!R38,0,((Resumen!$Q$1-1)*12)))," ") -> 261109.16 | G13: =IF(G$1<=Resumen!$P$1,IF(OFFSET(Andalucía_datos!S38,0,((Resumen!$Q$1-1)*12))=0," ",OFFSET(Andalucía_datos!S38,0,((Resumen!$Q$1-1)*12)))," ") -> 338971.179 | H13: =IF(H$1<=Resumen!$P$1,IF(OFFSET(Andalucía_datos!T38,0,((Resumen!$Q$1-1)*12))=0," ",OFFSET(Andalucía_datos!T38,0,((Resumen!$Q$1-1)*12)))," ") -> 346095.663 | I13: =IF(I$1<=Resumen!$P$1,IF(OFFSET(Andalucía_datos!U38,0,((Resumen!$Q$1-1)*12))=0," ",OFFSET(Andalucía_datos!U38,0,((Resumen!$Q$1-1)*12)))," ") -> 278934.19 | J13: =IF(J$1<=Resumen!$P$1,IF(OFFSET(Andalucía_datos!V38,0,((Resumen!$Q$1-1)*12))=0," ",OFFSET(Andalucía_datos!V38,0,((Resumen!$Q$1-1)*12)))," ") -> 259824.087 | K13: =IF(K$1<=Resumen!$P$1,IF(OFFSET(Andalucía_datos!W38,0,((Resumen!$Q$1-1)*12))=0," ",OFFSET(Andalucía_datos!W38,0,((Resumen!$Q$1-1)*12)))," ") ->  | L13: =IF(L$1<=Resumen!$P$1,IF(OFFSET(Andalucía_datos!X38,0,((Resumen!$Q$1-1)*12))=0," ",OFFSET(Andalucía_datos!X38,0,((Resumen!$Q$1-1)*12)))," ") ->  | M13: =IF(M$1<=Resumen!$P$1,IF(OFFSET(Andalucía_datos!Y38,0,((Resumen!$Q$1-1)*12))=0," ",OFFSET(Andalucía_datos!Y38,0,((Resumen!$Q$1-1)*12)))," ") ->  | N13: 1962670.634
A14: Otras renovables | B14: =IF(B$1<=Resumen!$P$1,IF(OFFSET(Andalucía_datos!N39,0,((Resumen!$Q$1-1)*12))=0," ",OFFSET(Andalucía_datos!N39,0,((Resumen!$Q$1-1)*12)))," ") -> 124482.636 | C14: =IF(C$1<=Resumen!$P$1,IF(OFFSET(Andalucía_datos!O39,0,((Resumen!$Q$1-1)*12))=0," ",OFFSET(Andalucía_datos!O39,0,((Resumen!$Q$1-1)*12)))," ") -> 110344.12 | D14: =IF(D$1<=Resumen!$P$1,IF(OFFSET(Andalucía_datos!P39,0,((Resumen!$Q$1-1)*12))=0," ",OFFSET(Andalucía_datos!P39,0,((Resumen!$Q$1-1)*12)))," ") -> 108713.625 | E14: =IF(E$1<=Resumen!$P$1,IF(OFFSET(Andalucía_datos!Q39,0,((Resumen!$Q$1-1)*12))=0," ",OFFSET(Andalucía_datos!Q39,0,((Resumen!$Q$1-1)*12)))," ") -> 85119.043 | F14: =IF(F$1<=Resumen!$P$1,IF(OFFSET(Andalucía_datos!R39,0,((Resumen!$Q$1-1)*12))=0," ",OFFSET(Andalucía_datos!R39,0,((Resumen!$Q$1-1)*12)))," ") -> 111129.429 | G14: =IF(G$1<=Resumen!$P$1,IF(OFFSET(Andalucía_datos!S39,0,((Resumen!$Q$1-1)*12))=0," ",OFFSET(Andalucía_datos!S39,0,((Resumen!$Q$1-1)*12)))," ") -> 121474.947 | H14: =IF(H$1<=Resumen!$P$1,IF(OFFSET(Andalucía_datos!T39,0,((Resumen!$Q$1-1)*12))=0," ",OFFSET(Andalucía_datos!T39,0,((Resumen!$Q$1-1)*12)))," ") -> 133821.505 | I14: =IF(I$1<=Resumen!$P$1,IF(OFFSET(Andalucía_datos!U39,0,((Resumen!$Q$1-1)*12))=0," ",OFFSET(Andalucía_datos!U39,0,((Resumen!$Q$1-1)*12)))," ") -> 119389.878 | J14: =IF(J$1<=Resumen!$P$1,IF(OFFSET(Andalucía_datos!V39,0,((Resumen!$Q$1-1)*12))=0," ",OFFSET(Andalucía_datos!V39,0,((Resumen!$Q$1-1)*12)))," ") -> 117290.294 | K14: =IF(K$1<=Resumen!$P$1,IF(OFFSET(Andalucía_datos!W39,0,((Resumen!$Q$1-1)*12))=0," ",OFFSET(Andalucía_datos!W39,0,((Resumen!$Q$1-1)*12)))," ") ->  | L14: =IF(L$1<=Resumen!$P$1,IF(OFFSET(Andalucía_datos!X39,0,((Resumen!$Q$1-1)*12))=0," ",OFFSET(Andalucía_datos!X39,0,((Resumen!$Q$1-1)*12)))," ") ->  | M14: =IF(M$1<=Resumen!$P$1,IF(OFFSET(Andalucía_datos!Y39,0,((Resumen!$Q$1-1)*12))=0," ",OFFSET(Andalucía_datos!Y39,0,((Resumen!$Q$1-1)*12)))," ") ->  | N14: 1031765.477
A15: Cogeneración | B15: =IF(B$1<=Resumen!$P$1,IF(OFFSET(Andalucía_datos!N40,0,((Resumen!$Q$1-1)*12))=0," ",OFFSET(Andalucía_datos!N40,0,((Resumen!$Q$1-1)*12)))," ") -> 481905.169 | C15: =IF(C$1<=Resumen!$P$1,IF(OFFSET(Andalucía_datos!O40,0,((Resumen!$Q$1-1)*12))=0," ",OFFSET(Andalucía_datos!O40,0,((Resumen!$Q$1-1)*12)))," ") -> 430298.964 | D15: =IF(D$1<=Resumen!$P$1,IF(OFFSET(Andalucía_datos!P40,0,((Resumen!$Q$1-1)*12))=0," ",OFFSET(Andalucía_datos!P40,0,((Resumen!$Q$1-1)*12)))," ") -> 451808.479 | E15: =IF(E$1<=Resumen!$P$1,IF(OFFSET(Andalucía_datos!Q40,0,((Resumen!$Q$1-1)*12))=0," ",OFFSET(Andalucía_datos!Q40,0,((Resumen!$Q$1-1)*12)))," ") -> 396725.331 | F15: =IF(F$1<=Resumen!$P$1,IF(OFFSET(Andalucía_datos!R40,0,((Resumen!$Q$1-1)*12))=0," ",OFFSET(Andalucía_datos!R40,0,((Resumen!$Q$1-1)*12)))," ") -> 435273.148 | G15: =IF(G$1<=Resumen!$P$1,IF(OFFSET(Andalucía_datos!S40,0,((Resumen!$Q$1-1)*12))=0," ",OFFSET(Andalucía_datos!S40,0,((Resumen!$Q$1-1)*12)))," ") -> 422668.683 | H15: =IF(H$1<=Resumen!$P$1,IF(OFFSET(Andalucía_datos!T40,0,((Resumen!$Q$1-1)*12))=0," ",OFFSET(Andalucía_datos!T40,0,((Resumen!$Q$1-1)*12)))," ") -> 456333.166 | I15: =IF(I$1<=Resumen!$P$1,IF(OFFSET(Andalucía_datos!U40,0,((Resumen!$Q$1-1)*12))=0," ",OFFSET(Andalucía_datos!U40,0,((Resumen!$Q$1-1)*12)))," ") -> 447696.274 | J15: =IF(J$1<=Resumen!$P$1,IF(OFFSET(Andalucía_datos!V40,0,((Resumen!$Q$1-1)*12))=0," ",OFFSET(Andalucía_datos!V40,0,((Resumen!$Q$1-1)*12)))," ") -> 417219.156 | K15: =IF(K$1<=Resumen!$P$1,IF(OFFSET(Andalucía_datos!W40,0,((Resumen!$Q$1-1)*12))=0," ",OFFSET(Andalucía_datos!W40,0,((Resumen!$Q$1-1)*12)))," ") ->  | L15: =IF(L$1<=Resumen!$P$1,IF(OFFSET(Andalucía_datos!X40,0,((Resumen!$Q$1-1)*12))=0," ",OFFSET(Andalucía_datos!X40,0,((Resumen!$Q$1-1)*12)))," ") ->  | M15: =IF(M$1<=Resumen!$P$1,IF(OFFSET(Andalucía_datos!Y40,0,((Resumen!$Q$1-1)*12))=0," ",OFFSET(Andalucía_datos!Y40,0,((Resumen!$Q$1-1)*12)))," ") ->  | N15: 3939928.37
A16: Residuos | B16: =IF(B$1<=Resumen!$P$1,IF(OFFSET(Andalucía_datos!N41,0,((Resumen!$Q$1-1)*12))=0," ",OFFSET(Andalucía_datos!N41,0,((Resumen!$Q$1-1)*12)))," ") -> 27721.739 | C16: =IF(C$1<=Resumen!$P$1,IF(OFFSET(Andalucía_datos!O41,0,((Resumen!$Q$1-1)*12))=0," ",OFFSET(Andalucía_datos!O41,0,((Resumen!$Q$1-1)*12)))," ") -> 18165.481 | D16: =IF(D$1<=Resumen!$P$1,IF(OFFSET(Andalucía_datos!P41,0,((Resumen!$Q$1-1)*12))=0," ",OFFSET(Andalucía_datos!P41,0,((Resumen!$Q$1-1)*12)))," ") -> 25767.349 | E16: =IF(E$1<=Resumen!$P$1,IF(OFFSET(Andalucía_datos!Q41,0,((Resumen!$Q$1-1)*12))=0," ",OFFSET(Andalucía_datos!Q41,0,((Resumen!$Q$1-1)*12)))," ") -> 25513.88 | F16: =IF(F$1<=Resumen!$P$1,IF(OFFSET(Andalucía_datos!R41,0,((Resumen!$Q$1-1)*12))=0," ",OFFSET(Andalucía_datos!R41,0,((Resumen!$Q$1-1)*12)))," ") -> 23550.778 | G16: =IF(G$1<=Resumen!$P$1,IF(OFFSET(Andalucía_datos!S41,0,((Resumen!$Q$1-1)*12))=0," ",OFFSET(Andalucía_datos!S41,0,((Resumen!$Q$1-1)*12)))," ") -> 24976.164 | H16: =IF(H$1<=Resumen!$P$1,IF(OFFSET(Andalucía_datos!T41,0,((Resumen!$Q$1-1)*12))=0," ",OFFSET(Andalucía_datos!T41,0,((Resumen!$Q$1-1)*12)))," ") -> 21485.95 | I16: =IF(I$1<=Resumen!$P$1,IF(OFFSET(Andalucía_datos!U41,0,((Resumen!$Q$1-1)*12))=0," ",OFFSET(Andalucía_datos!U41,0,((Resumen!$Q$1-1)*12)))," ") -> 26522.383 | J16: =IF(J$1<=Resumen!$P$1,IF(OFFSET(Andalucía_datos!V41,0,((Resumen!$Q$1-1)*12))=0," ",OFFSET(Andalucía_datos!V41,0,((Resumen!$Q$1-1)*12)))," ") -> 24676.581 | K16: =IF(K$1<=Resumen!$P$1,IF(OFFSET(Andalucía_datos!W41,0,((Resumen!$Q$1-1)*12))=0," ",OFFSET(Andalucía_datos!W41,0,((Resumen!$Q$1-1)*12)))," ") ->  | L16: =IF(L$1<=Resumen!$P$1,IF(OFFSET(Andalucía_datos!X41,0,((Resumen!$Q$1-1)*12))=0," ",OFFSET(Andalucía_datos!X41,0,((Resumen!$Q$1-1)*12)))," ") ->  | M16: =IF(M$1<=Resumen!$P$1,IF(OFFSET(Andalucía_datos!Y41,0,((Resumen!$Q$1-1)*12))=0," ",OFFSET(Andalucía_datos!Y41,0,((Resumen!$Q$1-1)*12)))," ") ->  | N16: 218380.305
A17: Generación neta | B17: =IF(B$1<=Resumen!$P$1,IF(OFFSET(Andalucía_datos!N42,0,((Resumen!$Q$1-1)*12))=0," ",OFFSET(Andalucía_datos!N42,0,((Resumen!$Q$1-1)*12)))," ") -> 2675633.178 | C17: =IF(C$1<=Resumen!$P$1,IF(OFFSET(Andalucía_datos!O42,0,((Resumen!$Q$1-1)*12))=0," ",OFFSET(Andalucía_datos!O42,0,((Resumen!$Q$1-1)*12)))," ") -> 2263633.597 | D17: =IF(D$1<=Resumen!$P$1,IF(OFFSET(Andalucía_datos!P42,0,((Resumen!$Q$1-1)*12))=0," ",OFFSET(Andalucía_datos!P42,0,((Resumen!$Q$1-1)*12)))," ") -> 2466262.37 | E17: =IF(E$1<=Resumen!$P$1,IF(OFFSET(Andalucía_datos!Q42,0,((Resumen!$Q$1-1)*12))=0," ",OFFSET(Andalucía_datos!Q42,0,((Resumen!$Q$1-1)*12)))," ") -> 2669160.499 | F17: =IF(F$1<=Resumen!$P$1,IF(OFFSET(Andalucía_datos!R42,0,((Resumen!$Q$1-1)*12))=0," ",OFFSET(Andalucía_datos!R42,0,((Resumen!$Q$1-1)*12)))," ") -> 3130600.559 | G17: =IF(G$1<=Resumen!$P$1,IF(OFFSET(Andalucía_datos!S42,0,((Resumen!$Q$1-1)*12))=0," ",OFFSET(Andalucía_datos!S42,0,((Resumen!$Q$1-1)*12)))," ") -> 3468859.323 | H17: =IF(H$1<=Resumen!$P$1,IF(OFFSET(Andalucía_datos!T42,0,((Resumen!$Q$1-1)*12))=0," ",OFFSET(Andalucía_datos!T42,0,((Resumen!$Q$1-1)*12)))," ") -> 3680387.164 | I17: =IF(I$1<=Resumen!$P$1,IF(OFFSET(Andalucía_datos!U42,0,((Resumen!$Q$1-1)*12))=0," ",OFFSET(Andalucía_datos!U42,0,((Resumen!$Q$1-1)*12)))," ") -> 3610450.11 | J17: =IF(J$1<=Resumen!$P$1,IF(OFFSET(Andalucía_datos!V42,0,((Resumen!$Q$1-1)*12))=0," ",OFFSET(Andalucía_datos!V42,0,((Resumen!$Q$1-1)*12)))," ") -> 3413453.539 | K17: =IF(K$1<=Resumen!$P$1,IF(OFFSET(Andalucía_datos!W42,0,((Resumen!$Q$1-1)*12))=0," ",OFFSET(Andalucía_datos!W42,0,((Resumen!$Q$1-1)*12)))," ") ->  | L17: =IF(L$1<=Resumen!$P$1,IF(OFFSET(Andalucía_datos!X42,0,((Resumen!$Q$1-1)*12))=0," ",OFFSET(Andalucía_datos!X42,0,((Resumen!$Q$1-1)*12)))," ") ->  | M17: =IF(M$1<=Resumen!$P$1,IF(OFFSET(Andalucía_datos!Y42,0,((Resumen!$Q$1-1)*12))=0," ",OFFSET(Andalucía_datos!Y42,0,((Resumen!$Q$1-1)*12)))," ") ->  | N17: 27378440.34
A18: Consumos en bombeo | B18: =IF(B$1<=Resumen!$P$1,IF(OFFSET(Andalucía_datos!N43,0,((Resumen!$Q$1-1)*12))=0," ",OFFSET(Andalucía_datos!N43,0,((Resumen!$Q$1-1)*12)))," ") -> -29567 | C18: =IF(C$1<=Resumen!$P$1,IF(OFFSET(Andalucía_datos!O43,0,((Resumen!$Q$1-1)*12))=0," ",OFFSET(Andalucía_datos!O43,0,((Resumen!$Q$1-1)*12)))," ") -> -32943 | D18: =IF(D$1<=Resumen!$P$1,IF(OFFSET(Andalucía_datos!P43,0,((Resumen!$Q$1-1)*12))=0," ",OFFSET(Andalucía_datos!P43,0,((Resumen!$Q$1-1)*12)))," ") -> -26967 | E18: =IF(E$1<=Resumen!$P$1,IF(OFFSET(Andalucía_datos!Q43,0,((Resumen!$Q$1-1)*12))=0," ",OFFSET(Andalucía_datos!Q43,0,((Resumen!$Q$1-1)*12)))," ") -> -22625 | F18: =IF(F$1<=Resumen!$P$1,IF(OFFSET(Andalucía_datos!R43,0,((Resumen!$Q$1-1)*12))=0," ",OFFSET(Andalucía_datos!R43,0,((Resumen!$Q$1-1)*12)))," ") -> -11214 | G18: =IF(G$1<=Resumen!$P$1,IF(OFFSET(Andalucía_datos!S43,0,((Resumen!$Q$1-1)*12))=0," ",OFFSET(Andalucía_datos!S43,0,((Resumen!$Q$1-1)*12)))," ") -> -9003 | H18: =IF(H$1<=Resumen!$P$1,IF(OFFSET(Andalucía_datos!T43,0,((Resumen!$Q$1-1)*12))=0," ",OFFSET(Andalucía_datos!T43,0,((Resumen!$Q$1-1)*12)))," ") -> -3770 | I18: =IF(I$1<=Resumen!$P$1,IF(OFFSET(Andalucía_datos!U43,0,((Resumen!$Q$1-1)*12))=0," ",OFFSET(Andalucía_datos!U43,0,((Resumen!$Q$1-1)*12)))," ") -> -8193 | J18: =IF(J$1<=Resumen!$P$1,IF(OFFSET(Andalucía_datos!V43,0,((Resumen!$Q$1-1)*12))=0," ",OFFSET(Andalucía_datos!V43,0,((Resumen!$Q$1-1)*12)))," ") -> -9863 | K18: =IF(K$1<=Resumen!$P$1,IF(OFFSET(Andalucía_datos!W43,0,((Resumen!$Q$1-1)*12))=0," ",OFFSET(Andalucía_datos!W43,0,((Resumen!$Q$1-1)*12)))," ") ->  | L18: =IF(L$1<=Resumen!$P$1,IF(OFFSET(Andalucía_datos!X43,0,((Resumen!$Q$1-1)*12))=0," ",OFFSET(Andalucía_datos!X43,0,((Resumen!$Q$1-1)*12)))," ") ->  | M18: =IF(M$1<=Resumen!$P$1,IF(OFFSET(Andalucía_datos!Y43,0,((Resumen!$Q$1-1)*12))=0," ",OFFSET(Andalucía_datos!Y43,0,((Resumen!$Q$1-1)*12)))," ") ->  | N18: -154145
A19: Saldo Intercambios | B19: =IF(B$1<=Resumen!$P$1,IF(OFFSET(Andalucía_datos!N44,0,((Resumen!$Q$1-1)*12))=0," ",OFFSET(Andalucía_datos!N44,0,((Resumen!$Q$1-1)*12)))," ") -> 992141 | C19: =IF(C$1<=Resumen!$P$1,IF(OFFSET(Andalucía_datos!O44,0,((Resumen!$Q$1-1)*12))=0," ",OFFSET(Andalucía_datos!O44,0,((Resumen!$Q$1-1)*12)))," ") -> 817962 | D19: =IF(D$1<=Resumen!$P$1,IF(OFFSET(Andalucía_datos!P44,0,((Resumen!$Q$1-1)*12))=0," ",OFFSET(Andalucía_datos!P44,0,((Resumen!$Q$1-1)*12)))," ") -> 773116 | E19: =IF(E$1<=Resumen!$P$1,IF(OFFSET(Andalucía_datos!Q44,0,((Resumen!$Q$1-1)*12))=0," ",OFFSET(Andalucía_datos!Q44,0,((Resumen!$Q$1-1)*12)))," ") -> 249112 | F19: =IF(F$1<=Resumen!$P$1,IF(OFFSET(Andalucía_datos!R44,0,((Resumen!$Q$1-1)*12))=0," ",OFFSET(Andalucía_datos!R44,0,((Resumen!$Q$1-1)*12)))," ") -> -16042 | G19: =IF(G$1<=Resumen!$P$1,IF(OFFSET(Andalucía_datos!S44,0,((Resumen!$Q$1-1)*12))=0," ",OFFSET(Andalucía_datos!S44,0,((Resumen!$Q$1-1)*12)))," ") -> 92707 | H19: =IF(H$1<=Resumen!$P$1,IF(OFFSET(Andalucía_datos!T44,0,((Resumen!$Q$1-1)*12))=0," ",OFFSET(Andalucía_datos!T44,0,((Resumen!$Q$1-1)*12)))," ") -> 90813 | I19: =IF(I$1<=Resumen!$P$1,IF(OFFSET(Andalucía_datos!U44,0,((Resumen!$Q$1-1)*12))=0," ",OFFSET(Andalucía_datos!U44,0,((Resumen!$Q$1-1)*12)))," ") -> 316777 | J19: =IF(J$1<=Resumen!$P$1,IF(OFFSET(Andalucía_datos!V44,0,((Resumen!$Q$1-1)*12))=0," ",OFFSET(Andalucía_datos!V44,0,((Resumen!$Q$1-1)*12)))," ") -> -108626 | K19: =IF(K$1<=Resumen!$P$1,IF(OFFSET(Andalucía_datos!W44,0,((Resumen!$Q$1-1)*12))=0," ",OFFSET(Andalucía_datos!W44,0,((Resumen!$Q$1-1)*12)))," ") ->  | L19: =IF(L$1<=Resumen!$P$1,IF(OFFSET(Andalucía_datos!X44,0,((Resumen!$Q$1-1)*12))=0," ",OFFSET(Andalucía_datos!X44,0,((Resumen!$Q$1-1)*12)))," ") ->  | M19: =IF(M$1<=Resumen!$P$1,IF(OFFSET(Andalucía_datos!Y44,0,((Resumen!$Q$1-1)*12))=0," ",OFFSET(Andalucía_datos!Y44,0,((Resumen!$Q$1-1)*12)))," ") ->  | N19: 3207960
A20: Demanda B.C | B20: =IF(B$1<=Resumen!$P$1,IF(OFFSET(Andalucía_datos!N45,0,((Resumen!$Q$1-1)*12))=0," ",OFFSET(Andalucía_datos!N45,0,((Resumen!$Q$1-1)*12)))," ") -> 3638207.037 | C20: =IF(C$1<=Resumen!$P$1,IF(OFFSET(Andalucía_datos!O45,0,((Resumen!$Q$1-1)*12))=0," ",OFFSET(Andalucía_datos!O45,0,((Resumen!$Q$1-1)*12)))," ") -> 3048652.757 | D20: =IF(D$1<=Resumen!$P$1,IF(OFFSET(Andalucía_datos!P45,0,((Resumen!$Q$1-1)*12))=0," ",OFFSET(Andalucía_datos!P45,0,((Resumen!$Q$1-1)*12)))," ") -> 3212411.044 | E20: =IF(E$1<=Resumen!$P$1,IF(OFFSET(Andalucía_datos!Q45,0,((Resumen!$Q$1-1)*12))=0," ",OFFSET(Andalucía_datos!Q45,0,((Resumen!$Q$1-1)*12)))," ") -> 2895647.25 | F20: =IF(F$1<=Resumen!$P$1,IF(OFFSET(Andalucía_datos!R45,0,((Resumen!$Q$1-1)*12))=0," ",OFFSET(Andalucía_datos!R45,0,((Resumen!$Q$1-1)*12)))," ") -> 3103344.897 | G20: =IF(G$1<=Resumen!$P$1,IF(OFFSET(Andalucía_datos!S45,0,((Resumen!$Q$1-1)*12))=0," ",OFFSET(Andalucía_datos!S45,0,((Resumen!$Q$1-1)*12)))," ") -> 3552563.37 | H20: =IF(H$1<=Resumen!$P$1,IF(OFFSET(Andalucía_datos!T45,0,((Resumen!$Q$1-1)*12))=0," ",OFFSET(Andalucía_datos!T45,0,((Resumen!$Q$1-1)*12)))," ") -> 3767430.037 | I20: =IF(I$1<=Resumen!$P$1,IF(OFFSET(Andalucía_datos!U45,0,((Resumen!$Q$1-1)*12))=0," ",OFFSET(Andalucía_datos!U45,0,((Resumen!$Q$1-1)*12)))," ") -> 3919034.346 | J20: =IF(J$1<=Resumen!$P$1,IF(OFFSET(Andalucía_datos!V45,0,((Resumen!$Q$1-1)*12))=0," ",OFFSET(Andalucía_datos!V45,0,((Resumen!$Q$1-1)*12)))," ") -> 3294964.925 | K20: =IF(K$1<=Resumen!$P$1,IF(OFFSET(Andalucía_datos!W45,0,((Resumen!$Q$1-1)*12))=0," ",OFFSET(Andalucía_datos!W45,0,((Resumen!$Q$1-1)*12)))," ") ->  | L20: =IF(L$1<=Resumen!$P$1,IF(OFFSET(Andalucía_datos!X45,0,((Resumen!$Q$1-1)*12))=0," ",OFFSET(Andalucía_datos!X45,0,((Resumen!$Q$1-1)*12)))," ") ->  | M20: =IF(M$1<=Resumen!$P$1,IF(OFFSET(Andalucía_datos!Y45,0,((Resumen!$Q$1-1)*12))=0," ",OFFSET(Andalucía_datos!Y45,0,((Resumen!$Q$1-1)*12)))," ") ->  | N20: 30432255.66
A21: =Resumen!A22 -> %Δ 17/16 | B21: =IF(B$1<=Resumen!$P$1,IF(OFFSET(Andalucía_datos!N46,0,((Resumen!$Q$1-1)*12))=0," ",OFFSET(Andalucía_datos!N46,0,((Resumen!$Q$1-1)*12)))," ") -> 9.939309429 | C21: =IF(C$1<=Resumen!$P$1,IF(OFFSET(Andalucía_datos!O46,0,((Resumen!$Q$1-1)*12))=0," ",OFFSET(Andalucía_datos!O46,0,((Resumen!$Q$1-1)*12)))," ") -> -3.299082904 | D21: =IF(D$1<=Resumen!$P$1,IF(OFFSET(Andalucía_datos!P46,0,((Resumen!$Q$1-1)*12))=0," ",OFFSET(Andalucía_datos!P46,0,((Resumen!$Q$1-1)*12)))," ") -> -1.691819707 | E21: =IF(E$1<=Resumen!$P$1,IF(OFFSET(Andalucía_datos!Q46,0,((Resumen!$Q$1-1)*12))=0," ",OFFSET(Andalucía_datos!Q46,0,((Resumen!$Q$1-1)*12)))," ") -> -3.067409232 | F21: =IF(F$1<=Resumen!$P$1,IF(OFFSET(Andalucía_datos!R46,0,((Resumen!$Q$1-1)*12))=0," ",OFFSET(Andalucía_datos!R46,0,((Resumen!$Q$1-1)*12)))," ") -> 3.199070083 | G21: =IF(G$1<=Resumen!$P$1,IF(OFFSET(Andalucía_datos!S46,0,((Resumen!$Q$1-1)*12))=0," ",OFFSET(Andalucía_datos!S46,0,((Resumen!$Q$1-1)*12)))," ") -> 9.585080641 | H21: =IF(H$1<=Resumen!$P$1,IF(OFFSET(Andalucía_datos!T46,0,((Resumen!$Q$1-1)*12))=0," ",OFFSET(Andalucía_datos!T46,0,((Resumen!$Q$1-1)*12)))," ") -> -0.9802766041 | I21: =IF(I$1<=Resumen!$P$1,IF(OFFSET(Andalucía_datos!U46,0,((Resumen!$Q$1-1)*12))=0," ",OFFSET(Andalucía_datos!U46,0,((Resumen!$Q$1-1)*12)))," ") -> 2.176604347 | J21: =IF(J$1<=Resumen!$P$1,IF(OFFSET(Andalucía_datos!V46,0,((Resumen!$Q$1-1)*12))=0," ",OFFSET(Andalucía_datos!V46,0,((Resumen!$Q$1-1)*12)))," ") -> -2.561522159 | K21: =IF(K$1<=Resumen!$P$1,IF(OFFSET(Andalucía_datos!W46,0,((Resumen!$Q$1-1)*12))=0," ",OFFSET(Andalucía_datos!W46,0,((Resumen!$Q$1-1)*12)))," ") ->  | L21: =IF(L$1<=Resumen!$P$1,IF(OFFSET(Andalucía_datos!X46,0,((Resumen!$Q$1-1)*12))=0," ",OFFSET(Andalucía_datos!X46,0,((Resumen!$Q$1-1)*12)))," ") ->  | M21: =IF(M$1<=Resumen!$P$1,IF(OFFSET(Andalucía_datos!Y46,0,((Resumen!$Q$1-1)*12))=0," ",OFFSET(Andalucía_datos!Y46,0,((Resumen!$Q$1-1)*12)))," ") ->  | N21: =((N20/SUM(OFFSET(Andalucía_datos!N45,0,(Resumen!$Q$1-2)*12):OFFSET(Andalucía_datos!N45,0,((Resumen!$Q$1-2)*12)+Resumen!$P$1-1))-1)*100) -> 1.482259403
A68: =A1 -> Andalucía | B68: =E20 -> 2895647.25
A69: =A1 -> Andalucía | B69: =J20 -> 3294964.925
A70: Resto nacional | B70: =Nacional_datos!BR45-B69 -> 18254769.1

Sheet Aragón
A1: Aragón | B1: 1 | C1: 2 | D1: 3 | E1: 4 | F1: 5 | G1: 6 | H1: 7 | I1: 8 | J1: 9 | K1: 10 | L1: 11 | M1: 12
A2: Balance mensual de energía electrica. MWh
B3: 2017
B4: Ene | C4: Feb | D4: Mar | E4: Abr | F4: May | G4: Jun | H4: Jul | I4: Ago | J4: Sep | K4: Oct | L4: Nov | M4: Dic | N4: TOTAL
A5: Hidraulica | B5: =IF(B$1<=Resumen!$P$1,IF(OFFSET(Aragón_datos!N30,0,((Resumen!$Q$1-1)*12))=0," ",OFFSET(Aragón_datos!N30,0,((Resumen!$Q$1-1)*12)))," ") -> 209913.0022 | C5: =IF(C$1<=Resumen!$P$1,IF(OFFSET(Aragón_datos!O30,0,((Resumen!$Q$1-1)*12))=0," ",OFFSET(Aragón_datos!O30,0,((Resumen!$Q$1-1)*12)))," ") -> 235505.4221 | D5: =IF(D$1<=Resumen!$P$1,IF(OFFSET(Aragón_datos!P30,0,((Resumen!$Q$1-1)*12))=0," ",OFFSET(Aragón_datos!P30,0,((Resumen!$Q$1-1)*12)))," ") -> 358442.0836 | E5: =IF(E$1<=Resumen!$P$1,IF(OFFSET(Aragón_datos!Q30,0,((Resumen!$Q$1-1)*12))=0," ",OFFSET(Aragón_datos!Q30,0,((Resumen!$Q$1-1)*12)))," ") -> 143322.864 | F5: =IF(F$1<=Resumen!$P$1,IF(OFFSET(Aragón_datos!R30,0,((Resumen!$Q$1-1)*12))=0," ",OFFSET(Aragón_datos!R30,0,((Resumen!$Q$1-1)*12)))," ") -> 357215.7022 | G5: =IF(G$1<=Resumen!$P$1,IF(OFFSET(Aragón_datos!S30,0,((Resumen!$Q$1-1)*12))=0," ",OFFSET(Aragón_datos!S30,0,((Resumen!$Q$1-1)*12)))," ") -> 300416.1427 | H5: =IF(H$1<=Resumen!$P$1,IF(OFFSET(Aragón_datos!T30,0,((Resumen!$Q$1-1)*12))=0," ",OFFSET(Aragón_datos!T30,0,((Resumen!$Q$1-1)*12)))," ") -> 242028.65 | I5: =IF(I$1<=Resumen!$P$1,IF(OFFSET(Aragón_datos!U30,0,((Resumen!$Q$1-1)*12))=0," ",OFFSET(Aragón_datos!U30,0,((Resumen!$Q$1-1)*12)))," ") -> 183329.9787 | J5: =IF(J$1<=Resumen!$P$1,IF(OFFSET(Aragón_datos!V30,0,((Resumen!$Q$1-1)*12))=0," ",OFFSET(Aragón_datos!V30,0,((Resumen!$Q$1-1)*12)))," ") -> 148563.722 | K5: =IF(K$1<=Resumen!$P$1,IF(OFFSET(Aragón_datos!W30,0,((Resumen!$Q$1-1)*12))=0," ",OFFSET(Aragón_datos!W30,0,((Resumen!$Q$1-1)*12)))," ") ->  | L5: =IF(L$1<=Resumen!$P$1,IF(OFFSET(Aragón_datos!X30,0,((Resumen!$Q$1-1)*12))=0," ",OFFSET(Aragón_datos!X30,0,((Resumen!$Q$1-1)*12)))," ") ->  | M5: =IF(M$1<=Resumen!$P$1,IF(OFFSET(Aragón_datos!Y30,0,((Resumen!$Q$1-1)*12))=0," ",OFFSET(Aragón_datos!Y30,0,((Resumen!$Q$1-1)*12)))," ") ->  | N5: =IF(SUM(B5:M5)=0," ",SUM(B5:M5)) -> 2178737.568
A6: Nuclear | B6: =IF(B$1<=Resumen!$P$1,IF(OFFSET(Aragón_datos!N31,0,((Resumen!$Q$1-1)*12))=0," ",OFFSET(Aragón_datos!N31,0,((Resumen!$Q$1-1)*12)))," ") -> - | C6: =IF(C$1<=Resumen!$P$1,IF(OFFSET(Aragón_datos!O31,0,((Resumen!$Q$1-1)*12))=0," ",OFFSET(Aragón_datos!O31,0,((Resumen!$Q$1-1)*12)))," ") -> - | D6: =IF(D$1<=Resumen!$P$1,IF(OFFSET(Aragón_datos!P31,0,((Resumen!$Q$1-1)*12))=0," ",OFFSET(Aragón_datos!P31,0,((Resumen!$Q$1-1)*12)))," ") -> - | E6: =IF(E$1<=Resumen!$P$1,IF(OFFSET(Aragón_datos!Q31,0,((Resumen!$Q$1-1)*12))=0," ",OFFSET(Aragón_datos!Q31,0,((Resumen!$Q$1-1)*12)))," ") -> - | F6: =IF(F$1<=Resumen!$P$1,IF(OFFSET(Aragón_datos!R31,0,((Resumen!$Q$1-1)*12))=0," ",OFFSET(Aragón_datos!R31,0,((Resumen!$Q$1-1)*12)))," ") -> - | G6: =IF(G$1<=Resumen!$P$1,IF(OFFSET(Aragón_datos!S31,0,((Resumen!$Q$1-1)*12))=0," ",OFFSET(Aragón_datos!S31,0,((Resumen!$Q$1-1)*12)))," ") -> - | H6: =IF(H$1<=Resumen!$P$1,IF(OFFSET(Aragón_datos!T31,0,((Resumen!$Q$1-1)*12))=0," ",OFFSET(Aragón_datos!T31,0,((Resumen!$Q$1-1)*12)))," ") -> - | I6: =IF(I$1<=Resumen!$P$1,IF(OFFSET(Aragón_datos!U31,0,((Resumen!$Q$1-1)*12))=0," ",OFFSET(Aragón_datos!U31,0,((Resumen!$Q$1-1)*12)))," ") -> - | J6: =IF(J$1<=Resumen!$P$1,IF(OFFSET(Aragón_datos!V31,0,((Resumen!$Q$1-1)*12))=0," ",OFFSET(Aragón_datos!V31,0,((Resumen!$Q$1-1)*12)))," ") -> - | K6: =IF(K$1<=Resumen!$P$1,IF(OFFSET(Aragón_datos!W31,0,((Resumen!$Q$1-1)*12))=0," ",OFFSET(Aragón_datos!W31,0,((Resumen!$Q$1-1)*12)))," ") ->  | L6: =IF(L$1<=Resumen!$P$1,IF(OFFSET(Aragón_datos!X31,0,((Resumen!$Q$1-1)*12))=0," ",OFFSET(Aragón_datos!X31,0,((Resumen!$Q$1-1)*12)))," ") ->  | M6: =IF(M$1<=Resumen!$P$1,IF(OFFSET(Aragón_datos!Y31,0,((Resumen!$Q$1-1)*12))=0," ",OFFSET(Aragón_datos!Y31,0,((Resumen!$Q$1-1)*12)))," ") ->  | N6: =IF(SUM(B6:M6)=0," ",SUM(B6:M6)) -> 
A7: Carbón | B7: =IF(B$1<=Resumen!$P$1,IF(OFFSET(Aragón_datos!N32,0,((Resumen!$Q$1-1)*12))=0," ",OFFSET(Aragón_datos!N32,0,((Resumen!$Q$1-1)*12)))," ") -> 569112 | C7: =IF(C$1<=Resumen!$P$1,IF(OFFSET(Aragón_datos!O32,0,((Resumen!$Q$1-1)*12))=0," ",OFFSET(Aragón_datos!O32,0,((Resumen!$Q$1-1)*12)))," ") -> 377255 | D7: =IF(D$1<=Resumen!$P$1,IF(OFFSET(Aragón_datos!P32,0,((Resumen!$Q$1-1)*12))=0," ",OFFSET(Aragón_datos!P32,0,((Resumen!$Q$1-1)*12)))," ") -> 144076 | E7: =IF(E$1<=Resumen!$P$1,IF(OFFSET(Aragón_datos!Q32,0,((Resumen!$Q$1-1)*12))=0," ",OFFSET(Aragón_datos!Q32,0,((Resumen!$Q$1-1)*12)))," ") -> 184691 | F7: =IF(F$1<=Resumen!$P$1,IF(OFFSET(Aragón_datos!R32,0,((Resumen!$Q$1-1)*12))=0," ",OFFSET(Aragón_datos!R32,0,((Resumen!$Q$1-1)*12)))," ") -> 321269 | G7: =IF(G$1<=Resumen!$P$1,IF(OFFSET(Aragón_datos!S32,0,((Resumen!$Q$1-1)*12))=0," ",OFFSET(Aragón_datos!S32,0,((Resumen!$Q$1-1)*12)))," ") -> 365260 | H7: =IF(H$1<=Resumen!$P$1,IF(OFFSET(Aragón_datos!T32,0,((Resumen!$Q$1-1)*12))=0," ",OFFSET(Aragón_datos!T32,0,((Resumen!$Q$1-1)*12)))," ") -> 515694 | I7: =IF(I$1<=Resumen!$P$1,IF(OFFSET(Aragón_datos!U32,0,((Resumen!$Q$1-1)*12))=0," ",OFFSET(Aragón_datos!U32,0,((Resumen!$Q$1-1)*12)))," ") -> 391077 | J7: =IF(J$1<=Resumen!$P$1,IF(OFFSET(Aragón_datos!V32,0,((Resumen!$Q$1-1)*12))=0," ",OFFSET(Aragón_datos!V32,0,((Resumen!$Q$1-1)*12)))," ") -> 448052 | K7: =IF(K$1<=Resumen!$P$1,IF(OFFSET(Aragón_datos!W32,0,((Resumen!$Q$1-1)*12))=0," ",OFFSET(Aragón_datos!W32,0,((Resumen!$Q$1-1)*12)))," ") ->  | L7: =IF(L$1<=Resumen!$P$1,IF(OFFSET(Aragón_datos!X32,0,((Resumen!$Q$1-1)*12))=0," ",OFFSET(Aragón_datos!X32,0,((Resumen!$Q$1-1)*12)))," ") ->  | M7: =IF(M$1<=Resumen!$P$1,IF(OFFSET(Aragón_datos!Y32,0,((Resumen!$Q$1-1)*12))=0," ",OFFSET(Aragón_datos!Y32,0,((Resumen!$Q$1-1)*12)))," ") ->  | N7: 3316486
A8: Fuel-Gas | B8: =IF(B$1<=Resumen!$P$1,IF(OFFSET(Aragón_datos!N33,0,((Resumen!$Q$1-1)*12))=0," ",OFFSET(Aragón_datos!N33,0,((Resumen!$Q$1-1)*12)))," ") ->  | C8: =IF(C$1<=Resumen!$P$1,IF(OFFSET(Aragón_datos!O33,0,((Resumen!$Q$1-1)*12))=0," ",OFFSET(Aragón_datos!O33,0,((Resumen!$Q$1-1)*12)))," ") ->  | D8: =IF(D$1<=Resumen!$P$1,IF(OFFSET(Aragón_datos!P33,0,((Resumen!$Q$1-1)*12))=0," ",OFFSET(Aragón_datos!P33,0,((Resumen!$Q$1-1)*12)))," ") ->  | E8: =IF(E$1<=Resumen!$P$1,IF(OFFSET(Aragón_datos!Q33,0,((Resumen!$Q$1-1)*12))=0," ",OFFSET(Aragón_datos!Q33,0,((Resumen!$Q$1-1)*12)))," ") ->  | F8: =IF(F$1<=Resumen!$P$1,IF(OFFSET(Aragón_datos!R33,0,((Resumen!$Q$1-1)*12))=0," ",OFFSET(Aragón_datos!R33,0,((Resumen!$Q$1-1)*12)))," ") ->  | G8: =IF(G$1<=Resumen!$P$1,IF(OFFSET(Aragón_datos!S33,0,((Resumen!$Q$1-1)*12))=0," ",OFFSET(Aragón_datos!S33,0,((Resumen!$Q$1-1)*12)))," ") ->  | H8: =IF(H$1<=Resumen!$P$1,IF(OFFSET(Aragón_datos!T33,0,((Resumen!$Q$1-1)*12))=0," ",OFFSET(Aragón_datos!T33,0,((Resumen!$Q$1-1)*12)))," ") ->  | I8: =IF(I$1<=Resumen!$P$1,IF(OFFSET(Aragón_datos!U33,0,((Resumen!$Q$1-1)*12))=0," ",OFFSET(Aragón_datos!U33,0,((Resumen!$Q$1-1)*12)))," ") ->  | J8: =IF(J$1<=Resumen!$P$1,IF(OFFSET(Aragón_datos!V33,0,((Resumen!$Q$1-1)*12))=0," ",OFFSET(Aragón_datos!V33,0,((Resumen!$Q$1-1)*12)))," ") ->  | K8: =IF(K$1<=Resumen!$P$1,IF(OFFSET(Aragón_datos!W33,0,((Resumen!$Q$1-1)*12))=0," ",OFFSET(Aragón_datos!W33,0,((Resumen!$Q$1-1)*12)))," ") ->  | L8: =IF(L$1<=Resumen!$P$1,IF(OFFSET(Aragón_datos!X33,0,((Resumen!$Q$1-1)*12))=0," ",OFFSET(Aragón_datos!X33,0,((Resumen!$Q$1-1)*12)))," ") ->  | M8: =IF(M$1<=Resumen!$P$1,IF(OFFSET(Aragón_datos!Y33,0,((Resumen!$Q$1-1)*12))=0," ",OFFSET(Aragón_datos!Y33,0,((Resumen!$Q$1-1)*12)))," ") -> 
A9: Ciclo combinado | B9: =IF(B$1<=Resumen!$P$1,IF(OFFSET(Aragón_datos!N34,0,((Resumen!$Q$1-1)*12))=0," ",OFFSET(Aragón_datos!N34,0,((Resumen!$Q$1-1)*12)))," ") -> 45538 | C9: =IF(C$1<=Resumen!$P$1,IF(OFFSET(Aragón_datos!O34,0,((Resumen!$Q$1-1)*12))=0," ",OFFSET(Aragón_datos!O34,0,((Resumen!$Q$1-1)*12)))," ") ->  | D9: =IF(D$1<=Resumen!$P$1,IF(OFFSET(Aragón_datos!P34,0,((Resumen!$Q$1-1)*12))=0," ",OFFSET(Aragón_datos!P34,0,((Resumen!$Q$1-1)*12)))," ") ->  | E9: =IF(E$1<=Resumen!$P$1,IF(OFFSET(Aragón_datos!Q34,0,((Resumen!$Q$1-1)*12))=0," ",OFFSET(Aragón_datos!Q34,0,((Resumen!$Q$1-1)*12)))," ") ->  | F9: =IF(F$1<=Resumen!$P$1,IF(OFFSET(Aragón_datos!R34,0,((Resumen!$Q$1-1)*12))=0," ",OFFSET(Aragón_datos!R34,0,((Resumen!$Q$1-1)*12)))," ") ->  | G9: =IF(G$1<=Resumen!$P$1,IF(OFFSET(Aragón_datos!S34,0,((Resumen!$Q$1-1)*12))=0," ",OFFSET(Aragón_datos!S34,0,((Resumen!$Q$1-1)*12)))," ") -> 97875 | H9: =IF(H$1<=Resumen!$P$1,IF(OFFSET(Aragón_datos!T34,0,((Resumen!$Q$1-1)*12))=0," ",OFFSET(Aragón_datos!T34,0,((Resumen!$Q$1-1)*12)))," ") -> 435387 | I9: =IF(I$1<=Resumen!$P$1,IF(OFFSET(Aragón_datos!U34,0,((Resumen!$Q$1-1)*12))=0," ",OFFSET(Aragón_datos!U34,0,((Resumen!$Q$1-1)*12)))," ") -> 403223 | J9: =IF(J$1<=Resumen!$P$1,IF(OFFSET(Aragón_datos!V34,0,((Resumen!$Q$1-1)*12))=0," ",OFFSET(Aragón_datos!V34,0,((Resumen!$Q$1-1)*12)))," ") -> 1 | K9: =IF(K$1<=Resumen!$P$1,IF(OFFSET(Aragón_datos!W34,0,((Resumen!$Q$1-1)*12))=0," ",OFFSET(Aragón_datos!W34,0,((Resumen!$Q$1-1)*12)))," ") ->  | L9: =IF(L$1<=Resumen!$P$1,IF(OFFSET(Aragón_datos!X34,0,((Resumen!$Q$1-1)*12))=0," ",OFFSET(Aragón_datos!X34,0,((Resumen!$Q$1-1)*12)))," ") ->  | M9: =IF(M$1<=Resumen!$P$1,IF(OFFSET(Aragón_datos!Y34,0,((Resumen!$Q$1-1)*12))=0," ",OFFSET(Aragón_datos!Y34,0,((Resumen!$Q$1-1)*12)))," ") ->  | N9: 982024
A10: Hidroeólica | B10: =IF(B$1<=Resumen!$P$1,IF(OFFSET(Aragón_datos!N35,0,((Resumen!$Q$1-1)*12))=0," ",OFFSET(Aragón_datos!N35,0,((Resumen!$Q$1-1)*12)))," ") ->  | C10: =IF(C$1<=Resumen!$P$1,IF(OFFSET(Aragón_datos!O35,0,((Resumen!$Q$1-1)*12))=0," ",OFFSET(Aragón_datos!O35,0,((Resumen!$Q$1-1)*12)))," ") ->  | D10: =IF(D$1<=Resumen!$P$1,IF(OFFSET(Aragón_datos!P35,0,((Resumen!$Q$1-1)*12))=0," ",OFFSET(Aragón_datos!P35,0,((Resumen!$Q$1-1)*12)))," ") ->  | E10: =IF(E$1<=Resumen!$P$1,IF(OFFSET(Aragón_datos!Q35,0,((Resumen!$Q$1-1)*12))=0," ",OFFSET(Aragón_datos!Q35,0,((Resumen!$Q$1-1)*12)))," ") ->  | F10: =IF(F$1<=Resumen!$P$1,IF(OFFSET(Aragón_datos!R35,0,((Resumen!$Q$1-1)*12))=0," ",OFFSET(Aragón_datos!R35,0,((Resumen!$Q$1-1)*12)))," ") ->  | G10: =IF(G$1<=Resumen!$P$1,IF(OFFSET(Aragón_datos!S35,0,((Resumen!$Q$1-1)*12))=0," ",OFFSET(Aragón_datos!S35,0,((Resumen!$Q$1-1)*12)))," ") ->  | H10: =IF(H$1<=Resumen!$P$1,IF(OFFSET(Aragón_datos!T35,0,((Resumen!$Q$1-1)*12))=0," ",OFFSET(Aragón_datos!T35,0,((Resumen!$Q$1-1)*12)))," ") ->  | I10: =IF(I$1<=Resumen!$P$1,IF(OFFSET(Aragón_datos!U35,0,((Resumen!$Q$1-1)*12))=0," ",OFFSET(Aragón_datos!U35,0,((Resumen!$Q$1-1)*12)))," ") ->  | J10: =IF(J$1<=Resumen!$P$1,IF(OFFSET(Aragón_datos!V35,0,((Resumen!$Q$1-1)*12))=0," ",OFFSET(Aragón_datos!V35,0,((Resumen!$Q$1-1)*12)))," ") ->  | K10: =IF(K$1<=Resumen!$P$1,IF(OFFSET(Aragón_datos!W35,0,((Resumen!$Q$1-1)*12))=0," ",OFFSET(Aragón_datos!W35,0,((Resumen!$Q$1-1)*12)))," ") ->  | L10: =IF(L$1<=Resumen!$P$1,IF(OFFSET(Aragón_datos!X35,0,((Resumen!$Q$1-1)*12))=0," ",OFFSET(Aragón_datos!X35,0,((Resumen!$Q$1-1)*12)))," ") ->  | M10: =IF(M$1<=Resumen!$P$1,IF(OFFSET(Aragón_datos!Y35,0,((Resumen!$Q$1-1)*12))=0," ",OFFSET(Aragón_datos!Y35,0,((Resumen!$Q$1-1)*12)))," ") -> 
A11: Eólica | B11: =IF(B$1<=Resumen!$P$1,IF(OFFSET(Aragón_datos!N36,0,((Resumen!$Q$1-1)*12))=0," ",OFFSET(Aragón_datos!N36,0,((Resumen!$Q$1-1)*12)))," ") -> 542486.342 | C11: =IF(C$1<=Resumen!$P$1,IF(OFFSET(Aragón_datos!O36,0,((Resumen!$Q$1-1)*12))=0," ",OFFSET(Aragón_datos!O36,0,((Resumen!$Q$1-1)*12)))," ") -> 360798.898 | D11: =IF(D$1<=Resumen!$P$1,IF(OFFSET(Aragón_datos!P36,0,((Resumen!$Q$1-1)*12))=0," ",OFFSET(Aragón_datos!P36,0,((Resumen!$Q$1-1)*12)))," ") -> 329857.675 | E11: =IF(E$1<=Resumen!$P$1,IF(OFFSET(Aragón_datos!Q36,0,((Resumen!$Q$1-1)*12))=0," ",OFFSET(Aragón_datos!Q36,0,((Resumen!$Q$1-1)*12)))," ") -> 382297.374 | F11: =IF(F$1<=Resumen!$P$1,IF(OFFSET(Aragón_datos!R36,0,((Resumen!$Q$1-1)*12))=0," ",OFFSET(Aragón_datos!R36,0,((Resumen!$Q$1-1)*12)))," ") -> 234762.717 | G11: =IF(G$1<=Resumen!$P$1,IF(OFFSET(Aragón_datos!S36,0,((Resumen!$Q$1-1)*12))=0," ",OFFSET(Aragón_datos!S36,0,((Resumen!$Q$1-1)*12)))," ") -> 229739.629 | H11: =IF(H$1<=Resumen!$P$1,IF(OFFSET(Aragón_datos!T36,0,((Resumen!$Q$1-1)*12))=0," ",OFFSET(Aragón_datos!T36,0,((Resumen!$Q$1-1)*12)))," ") -> 379354.729 | I11: =IF(I$1<=Resumen!$P$1,IF(OFFSET(Aragón_datos!U36,0,((Resumen!$Q$1-1)*12))=0," ",OFFSET(Aragón_datos!U36,0,((Resumen!$Q$1-1)*12)))," ") -> 355629.347 | J11: =IF(J$1<=Resumen!$P$1,IF(OFFSET(Aragón_datos!V36,0,((Resumen!$Q$1-1)*12))=0," ",OFFSET(Aragón_datos!V36,0,((Resumen!$Q$1-1)*12)))," ") -> 307259.018 | K11: =IF(K$1<=Resumen!$P$1,IF(OFFSET(Aragón_datos!W36,0,((Resumen!$Q$1-1)*12))=0," ",OFFSET(Aragón_datos!W36,0,((Resumen!$Q$1-1)*12)))," ") ->  | L11: =IF(L$1<=Resumen!$P$1,IF(OFFSET(Aragón_datos!X36,0,((Resumen!$Q$1-1)*12))=0," ",OFFSET(Aragón_datos!X36,0,((Resumen!$Q$1-1)*12)))," ") ->  | M11: =IF(M$1<=Resumen!$P$1,IF(OFFSET(Aragón_datos!Y36,0,((Resumen!$Q$1-1)*12))=0," ",OFFSET(Aragón_datos!Y36,0,((Resumen!$Q$1-1)*12)))," ") ->  | N11: 3122185.729
A12: Solar fotovoltaico | B12: =IF(B$1<=Resumen!$P$1,IF(OFFSET(Aragón_datos!N37,0,((Resumen!$Q$1-1)*12))=0," ",OFFSET(Aragón_datos!N37,0,((Resumen!$Q$1-1)*12)))," ") -> 15602.77 | C12: =IF(C$1<=Resumen!$P$1,IF(OFFSET(Aragón_datos!O37,0,((Resumen!$Q$1-1)*12))=0," ",OFFSET(Aragón_datos!O37,0,((Resumen!$Q$1-1)*12)))," ") -> 16440.107 | D12: =IF(D$1<=Resumen!$P$1,IF(OFFSET(Aragón_datos!P37,0,((Resumen!$Q$1-1)*12))=0," ",OFFSET(Aragón_datos!P37,0,((Resumen!$Q$1-1)*12)))," ") -> 27266.38 | E12: =IF(E$1<=Resumen!$P$1,IF(OFFSET(Aragón_datos!Q37,0,((Resumen!$Q$1-1)*12))=0," ",OFFSET(Aragón_datos!Q37,0,((Resumen!$Q$1-1)*12)))," ") -> 33452.121 | F12: =IF(F$1<=Resumen!$P$1,IF(OFFSET(Aragón_datos!R37,0,((Resumen!$Q$1-1)*12))=0," ",OFFSET(Aragón_datos!R37,0,((Resumen!$Q$1-1)*12)))," ") -> 33619.145 | G12: =IF(G$1<=Resumen!$P$1,IF(OFFSET(Aragón_datos!S37,0,((Resumen!$Q$1-1)*12))=0," ",OFFSET(Aragón_datos!S37,0,((Resumen!$Q$1-1)*12)))," ") -> 33341.204 | H12: =IF(H$1<=Resumen!$P$1,IF(OFFSET(Aragón_datos!T37,0,((Resumen!$Q$1-1)*12))=0," ",OFFSET(Aragón_datos!T37,0,((Resumen!$Q$1-1)*12)))," ") -> 35323.171 | I12: =IF(I$1<=Resumen!$P$1,IF(OFFSET(Aragón_datos!U37,0,((Resumen!$Q$1-1)*12))=0," ",OFFSET(Aragón_datos!U37,0,((Resumen!$Q$1-1)*12)))," ") -> 31103.944 | J12: =IF(J$1<=Resumen!$P$1,IF(OFFSET(Aragón_datos!V37,0,((Resumen!$Q$1-1)*12))=0," ",OFFSET(Aragón_datos!V37,0,((Resumen!$Q$1-1)*12)))," ") -> 27854.027 | K12: =IF(K$1<=Resumen!$P$1,IF(OFFSET(Aragón_datos!W37,0,((Resumen!$Q$1-1)*12))=0," ",OFFSET(Aragón_datos!W37,0,((Resumen!$Q$1-1)*12)))," ") ->  | L12: =IF(L$1<=Resumen!$P$1,IF(OFFSET(Aragón_datos!X37,0,((Resumen!$Q$1-1)*12))=0," ",OFFSET(Aragón_datos!X37,0,((Resumen!$Q$1-1)*12)))," ") ->  | M12: =IF(M$1<=Resumen!$P$1,IF(OFFSET(Aragón_datos!Y37,0,((Resumen!$Q$1-1)*12))=0," ",OFFSET(Aragón_datos!Y37,0,((Resumen!$Q$1-1)*12)))," ") ->  | N12: 254002.869
A13: Solar térmica | B13: =IF(B$1<=Resumen!$P$1,IF(OFFSET(Aragón_datos!N38,0,((Resumen!$Q$1-1)*12))=0," ",OFFSET(Aragón_datos!N38,0,((Resumen!$Q$1-1)*12)))," ") ->  | C13: =IF(C$1<=Resumen!$P$1,IF(OFFSET(Aragón_datos!O38,0,((Resumen!$Q$1-1)*12))=0," ",OFFSET(Aragón_datos!O38,0,((Resumen!$Q$1-1)*12)))," ") ->  | D13: =IF(D$1<=Resumen!$P$1,IF(OFFSET(Aragón_datos!P38,0,((Resumen!$Q$1-1)*12))=0," ",OFFSET(Aragón_datos!P38,0,((Resumen!$Q$1-1)*12)))," ") ->  | E13: =IF(E$1<=Resumen!$P$1,IF(OFFSET(Aragón_datos!Q38,0,((Resumen!$Q$1-1)*12))=0," ",OFFSET(Aragón_datos!Q38,0,((Resumen!$Q$1-1)*12)))," ") ->  | F13: =IF(F$1<=Resumen!$P$1,IF(OFFSET(Aragón_datos!R38,0,((Resumen!$Q$1-1)*12))=0," ",OFFSET(Aragón_datos!R38,0,((Resumen!$Q$1-1)*12)))," ") ->  | G13: =IF(G$1<=Resumen!$P$1,IF(OFFSET(Aragón_datos!S38,0,((Resumen!$Q$1-1)*12))=0," ",OFFSET(Aragón_datos!S38,0,((Resumen!$Q$1-1)*12)))," ") ->  | H13: =IF(H$1<=Resumen!$P$1,IF(OFFSET(Aragón_datos!T38,0,((Resumen!$Q$1-1)*12))=0," ",OFFSET(Aragón_datos!T38,0,((Resumen!$Q$1-1)*12)))," ") ->  | I13: =IF(I$1<=Resumen!$P$1,IF(OFFSET(Aragón_datos!U38,0,((Resumen!$Q$1-1)*12))=0," ",OFFSET(Aragón_datos!U38,0,((Resumen!$Q$1-1)*12)))," ") ->  | J13: =IF(J$1<=Resumen!$P$1,IF(OFFSET(Aragón_datos!V38,0,((Resumen!$Q$1-1)*12))=0," ",OFFSET(Aragón_datos!V38,0,((Resumen!$Q$1-1)*12)))," ") ->  | K13: =IF(K$1<=Resumen!$P$1,IF(OFFSET(Aragón_datos!W38,0,((Resumen!$Q$1-1)*12))=0," ",OFFSET(Aragón_datos!W38,0,((Resumen!$Q$1-1)*12)))," ") ->  | L13: =IF(L$1<=Resumen!$P$1,IF(OFFSET(Aragón_datos!X38,0,((Resumen!$Q$1-1)*12))=0," ",OFFSET(Aragón_datos!X38,0,((Resumen!$Q$1-1)*12)))," ") ->  | M13: =IF(M$1<=Resumen!$P$1,IF(OFFSET(Aragón_datos!Y38,0,((Resumen!$Q$1-1)*12))=0," ",OFFSET(Aragón_datos!Y38,0,((Resumen!$Q$1-1)*12)))," ") -> 
A14: Otras renovables | B14: =IF(B$1<=Resumen!$P$1,IF(OFFSET(Aragón_datos!N39,0,((Resumen!$Q$1-1)*12))=0," ",OFFSET(Aragón_datos!N39,0,((Resumen!$Q$1-1)*12)))," ") -> 4781.263 | C14: =IF(C$1<=Resumen!$P$1,IF(OFFSET(Aragón_datos!O39,0,((Resumen!$Q$1-1)*12))=0," ",OFFSET(Aragón_datos!O39,0,((Resumen!$Q$1-1)*12)))," ") -> 3410.3 | D14: =IF(D$1<=Resumen!$P$1,IF(OFFSET(Aragón_datos!P39,0,((Resumen!$Q$1-1)*12))=0," ",OFFSET(Aragón_datos!P39,0,((Resumen!$Q$1-1)*12)))," ") -> 5893.301 | E14: =IF(E$1<=Resumen!$P$1,IF(OFFSET(Aragón_datos!Q39,0,((Resumen!$Q$1-1)*12))=0," ",OFFSET(Aragón_datos!Q39,0,((Resumen!$Q$1-1)*12)))," ") -> 4715.742 | F14: =IF(F$1<=Resumen!$P$1,IF(OFFSET(Aragón_datos!R39,0,((Resumen!$Q$1-1)*12))=0," ",OFFSET(Aragón_datos!R39,0,((Resumen!$Q$1-1)*12)))," ") -> 3834.697 | G14: =IF(G$1<=Resumen!$P$1,IF(OFFSET(Aragón_datos!S39,0,((Resumen!$Q$1-1)*12))=0," ",OFFSET(Aragón_datos!S39,0,((Resumen!$Q$1-1)*12)))," ") -> 4929.87 | H14: =IF(H$1<=Resumen!$P$1,IF(OFFSET(Aragón_datos!T39,0,((Resumen!$Q$1-1)*12))=0," ",OFFSET(Aragón_datos!T39,0,((Resumen!$Q$1-1)*12)))," ") -> 5454.507 | I14: =IF(I$1<=Resumen!$P$1,IF(OFFSET(Aragón_datos!U39,0,((Resumen!$Q$1-1)*12))=0," ",OFFSET(Aragón_datos!U39,0,((Resumen!$Q$1-1)*12)))," ") -> 4704.87 | J14: =IF(J$1<=Resumen!$P$1,IF(OFFSET(Aragón_datos!V39,0,((Resumen!$Q$1-1)*12))=0," ",OFFSET(Aragón_datos!V39,0,((Resumen!$Q$1-1)*12)))," ") -> 5126.674 | K14: =IF(K$1<=Resumen!$P$1,IF(OFFSET(Aragón_datos!W39,0,((Resumen!$Q$1-1)*12))=0," ",OFFSET(Aragón_datos!W39,0,((Resumen!$Q$1-1)*12)))," ") ->  | L14: =IF(L$1<=Resumen!$P$1,IF(OFFSET(Aragón_datos!X39,0,((Resumen!$Q$1-1)*12))=0," ",OFFSET(Aragón_datos!X39,0,((Resumen!$Q$1-1)*12)))," ") ->  | M14: =IF(M$1<=Resumen!$P$1,IF(OFFSET(Aragón_datos!Y39,0,((Resumen!$Q$1-1)*12))=0," ",OFFSET(Aragón_datos!Y39,0,((Resumen!$Q$1-1)*12)))," ") ->  | N14: 42851.224
A15: Cogeneración | B15: =IF(B$1<=Resumen!$P$1,IF(OFFSET(Aragón_datos!N40,0,((Resumen!$Q$1-1)*12))=0," ",OFFSET(Aragón_datos!N40,0,((Resumen!$Q$1-1)*12)))," ") -> 254873.385 | C15: =IF(C$1<=Resumen!$P$1,IF(OFFSET(Aragón_datos!O40,0,((Resumen!$Q$1-1)*12))=0," ",OFFSET(Aragón_datos!O40,0,((Resumen!$Q$1-1)*12)))," ") -> 228951.628 | D15: =IF(D$1<=Resumen!$P$1,IF(OFFSET(Aragón_datos!P40,0,((Resumen!$Q$1-1)*12))=0," ",OFFSET(Aragón_datos!P40,0,((Resumen!$Q$1-1)*12)))," ") -> 225182.539 | E15: =IF(E$1<=Resumen!$P$1,IF(OFFSET(Aragón_datos!Q40,0,((Resumen!$Q$1-1)*12))=0," ",OFFSET(Aragón_datos!Q40,0,((Resumen!$Q$1-1)*12)))," ") -> 249003.391 | F15: =IF(F$1<=Resumen!$P$1,IF(OFFSET(Aragón_datos!R40,0,((Resumen!$Q$1-1)*12))=0," ",OFFSET(Aragón_datos!R40,0,((Resumen!$Q$1-1)*12)))," ") -> 253310.187 | G15: =IF(G$1<=Resumen!$P$1,IF(OFFSET(Aragón_datos!S40,0,((Resumen!$Q$1-1)*12))=0," ",OFFSET(Aragón_datos!S40,0,((Resumen!$Q$1-1)*12)))," ") -> 251759.556 | H15: =IF(H$1<=Resumen!$P$1,IF(OFFSET(Aragón_datos!T40,0,((Resumen!$Q$1-1)*12))=0," ",OFFSET(Aragón_datos!T40,0,((Resumen!$Q$1-1)*12)))," ") -> 257448.367 | I15: =IF(I$1<=Resumen!$P$1,IF(OFFSET(Aragón_datos!U40,0,((Resumen!$Q$1-1)*12))=0," ",OFFSET(Aragón_datos!U40,0,((Resumen!$Q$1-1)*12)))," ") -> 243953.016 | J15: =IF(J$1<=Resumen!$P$1,IF(OFFSET(Aragón_datos!V40,0,((Resumen!$Q$1-1)*12))=0," ",OFFSET(Aragón_datos!V40,0,((Resumen!$Q$1-1)*12)))," ") -> 232123.835 | K15: =IF(K$1<=Resumen!$P$1,IF(OFFSET(Aragón_datos!W40,0,((Resumen!$Q$1-1)*12))=0," ",OFFSET(Aragón_datos!W40,0,((Resumen!$Q$1-1)*12)))," ") ->  | L15: =IF(L$1<=Resumen!$P$1,IF(OFFSET(Aragón_datos!X40,0,((Resumen!$Q$1-1)*12))=0," ",OFFSET(Aragón_datos!X40,0,((Resumen!$Q$1-1)*12)))," ") ->  | M15: =IF(M$1<=Resumen!$P$1,IF(OFFSET(Aragón_datos!Y40,0,((Resumen!$Q$1-1)*12))=0," ",OFFSET(Aragón_datos!Y40,0,((Resumen!$Q$1-1)*12)))," ") ->  | N15: 2196605.904
A16: Residuos | B16: =IF(B$1<=Resumen!$P$1,IF(OFFSET(Aragón_datos!N41,0,((Resumen!$Q$1-1)*12))=0," ",OFFSET(Aragón_datos!N41,0,((Resumen!$Q$1-1)*12)))," ") -> 36436.291 | C16: =IF(C$1<=Resumen!$P$1,IF(OFFSET(Aragón_datos!O41,0,((Resumen!$Q$1-1)*12))=0," ",OFFSET(Aragón_datos!O41,0,((Resumen!$Q$1-1)*12)))," ") -> 35333.066 | D16: =IF(D$1<=Resumen!$P$1,IF(OFFSET(Aragón_datos!P41,0,((Resumen!$Q$1-1)*12))=0," ",OFFSET(Aragón_datos!P41,0,((Resumen!$Q$1-1)*12)))," ") -> 35264.502 | E16: =IF(E$1<=Resumen!$P$1,IF(OFFSET(Aragón_datos!Q41,0,((Resumen!$Q$1-1)*12))=0," ",OFFSET(Aragón_datos!Q41,0,((Resumen!$Q$1-1)*12)))," ") -> 31129.578 | F16: =IF(F$1<=Resumen!$P$1,IF(OFFSET(Aragón_datos!R41,0,((Resumen!$Q$1-1)*12))=0," ",OFFSET(Aragón_datos!R41,0,((Resumen!$Q$1-1)*12)))," ") -> 27507.579 | G16: =IF(G$1<=Resumen!$P$1,IF(OFFSET(Aragón_datos!S41,0,((Resumen!$Q$1-1)*12))=0," ",OFFSET(Aragón_datos!S41,0,((Resumen!$Q$1-1)*12)))," ") -> 37208.225 | H16: =IF(H$1<=Resumen!$P$1,IF(OFFSET(Aragón_datos!T41,0,((Resumen!$Q$1-1)*12))=0," ",OFFSET(Aragón_datos!T41,0,((Resumen!$Q$1-1)*12)))," ") -> 38575.837 | I16: =IF(I$1<=Resumen!$P$1,IF(OFFSET(Aragón_datos!U41,0,((Resumen!$Q$1-1)*12))=0," ",OFFSET(Aragón_datos!U41,0,((Resumen!$Q$1-1)*12)))," ") -> 38264.374 | J16: =IF(J$1<=Resumen!$P$1,IF(OFFSET(Aragón_datos!V41,0,((Resumen!$Q$1-1)*12))=0," ",OFFSET(Aragón_datos!V41,0,((Resumen!$Q$1-1)*12)))," ") -> 33089.865 | K16: =IF(K$1<=Resumen!$P$1,IF(OFFSET(Aragón_datos!W41,0,((Resumen!$Q$1-1)*12))=0," ",OFFSET(Aragón_datos!W41,0,((Resumen!$Q$1-1)*12)))," ") ->  | L16: =IF(L$1<=Resumen!$P$1,IF(OFFSET(Aragón_datos!X41,0,((Resumen!$Q$1-1)*12))=0," ",OFFSET(Aragón_datos!X41,0,((Resumen!$Q$1-1)*12)))," ") ->  | M16: =IF(M$1<=Resumen!$P$1,IF(OFFSET(Aragón_datos!Y41,0,((Resumen!$Q$1-1)*12))=0," ",OFFSET(Aragón_datos!Y41,0,((Resumen!$Q$1-1)*12)))," ") ->  | N16: 312809.317
A17: Generación neta | B17: =IF(B$1<=Resumen!$P$1,IF(OFFSET(Aragón_datos!N42,0,((Resumen!$Q$1-1)*12))=0," ",OFFSET(Aragón_datos!N42,0,((Resumen!$Q$1-1)*12)))," ") -> 1678743.053 | C17: =IF(C$1<=Resumen!$P$1,IF(OFFSET(Aragón_datos!O42,0,((Resumen!$Q$1-1)*12))=0," ",OFFSET(Aragón_datos!O42,0,((Resumen!$Q$1-1)*12)))," ") -> 1257694.421 | D17: =IF(D$1<=Resumen!$P$1,IF(OFFSET(Aragón_datos!P42,0,((Resumen!$Q$1-1)*12))=0," ",OFFSET(Aragón_datos!P42,0,((Resumen!$Q$1-1)*12)))," ") -> 1125982.481 | E17: =IF(E$1<=Resumen!$P$1,IF(OFFSET(Aragón_datos!Q42,0,((Resumen!$Q$1-1)*12))=0," ",OFFSET(Aragón_datos!Q42,0,((Resumen!$Q$1-1)*12)))," ") -> 1028612.07 | F17: =IF(F$1<=Resumen!$P$1,IF(OFFSET(Aragón_datos!R42,0,((Resumen!$Q$1-1)*12))=0," ",OFFSET(Aragón_datos!R42,0,((Resumen!$Q$1-1)*12)))," ") -> 1231519.027 | G17: =IF(G$1<=Resumen!$P$1,IF(OFFSET(Aragón_datos!S42,0,((Resumen!$Q$1-1)*12))=0," ",OFFSET(Aragón_datos!S42,0,((Resumen!$Q$1-1)*12)))," ") -> 1320529.627 | H17: =IF(H$1<=Resumen!$P$1,IF(OFFSET(Aragón_datos!T42,0,((Resumen!$Q$1-1)*12))=0," ",OFFSET(Aragón_datos!T42,0,((Resumen!$Q$1-1)*12)))," ") -> 1909266.261 | I17: =IF(I$1<=Resumen!$P$1,IF(OFFSET(Aragón_datos!U42,0,((Resumen!$Q$1-1)*12))=0," ",OFFSET(Aragón_datos!U42,0,((Resumen!$Q$1-1)*12)))," ") -> 1651285.53 | J17: =IF(J$1<=Resumen!$P$1,IF(OFFSET(Aragón_datos!V42,0,((Resumen!$Q$1-1)*12))=0," ",OFFSET(Aragón_datos!V42,0,((Resumen!$Q$1-1)*12)))," ") -> 1202070.141 | K17: =IF(K$1<=Resumen!$P$1,IF(OFFSET(Aragón_datos!W42,0,((Resumen!$Q$1-1)*12))=0," ",OFFSET(Aragón_datos!W42,0,((Resumen!$Q$1-1)*12)))," ") ->  | L17: =IF(L$1<=Resumen!$P$1,IF(OFFSET(Aragón_datos!X42,0,((Resumen!$Q$1-1)*12))=0," ",OFFSET(Aragón_datos!X42,0,((Resumen!$Q$1-1)*12)))," ") ->  | M17: =IF(M$1<=Resumen!$P$1,IF(OFFSET(Aragón_datos!Y42,0,((Resumen!$Q$1-1)*12))=0," ",OFFSET(Aragón_datos!Y42,0,((Resumen!$Q$1-1)*12)))," ") ->  | N17: 12405702.61
A18: Consumos en bombeo | B18: =IF(B$1<=Resumen!$P$1,IF(OFFSET(Aragón_datos!N43,0,((Resumen!$Q$1-1)*12))=0," ",OFFSET(Aragón_datos!N43,0,((Resumen!$Q$1-1)*12)))," ") -> -22163 | C18: =IF(C$1<=Resumen!$P$1,IF(OFFSET(Aragón_datos!O43,0,((Resumen!$Q$1-1)*12))=0," ",OFFSET(Aragón_datos!O43,0,((Resumen!$Q$1-1)*12)))," ") -> -37624 | D18: =IF(D$1<=Resumen!$P$1,IF(OFFSET(Aragón_datos!P43,0,((Resumen!$Q$1-1)*12))=0," ",OFFSET(Aragón_datos!P43,0,((Resumen!$Q$1-1)*12)))," ") -> -31210 | E18: =IF(E$1<=Resumen!$P$1,IF(OFFSET(Aragón_datos!Q43,0,((Resumen!$Q$1-1)*12))=0," ",OFFSET(Aragón_datos!Q43,0,((Resumen!$Q$1-1)*12)))," ") -> -24561 | F18: =IF(F$1<=Resumen!$P$1,IF(OFFSET(Aragón_datos!R43,0,((Resumen!$Q$1-1)*12))=0," ",OFFSET(Aragón_datos!R43,0,((Resumen!$Q$1-1)*12)))," ") -> -18516 | G18: =IF(G$1<=Resumen!$P$1,IF(OFFSET(Aragón_datos!S43,0,((Resumen!$Q$1-1)*12))=0," ",OFFSET(Aragón_datos!S43,0,((Resumen!$Q$1-1)*12)))," ") -> -9136 | H18: =IF(H$1<=Resumen!$P$1,IF(OFFSET(Aragón_datos!T43,0,((Resumen!$Q$1-1)*12))=0," ",OFFSET(Aragón_datos!T43,0,((Resumen!$Q$1-1)*12)))," ") -> -2486 | I18: =IF(I$1<=Resumen!$P$1,IF(OFFSET(Aragón_datos!U43,0,((Resumen!$Q$1-1)*12))=0," ",OFFSET(Aragón_datos!U43,0,((Resumen!$Q$1-1)*12)))," ") -> -6847 | J18: =IF(J$1<=Resumen!$P$1,IF(OFFSET(Aragón_datos!V43,0,((Resumen!$Q$1-1)*12))=0," ",OFFSET(Aragón_datos!V43,0,((Resumen!$Q$1-1)*12)))," ") -> -1337 | K18: =IF(K$1<=Resumen!$P$1,IF(OFFSET(Aragón_datos!W43,0,((Resumen!$Q$1-1)*12))=0," ",OFFSET(Aragón_datos!W43,0,((Resumen!$Q$1-1)*12)))," ") ->  | L18: =IF(L$1<=Resumen!$P$1,IF(OFFSET(Aragón_datos!X43,0,((Resumen!$Q$1-1)*12))=0," ",OFFSET(Aragón_datos!X43,0,((Resumen!$Q$1-1)*12)))," ") ->  | M18: =IF(M$1<=Resumen!$P$1,IF(OFFSET(Aragón_datos!Y43,0,((Resumen!$Q$1-1)*12))=0," ",OFFSET(Aragón_datos!Y43,0,((Resumen!$Q$1-1)*12)))," ") ->  | N18: -153880
A19: Saldo Intercambios | B19: =IF(B$1<=Resumen!$P$1,IF(OFFSET(Aragón_datos!N44,0,((Resumen!$Q$1-1)*12))=0," ",OFFSET(Aragón_datos!N44,0,((Resumen!$Q$1-1)*12)))," ") -> -720013 | C19: =IF(C$1<=Resumen!$P$1,IF(OFFSET(Aragón_datos!O44,0,((Resumen!$Q$1-1)*12))=0," ",OFFSET(Aragón_datos!O44,0,((Resumen!$Q$1-1)*12)))," ") -> -387664 | D19: =IF(D$1<=Resumen!$P$1,IF(OFFSET(Aragón_datos!P44,0,((Resumen!$Q$1-1)*12))=0," ",OFFSET(Aragón_datos!P44,0,((Resumen!$Q$1-1)*12)))," ") -> -194977 | E19: =IF(E$1<=Resumen!$P$1,IF(OFFSET(Aragón_datos!Q44,0,((Resumen!$Q$1-1)*12))=0," ",OFFSET(Aragón_datos!Q44,0,((Resumen!$Q$1-1)*12)))," ") -> -181729 | F19: =IF(F$1<=Resumen!$P$1,IF(OFFSET(Aragón_datos!R44,0,((Resumen!$Q$1-1)*12))=0," ",OFFSET(Aragón_datos!R44,0,((Resumen!$Q$1-1)*12)))," ") -> -311653 | G19: =IF(G$1<=Resumen!$P$1,IF(OFFSET(Aragón_datos!S44,0,((Resumen!$Q$1-1)*12))=0," ",OFFSET(Aragón_datos!S44,0,((Resumen!$Q$1-1)*12)))," ") -> -384066 | H19: =IF(H$1<=Resumen!$P$1,IF(OFFSET(Aragón_datos!T44,0,((Resumen!$Q$1-1)*12))=0," ",OFFSET(Aragón_datos!T44,0,((Resumen!$Q$1-1)*12)))," ") -> -999393 | I19: =IF(I$1<=Resumen!$P$1,IF(OFFSET(Aragón_datos!U44,0,((Resumen!$Q$1-1)*12))=0," ",OFFSET(Aragón_datos!U44,0,((Resumen!$Q$1-1)*12)))," ") -> -742620 | J19: =IF(J$1<=Resumen!$P$1,IF(OFFSET(Aragón_datos!V44,0,((Resumen!$Q$1-1)*12))=0," ",OFFSET(Aragón_datos!V44,0,((Resumen!$Q$1-1)*12)))," ") -> -353954 | K19: =IF(K$1<=Resumen!$P$1,IF(OFFSET(Aragón_datos!W44,0,((Resumen!$Q$1-1)*12))=0," ",OFFSET(Aragón_datos!W44,0,((Resumen!$Q$1-1)*12)))," ") ->  | L19: =IF(L$1<=Resumen!$P$1,IF(OFFSET(Aragón_datos!X44,0,((Resumen!$Q$1-1)*12))=0," ",OFFSET(Aragón_datos!X44,0,((Resumen!$Q$1-1)*12)))," ") ->  | M19: =IF(M$1<=Resumen!$P$1,IF(OFFSET(Aragón_datos!Y44,0,((Resumen!$Q$1-1)*12))=0," ",OFFSET(Aragón_datos!Y44,0,((Resumen!$Q$1-1)*12)))," ") ->  | N19: -4276069
A20: Demanda B.C | B20: =IF(B$1<=Resumen!$P$1,IF(OFFSET(Aragón_datos!N45,0,((Resumen!$Q$1-1)*12))=0," ",OFFSET(Aragón_datos!N45,0,((Resumen!$Q$1-1)*12)))," ") -> 936567.0914 | C20: =IF(C$1<=Resumen!$P$1,IF(OFFSET(Aragón_datos!O45,0,((Resumen!$Q$1-1)*12))=0," ",OFFSET(Aragón_datos!O45,0,((Resumen!$Q$1-1)*12)))," ") -> 832406.4847 | D20: =IF(D$1<=Resumen!$P$1,IF(OFFSET(Aragón_datos!P45,0,((Resumen!$Q$1-1)*12))=0," ",OFFSET(Aragón_datos!P45,0,((Resumen!$Q$1-1)*12)))," ") -> 899795.5013 | E20: =IF(E$1<=Resumen!$P$1,IF(OFFSET(Aragón_datos!Q45,0,((Resumen!$Q$1-1)*12))=0," ",OFFSET(Aragón_datos!Q45,0,((Resumen!$Q$1-1)*12)))," ") -> 822322.1996 | F20: =IF(F$1<=Resumen!$P$1,IF(OFFSET(Aragón_datos!R45,0,((Resumen!$Q$1-1)*12))=0," ",OFFSET(Aragón_datos!R45,0,((Resumen!$Q$1-1)*12)))," ") -> 901350.4943 | G20: =IF(G$1<=Resumen!$P$1,IF(OFFSET(Aragón_datos!S45,0,((Resumen!$Q$1-1)*12))=0," ",OFFSET(Aragón_datos!S45,0,((Resumen!$Q$1-1)*12)))," ") -> 927327.8057 | H20: =IF(H$1<=Resumen!$P$1,IF(OFFSET(Aragón_datos!T45,0,((Resumen!$Q$1-1)*12))=0," ",OFFSET(Aragón_datos!T45,0,((Resumen!$Q$1-1)*12)))," ") -> 907387.5834 | I20: =IF(I$1<=Resumen!$P$1,IF(OFFSET(Aragón_datos!U45,0,((Resumen!$Q$1-1)*12))=0," ",OFFSET(Aragón_datos!U45,0,((Resumen!$Q$1-1)*12)))," ") -> 901818.586 | J20: =IF(J$1<=Resumen!$P$1,IF(OFFSET(Aragón_datos!V45,0,((Resumen!$Q$1-1)*12))=0," ",OFFSET(Aragón_datos!V45,0,((Resumen!$Q$1-1)*12)))," ") -> 846778.6752 | K20: =IF(K$1<=Resumen!$P$1,IF(OFFSET(Aragón_datos!W45,0,((Resumen!$Q$1-1)*12))=0," ",OFFSET(Aragón_datos!W45,0,((Resumen!$Q$1-1)*12)))," ") ->  | L20: =IF(L$1<=Resumen!$P$1,IF(OFFSET(Aragón_datos!X45,0,((Resumen!$Q$1-1)*12))=0," ",OFFSET(Aragón_datos!X45,0,((Resumen!$Q$1-1)*12)))," ") ->  | M20: =IF(M$1<=Resumen!$P$1,IF(OFFSET(Aragón_datos!Y45,0,((Resumen!$Q$1-1)*12))=0," ",OFFSET(Aragón_datos!Y45,0,((Resumen!$Q$1-1)*12)))," ") ->  | N20: 7975754.422
A21: =Resumen!A22 -> %Δ 17/16 | B21: =IF(B$1<=Resumen!$P$1,IF(OFFSET(Aragón_datos!N46,0,((Resumen!$Q$1-1)*12))=0," ",OFFSET(Aragón_datos!N46,0,((Resumen!$Q$1-1)*12)))," ") -> 6.617327918 | C21: =IF(C$1<=Resumen!$P$1,IF(OFFSET(Aragón_datos!O46,0,((Resumen!$Q$1-1)*12))=0," ",OFFSET(Aragón_datos!O46,0,((Resumen!$Q$1-1)*12)))," ") -> -3.075479806 | D21: =IF(D$1<=Resumen!$P$1,IF(OFFSET(Aragón_datos!P46,0,((Resumen!$Q$1-1)*12))=0," ",OFFSET(Aragón_datos!P46,0,((Resumen!$Q$1-1)*12)))," ") -> -0.203492148 | E21: =IF(E$1<=Resumen!$P$1,IF(OFFSET(Aragón_datos!Q46,0,((Resumen!$Q$1-1)*12))=0," ",OFFSET(Aragón_datos!Q46,0,((Resumen!$Q$1-1)*12)))," ") -> -3.126151207 | F21: =IF(F$1<=Resumen!$P$1,IF(OFFSET(Aragón_datos!R46,0,((Resumen!$Q$1-1)*12))=0," ",OFFSET(Aragón_datos!R46,0,((Resumen!$Q$1-1)*12)))," ") -> 4.74391466 | G21: =IF(G$1<=Resumen!$P$1,IF(OFFSET(Aragón_datos!S46,0,((Resumen!$Q$1-1)*12))=0," ",OFFSET(Aragón_datos!S46,0,((Resumen!$Q$1-1)*12)))," ") -> 9.481662056 | H21: =IF(H$1<=Resumen!$P$1,IF(OFFSET(Aragón_datos!T46,0,((Resumen!$Q$1-1)*12))=0," ",OFFSET(Aragón_datos!T46,0,((Resumen!$Q$1-1)*12)))," ") -> 2.93690415 | I21: =IF(I$1<=Resumen!$P$1,IF(OFFSET(Aragón_datos!U46,0,((Resumen!$Q$1-1)*12))=0," ",OFFSET(Aragón_datos!U46,0,((Resumen!$Q$1-1)*12)))," ") -> 2.240865217 | J21: =IF(J$1<=Resumen!$P$1,IF(OFFSET(Aragón_datos!V46,0,((Resumen!$Q$1-1)*12))=0," ",OFFSET(Aragón_datos!V46,0,((Resumen!$Q$1-1)*12)))," ") -> -3.319016757 | K21: =IF(K$1<=Resumen!$P$1,IF(OFFSET(Aragón_datos!W46,0,((Resumen!$Q$1-1)*12))=0," ",OFFSET(Aragón_datos!W46,0,((Resumen!$Q$1-1)*12)))," ") ->  | L21: =IF(L$1<=Resumen!$P$1,IF(OFFSET(Aragón_datos!X46,0,((Resumen!$Q$1-1)*12))=0," ",OFFSET(Aragón_datos!X46,0,((Resumen!$Q$1-1)*12)))," ") ->  | M21: =IF(M$1<=Resumen!$P$1,IF(OFFSET(Aragón_datos!Y46,0,((Resumen!$Q$1-1)*12))=0," ",OFFSET(Aragón_datos!Y46,0,((Resumen!$Q$1-1)*12)))," ") ->  | N21: =((N20/SUM(OFFSET(Aragón_datos!N45,0,(Resumen!$Q$1-2)*12):OFFSET(Aragón_datos!N45,0,((Resumen!$Q$1-2)*12)+Resumen!$P$1-1))-1)*100) -> 1.800501789
A69: =A1 -> Aragón | B69: =J20 -> 846778.6752
A70: Resto nacional | B70: =Nacional_datos!BR45-B69 -> 20702955.35

Sheet Asturias
A1: Asturias | B1: 1 | C1: 2 | D1: 3 | E1: 4 | F1: 5 | G1: 6 | H1: 7 | I1: 8 | J1: 9 | K1: 10 | L1: 11 | M1: 12
A2: Balance mensual de energía electrica. GWh
B3: 2017
B4: Ene | C4: Feb | D4: Mar | E4: Abr | F4: May | G4: Jun | H4: Jul | I4: Ago | J4: Sep | K4: Oct | L4: Nov | M4: Dic | N4: TOTAL
A5: Hidraulica | B5: =IF(B$1<=Resumen!$P$1,IF(OFFSET(Asturias_datos!N30,0,((Resumen!$Q$1-1)*12))=0," ",OFFSET(Asturias_datos!N30,0,((Resumen!$Q$1-1)*12)))," ") -> 76643.48356 | C5: =IF(C$1<=Resumen!$P$1,IF(OFFSET(Asturias_datos!O30,0,((Resumen!$Q$1-1)*12))=0," ",OFFSET(Asturias_datos!O30,0,((Resumen!$Q$1-1)*12)))," ") -> 153668.5932 | D5: =IF(D$1<=Resumen!$P$1,IF(OFFSET(Asturias_datos!P30,0,((Resumen!$Q$1-1)*12))=0," ",OFFSET(Asturias_datos!P30,0,((Resumen!$Q$1-1)*12)))," ") -> 139807.4377 | E5: =IF(E$1<=Resumen!$P$1,IF(OFFSET(Asturias_datos!Q30,0,((Resumen!$Q$1-1)*12))=0," ",OFFSET(Asturias_datos!Q30,0,((Resumen!$Q$1-1)*12)))," ") -> 82370.63313 | F5: =IF(F$1<=Resumen!$P$1,IF(OFFSET(Asturias_datos!R30,0,((Resumen!$Q$1-1)*12))=0," ",OFFSET(Asturias_datos!R30,0,((Resumen!$Q$1-1)*12)))," ") -> 68076.41577 | G5: =IF(G$1<=Resumen!$P$1,IF(OFFSET(Asturias_datos!S30,0,((Resumen!$Q$1-1)*12))=0," ",OFFSET(Asturias_datos!S30,0,((Resumen!$Q$1-1)*12)))," ") -> 48219.97357 | H5: =IF(H$1<=Resumen!$P$1,IF(OFFSET(Asturias_datos!T30,0,((Resumen!$Q$1-1)*12))=0," ",OFFSET(Asturias_datos!T30,0,((Resumen!$Q$1-1)*12)))," ") -> 42327.53882 | I5: =IF(I$1<=Resumen!$P$1,IF(OFFSET(Asturias_datos!U30,0,((Resumen!$Q$1-1)*12))=0," ",OFFSET(Asturias_datos!U30,0,((Resumen!$Q$1-1)*12)))," ") -> 39260.19354 | J5: =IF(J$1<=Resumen!$P$1,IF(OFFSET(Asturias_datos!V30,0,((Resumen!$Q$1-1)*12))=0," ",OFFSET(Asturias_datos!V30,0,((Resumen!$Q$1-1)*12)))," ") -> 50836.9724 | K5: =IF(K$1<=Resumen!$P$1,IF(OFFSET(Asturias_datos!W30,0,((Resumen!$Q$1-1)*12))=0," ",OFFSET(Asturias_datos!W30,0,((Resumen!$Q$1-1)*12)))," ") ->  | L5: =IF(L$1<=Resumen!$P$1,IF(OFFSET(Asturias_datos!X30,0,((Resumen!$Q$1-1)*12))=0," ",OFFSET(Asturias_datos!X30,0,((Resumen!$Q$1-1)*12)))," ") ->  | M5: =IF(M$1<=Resumen!$P$1,IF(OFFSET(Asturias_datos!Y30,0,((Resumen!$Q$1-1)*12))=0," ",OFFSET(Asturias_datos!Y30,0,((Resumen!$Q$1-1)*12)))," ") ->  | N5: =IF(SUM(B5:M5)=0," ",SUM(B5:M5)) -> 701211.2417
A6: Nuclear | B6: =IF(B$1<=Resumen!$P$1,IF(OFFSET(Asturias_datos!N31,0,((Resumen!$Q$1-1)*12))=0," ",OFFSET(Asturias_datos!N31,0,((Resumen!$Q$1-1)*12)))," ") -> - | C6: =IF(C$1<=Resumen!$P$1,IF(OFFSET(Asturias_datos!O31,0,((Resumen!$Q$1-1)*12))=0," ",OFFSET(Asturias_datos!O31,0,((Resumen!$Q$1-1)*12)))," ") -> - | D6: =IF(D$1<=Resumen!$P$1,IF(OFFSET(Asturias_datos!P31,0,((Resumen!$Q$1-1)*12))=0," ",OFFSET(Asturias_datos!P31,0,((Resumen!$Q$1-1)*12)))," ") -> - | E6: =IF(E$1<=Resumen!$P$1,IF(OFFSET(Asturias_datos!Q31,0,((Resumen!$Q$1-1)*12))=0," ",OFFSET(Asturias_datos!Q31,0,((Resumen!$Q$1-1)*12)))," ") -> - | F6: =IF(F$1<=Resumen!$P$1,IF(OFFSET(Asturias_datos!R31,0,((Resumen!$Q$1-1)*12))=0," ",OFFSET(Asturias_datos!R31,0,((Resumen!$Q$1-1)*12)))," ") -> - | G6: =IF(G$1<=Resumen!$P$1,IF(OFFSET(Asturias_datos!S31,0,((Resumen!$Q$1-1)*12))=0," ",OFFSET(Asturias_datos!S31,0,((Resumen!$Q$1-1)*12)))," ") -> - | H6: =IF(H$1<=Resumen!$P$1,IF(OFFSET(Asturias_datos!T31,0,((Resumen!$Q$1-1)*12))=0," ",OFFSET(Asturias_datos!T31,0,((Resumen!$Q$1-1)*12)))," ") -> - | I6: =IF(I$1<=Resumen!$P$1,IF(OFFSET(Asturias_datos!U31,0,((Resumen!$Q$1-1)*12))=0," ",OFFSET(Asturias_datos!U31,0,((Resumen!$Q$1-1)*12)))," ") -> - | J6: =IF(J$1<=Resumen!$P$1,IF(OFFSET(Asturias_datos!V31,0,((Resumen!$Q$1-1)*12))=0," ",OFFSET(Asturias_datos!V31,0,((Resumen!$Q$1-1)*12)))," ") -> - | K6: =IF(K$1<=Resumen!$P$1,IF(OFFSET(Asturias_datos!W31,0,((Resumen!$Q$1-1)*12))=0," ",OFFSET(Asturias_datos!W31,0,((Resumen!$Q$1-1)*12)))," ") ->  | L6: =IF(L$1<=Resumen!$P$1,IF(OFFSET(Asturias_datos!X31,0,((Resumen!$Q$1-1)*12))=0," ",OFFSET(Asturias_datos!X31,0,((Resumen!$Q$1-1)*12)))," ") ->  | M6: =IF(M$1<=Resumen!$P$1,IF(OFFSET(Asturias_datos!Y31,0,((Resumen!$Q$1-1)*12))=0," ",OFFSET(Asturias_datos!Y31,0,((Resumen!$Q$1-1)*12)))," ") ->  | N6: =IF(SUM(B6:M6)=0," ",SUM(B6:M6)) -> 
A7: Carbón | B7: =IF(B$1<=Resumen!$P$1,IF(OFFSET(Asturias_datos!N32,0,((Resumen!$Q$1-1)*12))=0," ",OFFSET(Asturias_datos!N32,0,((Resumen!$Q$1-1)*12)))," ") -> 1209585 | C7: =IF(C$1<=Resumen!$P$1,IF(OFFSET(Asturias_datos!O32,0,((Resumen!$Q$1-1)*12))=0," ",OFFSET(Asturias_datos!O32,0,((Resumen!$Q$1-1)*12)))," ") -> 848845 | D7: =IF(D$1<=Resumen!$P$1,IF(OFFSET(Asturias_datos!P32,0,((Resumen!$Q$1-1)*12))=0," ",OFFSET(Asturias_datos!P32,0,((Resumen!$Q$1-1)*12)))," ") -> 502448 | E7: =IF(E$1<=Resumen!$P$1,IF(OFFSET(Asturias_datos!Q32,0,((Resumen!$Q$1-1)*12))=0," ",OFFSET(Asturias_datos!Q32,0,((Resumen!$Q$1-1)*12)))," ") -> 451634 | F7: =IF(F$1<=Resumen!$P$1,IF(OFFSET(Asturias_datos!R32,0,((Resumen!$Q$1-1)*12))=0," ",OFFSET(Asturias_datos!R32,0,((Resumen!$Q$1-1)*12)))," ") -> 955252 | G7: =IF(G$1<=Resumen!$P$1,IF(OFFSET(Asturias_datos!S32,0,((Resumen!$Q$1-1)*12))=0," ",OFFSET(Asturias_datos!S32,0,((Resumen!$Q$1-1)*12)))," ") -> 1057897 | H7: =IF(H$1<=Resumen!$P$1,IF(OFFSET(Asturias_datos!T32,0,((Resumen!$Q$1-1)*12))=0," ",OFFSET(Asturias_datos!T32,0,((Resumen!$Q$1-1)*12)))," ") -> 975772 | I7: =IF(I$1<=Resumen!$P$1,IF(OFFSET(Asturias_datos!U32,0,((Resumen!$Q$1-1)*12))=0," ",OFFSET(Asturias_datos!U32,0,((Resumen!$Q$1-1)*12)))," ") -> 583353 | J7: =IF(J$1<=Resumen!$P$1,IF(OFFSET(Asturias_datos!V32,0,((Resumen!$Q$1-1)*12))=0," ",OFFSET(Asturias_datos!V32,0,((Resumen!$Q$1-1)*12)))," ") -> 656998 | K7: =IF(K$1<=Resumen!$P$1,IF(OFFSET(Asturias_datos!W32,0,((Resumen!$Q$1-1)*12))=0," ",OFFSET(Asturias_datos!W32,0,((Resumen!$Q$1-1)*12)))," ") ->  | L7: =IF(L$1<=Resumen!$P$1,IF(OFFSET(Asturias_datos!X32,0,((Resumen!$Q$1-1)*12))=0," ",OFFSET(Asturias_datos!X32,0,((Resumen!$Q$1-1)*12)))," ") ->  | M7: =IF(M$1<=Resumen!$P$1,IF(OFFSET(Asturias_datos!Y32,0,((Resumen!$Q$1-1)*12))=0," ",OFFSET(Asturias_datos!Y32,0,((Resumen!$Q$1-1)*12)))," ") ->  | N7: 7241784
A8: Fuel-Gas | B8: =IF(B$1<=Resumen!$P$1,IF(OFFSET(Asturias_datos!N33,0,((Resumen!$Q$1-1)*12))=0," ",OFFSET(Asturias_datos!N33,0,((Resumen!$Q$1-1)*12)))," ") ->  | C8: =IF(C$1<=Resumen!$P$1,IF(OFFSET(Asturias_datos!O33,0,((Resumen!$Q$1-1)*12))=0," ",OFFSET(Asturias_datos!O33,0,((Resumen!$Q$1-1)*12)))," ") ->  | D8: =IF(D$1<=Resumen!$P$1,IF(OFFSET(Asturias_datos!P33,0,((Resumen!$Q$1-1)*12))=0," ",OFFSET(Asturias_datos!P33,0,((Resumen!$Q$1-1)*12)))," ") ->  | E8: =IF(E$1<=Resumen!$P$1,IF(OFFSET(Asturias_datos!Q33,0,((Resumen!$Q$1-1)*12))=0," ",OFFSET(Asturias_datos!Q33,0,((Resumen!$Q$1-1)*12)))," ") ->  | F8: =IF(F$1<=Resumen!$P$1,IF(OFFSET(Asturias_datos!R33,0,((Resumen!$Q$1-1)*12))=0," ",OFFSET(Asturias_datos!R33,0,((Resumen!$Q$1-1)*12)))," ") ->  | G8: =IF(G$1<=Resumen!$P$1,IF(OFFSET(Asturias_datos!S33,0,((Resumen!$Q$1-1)*12))=0," ",OFFSET(Asturias_datos!S33,0,((Resumen!$Q$1-1)*12)))," ") ->  | H8: =IF(H$1<=Resumen!$P$1,IF(OFFSET(Asturias_datos!T33,0,((Resumen!$Q$1-1)*12))=0," ",OFFSET(Asturias_datos!T33,0,((Resumen!$Q$1-1)*12)))," ") ->  | I8: =IF(I$1<=Resumen!$P$1,IF(OFFSET(Asturias_datos!U33,0,((Resumen!$Q$1-1)*12))=0," ",OFFSET(Asturias_datos!U33,0,((Resumen!$Q$1-1)*12)))," ") ->  | J8: =IF(J$1<=Resumen!$P$1,IF(OFFSET(Asturias_datos!V33,0,((Resumen!$Q$1-1)*12))=0," ",OFFSET(Asturias_datos!V33,0,((Resumen!$Q$1-1)*12)))," ") ->  | K8: =IF(K$1<=Resumen!$P$1,IF(OFFSET(Asturias_datos!W33,0,((Resumen!$Q$1-1)*12))=0," ",OFFSET(Asturias_datos!W33,0,((Resumen!$Q$1-1)*12)))," ") ->  | L8: =IF(L$1<=Resumen!$P$1,IF(OFFSET(Asturias_datos!X33,0,((Resumen!$Q$1-1)*12))=0," ",OFFSET(Asturias_datos!X33,0,((Resumen!$Q$1-1)*12)))," ") ->  | M8: =IF(M$1<=Resumen!$P$1,IF(OFFSET(Asturias_datos!Y33,0,((Resumen!$Q$1-1)*12))=0," ",OFFSET(Asturias_datos!Y33,0,((Resumen!$Q$1-1)*12)))," ") -> 
A9: Ciclo combinado | B9: =IF(B$1<=Resumen!$P$1,IF(OFFSET(Asturias_datos!N34,0,((Resumen!$Q$1-1)*12))=0," ",OFFSET(Asturias_datos!N34,0,((Resumen!$Q$1-1)*12)))," ") -> 123398 | C9: =IF(C$1<=Resumen!$P$1,IF(OFFSET(Asturias_datos!O34,0,((Resumen!$Q$1-1)*12))=0," ",OFFSET(Asturias_datos!O34,0,((Resumen!$Q$1-1)*12)))," ") -> 91839 | D9: =IF(D$1<=Resumen!$P$1,IF(OFFSET(Asturias_datos!P34,0,((Resumen!$Q$1-1)*12))=0," ",OFFSET(Asturias_datos!P34,0,((Resumen!$Q$1-1)*12)))," ") -> 3435 | E9: =IF(E$1<=Resumen!$P$1,IF(OFFSET(Asturias_datos!Q34,0,((Resumen!$Q$1-1)*12))=0," ",OFFSET(Asturias_datos!Q34,0,((Resumen!$Q$1-1)*12)))," ") -> 20079 | F9: =IF(F$1<=Resumen!$P$1,IF(OFFSET(Asturias_datos!R34,0,((Resumen!$Q$1-1)*12))=0," ",OFFSET(Asturias_datos!R34,0,((Resumen!$Q$1-1)*12)))," ") -> 303 | G9: =IF(G$1<=Resumen!$P$1,IF(OFFSET(Asturias_datos!S34,0,((Resumen!$Q$1-1)*12))=0," ",OFFSET(Asturias_datos!S34,0,((Resumen!$Q$1-1)*12)))," ") -> 769 | H9: =IF(H$1<=Resumen!$P$1,IF(OFFSET(Asturias_datos!T34,0,((Resumen!$Q$1-1)*12))=0," ",OFFSET(Asturias_datos!T34,0,((Resumen!$Q$1-1)*12)))," ") ->  | I9: =IF(I$1<=Resumen!$P$1,IF(OFFSET(Asturias_datos!U34,0,((Resumen!$Q$1-1)*12))=0," ",OFFSET(Asturias_datos!U34,0,((Resumen!$Q$1-1)*12)))," ") -> 22181 | J9: =IF(J$1<=Resumen!$P$1,IF(OFFSET(Asturias_datos!V34,0,((Resumen!$Q$1-1)*12))=0," ",OFFSET(Asturias_datos!V34,0,((Resumen!$Q$1-1)*12)))," ") -> 112359 | K9: =IF(K$1<=Resumen!$P$1,IF(OFFSET(Asturias_datos!W34,0,((Resumen!$Q$1-1)*12))=0," ",OFFSET(Asturias_datos!W34,0,((Resumen!$Q$1-1)*12)))," ") ->  | L9: =IF(L$1<=Resumen!$P$1,IF(OFFSET(Asturias_datos!X34,0,((Resumen!$Q$1-1)*12))=0," ",OFFSET(Asturias_datos!X34,0,((Resumen!$Q$1-1)*12)))," ") ->  | M9: =IF(M$1<=Resumen!$P$1,IF(OFFSET(Asturias_datos!Y34,0,((Resumen!$Q$1-1)*12))=0," ",OFFSET(Asturias_datos!Y34,0,((Resumen!$Q$1-1)*12)))," ") ->  | N9: 374363
A10: Hidroeólica | B10: =IF(B$1<=Resumen!$P$1,IF(OFFSET(Asturias_datos!N35,0,((Resumen!$Q$1-1)*12))=0," ",OFFSET(Asturias_datos!N35,0,((Resumen!$Q$1-1)*12)))," ") ->  | C10: =IF(C$1<=Resumen!$P$1,IF(OFFSET(Asturias_datos!O35,0,((Resumen!$Q$1-1)*12))=0," ",OFFSET(Asturias_datos!O35,0,((Resumen!$Q$1-1)*12)))," ") ->  | D10: =IF(D$1<=Resumen!$P$1,IF(OFFSET(Asturias_datos!P35,0,((Resumen!$Q$1-1)*12))=0," ",OFFSET(Asturias_datos!P35,0,((Resumen!$Q$1-1)*12)))," ") ->  | E10: =IF(E$1<=Resumen!$P$1,IF(OFFSET(Asturias_datos!Q35,0,((Resumen!$Q$1-1)*12))=0," ",OFFSET(Asturias_datos!Q35,0,((Resumen!$Q$1-1)*12)))," ") ->  | F10: =IF(F$1<=Resumen!$P$1,IF(OFFSET(Asturias_datos!R35,0,((Resumen!$Q$1-1)*12))=0," ",OFFSET(Asturias_datos!R35,0,((Resumen!$Q$1-1)*12)))," ") ->  | G10: =IF(G$1<=Resumen!$P$1,IF(OFFSET(Asturias_datos!S35,0,((Resumen!$Q$1-1)*12))=0," ",OFFSET(Asturias_datos!S35,0,((Resumen!$Q$1-1)*12)))," ") ->  | H10: =IF(H$1<=Resumen!$P$1,IF(OFFSET(Asturias_datos!T35,0,((Resumen!$Q$1-1)*12))=0," ",OFFSET(Asturias_datos!T35,0,((Resumen!$Q$1-1)*12)))," ") ->  | I10: =IF(I$1<=Resumen!$P$1,IF(OFFSET(Asturias_datos!U35,0,((Resumen!$Q$1-1)*12))=0," ",OFFSET(Asturias_datos!U35,0,((Resumen!$Q$1-1)*12)))," ") ->  | J10: =IF(J$1<=Resumen!$P$1,IF(OFFSET(Asturias_datos!V35,0,((Resumen!$Q$1-1)*12))=0," ",OFFSET(Asturias_datos!V35,0,((Resumen!$Q$1-1)*12)))," ") ->  | K10: =IF(K$1<=Resumen!$P$1,IF(OFFSET(Asturias_datos!W35,0,((Resumen!$Q$1-1)*12))=0," ",OFFSET(Asturias_datos!W35,0,((Resumen!$Q$1-1)*12)))," ") ->  | L10: =IF(L$1<=Resumen!$P$1,IF(OFFSET(Asturias_datos!X35,0,((Resumen!$Q$1-1)*12))=0," ",OFFSET(Asturias_datos!X35,0,((Resumen!$Q$1-1)*12)))," ") ->  | M10: =IF(M$1<=Resumen!$P$1,IF(OFFSET(Asturias_datos!Y35,0,((Resumen!$Q$1-1)*12))=0," ",OFFSET(Asturias_datos!Y35,0,((Resumen!$Q$1-1)*12)))," ") -> 
A11: Eólica | B11: =IF(B$1<=Resumen!$P$1,IF(OFFSET(Asturias_datos!N36,0,((Resumen!$Q$1-1)*12))=0," ",OFFSET(Asturias_datos!N36,0,((Resumen!$Q$1-1)*12)))," ") -> 79775.937 | C11: =IF(C$1<=Resumen!$P$1,IF(OFFSET(Asturias_datos!O36,0,((Resumen!$Q$1-1)*12))=0," ",OFFSET(Asturias_datos!O36,0,((Resumen!$Q$1-1)*12)))," ") -> 97225.065 | D11: =IF(D$1<=Resumen!$P$1,IF(OFFSET(Asturias_datos!P36,0,((Resumen!$Q$1-1)*12))=0," ",OFFSET(Asturias_datos!P36,0,((Resumen!$Q$1-1)*12)))," ") -> 110881.142 | E11: =IF(E$1<=Resumen!$P$1,IF(OFFSET(Asturias_datos!Q36,0,((Resumen!$Q$1-1)*12))=0," ",OFFSET(Asturias_datos!Q36,0,((Resumen!$Q$1-1)*12)))," ") -> 70242.946 | F11: =IF(F$1<=Resumen!$P$1,IF(OFFSET(Asturias_datos!R36,0,((Resumen!$Q$1-1)*12))=0," ",OFFSET(Asturias_datos!R36,0,((Resumen!$Q$1-1)*12)))," ") -> 59102.007 | G11: =IF(G$1<=Resumen!$P$1,IF(OFFSET(Asturias_datos!S36,0,((Resumen!$Q$1-1)*12))=0," ",OFFSET(Asturias_datos!S36,0,((Resumen!$Q$1-1)*12)))," ") -> 46351.126 | H11: =IF(H$1<=Resumen!$P$1,IF(OFFSET(Asturias_datos!T36,0,((Resumen!$Q$1-1)*12))=0," ",OFFSET(Asturias_datos!T36,0,((Resumen!$Q$1-1)*12)))," ") -> 36526.207 | I11: =IF(I$1<=Resumen!$P$1,IF(OFFSET(Asturias_datos!U36,0,((Resumen!$Q$1-1)*12))=0," ",OFFSET(Asturias_datos!U36,0,((Resumen!$Q$1-1)*12)))," ") -> 33224.499 | J11: =IF(J$1<=Resumen!$P$1,IF(OFFSET(Asturias_datos!V36,0,((Resumen!$Q$1-1)*12))=0," ",OFFSET(Asturias_datos!V36,0,((Resumen!$Q$1-1)*12)))," ") -> 51569.115 | K11: =IF(K$1<=Resumen!$P$1,IF(OFFSET(Asturias_datos!W36,0,((Resumen!$Q$1-1)*12))=0," ",OFFSET(Asturias_datos!W36,0,((Resumen!$Q$1-1)*12)))," ") ->  | L11: =IF(L$1<=Resumen!$P$1,IF(OFFSET(Asturias_datos!X36,0,((Resumen!$Q$1-1)*12))=0," ",OFFSET(Asturias_datos!X36,0,((Resumen!$Q$1-1)*12)))," ") ->  | M11: =IF(M$1<=Resumen!$P$1,IF(OFFSET(Asturias_datos!Y36,0,((Resumen!$Q$1-1)*12))=0," ",OFFSET(Asturias_datos!Y36,0,((Resumen!$Q$1-1)*12)))," ") ->  | N11: 584898.044
A12: Solar fotovoltaico | B12: =IF(B$1<=Resumen!$P$1,IF(OFFSET(Asturias_datos!N37,0,((Resumen!$Q$1-1)*12))=0," ",OFFSET(Asturias_datos!N37,0,((Resumen!$Q$1-1)*12)))," ") -> 26.577 | C12: =IF(C$1<=Resumen!$P$1,IF(OFFSET(Asturias_datos!O37,0,((Resumen!$Q$1-1)*12))=0," ",OFFSET(Asturias_datos!O37,0,((Resumen!$Q$1-1)*12)))," ") -> 34.073 | D12: =IF(D$1<=Resumen!$P$1,IF(OFFSET(Asturias_datos!P37,0,((Resumen!$Q$1-1)*12))=0," ",OFFSET(Asturias_datos!P37,0,((Resumen!$Q$1-1)*12)))," ") -> 51.492 | E12: =IF(E$1<=Resumen!$P$1,IF(OFFSET(Asturias_datos!Q37,0,((Resumen!$Q$1-1)*12))=0," ",OFFSET(Asturias_datos!Q37,0,((Resumen!$Q$1-1)*12)))," ") -> 78.489 | F12: =IF(F$1<=Resumen!$P$1,IF(OFFSET(Asturias_datos!R37,0,((Resumen!$Q$1-1)*12))=0," ",OFFSET(Asturias_datos!R37,0,((Resumen!$Q$1-1)*12)))," ") -> 70.156 | G12: =IF(G$1<=Resumen!$P$1,IF(OFFSET(Asturias_datos!S37,0,((Resumen!$Q$1-1)*12))=0," ",OFFSET(Asturias_datos!S37,0,((Resumen!$Q$1-1)*12)))," ") -> 50.58 | H12: =IF(H$1<=Resumen!$P$1,IF(OFFSET(Asturias_datos!T37,0,((Resumen!$Q$1-1)*12))=0," ",OFFSET(Asturias_datos!T37,0,((Resumen!$Q$1-1)*12)))," ") -> 62.408 | I12: =IF(I$1<=Resumen!$P$1,IF(OFFSET(Asturias_datos!U37,0,((Resumen!$Q$1-1)*12))=0," ",OFFSET(Asturias_datos!U37,0,((Resumen!$Q$1-1)*12)))," ") -> 54.01 | J12: =IF(J$1<=Resumen!$P$1,IF(OFFSET(Asturias_datos!V37,0,((Resumen!$Q$1-1)*12))=0," ",OFFSET(Asturias_datos!V37,0,((Resumen!$Q$1-1)*12)))," ") -> 3.113 | K12: =IF(K$1<=Resumen!$P$1,IF(OFFSET(Asturias_datos!W37,0,((Resumen!$Q$1-1)*12))=0," ",OFFSET(Asturias_datos!W37,0,((Resumen!$Q$1-1)*12)))," ") ->  | L12: =IF(L$1<=Resumen!$P$1,IF(OFFSET(Asturias_datos!X37,0,((Resumen!$Q$1-1)*12))=0," ",OFFSET(Asturias_datos!X37,0,((Resumen!$Q$1-1)*12)))," ") ->  | M12: =IF(M$1<=Resumen!$P$1,IF(OFFSET(Asturias_datos!Y37,0,((Resumen!$Q$1-1)*12))=0," ",OFFSET(Asturias_datos!Y37,0,((Resumen!$Q$1-1)*12)))," ") ->  | N12: 430.898
A13: Solar térmica | B13: =IF(B$1<=Resumen!$P$1,IF(OFFSET(Asturias_datos!N38,0,((Resumen!$Q$1-1)*12))=0," ",OFFSET(Asturias_datos!N38,0,((Resumen!$Q$1-1)*12)))," ") ->  | C13: =IF(C$1<=Resumen!$P$1,IF(OFFSET(Asturias_datos!O38,0,((Resumen!$Q$1-1)*12))=0," ",OFFSET(Asturias_datos!O38,0,((Resumen!$Q$1-1)*12)))," ") ->  | D13: =IF(D$1<=Resumen!$P$1,IF(OFFSET(Asturias_datos!P38,0,((Resumen!$Q$1-1)*12))=0," ",OFFSET(Asturias_datos!P38,0,((Resumen!$Q$1-1)*12)))," ") ->  | E13: =IF(E$1<=Resumen!$P$1,IF(OFFSET(Asturias_datos!Q38,0,((Resumen!$Q$1-1)*12))=0," ",OFFSET(Asturias_datos!Q38,0,((Resumen!$Q$1-1)*12)))," ") ->  | F13: =IF(F$1<=Resumen!$P$1,IF(OFFSET(Asturias_datos!R38,0,((Resumen!$Q$1-1)*12))=0," ",OFFSET(Asturias_datos!R38,0,((Resumen!$Q$1-1)*12)))," ") ->  | G13: =IF(G$1<=Resumen!$P$1,IF(OFFSET(Asturias_datos!S38,0,((Resumen!$Q$1-1)*12))=0," ",OFFSET(Asturias_datos!S38,0,((Resumen!$Q$1-1)*12)))," ") ->  | H13: =IF(H$1<=Resumen!$P$1,IF(OFFSET(Asturias_datos!T38,0,((Resumen!$Q$1-1)*12))=0," ",OFFSET(Asturias_datos!T38,0,((Resumen!$Q$1-1)*12)))," ") ->  | I13: =IF(I$1<=Resumen!$P$1,IF(OFFSET(Asturias_datos!U38,0,((Resumen!$Q$1-1)*12))=0," ",OFFSET(Asturias_datos!U38,0,((Resumen!$Q$1-1)*12)))," ") ->  | J13: =IF(J$1<=Resumen!$P$1,IF(OFFSET(Asturias_datos!V38,0,((Resumen!$Q$1-1)*12))=0," ",OFFSET(Asturias_datos!V38,0,((Resumen!$Q$1-1)*12)))," ") ->  | K13: =IF(K$1<=Resumen!$P$1,IF(OFFSET(Asturias_datos!W38,0,((Resumen!$Q$1-1)*12))=0," ",OFFSET(Asturias_datos!W38,0,((Resumen!$Q$1-1)*12)))," ") ->  | L13: =IF(L$1<=Resumen!$P$1,IF(OFFSET(Asturias_datos!X38,0,((Resumen!$Q$1-1)*12))=0," ",OFFSET(Asturias_datos!X38,0,((Resumen!$Q$1-1)*12)))," ") ->  | M13: =IF(M$1<=Resumen!$P$1,IF(OFFSET(Asturias_datos!Y38,0,((Resumen!$Q$1-1)*12))=0," ",OFFSET(Asturias_datos!Y38,0,((Resumen!$Q$1-1)*12)))," ") -> 
A14: Otras renovables | B14: =IF(B$1<=Resumen!$P$1,IF(OFFSET(Asturias_datos!N39,0,((Resumen!$Q$1-1)*12))=0," ",OFFSET(Asturias_datos!N39,0,((Resumen!$Q$1-1)*12)))," ") -> 23368.292 | C14: =IF(C$1<=Resumen!$P$1,IF(OFFSET(Asturias_datos!O39,0,((Resumen!$Q$1-1)*12))=0," ",OFFSET(Asturias_datos!O39,0,((Resumen!$Q$1-1)*12)))," ") -> 21118.201 | D14: =IF(D$1<=Resumen!$P$1,IF(OFFSET(Asturias_datos!P39,0,((Resumen!$Q$1-1)*12))=0," ",OFFSET(Asturias_datos!P39,0,((Resumen!$Q$1-1)*12)))," ") -> 24176.131 | E14: =IF(E$1<=Resumen!$P$1,IF(OFFSET(Asturias_datos!Q39,0,((Resumen!$Q$1-1)*12))=0," ",OFFSET(Asturias_datos!Q39,0,((Resumen!$Q$1-1)*12)))," ") -> 21275.426 | F14: =IF(F$1<=Resumen!$P$1,IF(OFFSET(Asturias_datos!R39,0,((Resumen!$Q$1-1)*12))=0," ",OFFSET(Asturias_datos!R39,0,((Resumen!$Q$1-1)*12)))," ") -> 23098.892 | G14: =IF(G$1<=Resumen!$P$1,IF(OFFSET(Asturias_datos!S39,0,((Resumen!$Q$1-1)*12))=0," ",OFFSET(Asturias_datos!S39,0,((Resumen!$Q$1-1)*12)))," ") -> 12533.927 | H14: =IF(H$1<=Resumen!$P$1,IF(OFFSET(Asturias_datos!T39,0,((Resumen!$Q$1-1)*12))=0," ",OFFSET(Asturias_datos!T39,0,((Resumen!$Q$1-1)*12)))," ") -> 22639.521 | I14: =IF(I$1<=Resumen!$P$1,IF(OFFSET(Asturias_datos!U39,0,((Resumen!$Q$1-1)*12))=0," ",OFFSET(Asturias_datos!U39,0,((Resumen!$Q$1-1)*12)))," ") -> 26271.761 | J14: =IF(J$1<=Resumen!$P$1,IF(OFFSET(Asturias_datos!V39,0,((Resumen!$Q$1-1)*12))=0," ",OFFSET(Asturias_datos!V39,0,((Resumen!$Q$1-1)*12)))," ") -> 24074.119 | K14: =IF(K$1<=Resumen!$P$1,IF(OFFSET(Asturias_datos!W39,0,((Resumen!$Q$1-1)*12))=0," ",OFFSET(Asturias_datos!W39,0,((Resumen!$Q$1-1)*12)))," ") ->  | L14: =IF(L$1<=Resumen!$P$1,IF(OFFSET(Asturias_datos!X39,0,((Resumen!$Q$1-1)*12))=0," ",OFFSET(Asturias_datos!X39,0,((Resumen!$Q$1-1)*12)))," ") ->  | M14: =IF(M$1<=Resumen!$P$1,IF(OFFSET(Asturias_datos!Y39,0,((Resumen!$Q$1-1)*12))=0," ",OFFSET(Asturias_datos!Y39,0,((Resumen!$Q$1-1)*12)))," ") ->  | N14: 198556.27
A15: Cogeneración | B15: =IF(B$1<=Resumen!$P$1,IF(OFFSET(Asturias_datos!N40,0,((Resumen!$Q$1-1)*12))=0," ",OFFSET(Asturias_datos!N40,0,((Resumen!$Q$1-1)*12)))," ") -> 36749.99 | C15: =IF(C$1<=Resumen!$P$1,IF(OFFSET(Asturias_datos!O40,0,((Resumen!$Q$1-1)*12))=0," ",OFFSET(Asturias_datos!O40,0,((Resumen!$Q$1-1)*12)))," ") -> 25630.906 | D15: =IF(D$1<=Resumen!$P$1,IF(OFFSET(Asturias_datos!P40,0,((Resumen!$Q$1-1)*12))=0," ",OFFSET(Asturias_datos!P40,0,((Resumen!$Q$1-1)*12)))," ") -> 33232.067 | E15: =IF(E$1<=Resumen!$P$1,IF(OFFSET(Asturias_datos!Q40,0,((Resumen!$Q$1-1)*12))=0," ",OFFSET(Asturias_datos!Q40,0,((Resumen!$Q$1-1)*12)))," ") -> 32613.916 | F15: =IF(F$1<=Resumen!$P$1,IF(OFFSET(Asturias_datos!R40,0,((Resumen!$Q$1-1)*12))=0," ",OFFSET(Asturias_datos!R40,0,((Resumen!$Q$1-1)*12)))," ") -> 31819.508 | G15: =IF(G$1<=Resumen!$P$1,IF(OFFSET(Asturias_datos!S40,0,((Resumen!$Q$1-1)*12))=0," ",OFFSET(Asturias_datos!S40,0,((Resumen!$Q$1-1)*12)))," ") -> 32600.685 | H15: =IF(H$1<=Resumen!$P$1,IF(OFFSET(Asturias_datos!T40,0,((Resumen!$Q$1-1)*12))=0," ",OFFSET(Asturias_datos!T40,0,((Resumen!$Q$1-1)*12)))," ") -> 32043.175 | I15: =IF(I$1<=Resumen!$P$1,IF(OFFSET(Asturias_datos!U40,0,((Resumen!$Q$1-1)*12))=0," ",OFFSET(Asturias_datos!U40,0,((Resumen!$Q$1-1)*12)))," ") -> 30997.118 | J15: =IF(J$1<=Resumen!$P$1,IF(OFFSET(Asturias_datos!V40,0,((Resumen!$Q$1-1)*12))=0," ",OFFSET(Asturias_datos!V40,0,((Resumen!$Q$1-1)*12)))," ") -> 31927.181 | K15: =IF(K$1<=Resumen!$P$1,IF(OFFSET(Asturias_datos!W40,0,((Resumen!$Q$1-1)*12))=0," ",OFFSET(Asturias_datos!W40,0,((Resumen!$Q$1-1)*12)))," ") ->  | L15: =IF(L$1<=Resumen!$P$1,IF(OFFSET(Asturias_datos!X40,0,((Resumen!$Q$1-1)*12))=0," ",OFFSET(Asturias_datos!X40,0,((Resumen!$Q$1-1)*12)))," ") ->  | M15: =IF(M$1<=Resumen!$P$1,IF(OFFSET(Asturias_datos!Y40,0,((Resumen!$Q$1-1)*12))=0," ",OFFSET(Asturias_datos!Y40,0,((Resumen!$Q$1-1)*12)))," ") ->  | N15: 287614.546
A16: Residuos | B16: =IF(B$1<=Resumen!$P$1,IF(OFFSET(Asturias_datos!N41,0,((Resumen!$Q$1-1)*12))=0," ",OFFSET(Asturias_datos!N41,0,((Resumen!$Q$1-1)*12)))," ") -> 67079.394 | C16: =IF(C$1<=Resumen!$P$1,IF(OFFSET(Asturias_datos!O41,0,((Resumen!$Q$1-1)*12))=0," ",OFFSET(Asturias_datos!O41,0,((Resumen!$Q$1-1)*12)))," ") -> 62176.063 | D16: =IF(D$1<=Resumen!$P$1,IF(OFFSET(Asturias_datos!P41,0,((Resumen!$Q$1-1)*12))=0," ",OFFSET(Asturias_datos!P41,0,((Resumen!$Q$1-1)*12)))," ") -> 69033.317 | E16: =IF(E$1<=Resumen!$P$1,IF(OFFSET(Asturias_datos!Q41,0,((Resumen!$Q$1-1)*12))=0," ",OFFSET(Asturias_datos!Q41,0,((Resumen!$Q$1-1)*12)))," ") -> 46267.491 | F16: =IF(F$1<=Resumen!$P$1,IF(OFFSET(Asturias_datos!R41,0,((Resumen!$Q$1-1)*12))=0," ",OFFSET(Asturias_datos!R41,0,((Resumen!$Q$1-1)*12)))," ") -> 64288.42 | G16: =IF(G$1<=Resumen!$P$1,IF(OFFSET(Asturias_datos!S41,0,((Resumen!$Q$1-1)*12))=0," ",OFFSET(Asturias_datos!S41,0,((Resumen!$Q$1-1)*12)))," ") -> 56793.601 | H16: =IF(H$1<=Resumen!$P$1,IF(OFFSET(Asturias_datos!T41,0,((Resumen!$Q$1-1)*12))=0," ",OFFSET(Asturias_datos!T41,0,((Resumen!$Q$1-1)*12)))," ") -> 45768.478 | I16: =IF(I$1<=Resumen!$P$1,IF(OFFSET(Asturias_datos!U41,0,((Resumen!$Q$1-1)*12))=0," ",OFFSET(Asturias_datos!U41,0,((Resumen!$Q$1-1)*12)))," ") -> 58308.744 | J16: =IF(J$1<=Resumen!$P$1,IF(OFFSET(Asturias_datos!V41,0,((Resumen!$Q$1-1)*12))=0," ",OFFSET(Asturias_datos!V41,0,((Resumen!$Q$1-1)*12)))," ") -> 67018.762 | K16: =IF(K$1<=Resumen!$P$1,IF(OFFSET(Asturias_datos!W41,0,((Resumen!$Q$1-1)*12))=0," ",OFFSET(Asturias_datos!W41,0,((Resumen!$Q$1-1)*12)))," ") ->  | L16: =IF(L$1<=Resumen!$P$1,IF(OFFSET(Asturias_datos!X41,0,((Resumen!$Q$1-1)*12))=0," ",OFFSET(Asturias_datos!X41,0,((Resumen!$Q$1-1)*12)))," ") ->  | M16: =IF(M$1<=Resumen!$P$1,IF(OFFSET(Asturias_datos!Y41,0,((Resumen!$Q$1-1)*12))=0," ",OFFSET(Asturias_datos!Y41,0,((Resumen!$Q$1-1)*12)))," ") ->  | N16: 536734.27
A17: Generación neta | B17: =IF(B$1<=Resumen!$P$1,IF(OFFSET(Asturias_datos!N42,0,((Resumen!$Q$1-1)*12))=0," ",OFFSET(Asturias_datos!N42,0,((Resumen!$Q$1-1)*12)))," ") -> 1616626.674 | C17: =IF(C$1<=Resumen!$P$1,IF(OFFSET(Asturias_datos!O42,0,((Resumen!$Q$1-1)*12))=0," ",OFFSET(Asturias_datos!O42,0,((Resumen!$Q$1-1)*12)))," ") -> 1300536.901 | D17: =IF(D$1<=Resumen!$P$1,IF(OFFSET(Asturias_datos!P42,0,((Resumen!$Q$1-1)*12))=0," ",OFFSET(Asturias_datos!P42,0,((Resumen!$Q$1-1)*12)))," ") -> 883064.5867 | E17: =IF(E$1<=Resumen!$P$1,IF(OFFSET(Asturias_datos!Q42,0,((Resumen!$Q$1-1)*12))=0," ",OFFSET(Asturias_datos!Q42,0,((Resumen!$Q$1-1)*12)))," ") -> 724561.9011 | F17: =IF(F$1<=Resumen!$P$1,IF(OFFSET(Asturias_datos!R42,0,((Resumen!$Q$1-1)*12))=0," ",OFFSET(Asturias_datos!R42,0,((Resumen!$Q$1-1)*12)))," ") -> 1202010.399 | G17: =IF(G$1<=Resumen!$P$1,IF(OFFSET(Asturias_datos!S42,0,((Resumen!$Q$1-1)*12))=0," ",OFFSET(Asturias_datos!S42,0,((Resumen!$Q$1-1)*12)))," ") -> 1255215.893 | H17: =IF(H$1<=Resumen!$P$1,IF(OFFSET(Asturias_datos!T42,0,((Resumen!$Q$1-1)*12))=0," ",OFFSET(Asturias_datos!T42,0,((Resumen!$Q$1-1)*12)))," ") -> 1155139.328 | I17: =IF(I$1<=Resumen!$P$1,IF(OFFSET(Asturias_datos!U42,0,((Resumen!$Q$1-1)*12))=0," ",OFFSET(Asturias_datos!U42,0,((Resumen!$Q$1-1)*12)))," ") -> 793650.3255 | J17: =IF(J$1<=Resumen!$P$1,IF(OFFSET(Asturias_datos!V42,0,((Resumen!$Q$1-1)*12))=0," ",OFFSET(Asturias_datos!V42,0,((Resumen!$Q$1-1)*12)))," ") -> 994786.2624 | K17: =IF(K$1<=Resumen!$P$1,IF(OFFSET(Asturias_datos!W42,0,((Resumen!$Q$1-1)*12))=0," ",OFFSET(Asturias_datos!W42,0,((Resumen!$Q$1-1)*12)))," ") ->  | L17: =IF(L$1<=Resumen!$P$1,IF(OFFSET(Asturias_datos!X42,0,((Resumen!$Q$1-1)*12))=0," ",OFFSET(Asturias_datos!X42,0,((Resumen!$Q$1-1)*12)))," ") ->  | M17: =IF(M$1<=Resumen!$P$1,IF(OFFSET(Asturias_datos!Y42,0,((Resumen!$Q$1-1)*12))=0," ",OFFSET(Asturias_datos!Y42,0,((Resumen!$Q$1-1)*12)))," ") ->  | N17: 9925592.27
A18: Consumos en bombeo | B18: =IF(B$1<=Resumen!$P$1,IF(OFFSET(Asturias_datos!N43,0,((Resumen!$Q$1-1)*12))=0," ",OFFSET(Asturias_datos!N43,0,((Resumen!$Q$1-1)*12)))," ") -> -1887 | C18: =IF(C$1<=Resumen!$P$1,IF(OFFSET(Asturias_datos!O43,0,((Resumen!$Q$1-1)*12))=0," ",OFFSET(Asturias_datos!O43,0,((Resumen!$Q$1-1)*12)))," ") -> -3975 | D18: =IF(D$1<=Resumen!$P$1,IF(OFFSET(Asturias_datos!P43,0,((Resumen!$Q$1-1)*12))=0," ",OFFSET(Asturias_datos!P43,0,((Resumen!$Q$1-1)*12)))," ") -> -3910 | E18: =IF(E$1<=Resumen!$P$1,IF(OFFSET(Asturias_datos!Q43,0,((Resumen!$Q$1-1)*12))=0," ",OFFSET(Asturias_datos!Q43,0,((Resumen!$Q$1-1)*12)))," ") -> -2754 | F18: =IF(F$1<=Resumen!$P$1,IF(OFFSET(Asturias_datos!R43,0,((Resumen!$Q$1-1)*12))=0," ",OFFSET(Asturias_datos!R43,0,((Resumen!$Q$1-1)*12)))," ") -> -990 | G18: =IF(G$1<=Resumen!$P$1,IF(OFFSET(Asturias_datos!S43,0,((Resumen!$Q$1-1)*12))=0," ",OFFSET(Asturias_datos!S43,0,((Resumen!$Q$1-1)*12)))," ") -> -465 | H18: =IF(H$1<=Resumen!$P$1,IF(OFFSET(Asturias_datos!T43,0,((Resumen!$Q$1-1)*12))=0," ",OFFSET(Asturias_datos!T43,0,((Resumen!$Q$1-1)*12)))," ") -> -153 | I18: =IF(I$1<=Resumen!$P$1,IF(OFFSET(Asturias_datos!U43,0,((Resumen!$Q$1-1)*12))=0," ",OFFSET(Asturias_datos!U43,0,((Resumen!$Q$1-1)*12)))," ") -> -985 | J18: =IF(J$1<=Resumen!$P$1,IF(OFFSET(Asturias_datos!V43,0,((Resumen!$Q$1-1)*12))=0," ",OFFSET(Asturias_datos!V43,0,((Resumen!$Q$1-1)*12)))," ") -> -1321 | K18: =IF(K$1<=Resumen!$P$1,IF(OFFSET(Asturias_datos!W43,0,((Resumen!$Q$1-1)*12))=0," ",OFFSET(Asturias_datos!W43,0,((Resumen!$Q$1-1)*12)))," ") ->  | L18: =IF(L$1<=Resumen!$P$1,IF(OFFSET(Asturias_datos!X43,0,((Resumen!$Q$1-1)*12))=0," ",OFFSET(Asturias_datos!X43,0,((Resumen!$Q$1-1)*12)))," ") ->  | M18: =IF(M$1<=Resumen!$P$1,IF(OFFSET(Asturias_datos!Y43,0,((Resumen!$Q$1-1)*12))=0," ",OFFSET(Asturias_datos!Y43,0,((Resumen!$Q$1-1)*12)))," ") ->  | N18: -16440
A19: Saldo Intercambios | B19: =IF(B$1<=Resumen!$P$1,IF(OFFSET(Asturias_datos!N44,0,((Resumen!$Q$1-1)*12))=0," ",OFFSET(Asturias_datos!N44,0,((Resumen!$Q$1-1)*12)))," ") -> -660658 | C19: =IF(C$1<=Resumen!$P$1,IF(OFFSET(Asturias_datos!O44,0,((Resumen!$Q$1-1)*12))=0," ",OFFSET(Asturias_datos!O44,0,((Resumen!$Q$1-1)*12)))," ") -> -449800 | D19: =IF(D$1<=Resumen!$P$1,IF(OFFSET(Asturias_datos!P44,0,((Resumen!$Q$1-1)*12))=0," ",OFFSET(Asturias_datos!P44,0,((Resumen!$Q$1-1)*12)))," ") -> 39407 | E19: =IF(E$1<=Resumen!$P$1,IF(OFFSET(Asturias_datos!Q44,0,((Resumen!$Q$1-1)*12))=0," ",OFFSET(Asturias_datos!Q44,0,((Resumen!$Q$1-1)*12)))," ") -> 116974 | F19: =IF(F$1<=Resumen!$P$1,IF(OFFSET(Asturias_datos!R44,0,((Resumen!$Q$1-1)*12))=0," ",OFFSET(Asturias_datos!R44,0,((Resumen!$Q$1-1)*12)))," ") -> -322786 | G19: =IF(G$1<=Resumen!$P$1,IF(OFFSET(Asturias_datos!S44,0,((Resumen!$Q$1-1)*12))=0," ",OFFSET(Asturias_datos!S44,0,((Resumen!$Q$1-1)*12)))," ") -> -406934 | H19: =IF(H$1<=Resumen!$P$1,IF(OFFSET(Asturias_datos!T44,0,((Resumen!$Q$1-1)*12))=0," ",OFFSET(Asturias_datos!T44,0,((Resumen!$Q$1-1)*12)))," ") -> -280038 | I19: =IF(I$1<=Resumen!$P$1,IF(OFFSET(Asturias_datos!U44,0,((Resumen!$Q$1-1)*12))=0," ",OFFSET(Asturias_datos!U44,0,((Resumen!$Q$1-1)*12)))," ") -> 64595 | J19: =IF(J$1<=Resumen!$P$1,IF(OFFSET(Asturias_datos!V44,0,((Resumen!$Q$1-1)*12))=0," ",OFFSET(Asturias_datos!V44,0,((Resumen!$Q$1-1)*12)))," ") -> -150662 | K19: =IF(K$1<=Resumen!$P$1,IF(OFFSET(Asturias_datos!W44,0,((Resumen!$Q$1-1)*12))=0," ",OFFSET(Asturias_datos!W44,0,((Resumen!$Q$1-1)*12)))," ") ->  | L19: =IF(L$1<=Resumen!$P$1,IF(OFFSET(Asturias_datos!X44,0,((Resumen!$Q$1-1)*12))=0," ",OFFSET(Asturias_datos!X44,0,((Resumen!$Q$1-1)*12)))," ") ->  | M19: =IF(M$1<=Resumen!$P$1,IF(OFFSET(Asturias_datos!Y44,0,((Resumen!$Q$1-1)*12))=0," ",OFFSET(Asturias_datos!Y44,0,((Resumen!$Q$1-1)*12)))," ") ->  | N19: -2049902
A20: Demanda B.C | B20: =IF(B$1<=Resumen!$P$1,IF(OFFSET(Asturias_datos!N45,0,((Resumen!$Q$1-1)*12))=0," ",OFFSET(Asturias_datos!N45,0,((Resumen!$Q$1-1)*12)))," ") -> 954081.6974 | C20: =IF(C$1<=Resumen!$P$1,IF(OFFSET(Asturias_datos!O45,0,((Resumen!$Q$1-1)*12))=0," ",OFFSET(Asturias_datos!O45,0,((Resumen!$Q$1-1)*12)))," ") -> 846761.7998 | D20: =IF(D$1<=Resumen!$P$1,IF(OFFSET(Asturias_datos!P45,0,((Resumen!$Q$1-1)*12))=0," ",OFFSET(Asturias_datos!P45,0,((Resumen!$Q$1-1)*12)))," ") -> 918561.8757 | E20: =IF(E$1<=Resumen!$P$1,IF(OFFSET(Asturias_datos!Q45,0,((Resumen!$Q$1-1)*12))=0," ",OFFSET(Asturias_datos!Q45,0,((Resumen!$Q$1-1)*12)))," ") -> 838781.7085 | F20: =IF(F$1<=Resumen!$P$1,IF(OFFSET(Asturias_datos!R45,0,((Resumen!$Q$1-1)*12))=0," ",OFFSET(Asturias_datos!R45,0,((Resumen!$Q$1-1)*12)))," ") -> 878234.2382 | G20: =IF(G$1<=Resumen!$P$1,IF(OFFSET(Asturias_datos!S45,0,((Resumen!$Q$1-1)*12))=0," ",OFFSET(Asturias_datos!S45,0,((Resumen!$Q$1-1)*12)))," ") -> 847816.7693 | H20: =IF(H$1<=Resumen!$P$1,IF(OFFSET(Asturias_datos!T45,0,((Resumen!$Q$1-1)*12))=0," ",OFFSET(Asturias_datos!T45,0,((Resumen!$Q$1-1)*12)))," ") -> 874948.0227 | I20: =IF(I$1<=Resumen!$P$1,IF(OFFSET(Asturias_datos!U45,0,((Resumen!$Q$1-1)*12))=0," ",OFFSET(Asturias_datos!U45,0,((Resumen!$Q$1-1)*12)))," ") -> 857260.7242 | J20: =IF(J$1<=Resumen!$P$1,IF(OFFSET(Asturias_datos!V45,0,((Resumen!$Q$1-1)*12))=0," ",OFFSET(Asturias_datos!V45,0,((Resumen!$Q$1-1)*12)))," ") -> 842802.9882 | K20: =IF(K$1<=Resumen!$P$1,IF(OFFSET(Asturias_datos!W45,0,((Resumen!$Q$1-1)*12))=0," ",OFFSET(Asturias_datos!W45,0,((Resumen!$Q$1-1)*12)))," ") ->  | L20: =IF(L$1<=Resumen!$P$1,IF(OFFSET(Asturias_datos!X45,0,((Resumen!$Q$1-1)*12))=0," ",OFFSET(Asturias_datos!X45,0,((Resumen!$Q$1-1)*12)))," ") ->  | M20: =IF(M$1<=Resumen!$P$1,IF(OFFSET(Asturias_datos!Y45,0,((Resumen!$Q$1-1)*12))=0," ",OFFSET(Asturias_datos!Y45,0,((Resumen!$Q$1-1)*12)))," ") ->  | N20: 7859249.824
A21: =Resumen!A22 -> %Δ 17/16 | B21: =IF(B$1<=Resumen!$P$1,IF(OFFSET(Asturias_datos!N46,0,((Resumen!$Q$1-1)*12))=0," ",OFFSET(Asturias_datos!N46,0,((Resumen!$Q$1-1)*12)))," ") -> 4.349659806 | C21: =IF(C$1<=Resumen!$P$1,IF(OFFSET(Asturias_datos!O46,0,((Resumen!$Q$1-1)*12))=0," ",OFFSET(Asturias_datos!O46,0,((Resumen!$Q$1-1)*12)))," ") -> -4.986157253 | D21: =IF(D$1<=Resumen!$P$1,IF(OFFSET(Asturias_datos!P46,0,((Resumen!$Q$1-1)*12))=0," ",OFFSET(Asturias_datos!P46,0,((Resumen!$Q$1-1)*12)))," ") -> -3.069952018 | E21: =IF(E$1<=Resumen!$P$1,IF(OFFSET(Asturias_datos!Q46,0,((Resumen!$Q$1-1)*12))=0," ",OFFSET(Asturias_datos!Q46,0,((Resumen!$Q$1-1)*12)))," ") -> -5.410113619 | F21: =IF(F$1<=Resumen!$P$1,IF(OFFSET(Asturias_datos!R46,0,((Resumen!$Q$1-1)*12))=0," ",OFFSET(Asturias_datos!R46,0,((Resumen!$Q$1-1)*12)))," ") -> -0.1126916932 | G21: =IF(G$1<=Resumen!$P$1,IF(OFFSET(Asturias_datos!S46,0,((Resumen!$Q$1-1)*12))=0," ",OFFSET(Asturias_datos!S46,0,((Resumen!$Q$1-1)*12)))," ") -> 2.975196032 | H21: =IF(H$1<=Resumen!$P$1,IF(OFFSET(Asturias_datos!T46,0,((Resumen!$Q$1-1)*12))=0," ",OFFSET(Asturias_datos!T46,0,((Resumen!$Q$1-1)*12)))," ") -> 0.06098098681 | I21: =IF(I$1<=Resumen!$P$1,IF(OFFSET(Asturias_datos!U46,0,((Resumen!$Q$1-1)*12))=0," ",OFFSET(Asturias_datos!U46,0,((Resumen!$Q$1-1)*12)))," ") -> 1.417433397 | J21: =IF(J$1<=Resumen!$P$1,IF(OFFSET(Asturias_datos!V46,0,((Resumen!$Q$1-1)*12))=0," ",OFFSET(Asturias_datos!V46,0,((Resumen!$Q$1-1)*12)))," ") -> 0.009909086577 | K21: =IF(K$1<=Resumen!$P$1,IF(OFFSET(Asturias_datos!W46,0,((Resumen!$Q$1-1)*12))=0," ",OFFSET(Asturias_datos!W46,0,((Resumen!$Q$1-1)*12)))," ") ->  | L21: =IF(L$1<=Resumen!$P$1,IF(OFFSET(Asturias_datos!X46,0,((Resumen!$Q$1-1)*12))=0," ",OFFSET(Asturias_datos!X46,0,((Resumen!$Q$1-1)*12)))," ") ->  | M21: =IF(M$1<=Resumen!$P$1,IF(OFFSET(Asturias_datos!Y46,0,((Resumen!$Q$1-1)*12))=0," ",OFFSET(Asturias_datos!Y46,0,((Resumen!$Q$1-1)*12)))," ") ->  | N21: =((N20/SUM(OFFSET(Asturias_datos!N45,0,(Resumen!$Q$1-2)*12):OFFSET(Asturias_datos!N45,0,((Resumen!$Q$1-2)*12)+Resumen!$P$1-1))-1)*100) -> -0.5772574795
A69: =A1 -> Asturias | B69: =J20 -> 842802.9882
A70: Resto nacional | B70: =Nacional_datos!BR45-B69 -> 20706931.04

Sheet Baleares
A1: Baleares | B1: 1 | C1: 2 | D1: 3 | E1: 4 | F1: 5 | G1: 6 | H1: 7 | I1: 8 | J1: 9 | K1: 10 | L1: 11 | M1: 12
A2: Balance mensual de energía electrica. MWh
B3: 2017
B4: Ene | C4: Feb | D4: Mar | E4: Abr | F4: May | G4: Jun | H4: Jul | I4: Ago | J4: Sep | K4: Oct | L4: Nov | M4: Dic | N4: TOTAL
A5: Hidraulica | B5: =IF(B$1<=Resumen!$P$1,IF(OFFSET(Baleares_datos!N30,0,((Resumen!$Q$1-1)*12))=0," ",OFFSET(Baleares_datos!N30,0,((Resumen!$Q$1-1)*12)))," ") ->  | C5: =IF(C$1<=Resumen!$P$1,IF(OFFSET(Baleares_datos!O30,0,((Resumen!$Q$1-1)*12))=0," ",OFFSET(Baleares_datos!O30,0,((Resumen!$Q$1-1)*12)))," ") ->  | D5: =IF(D$1<=Resumen!$P$1,IF(OFFSET(Baleares_datos!P30,0,((Resumen!$Q$1-1)*12))=0," ",OFFSET(Baleares_datos!P30,0,((Resumen!$Q$1-1)*12)))," ") ->  | E5: =IF(E$1<=Resumen!$P$1,IF(OFFSET(Baleares_datos!Q30,0,((Resumen!$Q$1-1)*12))=0," ",OFFSET(Baleares_datos!Q30,0,((Resumen!$Q$1-1)*12)))," ") ->  | F5: =IF(F$1<=Resumen!$P$1,IF(OFFSET(Baleares_datos!R30,0,((Resumen!$Q$1-1)*12))=0," ",OFFSET(Baleares_datos!R30,0,((Resumen!$Q$1-1)*12)))," ") ->  | G5: =IF(G$1<=Resumen!$P$1,IF(OFFSET(Baleares_datos!S30,0,((Resumen!$Q$1-1)*12))=0," ",OFFSET(Baleares_datos!S30,0,((Resumen!$Q$1-1)*12)))," ") ->  | H5: =IF(H$1<=Resumen!$P$1,IF(OFFSET(Baleares_datos!T30,0,((Resumen!$Q$1-1)*12))=0," ",OFFSET(Baleares_datos!T30,0,((Resumen!$Q$1-1)*12)))," ") ->  | I5: =IF(I$1<=Resumen!$P$1,IF(OFFSET(Baleares_datos!U30,0,((Resumen!$Q$1-1)*12))=0," ",OFFSET(Baleares_datos!U30,0,((Resumen!$Q$1-1)*12)))," ") ->  | J5: =IF(J$1<=Resumen!$P$1,IF(OFFSET(Baleares_datos!V30,0,((Resumen!$Q$1-1)*12))=0," ",OFFSET(Baleares_datos!V30,0,((Resumen!$Q$1-1)*12)))," ") ->  | K5: =IF(K$1<=Resumen!$P$1,IF(OFFSET(Baleares_datos!W30,0,((Resumen!$Q$1-1)*12))=0," ",OFFSET(Baleares_datos!W30,0,((Resumen!$Q$1-1)*12)))," ") ->  | L5: =IF(L$1<=Resumen!$P$1,IF(OFFSET(Baleares_datos!X30,0,((Resumen!$Q$1-1)*12))=0," ",OFFSET(Baleares_datos!X30,0,((Resumen!$Q$1-1)*12)))," ") ->  | M5: =IF(M$1<=Resumen!$P$1,IF(OFFSET(Baleares_datos!Y30,0,((Resumen!$Q$1-1)*12))=0," ",OFFSET(Baleares_datos!Y30,0,((Resumen!$Q$1-1)*12)))," ") ->  | N5: =IF(SUM(B5:M5)=0," ",SUM(B5:M5)) -> 
A6: Nuclear | B6: =IF(B$1<=Resumen!$P$1,IF(OFFSET(Baleares_datos!N31,0,((Resumen!$Q$1-1)*12))=0," ",OFFSET(Baleares_datos!N31,0,((Resumen!$Q$1-1)*12)))," ") -> - | C6: =IF(C$1<=Resumen!$P$1,IF(OFFSET(Baleares_datos!O31,0,((Resumen!$Q$1-1)*12))=0," ",OFFSET(Baleares_datos!O31,0,((Resumen!$Q$1-1)*12)))," ") -> - | D6: =IF(D$1<=Resumen!$P$1,IF(OFFSET(Baleares_datos!P31,0,((Resumen!$Q$1-1)*12))=0," ",OFFSET(Baleares_datos!P31,0,((Resumen!$Q$1-1)*12)))," ") -> - | E6: =IF(E$1<=Resumen!$P$1,IF(OFFSET(Baleares_datos!Q31,0,((Resumen!$Q$1-1)*12))=0," ",OFFSET(Baleares_datos!Q31,0,((Resumen!$Q$1-1)*12)))," ") -> - | F6: =IF(F$1<=Resumen!$P$1,IF(OFFSET(Baleares_datos!R31,0,((Resumen!$Q$1-1)*12))=0," ",OFFSET(Baleares_datos!R31,0,((Resumen!$Q$1-1)*12)))," ") -> - | G6: =IF(G$1<=Resumen!$P$1,IF(OFFSET(Baleares_datos!S31,0,((Resumen!$Q$1-1)*12))=0," ",OFFSET(Baleares_datos!S31,0,((Resumen!$Q$1-1)*12)))," ") -> - | H6: =IF(H$1<=Resumen!$P$1,IF(OFFSET(Baleares_datos!T31,0,((Resumen!$Q$1-1)*12))=0," ",OFFSET(Baleares_datos!T31,0,((Resumen!$Q$1-1)*12)))," ") -> - | I6: =IF(I$1<=Resumen!$P$1,IF(OFFSET(Baleares_datos!U31,0,((Resumen!$Q$1-1)*12))=0," ",OFFSET(Baleares_datos!U31,0,((Resumen!$Q$1-1)*12)))," ") -> - | J6: =IF(J$1<=Resumen!$P$1,IF(OFFSET(Baleares_datos!V31,0,((Resumen!$Q$1-1)*12))=0," ",OFFSET(Baleares_datos!V31,0,((Resumen!$Q$1-1)*12)))," ") -> - | K6: =IF(K$1<=Resumen!$P$1,IF(OFFSET(Baleares_datos!W31,0,((Resumen!$Q$1-1)*12))=0," ",OFFSET(Baleares_datos!W31,0,((Resumen!$Q$1-1)*12)))," ") ->  | L6: =IF(L$1<=Resumen!$P$1,IF(OFFSET(Baleares_datos!X31,0,((Resumen!$Q$1-1)*12))=0," ",OFFSET(Baleares_datos!X31,0,((Resumen!$Q$1-1)*12)))," ") ->  | M6: =IF(M$1<=Resumen!$P$1,IF(OFFSET(Baleares_datos!Y31,0,((Resumen!$Q$1-1)*12))=0," ",OFFSET(Baleares_datos!Y31,0,((Resumen!$Q$1-1)*12)))," ") ->  | N6: =IF(SUM(B6:M6)=0," ",SUM(B6:M6)) -> 
A7: Carbón | B7: =IF(B$1<=Resumen!$P$1,IF(OFFSET(Baleares_datos!N32,0,((Resumen!$Q$1-1)*12))=0," ",OFFSET(Baleares_datos!N32,0,((Resumen!$Q$1-1)*12)))," ") -> 221058 | C7: =IF(C$1<=Resumen!$P$1,IF(OFFSET(Baleares_datos!O32,0,((Resumen!$Q$1-1)*12))=0," ",OFFSET(Baleares_datos!O32,0,((Resumen!$Q$1-1)*12)))," ") -> 189456 | D7: =IF(D$1<=Resumen!$P$1,IF(OFFSET(Baleares_datos!P32,0,((Resumen!$Q$1-1)*12))=0," ",OFFSET(Baleares_datos!P32,0,((Resumen!$Q$1-1)*12)))," ") -> 177641 | E7: =IF(E$1<=Resumen!$P$1,IF(OFFSET(Baleares_datos!Q32,0,((Resumen!$Q$1-1)*12))=0," ",OFFSET(Baleares_datos!Q32,0,((Resumen!$Q$1-1)*12)))," ") -> 189509 | F7: =IF(F$1<=Resumen!$P$1,IF(OFFSET(Baleares_datos!R32,0,((Resumen!$Q$1-1)*12))=0," ",OFFSET(Baleares_datos!R32,0,((Resumen!$Q$1-1)*12)))," ") -> 224833 | G7: =IF(G$1<=Resumen!$P$1,IF(OFFSET(Baleares_datos!S32,0,((Resumen!$Q$1-1)*12))=0," ",OFFSET(Baleares_datos!S32,0,((Resumen!$Q$1-1)*12)))," ") -> 269449 | H7: =IF(H$1<=Resumen!$P$1,IF(OFFSET(Baleares_datos!T32,0,((Resumen!$Q$1-1)*12))=0," ",OFFSET(Baleares_datos!T32,0,((Resumen!$Q$1-1)*12)))," ") -> 273732 | I7: =IF(I$1<=Resumen!$P$1,IF(OFFSET(Baleares_datos!U32,0,((Resumen!$Q$1-1)*12))=0," ",OFFSET(Baleares_datos!U32,0,((Resumen!$Q$1-1)*12)))," ") -> 264559 | J7: =IF(J$1<=Resumen!$P$1,IF(OFFSET(Baleares_datos!V32,0,((Resumen!$Q$1-1)*12))=0," ",OFFSET(Baleares_datos!V32,0,((Resumen!$Q$1-1)*12)))," ") -> 238125 | K7: =IF(K$1<=Resumen!$P$1,IF(OFFSET(Baleares_datos!W32,0,((Resumen!$Q$1-1)*12))=0," ",OFFSET(Baleares_datos!W32,0,((Resumen!$Q$1-1)*12)))," ") ->  | L7: =IF(L$1<=Resumen!$P$1,IF(OFFSET(Baleares_datos!X32,0,((Resumen!$Q$1-1)*12))=0," ",OFFSET(Baleares_datos!X32,0,((Resumen!$Q$1-1)*12)))," ") ->  | M7: =IF(M$1<=Resumen!$P$1,IF(OFFSET(Baleares_datos!Y32,0,((Resumen!$Q$1-1)*12))=0," ",OFFSET(Baleares_datos!Y32,0,((Resumen!$Q$1-1)*12)))," ") ->  | N7: =IF(SUM(B7:M7)=0," ",SUM(B7:M7)) -> 2048362
A8: Fuel-Gas | B8: =IF(B$1<=Resumen!$P$1,IF(OFFSET(Baleares_datos!N33,0,((Resumen!$Q$1-1)*12))=0," ",OFFSET(Baleares_datos!N33,0,((Resumen!$Q$1-1)*12)))," ") -> 97571 | C8: =IF(C$1<=Resumen!$P$1,IF(OFFSET(Baleares_datos!O33,0,((Resumen!$Q$1-1)*12))=0," ",OFFSET(Baleares_datos!O33,0,((Resumen!$Q$1-1)*12)))," ") -> 81636 | D8: =IF(D$1<=Resumen!$P$1,IF(OFFSET(Baleares_datos!P33,0,((Resumen!$Q$1-1)*12))=0," ",OFFSET(Baleares_datos!P33,0,((Resumen!$Q$1-1)*12)))," ") -> 84598 | E8: =IF(E$1<=Resumen!$P$1,IF(OFFSET(Baleares_datos!Q33,0,((Resumen!$Q$1-1)*12))=0," ",OFFSET(Baleares_datos!Q33,0,((Resumen!$Q$1-1)*12)))," ") -> 86883 | F8: =IF(F$1<=Resumen!$P$1,IF(OFFSET(Baleares_datos!R33,0,((Resumen!$Q$1-1)*12))=0," ",OFFSET(Baleares_datos!R33,0,((Resumen!$Q$1-1)*12)))," ") -> 118697 | G8: =IF(G$1<=Resumen!$P$1,IF(OFFSET(Baleares_datos!S33,0,((Resumen!$Q$1-1)*12))=0," ",OFFSET(Baleares_datos!S33,0,((Resumen!$Q$1-1)*12)))," ") -> 138081 | H8: =IF(H$1<=Resumen!$P$1,IF(OFFSET(Baleares_datos!T33,0,((Resumen!$Q$1-1)*12))=0," ",OFFSET(Baleares_datos!T33,0,((Resumen!$Q$1-1)*12)))," ") -> 169474 | I8: =IF(I$1<=Resumen!$P$1,IF(OFFSET(Baleares_datos!U33,0,((Resumen!$Q$1-1)*12))=0," ",OFFSET(Baleares_datos!U33,0,((Resumen!$Q$1-1)*12)))," ") -> 175058 | J8: =IF(J$1<=Resumen!$P$1,IF(OFFSET(Baleares_datos!V33,0,((Resumen!$Q$1-1)*12))=0," ",OFFSET(Baleares_datos!V33,0,((Resumen!$Q$1-1)*12)))," ") -> 126507 | K8: =IF(K$1<=Resumen!$P$1,IF(OFFSET(Baleares_datos!W33,0,((Resumen!$Q$1-1)*12))=0," ",OFFSET(Baleares_datos!W33,0,((Resumen!$Q$1-1)*12)))," ") ->  | L8: =IF(L$1<=Resumen!$P$1,IF(OFFSET(Baleares_datos!X33,0,((Resumen!$Q$1-1)*12))=0," ",OFFSET(Baleares_datos!X33,0,((Resumen!$Q$1-1)*12)))," ") ->  | M8: =IF(M$1<=Resumen!$P$1,IF(OFFSET(Baleares_datos!Y33,0,((Resumen!$Q$1-1)*12))=0," ",OFFSET(Baleares_datos!Y33,0,((Resumen!$Q$1-1)*12)))," ") ->  | N8: 1078505
A9: Ciclo combinado | B9: =IF(B$1<=Resumen!$P$1,IF(OFFSET(Baleares_datos!N34,0,((Resumen!$Q$1-1)*12))=0," ",OFFSET(Baleares_datos!N34,0,((Resumen!$Q$1-1)*12)))," ") -> 37933 | C9: =IF(C$1<=Resumen!$P$1,IF(OFFSET(Baleares_datos!O34,0,((Resumen!$Q$1-1)*12))=0," ",OFFSET(Baleares_datos!O34,0,((Resumen!$Q$1-1)*12)))," ") -> 35460 | D9: =IF(D$1<=Resumen!$P$1,IF(OFFSET(Baleares_datos!P34,0,((Resumen!$Q$1-1)*12))=0," ",OFFSET(Baleares_datos!P34,0,((Resumen!$Q$1-1)*12)))," ") -> 32703 | E9: =IF(E$1<=Resumen!$P$1,IF(OFFSET(Baleares_datos!Q34,0,((Resumen!$Q$1-1)*12))=0," ",OFFSET(Baleares_datos!Q34,0,((Resumen!$Q$1-1)*12)))," ") -> 37340 | F9: =IF(F$1<=Resumen!$P$1,IF(OFFSET(Baleares_datos!R34,0,((Resumen!$Q$1-1)*12))=0," ",OFFSET(Baleares_datos!R34,0,((Resumen!$Q$1-1)*12)))," ") -> 26811 | G9: =IF(G$1<=Resumen!$P$1,IF(OFFSET(Baleares_datos!S34,0,((Resumen!$Q$1-1)*12))=0," ",OFFSET(Baleares_datos!S34,0,((Resumen!$Q$1-1)*12)))," ") -> 13028 | H9: =IF(H$1<=Resumen!$P$1,IF(OFFSET(Baleares_datos!T34,0,((Resumen!$Q$1-1)*12))=0," ",OFFSET(Baleares_datos!T34,0,((Resumen!$Q$1-1)*12)))," ") -> 35387 | I9: =IF(I$1<=Resumen!$P$1,IF(OFFSET(Baleares_datos!U34,0,((Resumen!$Q$1-1)*12))=0," ",OFFSET(Baleares_datos!U34,0,((Resumen!$Q$1-1)*12)))," ") -> 56264 | J9: =IF(J$1<=Resumen!$P$1,IF(OFFSET(Baleares_datos!V34,0,((Resumen!$Q$1-1)*12))=0," ",OFFSET(Baleares_datos!V34,0,((Resumen!$Q$1-1)*12)))," ") -> 13675 | K9: =IF(K$1<=Resumen!$P$1,IF(OFFSET(Baleares_datos!W34,0,((Resumen!$Q$1-1)*12))=0," ",OFFSET(Baleares_datos!W34,0,((Resumen!$Q$1-1)*12)))," ") ->  | L9: =IF(L$1<=Resumen!$P$1,IF(OFFSET(Baleares_datos!X34,0,((Resumen!$Q$1-1)*12))=0," ",OFFSET(Baleares_datos!X34,0,((Resumen!$Q$1-1)*12)))," ") ->  | M9: =IF(M$1<=Resumen!$P$1,IF(OFFSET(Baleares_datos!Y34,0,((Resumen!$Q$1-1)*12))=0," ",OFFSET(Baleares_datos!Y34,0,((Resumen!$Q$1-1)*12)))," ") ->  | N9: 288601
A10: Hidroeólica | B10: =IF(B$1<=Resumen!$P$1,IF(OFFSET(Baleares_datos!N35,0,((Resumen!$Q$1-1)*12))=0," ",OFFSET(Baleares_datos!N35,0,((Resumen!$Q$1-1)*12)))," ") ->  | C10: =IF(C$1<=Resumen!$P$1,IF(OFFSET(Baleares_datos!O35,0,((Resumen!$Q$1-1)*12))=0," ",OFFSET(Baleares_datos!O35,0,((Resumen!$Q$1-1)*12)))," ") ->  | D10: =IF(D$1<=Resumen!$P$1,IF(OFFSET(Baleares_datos!P35,0,((Resumen!$Q$1-1)*12))=0," ",OFFSET(Baleares_datos!P35,0,((Resumen!$Q$1-1)*12)))," ") ->  | E10: =IF(E$1<=Resumen!$P$1,IF(OFFSET(Baleares_datos!Q35,0,((Resumen!$Q$1-1)*12))=0," ",OFFSET(Baleares_datos!Q35,0,((Resumen!$Q$1-1)*12)))," ") ->  | F10: =IF(F$1<=Resumen!$P$1,IF(OFFSET(Baleares_datos!R35,0,((Resumen!$Q$1-1)*12))=0," ",OFFSET(Baleares_datos!R35,0,((Resumen!$Q$1-1)*12)))," ") ->  | G10: =IF(G$1<=Resumen!$P$1,IF(OFFSET(Baleares_datos!S35,0,((Resumen!$Q$1-1)*12))=0," ",OFFSET(Baleares_datos!S35,0,((Resumen!$Q$1-1)*12)))," ") ->  | H10: =IF(H$1<=Resumen!$P$1,IF(OFFSET(Baleares_datos!T35,0,((Resumen!$Q$1-1)*12))=0," ",OFFSET(Baleares_datos!T35,0,((Resumen!$Q$1-1)*12)))," ") ->  | I10: =IF(I$1<=Resumen!$P$1,IF(OFFSET(Baleares_datos!U35,0,((Resumen!$Q$1-1)*12))=0," ",OFFSET(Baleares_datos!U35,0,((Resumen!$Q$1-1)*12)))," ") ->  | J10: =IF(J$1<=Resumen!$P$1,IF(OFFSET(Baleares_datos!V35,0,((Resumen!$Q$1-1)*12))=0," ",OFFSET(Baleares_datos!V35,0,((Resumen!$Q$1-1)*12)))," ") ->  | K10: =IF(K$1<=Resumen!$P$1,IF(OFFSET(Baleares_datos!W35,0,((Resumen!$Q$1-1)*12))=0," ",OFFSET(Baleares_datos!W35,0,((Resumen!$Q$1-1)*12)))," ") ->  | L10: =IF(L$1<=Resumen!$P$1,IF(OFFSET(Baleares_datos!X35,0,((Resumen!$Q$1-1)*12))=0," ",OFFSET(Baleares_datos!X35,0,((Resumen!$Q$1-1)*12)))," ") ->  | M10: =IF(M$1<=Resumen!$P$1,IF(OFFSET(Baleares_datos!Y35,0,((Resumen!$Q$1-1)*12))=0," ",OFFSET(Baleares_datos!Y35,0,((Resumen!$Q$1-1)*12)))," ") -> 
A11: Eólica | B11: =IF(B$1<=Resumen!$P$1,IF(OFFSET(Baleares_datos!N36,0,((Resumen!$Q$1-1)*12))=0," ",OFFSET(Baleares_datos!N36,0,((Resumen!$Q$1-1)*12)))," ") -> 468.562 | C11: =IF(C$1<=Resumen!$P$1,IF(OFFSET(Baleares_datos!O36,0,((Resumen!$Q$1-1)*12))=0," ",OFFSET(Baleares_datos!O36,0,((Resumen!$Q$1-1)*12)))," ") -> 282.718 | D11: =IF(D$1<=Resumen!$P$1,IF(OFFSET(Baleares_datos!P36,0,((Resumen!$Q$1-1)*12))=0," ",OFFSET(Baleares_datos!P36,0,((Resumen!$Q$1-1)*12)))," ") -> 227.135 | E11: =IF(E$1<=Resumen!$P$1,IF(OFFSET(Baleares_datos!Q36,0,((Resumen!$Q$1-1)*12))=0," ",OFFSET(Baleares_datos!Q36,0,((Resumen!$Q$1-1)*12)))," ") -> 238 | F11: =IF(F$1<=Resumen!$P$1,IF(OFFSET(Baleares_datos!R36,0,((Resumen!$Q$1-1)*12))=0," ",OFFSET(Baleares_datos!R36,0,((Resumen!$Q$1-1)*12)))," ") -> 127.304 | G11: =IF(G$1<=Resumen!$P$1,IF(OFFSET(Baleares_datos!S36,0,((Resumen!$Q$1-1)*12))=0," ",OFFSET(Baleares_datos!S36,0,((Resumen!$Q$1-1)*12)))," ") -> 130.101 | H11: =IF(H$1<=Resumen!$P$1,IF(OFFSET(Baleares_datos!T36,0,((Resumen!$Q$1-1)*12))=0," ",OFFSET(Baleares_datos!T36,0,((Resumen!$Q$1-1)*12)))," ") -> 175.738 | I11: =IF(I$1<=Resumen!$P$1,IF(OFFSET(Baleares_datos!U36,0,((Resumen!$Q$1-1)*12))=0," ",OFFSET(Baleares_datos!U36,0,((Resumen!$Q$1-1)*12)))," ") -> 171.687 | J11: =IF(J$1<=Resumen!$P$1,IF(OFFSET(Baleares_datos!V36,0,((Resumen!$Q$1-1)*12))=0," ",OFFSET(Baleares_datos!V36,0,((Resumen!$Q$1-1)*12)))," ") -> 182.989 | K11: =IF(K$1<=Resumen!$P$1,IF(OFFSET(Baleares_datos!W36,0,((Resumen!$Q$1-1)*12))=0," ",OFFSET(Baleares_datos!W36,0,((Resumen!$Q$1-1)*12)))," ") ->  | L11: =IF(L$1<=Resumen!$P$1,IF(OFFSET(Baleares_datos!X36,0,((Resumen!$Q$1-1)*12))=0," ",OFFSET(Baleares_datos!X36,0,((Resumen!$Q$1-1)*12)))," ") ->  | M11: =IF(M$1<=Resumen!$P$1,IF(OFFSET(Baleares_datos!Y36,0,((Resumen!$Q$1-1)*12))=0," ",OFFSET(Baleares_datos!Y36,0,((Resumen!$Q$1-1)*12)))," ") ->  | N11: 2004.234
A12: Solar fotovoltaico | B12: =IF(B$1<=Resumen!$P$1,IF(OFFSET(Baleares_datos!N37,0,((Resumen!$Q$1-1)*12))=0," ",OFFSET(Baleares_datos!N37,0,((Resumen!$Q$1-1)*12)))," ") -> 5799 | C12: =IF(C$1<=Resumen!$P$1,IF(OFFSET(Baleares_datos!O37,0,((Resumen!$Q$1-1)*12))=0," ",OFFSET(Baleares_datos!O37,0,((Resumen!$Q$1-1)*12)))," ") -> 7159.444 | D12: =IF(D$1<=Resumen!$P$1,IF(OFFSET(Baleares_datos!P37,0,((Resumen!$Q$1-1)*12))=0," ",OFFSET(Baleares_datos!P37,0,((Resumen!$Q$1-1)*12)))," ") -> 12160.248 | E12: =IF(E$1<=Resumen!$P$1,IF(OFFSET(Baleares_datos!Q37,0,((Resumen!$Q$1-1)*12))=0," ",OFFSET(Baleares_datos!Q37,0,((Resumen!$Q$1-1)*12)))," ") -> 12670.645 | F12: =IF(F$1<=Resumen!$P$1,IF(OFFSET(Baleares_datos!R37,0,((Resumen!$Q$1-1)*12))=0," ",OFFSET(Baleares_datos!R37,0,((Resumen!$Q$1-1)*12)))," ") -> 13641.135 | G12: =IF(G$1<=Resumen!$P$1,IF(OFFSET(Baleares_datos!S37,0,((Resumen!$Q$1-1)*12))=0," ",OFFSET(Baleares_datos!S37,0,((Resumen!$Q$1-1)*12)))," ") -> 13309.108 | H12: =IF(H$1<=Resumen!$P$1,IF(OFFSET(Baleares_datos!T37,0,((Resumen!$Q$1-1)*12))=0," ",OFFSET(Baleares_datos!T37,0,((Resumen!$Q$1-1)*12)))," ") -> 13311.133 | I12: =IF(I$1<=Resumen!$P$1,IF(OFFSET(Baleares_datos!U37,0,((Resumen!$Q$1-1)*12))=0," ",OFFSET(Baleares_datos!U37,0,((Resumen!$Q$1-1)*12)))," ") -> 12437 | J12: =IF(J$1<=Resumen!$P$1,IF(OFFSET(Baleares_datos!V37,0,((Resumen!$Q$1-1)*12))=0," ",OFFSET(Baleares_datos!V37,0,((Resumen!$Q$1-1)*12)))," ") -> 10173.526 | K12: =IF(K$1<=Resumen!$P$1,IF(OFFSET(Baleares_datos!W37,0,((Resumen!$Q$1-1)*12))=0," ",OFFSET(Baleares_datos!W37,0,((Resumen!$Q$1-1)*12)))," ") ->  | L12: =IF(L$1<=Resumen!$P$1,IF(OFFSET(Baleares_datos!X37,0,((Resumen!$Q$1-1)*12))=0," ",OFFSET(Baleares_datos!X37,0,((Resumen!$Q$1-1)*12)))," ") ->  | M12: =IF(M$1<=Resumen!$P$1,IF(OFFSET(Baleares_datos!Y37,0,((Resumen!$Q$1-1)*12))=0," ",OFFSET(Baleares_datos!Y37,0,((Resumen!$Q$1-1)*12)))," ") ->  | N12: 100661.239
A13: Solar térmica | B13: =IF(B$1<=Resumen!$P$1,IF(OFFSET(Baleares_datos!N38,0,((Resumen!$Q$1-1)*12))=0," ",OFFSET(Baleares_datos!N38,0,((Resumen!$Q$1-1)*12)))," ") ->  | C13: =IF(C$1<=Resumen!$P$1,IF(OFFSET(Baleares_datos!O38,0,((Resumen!$Q$1-1)*12))=0," ",OFFSET(Baleares_datos!O38,0,((Resumen!$Q$1-1)*12)))," ") ->  | D13: =IF(D$1<=Resumen!$P$1,IF(OFFSET(Baleares_datos!P38,0,((Resumen!$Q$1-1)*12))=0," ",OFFSET(Baleares_datos!P38,0,((Resumen!$Q$1-1)*12)))," ") ->  | E13: =IF(E$1<=Resumen!$P$1,IF(OFFSET(Baleares_datos!Q38,0,((Resumen!$Q$1-1)*12))=0," ",OFFSET(Baleares_datos!Q38,0,((Resumen!$Q$1-1)*12)))," ") ->  | F13: =IF(F$1<=Resumen!$P$1,IF(OFFSET(Baleares_datos!R38,0,((Resumen!$Q$1-1)*12))=0," ",OFFSET(Baleares_datos!R38,0,((Resumen!$Q$1-1)*12)))," ") ->  | G13: =IF(G$1<=Resumen!$P$1,IF(OFFSET(Baleares_datos!S38,0,((Resumen!$Q$1-1)*12))=0," ",OFFSET(Baleares_datos!S38,0,((Resumen!$Q$1-1)*12)))," ") ->  | H13: =IF(H$1<=Resumen!$P$1,IF(OFFSET(Baleares_datos!T38,0,((Resumen!$Q$1-1)*12))=0," ",OFFSET(Baleares_datos!T38,0,((Resumen!$Q$1-1)*12)))," ") ->  | I13: =IF(I$1<=Resumen!$P$1,IF(OFFSET(Baleares_datos!U38,0,((Resumen!$Q$1-1)*12))=0," ",OFFSET(Baleares_datos!U38,0,((Resumen!$Q$1-1)*12)))," ") ->  | J13: =IF(J$1<=Resumen!$P$1,IF(OFFSET(Baleares_datos!V38,0,((Resumen!$Q$1-1)*12))=0," ",OFFSET(Baleares_datos!V38,0,((Resumen!$Q$1-1)*12)))," ") ->  | K13: =IF(K$1<=Resumen!$P$1,IF(OFFSET(Baleares_datos!W38,0,((Resumen!$Q$1-1)*12))=0," ",OFFSET(Baleares_datos!W38,0,((Resumen!$Q$1-1)*12)))," ") ->  | L13: =IF(L$1<=Resumen!$P$1,IF(OFFSET(Baleares_datos!X38,0,((Resumen!$Q$1-1)*12))=0," ",OFFSET(Baleares_datos!X38,0,((Resumen!$Q$1-1)*12)))," ") ->  | M13: =IF(M$1<=Resumen!$P$1,IF(OFFSET(Baleares_datos!Y38,0,((Resumen!$Q$1-1)*12))=0," ",OFFSET(Baleares_datos!Y38,0,((Resumen!$Q$1-1)*12)))," ") -> 
A14: Otras renovables | B14: =IF(B$1<=Resumen!$P$1,IF(OFFSET(Baleares_datos!N39,0,((Resumen!$Q$1-1)*12))=0," ",OFFSET(Baleares_datos!N39,0,((Resumen!$Q$1-1)*12)))," ") -> 159 | C14: =IF(C$1<=Resumen!$P$1,IF(OFFSET(Baleares_datos!O39,0,((Resumen!$Q$1-1)*12))=0," ",OFFSET(Baleares_datos!O39,0,((Resumen!$Q$1-1)*12)))," ") -> 170.074 | D14: =IF(D$1<=Resumen!$P$1,IF(OFFSET(Baleares_datos!P39,0,((Resumen!$Q$1-1)*12))=0," ",OFFSET(Baleares_datos!P39,0,((Resumen!$Q$1-1)*12)))," ") -> 104 | E14: =IF(E$1<=Resumen!$P$1,IF(OFFSET(Baleares_datos!Q39,0,((Resumen!$Q$1-1)*12))=0," ",OFFSET(Baleares_datos!Q39,0,((Resumen!$Q$1-1)*12)))," ") -> 198 | F14: =IF(F$1<=Resumen!$P$1,IF(OFFSET(Baleares_datos!R39,0,((Resumen!$Q$1-1)*12))=0," ",OFFSET(Baleares_datos!R39,0,((Resumen!$Q$1-1)*12)))," ") -> 223.85 | G14: =IF(G$1<=Resumen!$P$1,IF(OFFSET(Baleares_datos!S39,0,((Resumen!$Q$1-1)*12))=0," ",OFFSET(Baleares_datos!S39,0,((Resumen!$Q$1-1)*12)))," ") -> 164 | H14: =IF(H$1<=Resumen!$P$1,IF(OFFSET(Baleares_datos!T39,0,((Resumen!$Q$1-1)*12))=0," ",OFFSET(Baleares_datos!T39,0,((Resumen!$Q$1-1)*12)))," ") -> 75.732 | I14: =IF(I$1<=Resumen!$P$1,IF(OFFSET(Baleares_datos!U39,0,((Resumen!$Q$1-1)*12))=0," ",OFFSET(Baleares_datos!U39,0,((Resumen!$Q$1-1)*12)))," ") -> 72.5 | J14: =IF(J$1<=Resumen!$P$1,IF(OFFSET(Baleares_datos!V39,0,((Resumen!$Q$1-1)*12))=0," ",OFFSET(Baleares_datos!V39,0,((Resumen!$Q$1-1)*12)))," ") -> 87.362 | K14: =IF(K$1<=Resumen!$P$1,IF(OFFSET(Baleares_datos!W39,0,((Resumen!$Q$1-1)*12))=0," ",OFFSET(Baleares_datos!W39,0,((Resumen!$Q$1-1)*12)))," ") ->  | L14: =IF(L$1<=Resumen!$P$1,IF(OFFSET(Baleares_datos!X39,0,((Resumen!$Q$1-1)*12))=0," ",OFFSET(Baleares_datos!X39,0,((Resumen!$Q$1-1)*12)))," ") ->  | M14: =IF(M$1<=Resumen!$P$1,IF(OFFSET(Baleares_datos!Y39,0,((Resumen!$Q$1-1)*12))=0," ",OFFSET(Baleares_datos!Y39,0,((Resumen!$Q$1-1)*12)))," ") ->  | N14: 1254.518
A15: Cogeneración | B15: =IF(B$1<=Resumen!$P$1,IF(OFFSET(Baleares_datos!N40,0,((Resumen!$Q$1-1)*12))=0," ",OFFSET(Baleares_datos!N40,0,((Resumen!$Q$1-1)*12)))," ") -> 3018.215 | C15: =IF(C$1<=Resumen!$P$1,IF(OFFSET(Baleares_datos!O40,0,((Resumen!$Q$1-1)*12))=0," ",OFFSET(Baleares_datos!O40,0,((Resumen!$Q$1-1)*12)))," ") -> 3106.099 | D15: =IF(D$1<=Resumen!$P$1,IF(OFFSET(Baleares_datos!P40,0,((Resumen!$Q$1-1)*12))=0," ",OFFSET(Baleares_datos!P40,0,((Resumen!$Q$1-1)*12)))," ") -> 3515.159 | E15: =IF(E$1<=Resumen!$P$1,IF(OFFSET(Baleares_datos!Q40,0,((Resumen!$Q$1-1)*12))=0," ",OFFSET(Baleares_datos!Q40,0,((Resumen!$Q$1-1)*12)))," ") -> 1953.174 | F15: =IF(F$1<=Resumen!$P$1,IF(OFFSET(Baleares_datos!R40,0,((Resumen!$Q$1-1)*12))=0," ",OFFSET(Baleares_datos!R40,0,((Resumen!$Q$1-1)*12)))," ") -> 1987.968 | G15: =IF(G$1<=Resumen!$P$1,IF(OFFSET(Baleares_datos!S40,0,((Resumen!$Q$1-1)*12))=0," ",OFFSET(Baleares_datos!S40,0,((Resumen!$Q$1-1)*12)))," ") -> 2776.925 | H15: =IF(H$1<=Resumen!$P$1,IF(OFFSET(Baleares_datos!T40,0,((Resumen!$Q$1-1)*12))=0," ",OFFSET(Baleares_datos!T40,0,((Resumen!$Q$1-1)*12)))," ") -> 3059.404 | I15: =IF(I$1<=Resumen!$P$1,IF(OFFSET(Baleares_datos!U40,0,((Resumen!$Q$1-1)*12))=0," ",OFFSET(Baleares_datos!U40,0,((Resumen!$Q$1-1)*12)))," ") -> 3488 | J15: =IF(J$1<=Resumen!$P$1,IF(OFFSET(Baleares_datos!V40,0,((Resumen!$Q$1-1)*12))=0," ",OFFSET(Baleares_datos!V40,0,((Resumen!$Q$1-1)*12)))," ") -> 3215.986 | K15: =IF(K$1<=Resumen!$P$1,IF(OFFSET(Baleares_datos!W40,0,((Resumen!$Q$1-1)*12))=0," ",OFFSET(Baleares_datos!W40,0,((Resumen!$Q$1-1)*12)))," ") ->  | L15: =IF(L$1<=Resumen!$P$1,IF(OFFSET(Baleares_datos!X40,0,((Resumen!$Q$1-1)*12))=0," ",OFFSET(Baleares_datos!X40,0,((Resumen!$Q$1-1)*12)))," ") ->  | M15: =IF(M$1<=Resumen!$P$1,IF(OFFSET(Baleares_datos!Y40,0,((Resumen!$Q$1-1)*12))=0," ",OFFSET(Baleares_datos!Y40,0,((Resumen!$Q$1-1)*12)))," ") ->  | N15: 26120.93
A16: Residuos | B16: =IF(B$1<=Resumen!$P$1,IF(OFFSET(Baleares_datos!N41,0,((Resumen!$Q$1-1)*12))=0," ",OFFSET(Baleares_datos!N41,0,((Resumen!$Q$1-1)*12)))," ") -> 15088.327 | C16: =IF(C$1<=Resumen!$P$1,IF(OFFSET(Baleares_datos!O41,0,((Resumen!$Q$1-1)*12))=0," ",OFFSET(Baleares_datos!O41,0,((Resumen!$Q$1-1)*12)))," ") -> 14444 | D16: =IF(D$1<=Resumen!$P$1,IF(OFFSET(Baleares_datos!P41,0,((Resumen!$Q$1-1)*12))=0," ",OFFSET(Baleares_datos!P41,0,((Resumen!$Q$1-1)*12)))," ") -> 21035.525 | E16: =IF(E$1<=Resumen!$P$1,IF(OFFSET(Baleares_datos!Q41,0,((Resumen!$Q$1-1)*12))=0," ",OFFSET(Baleares_datos!Q41,0,((Resumen!$Q$1-1)*12)))," ") -> 29371.545 | F16: =IF(F$1<=Resumen!$P$1,IF(OFFSET(Baleares_datos!R41,0,((Resumen!$Q$1-1)*12))=0," ",OFFSET(Baleares_datos!R41,0,((Resumen!$Q$1-1)*12)))," ") -> 22419.581 | G16: =IF(G$1<=Resumen!$P$1,IF(OFFSET(Baleares_datos!S41,0,((Resumen!$Q$1-1)*12))=0," ",OFFSET(Baleares_datos!S41,0,((Resumen!$Q$1-1)*12)))," ") -> 28093.3 | H16: =IF(H$1<=Resumen!$P$1,IF(OFFSET(Baleares_datos!T41,0,((Resumen!$Q$1-1)*12))=0," ",OFFSET(Baleares_datos!T41,0,((Resumen!$Q$1-1)*12)))," ") -> 28111.581 | I16: =IF(I$1<=Resumen!$P$1,IF(OFFSET(Baleares_datos!U41,0,((Resumen!$Q$1-1)*12))=0," ",OFFSET(Baleares_datos!U41,0,((Resumen!$Q$1-1)*12)))," ") -> 28651 | J16: =IF(J$1<=Resumen!$P$1,IF(OFFSET(Baleares_datos!V41,0,((Resumen!$Q$1-1)*12))=0," ",OFFSET(Baleares_datos!V41,0,((Resumen!$Q$1-1)*12)))," ") -> 30053.25 | K16: =IF(K$1<=Resumen!$P$1,IF(OFFSET(Baleares_datos!W41,0,((Resumen!$Q$1-1)*12))=0," ",OFFSET(Baleares_datos!W41,0,((Resumen!$Q$1-1)*12)))," ") ->  | L16: =IF(L$1<=Resumen!$P$1,IF(OFFSET(Baleares_datos!X41,0,((Resumen!$Q$1-1)*12))=0," ",OFFSET(Baleares_datos!X41,0,((Resumen!$Q$1-1)*12)))," ") ->  | M16: =IF(M$1<=Resumen!$P$1,IF(OFFSET(Baleares_datos!Y41,0,((Resumen!$Q$1-1)*12))=0," ",OFFSET(Baleares_datos!Y41,0,((Resumen!$Q$1-1)*12)))," ") ->  | N16: 217268.109
A17: Generación neta | B17: =IF(B$1<=Resumen!$P$1,IF(OFFSET(Baleares_datos!N42,0,((Resumen!$Q$1-1)*12))=0," ",OFFSET(Baleares_datos!N42,0,((Resumen!$Q$1-1)*12)))," ") -> 381095.104 | C17: =IF(C$1<=Resumen!$P$1,IF(OFFSET(Baleares_datos!O42,0,((Resumen!$Q$1-1)*12))=0," ",OFFSET(Baleares_datos!O42,0,((Resumen!$Q$1-1)*12)))," ") -> 331714.335 | D17: =IF(D$1<=Resumen!$P$1,IF(OFFSET(Baleares_datos!P42,0,((Resumen!$Q$1-1)*12))=0," ",OFFSET(Baleares_datos!P42,0,((Resumen!$Q$1-1)*12)))," ") -> 331984.067 | E17: =IF(E$1<=Resumen!$P$1,IF(OFFSET(Baleares_datos!Q42,0,((Resumen!$Q$1-1)*12))=0," ",OFFSET(Baleares_datos!Q42,0,((Resumen!$Q$1-1)*12)))," ") -> 358163.364 | F17: =IF(F$1<=Resumen!$P$1,IF(OFFSET(Baleares_datos!R42,0,((Resumen!$Q$1-1)*12))=0," ",OFFSET(Baleares_datos!R42,0,((Resumen!$Q$1-1)*12)))," ") -> 408740.838 | G17: =IF(G$1<=Resumen!$P$1,IF(OFFSET(Baleares_datos!S42,0,((Resumen!$Q$1-1)*12))=0," ",OFFSET(Baleares_datos!S42,0,((Resumen!$Q$1-1)*12)))," ") -> 465031.434 | H17: =IF(H$1<=Resumen!$P$1,IF(OFFSET(Baleares_datos!T42,0,((Resumen!$Q$1-1)*12))=0," ",OFFSET(Baleares_datos!T42,0,((Resumen!$Q$1-1)*12)))," ") -> 523326.588 | I17: =IF(I$1<=Resumen!$P$1,IF(OFFSET(Baleares_datos!U42,0,((Resumen!$Q$1-1)*12))=0," ",OFFSET(Baleares_datos!U42,0,((Resumen!$Q$1-1)*12)))," ") -> 540701.187 | J17: =IF(J$1<=Resumen!$P$1,IF(OFFSET(Baleares_datos!V42,0,((Resumen!$Q$1-1)*12))=0," ",OFFSET(Baleares_datos!V42,0,((Resumen!$Q$1-1)*12)))," ") -> 422020.113 | K17: =IF(K$1<=Resumen!$P$1,IF(OFFSET(Baleares_datos!W42,0,((Resumen!$Q$1-1)*12))=0," ",OFFSET(Baleares_datos!W42,0,((Resumen!$Q$1-1)*12)))," ") ->  | L17: =IF(L$1<=Resumen!$P$1,IF(OFFSET(Baleares_datos!X42,0,((Resumen!$Q$1-1)*12))=0," ",OFFSET(Baleares_datos!X42,0,((Resumen!$Q$1-1)*12)))," ") ->  | M17: =IF(M$1<=Resumen!$P$1,IF(OFFSET(Baleares_datos!Y42,0,((Resumen!$Q$1-1)*12))=0," ",OFFSET(Baleares_datos!Y42,0,((Resumen!$Q$1-1)*12)))," ") ->  | N17: 3762777.03
A18: Consumos en bombeo | B18: =IF(B$1<=Resumen!$P$1,IF(OFFSET(Baleares_datos!N43,0,((Resumen!$Q$1-1)*12))=0," ",OFFSET(Baleares_datos!N43,0,((Resumen!$Q$1-1)*12)))," ") -> - | C18: =IF(C$1<=Resumen!$P$1,IF(OFFSET(Baleares_datos!O43,0,((Resumen!$Q$1-1)*12))=0," ",OFFSET(Baleares_datos!O43,0,((Resumen!$Q$1-1)*12)))," ") -> - | D18: =IF(D$1<=Resumen!$P$1,IF(OFFSET(Baleares_datos!P43,0,((Resumen!$Q$1-1)*12))=0," ",OFFSET(Baleares_datos!P43,0,((Resumen!$Q$1-1)*12)))," ") -> - | E18: =IF(E$1<=Resumen!$P$1,IF(OFFSET(Baleares_datos!Q43,0,((Resumen!$Q$1-1)*12))=0," ",OFFSET(Baleares_datos!Q43,0,((Resumen!$Q$1-1)*12)))," ") -> - | F18: =IF(F$1<=Resumen!$P$1,IF(OFFSET(Baleares_datos!R43,0,((Resumen!$Q$1-1)*12))=0," ",OFFSET(Baleares_datos!R43,0,((Resumen!$Q$1-1)*12)))," ") -> - | G18: =IF(G$1<=Resumen!$P$1,IF(OFFSET(Baleares_datos!S43,0,((Resumen!$Q$1-1)*12))=0," ",OFFSET(Baleares_datos!S43,0,((Resumen!$Q$1-1)*12)))," ") -> - | H18: =IF(H$1<=Resumen!$P$1,IF(OFFSET(Baleares_datos!T43,0,((Resumen!$Q$1-1)*12))=0," ",OFFSET(Baleares_datos!T43,0,((Resumen!$Q$1-1)*12)))," ") -> - | I18: =IF(I$1<=Resumen!$P$1,IF(OFFSET(Baleares_datos!U43,0,((Resumen!$Q$1-1)*12))=0," ",OFFSET(Baleares_datos!U43,0,((Resumen!$Q$1-1)*12)))," ") -> - | J18: =IF(J$1<=Resumen!$P$1,IF(OFFSET(Baleares_datos!V43,0,((Resumen!$Q$1-1)*12))=0," ",OFFSET(Baleares_datos!V43,0,((Resumen!$Q$1-1)*12)))," ") -> - | K18: =IF(K$1<=Resumen!$P$1,IF(OFFSET(Baleares_datos!W43,0,((Resumen!$Q$1-1)*12))=0," ",OFFSET(Baleares_datos!W43,0,((Resumen!$Q$1-1)*12)))," ") ->  | L18: =IF(L$1<=Resumen!$P$1,IF(OFFSET(Baleares_datos!X43,0,((Resumen!$Q$1-1)*12))=0," ",OFFSET(Baleares_datos!X43,0,((Resumen!$Q$1-1)*12)))," ") ->  | M18: =IF(M$1<=Resumen!$P$1,IF(OFFSET(Baleares_datos!Y43,0,((Resumen!$Q$1-1)*12))=0," ",OFFSET(Baleares_datos!Y43,0,((Resumen!$Q$1-1)*12)))," ") -> 
A19: Saldo Intercambios | B19: =IF(B$1<=Resumen!$P$1,IF(OFFSET(Baleares_datos!N44,0,((Resumen!$Q$1-1)*12))=0," ",OFFSET(Baleares_datos!N44,0,((Resumen!$Q$1-1)*12)))," ") -> 96651 | C19: =IF(C$1<=Resumen!$P$1,IF(OFFSET(Baleares_datos!O44,0,((Resumen!$Q$1-1)*12))=0," ",OFFSET(Baleares_datos!O44,0,((Resumen!$Q$1-1)*12)))," ") -> 64562 | D19: =IF(D$1<=Resumen!$P$1,IF(OFFSET(Baleares_datos!P44,0,((Resumen!$Q$1-1)*12))=0," ",OFFSET(Baleares_datos!P44,0,((Resumen!$Q$1-1)*12)))," ") -> 78352 | E19: =IF(E$1<=Resumen!$P$1,IF(OFFSET(Baleares_datos!Q44,0,((Resumen!$Q$1-1)*12))=0," ",OFFSET(Baleares_datos!Q44,0,((Resumen!$Q$1-1)*12)))," ") -> 57068.2 | F19: =IF(F$1<=Resumen!$P$1,IF(OFFSET(Baleares_datos!R44,0,((Resumen!$Q$1-1)*12))=0," ",OFFSET(Baleares_datos!R44,0,((Resumen!$Q$1-1)*12)))," ") -> 75027 | G19: =IF(G$1<=Resumen!$P$1,IF(OFFSET(Baleares_datos!S44,0,((Resumen!$Q$1-1)*12))=0," ",OFFSET(Baleares_datos!S44,0,((Resumen!$Q$1-1)*12)))," ") -> 114233.1 | H19: =IF(H$1<=Resumen!$P$1,IF(OFFSET(Baleares_datos!T44,0,((Resumen!$Q$1-1)*12))=0," ",OFFSET(Baleares_datos!T44,0,((Resumen!$Q$1-1)*12)))," ") -> 155211 | I19: =IF(I$1<=Resumen!$P$1,IF(OFFSET(Baleares_datos!U44,0,((Resumen!$Q$1-1)*12))=0," ",OFFSET(Baleares_datos!U44,0,((Resumen!$Q$1-1)*12)))," ") -> 166876 | J19: =IF(J$1<=Resumen!$P$1,IF(OFFSET(Baleares_datos!V44,0,((Resumen!$Q$1-1)*12))=0," ",OFFSET(Baleares_datos!V44,0,((Resumen!$Q$1-1)*12)))," ") -> 116105 | K19: =IF(K$1<=Resumen!$P$1,IF(OFFSET(Baleares_datos!W44,0,((Resumen!$Q$1-1)*12))=0," ",OFFSET(Baleares_datos!W44,0,((Resumen!$Q$1-1)*12)))," ") ->  | L19: =IF(L$1<=Resumen!$P$1,IF(OFFSET(Baleares_datos!X44,0,((Resumen!$Q$1-1)*12))=0," ",OFFSET(Baleares_datos!X44,0,((Resumen!$Q$1-1)*12)))," ") ->  | M19: =IF(M$1<=Resumen!$P$1,IF(OFFSET(Baleares_datos!Y44,0,((Resumen!$Q$1-1)*12))=0," ",OFFSET(Baleares_datos!Y44,0,((Resumen!$Q$1-1)*12)))," ") ->  | N19: 924085.3
A20: Demanda B.C | B20: =IF(B$1<=Resumen!$P$1,IF(OFFSET(Baleares_datos!N45,0,((Resumen!$Q$1-1)*12))=0," ",OFFSET(Baleares_datos!N45,0,((Resumen!$Q$1-1)*12)))," ") -> 477746.104 | C20: =IF(C$1<=Resumen!$P$1,IF(OFFSET(Baleares_datos!O45,0,((Resumen!$Q$1-1)*12))=0," ",OFFSET(Baleares_datos!O45,0,((Resumen!$Q$1-1)*12)))," ") -> 396276.335 | D20: =IF(D$1<=Resumen!$P$1,IF(OFFSET(Baleares_datos!P45,0,((Resumen!$Q$1-1)*12))=0," ",OFFSET(Baleares_datos!P45,0,((Resumen!$Q$1-1)*12)))," ") -> 410336.067 | E20: =IF(E$1<=Resumen!$P$1,IF(OFFSET(Baleares_datos!Q45,0,((Resumen!$Q$1-1)*12))=0," ",OFFSET(Baleares_datos!Q45,0,((Resumen!$Q$1-1)*12)))," ") -> 415231.564 | F20: =IF(F$1<=Resumen!$P$1,IF(OFFSET(Baleares_datos!R45,0,((Resumen!$Q$1-1)*12))=0," ",OFFSET(Baleares_datos!R45,0,((Resumen!$Q$1-1)*12)))," ") -> 483767.838 | G20: =IF(G$1<=Resumen!$P$1,IF(OFFSET(Baleares_datos!S45,0,((Resumen!$Q$1-1)*12))=0," ",OFFSET(Baleares_datos!S45,0,((Resumen!$Q$1-1)*12)))," ") -> 579264.534 | H20: =IF(H$1<=Resumen!$P$1,IF(OFFSET(Baleares_datos!T45,0,((Resumen!$Q$1-1)*12))=0," ",OFFSET(Baleares_datos!T45,0,((Resumen!$Q$1-1)*12)))," ") -> 678537.588 | I20: =IF(I$1<=Resumen!$P$1,IF(OFFSET(Baleares_datos!U45,0,((Resumen!$Q$1-1)*12))=0," ",OFFSET(Baleares_datos!U45,0,((Resumen!$Q$1-1)*12)))," ") -> 707577.187 | J20: =IF(J$1<=Resumen!$P$1,IF(OFFSET(Baleares_datos!V45,0,((Resumen!$Q$1-1)*12))=0," ",OFFSET(Baleares_datos!V45,0,((Resumen!$Q$1-1)*12)))," ") -> 538124.113 | K20: =IF(K$1<=Resumen!$P$1,IF(OFFSET(Baleares_datos!W45,0,((Resumen!$Q$1-1)*12))=0," ",OFFSET(Baleares_datos!W45,0,((Resumen!$Q$1-1)*12)))," ") ->  | L20: =IF(L$1<=Resumen!$P$1,IF(OFFSET(Baleares_datos!X45,0,((Resumen!$Q$1-1)*12))=0," ",OFFSET(Baleares_datos!X45,0,((Resumen!$Q$1-1)*12)))," ") ->  | M20: =IF(M$1<=Resumen!$P$1,IF(OFFSET(Baleares_datos!Y45,0,((Resumen!$Q$1-1)*12))=0," ",OFFSET(Baleares_datos!Y45,0,((Resumen!$Q$1-1)*12)))," ") ->  | N20: 4686861.33
A21: =Resumen!A22 -> %Δ 17/16 | B21: =IF(B$1<=Resumen!$P$1,IF(OFFSET(Baleares_datos!N46,0,((Resumen!$Q$1-1)*12))=0," ",OFFSET(Baleares_datos!N46,0,((Resumen!$Q$1-1)*12)))," ") -> 16.0444752 | C21: =IF(C$1<=Resumen!$P$1,IF(OFFSET(Baleares_datos!O46,0,((Resumen!$Q$1-1)*12))=0," ",OFFSET(Baleares_datos!O46,0,((Resumen!$Q$1-1)*12)))," ") -> -1.966636529 | D21: =IF(D$1<=Resumen!$P$1,IF(OFFSET(Baleares_datos!P46,0,((Resumen!$Q$1-1)*12))=0," ",OFFSET(Baleares_datos!P46,0,((Resumen!$Q$1-1)*12)))," ") -> -8.640249028 | E21: =IF(E$1<=Resumen!$P$1,IF(OFFSET(Baleares_datos!Q46,0,((Resumen!$Q$1-1)*12))=0," ",OFFSET(Baleares_datos!Q46,0,((Resumen!$Q$1-1)*12)))," ") -> 0.3525339846 | F21: =IF(F$1<=Resumen!$P$1,IF(OFFSET(Baleares_datos!R46,0,((Resumen!$Q$1-1)*12))=0," ",OFFSET(Baleares_datos!R46,0,((Resumen!$Q$1-1)*12)))," ") -> 2.511989583 | G21: =IF(G$1<=Resumen!$P$1,IF(OFFSET(Baleares_datos!S46,0,((Resumen!$Q$1-1)*12))=0," ",OFFSET(Baleares_datos!S46,0,((Resumen!$Q$1-1)*12)))," ") -> 8.452230083 | H21: =IF(H$1<=Resumen!$P$1,IF(OFFSET(Baleares_datos!T46,0,((Resumen!$Q$1-1)*12))=0," ",OFFSET(Baleares_datos!T46,0,((Resumen!$Q$1-1)*12)))," ") -> 5.461745574 | I21: =IF(I$1<=Resumen!$P$1,IF(OFFSET(Baleares_datos!U46,0,((Resumen!$Q$1-1)*12))=0," ",OFFSET(Baleares_datos!U46,0,((Resumen!$Q$1-1)*12)))," ") -> 8.614869486 | J21: =IF(J$1<=Resumen!$P$1,IF(OFFSET(Baleares_datos!V46,0,((Resumen!$Q$1-1)*12))=0," ",OFFSET(Baleares_datos!V46,0,((Resumen!$Q$1-1)*12)))," ") -> -5.590197775 | K21: =IF(K$1<=Resumen!$P$1,IF(OFFSET(Baleares_datos!W46,0,((Resumen!$Q$1-1)*12))=0," ",OFFSET(Baleares_datos!W46,0,((Resumen!$Q$1-1)*12)))," ") ->  | L21: =IF(L$1<=Resumen!$P$1,IF(OFFSET(Baleares_datos!X46,0,((Resumen!$Q$1-1)*12))=0," ",OFFSET(Baleares_datos!X46,0,((Resumen!$Q$1-1)*12)))," ") ->  | M21: =IF(M$1<=Resumen!$P$1,IF(OFFSET(Baleares_datos!Y46,0,((Resumen!$Q$1-1)*12))=0," ",OFFSET(Baleares_datos!Y46,0,((Resumen!$Q$1-1)*12)))," ") ->  | N21: =((N20/SUM(OFFSET(Baleares_datos!N45,0,(Resumen!$Q$1-2)*12):OFFSET(Baleares_datos!N45,0,((Resumen!$Q$1-2)*12)+Resumen!$P$1-1))-1)*100) -> 3.014579239
A69: =A1 -> Baleares | B69: =J20 -> 538124.113
A70: Resto nacional | B70: =Nacional_datos!BR45-B69 -> 21011609.91

Sheet Canarias
A1: Canarias | B1: 1 | C1: 2 | D1: 3 | E1: 4 | F1: 5 | G1: 6 | H1: 7 | I1: 8 | J1: 9 | K1: 10 | L1: 11 | M1: 12
A2: Balance mensual de energía electrica. MWh
B3: 2017
B4: Ene | C4: Feb | D4: Mar | E4: Abr | F4: May | G4: Jun | H4: Jul | I4: Ago | J4: Sep | K4: Oct | L4: Nov | M4: Dic | N4: TOTAL
A5: Hidraulica | B5: =IF(B$1<=Resumen!$P$1,IF(OFFSET(Canarias_datos!N30,0,((Resumen!$Q$1-1)*12))=0," ",OFFSET(Canarias_datos!N30,0,((Resumen!$Q$1-1)*12)))," ") -> 264.323 | C5: =IF(C$1<=Resumen!$P$1,IF(OFFSET(Canarias_datos!O30,0,((Resumen!$Q$1-1)*12))=0," ",OFFSET(Canarias_datos!O30,0,((Resumen!$Q$1-1)*12)))," ") -> 238.685 | D5: =IF(D$1<=Resumen!$P$1,IF(OFFSET(Canarias_datos!P30,0,((Resumen!$Q$1-1)*12))=0," ",OFFSET(Canarias_datos!P30,0,((Resumen!$Q$1-1)*12)))," ") -> 265.065 | E5: =IF(E$1<=Resumen!$P$1,IF(OFFSET(Canarias_datos!Q30,0,((Resumen!$Q$1-1)*12))=0," ",OFFSET(Canarias_datos!Q30,0,((Resumen!$Q$1-1)*12)))," ") -> 261.585 | F5: =IF(F$1<=Resumen!$P$1,IF(OFFSET(Canarias_datos!R30,0,((Resumen!$Q$1-1)*12))=0," ",OFFSET(Canarias_datos!R30,0,((Resumen!$Q$1-1)*12)))," ") -> 271.016 | G5: =IF(G$1<=Resumen!$P$1,IF(OFFSET(Canarias_datos!S30,0,((Resumen!$Q$1-1)*12))=0," ",OFFSET(Canarias_datos!S30,0,((Resumen!$Q$1-1)*12)))," ") -> 270.736 | H5: =IF(H$1<=Resumen!$P$1,IF(OFFSET(Canarias_datos!T30,0,((Resumen!$Q$1-1)*12))=0," ",OFFSET(Canarias_datos!T30,0,((Resumen!$Q$1-1)*12)))," ") -> 275.377 | I5: =IF(I$1<=Resumen!$P$1,IF(OFFSET(Canarias_datos!U30,0,((Resumen!$Q$1-1)*12))=0," ",OFFSET(Canarias_datos!U30,0,((Resumen!$Q$1-1)*12)))," ") -> 287.557 | J5: =IF(J$1<=Resumen!$P$1,IF(OFFSET(Canarias_datos!V30,0,((Resumen!$Q$1-1)*12))=0," ",OFFSET(Canarias_datos!V30,0,((Resumen!$Q$1-1)*12)))," ") -> 266.979 | K5: =IF(K$1<=Resumen!$P$1,IF(OFFSET(Canarias_datos!W30,0,((Resumen!$Q$1-1)*12))=0," ",OFFSET(Canarias_datos!W30,0,((Resumen!$Q$1-1)*12)))," ") ->  | L5: =IF(L$1<=Resumen!$P$1,IF(OFFSET(Canarias_datos!X30,0,((Resumen!$Q$1-1)*12))=0," ",OFFSET(Canarias_datos!X30,0,((Resumen!$Q$1-1)*12)))," ") ->  | M5: =IF(M$1<=Resumen!$P$1,IF(OFFSET(Canarias_datos!Y30,0,((Resumen!$Q$1-1)*12))=0," ",OFFSET(Canarias_datos!Y30,0,((Resumen!$Q$1-1)*12)))," ") ->  | N5: =IF(SUM(B5:M5)=0," ",SUM(B5:M5)) -> 2401.323
A6: Nuclear | B6: =IF(B$1<=Resumen!$P$1,IF(OFFSET(Canarias_datos!N31,0,((Resumen!$Q$1-1)*12))=0," ",OFFSET(Canarias_datos!N31,0,((Resumen!$Q$1-1)*12)))," ") -> - | C6: =IF(C$1<=Resumen!$P$1,IF(OFFSET(Canarias_datos!O31,0,((Resumen!$Q$1-1)*12))=0," ",OFFSET(Canarias_datos!O31,0,((Resumen!$Q$1-1)*12)))," ") -> - | D6: =IF(D$1<=Resumen!$P$1,IF(OFFSET(Canarias_datos!P31,0,((Resumen!$Q$1-1)*12))=0," ",OFFSET(Canarias_datos!P31,0,((Resumen!$Q$1-1)*12)))," ") -> - | E6: =IF(E$1<=Resumen!$P$1,IF(OFFSET(Canarias_datos!Q31,0,((Resumen!$Q$1-1)*12))=0," ",OFFSET(Canarias_datos!Q31,0,((Resumen!$Q$1-1)*12)))," ") -> - | F6: =IF(F$1<=Resumen!$P$1,IF(OFFSET(Canarias_datos!R31,0,((Resumen!$Q$1-1)*12))=0," ",OFFSET(Canarias_datos!R31,0,((Resumen!$Q$1-1)*12)))," ") -> - | G6: =IF(G$1<=Resumen!$P$1,IF(OFFSET(Canarias_datos!S31,0,((Resumen!$Q$1-1)*12))=0," ",OFFSET(Canarias_datos!S31,0,((Resumen!$Q$1-1)*12)))," ") -> - | H6: =IF(H$1<=Resumen!$P$1,IF(OFFSET(Canarias_datos!T31,0,((Resumen!$Q$1-1)*12))=0," ",OFFSET(Canarias_datos!T31,0,((Resumen!$Q$1-1)*12)))," ") -> - | I6: =IF(I$1<=Resumen!$P$1,IF(OFFSET(Canarias_datos!U31,0,((Resumen!$Q$1-1)*12))=0," ",OFFSET(Canarias_datos!U31,0,((Resumen!$Q$1-1)*12)))," ") -> - | J6: =IF(J$1<=Resumen!$P$1,IF(OFFSET(Canarias_datos!V31,0,((Resumen!$Q$1-1)*12))=0," ",OFFSET(Canarias_datos!V31,0,((Resumen!$Q$1-1)*12)))," ") -> - | K6: =IF(K$1<=Resumen!$P$1,IF(OFFSET(Canarias_datos!W31,0,((Resumen!$Q$1-1)*12))=0," ",OFFSET(Canarias_datos!W31,0,((Resumen!$Q$1-1)*12)))," ") ->  | L6: =IF(L$1<=Resumen!$P$1,IF(OFFSET(Canarias_datos!X31,0,((Resumen!$Q$1-1)*12))=0," ",OFFSET(Canarias_datos!X31,0,((Resumen!$Q$1-1)*12)))," ") ->  | M6: =IF(M$1<=Resumen!$P$1,IF(OFFSET(Canarias_datos!Y31,0,((Resumen!$Q$1-1)*12))=0," ",OFFSET(Canarias_datos!Y31,0,((Resumen!$Q$1-1)*12)))," ") ->  | N6: =IF(SUM(B6:M6)=0," ",SUM(B6:M6)) -> 
A7: Carbón | B7: =IF(B$1<=Resumen!$P$1,IF(OFFSET(Canarias_datos!N32,0,((Resumen!$Q$1-1)*12))=0," ",OFFSET(Canarias_datos!N32,0,((Resumen!$Q$1-1)*12)))," ") ->  | C7: =IF(C$1<=Resumen!$P$1,IF(OFFSET(Canarias_datos!O32,0,((Resumen!$Q$1-1)*12))=0," ",OFFSET(Canarias_datos!O32,0,((Resumen!$Q$1-1)*12)))," ") ->  | D7: =IF(D$1<=Resumen!$P$1,IF(OFFSET(Canarias_datos!P32,0,((Resumen!$Q$1-1)*12))=0," ",OFFSET(Canarias_datos!P32,0,((Resumen!$Q$1-1)*12)))," ") ->  | E7: =IF(E$1<=Resumen!$P$1,IF(OFFSET(Canarias_datos!Q32,0,((Resumen!$Q$1-1)*12))=0," ",OFFSET(Canarias_datos!Q32,0,((Resumen!$Q$1-1)*12)))," ") ->  | F7: =IF(F$1<=Resumen!$P$1,IF(OFFSET(Canarias_datos!R32,0,((Resumen!$Q$1-1)*12))=0," ",OFFSET(Canarias_datos!R32,0,((Resumen!$Q$1-1)*12)))," ") ->  | G7: =IF(G$1<=Resumen!$P$1,IF(OFFSET(Canarias_datos!S32,0,((Resumen!$Q$1-1)*12))=0," ",OFFSET(Canarias_datos!S32,0,((Resumen!$Q$1-1)*12)))," ") ->  | H7: =IF(H$1<=Resumen!$P$1,IF(OFFSET(Canarias_datos!T32,0,((Resumen!$Q$1-1)*12))=0," ",OFFSET(Canarias_datos!T32,0,((Resumen!$Q$1-1)*12)))," ") ->  | I7: =IF(I$1<=Resumen!$P$1,IF(OFFSET(Canarias_datos!U32,0,((Resumen!$Q$1-1)*12))=0," ",OFFSET(Canarias_datos!U32,0,((Resumen!$Q$1-1)*12)))," ") ->  | J7: =IF(J$1<=Resumen!$P$1,IF(OFFSET(Canarias_datos!V32,0,((Resumen!$Q$1-1)*12))=0," ",OFFSET(Canarias_datos!V32,0,((Resumen!$Q$1-1)*12)))," ") ->  | K7: =IF(K$1<=Resumen!$P$1,IF(OFFSET(Canarias_datos!W32,0,((Resumen!$Q$1-1)*12))=0," ",OFFSET(Canarias_datos!W32,0,((Resumen!$Q$1-1)*12)))," ") ->  | L7: =IF(L$1<=Resumen!$P$1,IF(OFFSET(Canarias_datos!X32,0,((Resumen!$Q$1-1)*12))=0," ",OFFSET(Canarias_datos!X32,0,((Resumen!$Q$1-1)*12)))," ") ->  | M7: =IF(M$1<=Resumen!$P$1,IF(OFFSET(Canarias_datos!Y32,0,((Resumen!$Q$1-1)*12))=0," ",OFFSET(Canarias_datos!Y32,0,((Resumen!$Q$1-1)*12)))," ") -> 
A8: Fuel-Gas | B8: =IF(B$1<=Resumen!$P$1,IF(OFFSET(Canarias_datos!N33,0,((Resumen!$Q$1-1)*12))=0," ",OFFSET(Canarias_datos!N33,0,((Resumen!$Q$1-1)*12)))," ") -> 430226 | C8: =IF(C$1<=Resumen!$P$1,IF(OFFSET(Canarias_datos!O33,0,((Resumen!$Q$1-1)*12))=0," ",OFFSET(Canarias_datos!O33,0,((Resumen!$Q$1-1)*12)))," ") -> 386991 | D8: =IF(D$1<=Resumen!$P$1,IF(OFFSET(Canarias_datos!P33,0,((Resumen!$Q$1-1)*12))=0," ",OFFSET(Canarias_datos!P33,0,((Resumen!$Q$1-1)*12)))," ") -> 423629 | E8: =IF(E$1<=Resumen!$P$1,IF(OFFSET(Canarias_datos!Q33,0,((Resumen!$Q$1-1)*12))=0," ",OFFSET(Canarias_datos!Q33,0,((Resumen!$Q$1-1)*12)))," ") -> 441602 | F8: =IF(F$1<=Resumen!$P$1,IF(OFFSET(Canarias_datos!R33,0,((Resumen!$Q$1-1)*12))=0," ",OFFSET(Canarias_datos!R33,0,((Resumen!$Q$1-1)*12)))," ") -> 422771 | G8: =IF(G$1<=Resumen!$P$1,IF(OFFSET(Canarias_datos!S33,0,((Resumen!$Q$1-1)*12))=0," ",OFFSET(Canarias_datos!S33,0,((Resumen!$Q$1-1)*12)))," ") -> 446481 | H8: =IF(H$1<=Resumen!$P$1,IF(OFFSET(Canarias_datos!T33,0,((Resumen!$Q$1-1)*12))=0," ",OFFSET(Canarias_datos!T33,0,((Resumen!$Q$1-1)*12)))," ") -> 457451 | I8: =IF(I$1<=Resumen!$P$1,IF(OFFSET(Canarias_datos!U33,0,((Resumen!$Q$1-1)*12))=0," ",OFFSET(Canarias_datos!U33,0,((Resumen!$Q$1-1)*12)))," ") -> 470142 | J8: =IF(J$1<=Resumen!$P$1,IF(OFFSET(Canarias_datos!V33,0,((Resumen!$Q$1-1)*12))=0," ",OFFSET(Canarias_datos!V33,0,((Resumen!$Q$1-1)*12)))," ") -> 444238 | K8: =IF(K$1<=Resumen!$P$1,IF(OFFSET(Canarias_datos!W33,0,((Resumen!$Q$1-1)*12))=0," ",OFFSET(Canarias_datos!W33,0,((Resumen!$Q$1-1)*12)))," ") ->  | L8: =IF(L$1<=Resumen!$P$1,IF(OFFSET(Canarias_datos!X33,0,((Resumen!$Q$1-1)*12))=0," ",OFFSET(Canarias_datos!X33,0,((Resumen!$Q$1-1)*12)))," ") ->  | M8: =IF(M$1<=Resumen!$P$1,IF(OFFSET(Canarias_datos!Y33,0,((Resumen!$Q$1-1)*12))=0," ",OFFSET(Canarias_datos!Y33,0,((Resumen!$Q$1-1)*12)))," ") ->  | N8: 3923531
A9: Ciclo combinado | B9: =IF(B$1<=Resumen!$P$1,IF(OFFSET(Canarias_datos!N34,0,((Resumen!$Q$1-1)*12))=0," ",OFFSET(Canarias_datos!N34,0,((Resumen!$Q$1-1)*12)))," ") -> 282320 | C9: =IF(C$1<=Resumen!$P$1,IF(OFFSET(Canarias_datos!O34,0,((Resumen!$Q$1-1)*12))=0," ",OFFSET(Canarias_datos!O34,0,((Resumen!$Q$1-1)*12)))," ") -> 235324 | D9: =IF(D$1<=Resumen!$P$1,IF(OFFSET(Canarias_datos!P34,0,((Resumen!$Q$1-1)*12))=0," ",OFFSET(Canarias_datos!P34,0,((Resumen!$Q$1-1)*12)))," ") -> 250923 | E9: =IF(E$1<=Resumen!$P$1,IF(OFFSET(Canarias_datos!Q34,0,((Resumen!$Q$1-1)*12))=0," ",OFFSET(Canarias_datos!Q34,0,((Resumen!$Q$1-1)*12)))," ") -> 219691 | F9: =IF(F$1<=Resumen!$P$1,IF(OFFSET(Canarias_datos!R34,0,((Resumen!$Q$1-1)*12))=0," ",OFFSET(Canarias_datos!R34,0,((Resumen!$Q$1-1)*12)))," ") -> 255537 | G9: =IF(G$1<=Resumen!$P$1,IF(OFFSET(Canarias_datos!S34,0,((Resumen!$Q$1-1)*12))=0," ",OFFSET(Canarias_datos!S34,0,((Resumen!$Q$1-1)*12)))," ") -> 214874 | H9: =IF(H$1<=Resumen!$P$1,IF(OFFSET(Canarias_datos!T34,0,((Resumen!$Q$1-1)*12))=0," ",OFFSET(Canarias_datos!T34,0,((Resumen!$Q$1-1)*12)))," ") -> 231392 | I9: =IF(I$1<=Resumen!$P$1,IF(OFFSET(Canarias_datos!U34,0,((Resumen!$Q$1-1)*12))=0," ",OFFSET(Canarias_datos!U34,0,((Resumen!$Q$1-1)*12)))," ") -> 261576 | J9: =IF(J$1<=Resumen!$P$1,IF(OFFSET(Canarias_datos!V34,0,((Resumen!$Q$1-1)*12))=0," ",OFFSET(Canarias_datos!V34,0,((Resumen!$Q$1-1)*12)))," ") -> 236370 | K9: =IF(K$1<=Resumen!$P$1,IF(OFFSET(Canarias_datos!W34,0,((Resumen!$Q$1-1)*12))=0," ",OFFSET(Canarias_datos!W34,0,((Resumen!$Q$1-1)*12)))," ") ->  | L9: =IF(L$1<=Resumen!$P$1,IF(OFFSET(Canarias_datos!X34,0,((Resumen!$Q$1-1)*12))=0," ",OFFSET(Canarias_datos!X34,0,((Resumen!$Q$1-1)*12)))," ") ->  | M9: =IF(M$1<=Resumen!$P$1,IF(OFFSET(Canarias_datos!Y34,0,((Resumen!$Q$1-1)*12))=0," ",OFFSET(Canarias_datos!Y34,0,((Resumen!$Q$1-1)*12)))," ") ->  | N9: 2188007
A10: Hidroeólica | B10: =IF(B$1<=Resumen!$P$1,IF(OFFSET(Canarias_datos!N35,0,((Resumen!$Q$1-1)*12))=0," ",OFFSET(Canarias_datos!N35,0,((Resumen!$Q$1-1)*12)))," ") -> 1084.578 | C10: =IF(C$1<=Resumen!$P$1,IF(OFFSET(Canarias_datos!O35,0,((Resumen!$Q$1-1)*12))=0," ",OFFSET(Canarias_datos!O35,0,((Resumen!$Q$1-1)*12)))," ") -> 1447.992 | D10: =IF(D$1<=Resumen!$P$1,IF(OFFSET(Canarias_datos!P35,0,((Resumen!$Q$1-1)*12))=0," ",OFFSET(Canarias_datos!P35,0,((Resumen!$Q$1-1)*12)))," ") -> 2129.755 | E10: =IF(E$1<=Resumen!$P$1,IF(OFFSET(Canarias_datos!Q35,0,((Resumen!$Q$1-1)*12))=0," ",OFFSET(Canarias_datos!Q35,0,((Resumen!$Q$1-1)*12)))," ") -> 994.516 | F10: =IF(F$1<=Resumen!$P$1,IF(OFFSET(Canarias_datos!R35,0,((Resumen!$Q$1-1)*12))=0," ",OFFSET(Canarias_datos!R35,0,((Resumen!$Q$1-1)*12)))," ") -> 1495.018 | G10: =IF(G$1<=Resumen!$P$1,IF(OFFSET(Canarias_datos!S35,0,((Resumen!$Q$1-1)*12))=0," ",OFFSET(Canarias_datos!S35,0,((Resumen!$Q$1-1)*12)))," ") -> 2229.195 | H10: =IF(H$1<=Resumen!$P$1,IF(OFFSET(Canarias_datos!T35,0,((Resumen!$Q$1-1)*12))=0," ",OFFSET(Canarias_datos!T35,0,((Resumen!$Q$1-1)*12)))," ") -> 3114.313 | I10: =IF(I$1<=Resumen!$P$1,IF(OFFSET(Canarias_datos!U35,0,((Resumen!$Q$1-1)*12))=0," ",OFFSET(Canarias_datos!U35,0,((Resumen!$Q$1-1)*12)))," ") -> 2458.338 | J10: =IF(J$1<=Resumen!$P$1,IF(OFFSET(Canarias_datos!V35,0,((Resumen!$Q$1-1)*12))=0," ",OFFSET(Canarias_datos!V35,0,((Resumen!$Q$1-1)*12)))," ") -> 2340.878 | K10: =IF(K$1<=Resumen!$P$1,IF(OFFSET(Canarias_datos!W35,0,((Resumen!$Q$1-1)*12))=0," ",OFFSET(Canarias_datos!W35,0,((Resumen!$Q$1-1)*12)))," ") ->  | L10: =IF(L$1<=Resumen!$P$1,IF(OFFSET(Canarias_datos!X35,0,((Resumen!$Q$1-1)*12))=0," ",OFFSET(Canarias_datos!X35,0,((Resumen!$Q$1-1)*12)))," ") ->  | M10: =IF(M$1<=Resumen!$P$1,IF(OFFSET(Canarias_datos!Y35,0,((Resumen!$Q$1-1)*12))=0," ",OFFSET(Canarias_datos!Y35,0,((Resumen!$Q$1-1)*12)))," ") ->  | N10: 17294.583
A11: Eólica | B11: =IF(B$1<=Resumen!$P$1,IF(OFFSET(Canarias_datos!N36,0,((Resumen!$Q$1-1)*12))=0," ",OFFSET(Canarias_datos!N36,0,((Resumen!$Q$1-1)*12)))," ") -> 15115.34 | C11: =IF(C$1<=Resumen!$P$1,IF(OFFSET(Canarias_datos!O36,0,((Resumen!$Q$1-1)*12))=0," ",OFFSET(Canarias_datos!O36,0,((Resumen!$Q$1-1)*12)))," ") -> 22686 | D11: =IF(D$1<=Resumen!$P$1,IF(OFFSET(Canarias_datos!P36,0,((Resumen!$Q$1-1)*12))=0," ",OFFSET(Canarias_datos!P36,0,((Resumen!$Q$1-1)*12)))," ") -> 36311.709 | E11: =IF(E$1<=Resumen!$P$1,IF(OFFSET(Canarias_datos!Q36,0,((Resumen!$Q$1-1)*12))=0," ",OFFSET(Canarias_datos!Q36,0,((Resumen!$Q$1-1)*12)))," ") -> 18605.242 | F11: =IF(F$1<=Resumen!$P$1,IF(OFFSET(Canarias_datos!R36,0,((Resumen!$Q$1-1)*12))=0," ",OFFSET(Canarias_datos!R36,0,((Resumen!$Q$1-1)*12)))," ") -> 25482.29 | G11: =IF(G$1<=Resumen!$P$1,IF(OFFSET(Canarias_datos!S36,0,((Resumen!$Q$1-1)*12))=0," ",OFFSET(Canarias_datos!S36,0,((Resumen!$Q$1-1)*12)))," ") -> 40128.386 | H11: =IF(H$1<=Resumen!$P$1,IF(OFFSET(Canarias_datos!T36,0,((Resumen!$Q$1-1)*12))=0," ",OFFSET(Canarias_datos!T36,0,((Resumen!$Q$1-1)*12)))," ") -> 50388.835 | I11: =IF(I$1<=Resumen!$P$1,IF(OFFSET(Canarias_datos!U36,0,((Resumen!$Q$1-1)*12))=0," ",OFFSET(Canarias_datos!U36,0,((Resumen!$Q$1-1)*12)))," ") -> 47397.181 | J11: =IF(J$1<=Resumen!$P$1,IF(OFFSET(Canarias_datos!V36,0,((Resumen!$Q$1-1)*12))=0," ",OFFSET(Canarias_datos!V36,0,((Resumen!$Q$1-1)*12)))," ") -> 54583.527 | K11: =IF(K$1<=Resumen!$P$1,IF(OFFSET(Canarias_datos!W36,0,((Resumen!$Q$1-1)*12))=0," ",OFFSET(Canarias_datos!W36,0,((Resumen!$Q$1-1)*12)))," ") ->  | L11: =IF(L$1<=Resumen!$P$1,IF(OFFSET(Canarias_datos!X36,0,((Resumen!$Q$1-1)*12))=0," ",OFFSET(Canarias_datos!X36,0,((Resumen!$Q$1-1)*12)))," ") ->  | M11: =IF(M$1<=Resumen!$P$1,IF(OFFSET(Canarias_datos!Y36,0,((Resumen!$Q$1-1)*12))=0," ",OFFSET(Canarias_datos!Y36,0,((Resumen!$Q$1-1)*12)))," ") ->  | N11: 310698.51
A12: Solar fotovoltaico | B12: =IF(B$1<=Resumen!$P$1,IF(OFFSET(Canarias_datos!N37,0,((Resumen!$Q$1-1)*12))=0," ",OFFSET(Canarias_datos!N37,0,((Resumen!$Q$1-1)*12)))," ") -> 18014 | C12: =IF(C$1<=Resumen!$P$1,IF(OFFSET(Canarias_datos!O37,0,((Resumen!$Q$1-1)*12))=0," ",OFFSET(Canarias_datos!O37,0,((Resumen!$Q$1-1)*12)))," ") -> 18975.785 | D12: =IF(D$1<=Resumen!$P$1,IF(OFFSET(Canarias_datos!P37,0,((Resumen!$Q$1-1)*12))=0," ",OFFSET(Canarias_datos!P37,0,((Resumen!$Q$1-1)*12)))," ") -> 25344.279 | E12: =IF(E$1<=Resumen!$P$1,IF(OFFSET(Canarias_datos!Q37,0,((Resumen!$Q$1-1)*12))=0," ",OFFSET(Canarias_datos!Q37,0,((Resumen!$Q$1-1)*12)))," ") -> 25781.603 | F12: =IF(F$1<=Resumen!$P$1,IF(OFFSET(Canarias_datos!R37,0,((Resumen!$Q$1-1)*12))=0," ",OFFSET(Canarias_datos!R37,0,((Resumen!$Q$1-1)*12)))," ") -> 25210 | G12: =IF(G$1<=Resumen!$P$1,IF(OFFSET(Canarias_datos!S37,0,((Resumen!$Q$1-1)*12))=0," ",OFFSET(Canarias_datos!S37,0,((Resumen!$Q$1-1)*12)))," ") -> 27569.712 | H12: =IF(H$1<=Resumen!$P$1,IF(OFFSET(Canarias_datos!T37,0,((Resumen!$Q$1-1)*12))=0," ",OFFSET(Canarias_datos!T37,0,((Resumen!$Q$1-1)*12)))," ") -> 29076.317 | I12: =IF(I$1<=Resumen!$P$1,IF(OFFSET(Canarias_datos!U37,0,((Resumen!$Q$1-1)*12))=0," ",OFFSET(Canarias_datos!U37,0,((Resumen!$Q$1-1)*12)))," ") -> 26877.876 | J12: =IF(J$1<=Resumen!$P$1,IF(OFFSET(Canarias_datos!V37,0,((Resumen!$Q$1-1)*12))=0," ",OFFSET(Canarias_datos!V37,0,((Resumen!$Q$1-1)*12)))," ") -> 22927.019 | K12: =IF(K$1<=Resumen!$P$1,IF(OFFSET(Canarias_datos!W37,0,((Resumen!$Q$1-1)*12))=0," ",OFFSET(Canarias_datos!W37,0,((Resumen!$Q$1-1)*12)))," ") ->  | L12: =IF(L$1<=Resumen!$P$1,IF(OFFSET(Canarias_datos!X37,0,((Resumen!$Q$1-1)*12))=0," ",OFFSET(Canarias_datos!X37,0,((Resumen!$Q$1-1)*12)))," ") ->  | M12: =IF(M$1<=Resumen!$P$1,IF(OFFSET(Canarias_datos!Y37,0,((Resumen!$Q$1-1)*12))=0," ",OFFSET(Canarias_datos!Y37,0,((Resumen!$Q$1-1)*12)))," ") ->  | N12: 219776.591
A13: Solar térmica | B13: =IF(B$1<=Resumen!$P$1,IF(OFFSET(Canarias_datos!N38,0,((Resumen!$Q$1-1)*12))=0," ",OFFSET(Canarias_datos!N38,0,((Resumen!$Q$1-1)*12)))," ") ->  | C13: =IF(C$1<=Resumen!$P$1,IF(OFFSET(Canarias_datos!O38,0,((Resumen!$Q$1-1)*12))=0," ",OFFSET(Canarias_datos!O38,0,((Resumen!$Q$1-1)*12)))," ") ->  | D13: =IF(D$1<=Resumen!$P$1,IF(OFFSET(Canarias_datos!P38,0,((Resumen!$Q$1-1)*12))=0," ",OFFSET(Canarias_datos!P38,0,((Resumen!$Q$1-1)*12)))," ") ->  | E13: =IF(E$1<=Resumen!$P$1,IF(OFFSET(Canarias_datos!Q38,0,((Resumen!$Q$1-1)*12))=0," ",OFFSET(Canarias_datos!Q38,0,((Resumen!$Q$1-1)*12)))," ") ->  | F13: =IF(F$1<=Resumen!$P$1,IF(OFFSET(Canarias_datos!R38,0,((Resumen!$Q$1-1)*12))=0," ",OFFSET(Canarias_datos!R38,0,((Resumen!$Q$1-1)*12)))," ") ->  | G13: =IF(G$1<=Resumen!$P$1,IF(OFFSET(Canarias_datos!S38,0,((Resumen!$Q$1-1)*12))=0," ",OFFSET(Canarias_datos!S38,0,((Resumen!$Q$1-1)*12)))," ") ->  | H13: =IF(H$1<=Resumen!$P$1,IF(OFFSET(Canarias_datos!T38,0,((Resumen!$Q$1-1)*12))=0," ",OFFSET(Canarias_datos!T38,0,((Resumen!$Q$1-1)*12)))," ") ->  | I13: =IF(I$1<=Resumen!$P$1,IF(OFFSET(Canarias_datos!U38,0,((Resumen!$Q$1-1)*12))=0," ",OFFSET(Canarias_datos!U38,0,((Resumen!$Q$1-1)*12)))," ") ->  | J13: =IF(J$1<=Resumen!$P$1,IF(OFFSET(Canarias_datos!V38,0,((Resumen!$Q$1-1)*12))=0," ",OFFSET(Canarias_datos!V38,0,((Resumen!$Q$1-1)*12)))," ") ->  | K13: =IF(K$1<=Resumen!$P$1,IF(OFFSET(Canarias_datos!W38,0,((Resumen!$Q$1-1)*12))=0," ",OFFSET(Canarias_datos!W38,0,((Resumen!$Q$1-1)*12)))," ") ->  | L13: =IF(L$1<=Resumen!$P$1,IF(OFFSET(Canarias_datos!X38,0,((Resumen!$Q$1-1)*12))=0," ",OFFSET(Canarias_datos!X38,0,((Resumen!$Q$1-1)*12)))," ") ->  | M13: =IF(M$1<=Resumen!$P$1,IF(OFFSET(Canarias_datos!Y38,0,((Resumen!$Q$1-1)*12))=0," ",OFFSET(Canarias_datos!Y38,0,((Resumen!$Q$1-1)*12)))," ") -> 
A14: Otras renovables | B14: =IF(B$1<=Resumen!$P$1,IF(OFFSET(Canarias_datos!N39,0,((Resumen!$Q$1-1)*12))=0," ",OFFSET(Canarias_datos!N39,0,((Resumen!$Q$1-1)*12)))," ") -> 811 | C14: =IF(C$1<=Resumen!$P$1,IF(OFFSET(Canarias_datos!O39,0,((Resumen!$Q$1-1)*12))=0," ",OFFSET(Canarias_datos!O39,0,((Resumen!$Q$1-1)*12)))," ") -> 720.25 | D14: =IF(D$1<=Resumen!$P$1,IF(OFFSET(Canarias_datos!P39,0,((Resumen!$Q$1-1)*12))=0," ",OFFSET(Canarias_datos!P39,0,((Resumen!$Q$1-1)*12)))," ") -> 830.736 | E14: =IF(E$1<=Resumen!$P$1,IF(OFFSET(Canarias_datos!Q39,0,((Resumen!$Q$1-1)*12))=0," ",OFFSET(Canarias_datos!Q39,0,((Resumen!$Q$1-1)*12)))," ") -> 835.72 | F14: =IF(F$1<=Resumen!$P$1,IF(OFFSET(Canarias_datos!R39,0,((Resumen!$Q$1-1)*12))=0," ",OFFSET(Canarias_datos!R39,0,((Resumen!$Q$1-1)*12)))," ") -> 813 | G14: =IF(G$1<=Resumen!$P$1,IF(OFFSET(Canarias_datos!S39,0,((Resumen!$Q$1-1)*12))=0," ",OFFSET(Canarias_datos!S39,0,((Resumen!$Q$1-1)*12)))," ") -> 823.178 | H14: =IF(H$1<=Resumen!$P$1,IF(OFFSET(Canarias_datos!T39,0,((Resumen!$Q$1-1)*12))=0," ",OFFSET(Canarias_datos!T39,0,((Resumen!$Q$1-1)*12)))," ") -> 830.919 | I14: =IF(I$1<=Resumen!$P$1,IF(OFFSET(Canarias_datos!U39,0,((Resumen!$Q$1-1)*12))=0," ",OFFSET(Canarias_datos!U39,0,((Resumen!$Q$1-1)*12)))," ") -> 681.726 | J14: =IF(J$1<=Resumen!$P$1,IF(OFFSET(Canarias_datos!V39,0,((Resumen!$Q$1-1)*12))=0," ",OFFSET(Canarias_datos!V39,0,((Resumen!$Q$1-1)*12)))," ") -> 802.313 | K14: =IF(K$1<=Resumen!$P$1,IF(OFFSET(Canarias_datos!W39,0,((Resumen!$Q$1-1)*12))=0," ",OFFSET(Canarias_datos!W39,0,((Resumen!$Q$1-1)*12)))," ") ->  | L14: =IF(L$1<=Resumen!$P$1,IF(OFFSET(Canarias_datos!X39,0,((Resumen!$Q$1-1)*12))=0," ",OFFSET(Canarias_datos!X39,0,((Resumen!$Q$1-1)*12)))," ") ->  | M14: =IF(M$1<=Resumen!$P$1,IF(OFFSET(Canarias_datos!Y39,0,((Resumen!$Q$1-1)*12))=0," ",OFFSET(Canarias_datos!Y39,0,((Resumen!$Q$1-1)*12)))," ") ->  | N14: 7148.842
A15: Cogeneración | B15: =IF(B$1<=Resumen!$P$1,IF(OFFSET(Canarias_datos!N40,0,((Resumen!$Q$1-1)*12))=0," ",OFFSET(Canarias_datos!N40,0,((Resumen!$Q$1-1)*12)))," ") ->  | C15: =IF(C$1<=Resumen!$P$1,IF(OFFSET(Canarias_datos!O40,0,((Resumen!$Q$1-1)*12))=0," ",OFFSET(Canarias_datos!O40,0,((Resumen!$Q$1-1)*12)))," ") ->  | D15: =IF(D$1<=Resumen!$P$1,IF(OFFSET(Canarias_datos!P40,0,((Resumen!$Q$1-1)*12))=0," ",OFFSET(Canarias_datos!P40,0,((Resumen!$Q$1-1)*12)))," ") ->  | E15: =IF(E$1<=Resumen!$P$1,IF(OFFSET(Canarias_datos!Q40,0,((Resumen!$Q$1-1)*12))=0," ",OFFSET(Canarias_datos!Q40,0,((Resumen!$Q$1-1)*12)))," ") ->  | F15: =IF(F$1<=Resumen!$P$1,IF(OFFSET(Canarias_datos!R40,0,((Resumen!$Q$1-1)*12))=0," ",OFFSET(Canarias_datos!R40,0,((Resumen!$Q$1-1)*12)))," ") ->  | G15: =IF(G$1<=Resumen!$P$1,IF(OFFSET(Canarias_datos!S40,0,((Resumen!$Q$1-1)*12))=0," ",OFFSET(Canarias_datos!S40,0,((Resumen!$Q$1-1)*12)))," ") ->  | H15: =IF(H$1<=Resumen!$P$1,IF(OFFSET(Canarias_datos!T40,0,((Resumen!$Q$1-1)*12))=0," ",OFFSET(Canarias_datos!T40,0,((Resumen!$Q$1-1)*12)))," ") ->  | I15: =IF(I$1<=Resumen!$P$1,IF(OFFSET(Canarias_datos!U40,0,((Resumen!$Q$1-1)*12))=0," ",OFFSET(Canarias_datos!U40,0,((Resumen!$Q$1-1)*12)))," ") ->  | J15: =IF(J$1<=Resumen!$P$1,IF(OFFSET(Canarias_datos!V40,0,((Resumen!$Q$1-1)*12))=0," ",OFFSET(Canarias_datos!V40,0,((Resumen!$Q$1-1)*12)))," ") ->  | K15: =IF(K$1<=Resumen!$P$1,IF(OFFSET(Canarias_datos!W40,0,((Resumen!$Q$1-1)*12))=0," ",OFFSET(Canarias_datos!W40,0,((Resumen!$Q$1-1)*12)))," ") ->  | L15: =IF(L$1<=Resumen!$P$1,IF(OFFSET(Canarias_datos!X40,0,((Resumen!$Q$1-1)*12))=0," ",OFFSET(Canarias_datos!X40,0,((Resumen!$Q$1-1)*12)))," ") ->  | M15: =IF(M$1<=Resumen!$P$1,IF(OFFSET(Canarias_datos!Y40,0,((Resumen!$Q$1-1)*12))=0," ",OFFSET(Canarias_datos!Y40,0,((Resumen!$Q$1-1)*12)))," ") -> 
A16: Residuos | B16: =IF(B$1<=Resumen!$P$1,IF(OFFSET(Canarias_datos!N41,0,((Resumen!$Q$1-1)*12))=0," ",OFFSET(Canarias_datos!N41,0,((Resumen!$Q$1-1)*12)))," ") ->  | C16: =IF(C$1<=Resumen!$P$1,IF(OFFSET(Canarias_datos!O41,0,((Resumen!$Q$1-1)*12))=0," ",OFFSET(Canarias_datos!O41,0,((Resumen!$Q$1-1)*12)))," ") ->  | D16: =IF(D$1<=Resumen!$P$1,IF(OFFSET(Canarias_datos!P41,0,((Resumen!$Q$1-1)*12))=0," ",OFFSET(Canarias_datos!P41,0,((Resumen!$Q$1-1)*12)))," ") ->  | E16: =IF(E$1<=Resumen!$P$1,IF(OFFSET(Canarias_datos!Q41,0,((Resumen!$Q$1-1)*12))=0," ",OFFSET(Canarias_datos!Q41,0,((Resumen!$Q$1-1)*12)))," ") ->  | F16: =IF(F$1<=Resumen!$P$1,IF(OFFSET(Canarias_datos!R41,0,((Resumen!$Q$1-1)*12))=0," ",OFFSET(Canarias_datos!R41,0,((Resumen!$Q$1-1)*12)))," ") ->  | G16: =IF(G$1<=Resumen!$P$1,IF(OFFSET(Canarias_datos!S41,0,((Resumen!$Q$1-1)*12))=0," ",OFFSET(Canarias_datos!S41,0,((Resumen!$Q$1-1)*12)))," ") ->  | H16: =IF(H$1<=Resumen!$P$1,IF(OFFSET(Canarias_datos!T41,0,((Resumen!$Q$1-1)*12))=0," ",OFFSET(Canarias_datos!T41,0,((Resumen!$Q$1-1)*12)))," ") ->  | I16: =IF(I$1<=Resumen!$P$1,IF(OFFSET(Canarias_datos!U41,0,((Resumen!$Q$1-1)*12))=0," ",OFFSET(Canarias_datos!U41,0,((Resumen!$Q$1-1)*12)))," ") ->  | J16: =IF(J$1<=Resumen!$P$1,IF(OFFSET(Canarias_datos!V41,0,((Resumen!$Q$1-1)*12))=0," ",OFFSET(Canarias_datos!V41,0,((Resumen!$Q$1-1)*12)))," ") ->  | K16: =IF(K$1<=Resumen!$P$1,IF(OFFSET(Canarias_datos!W41,0,((Resumen!$Q$1-1)*12))=0," ",OFFSET(Canarias_datos!W41,0,((Resumen!$Q$1-1)*12)))," ") ->  | L16: =IF(L$1<=Resumen!$P$1,IF(OFFSET(Canarias_datos!X41,0,((Resumen!$Q$1-1)*12))=0," ",OFFSET(Canarias_datos!X41,0,((Resumen!$Q$1-1)*12)))," ") ->  | M16: =IF(M$1<=Resumen!$P$1,IF(OFFSET(Canarias_datos!Y41,0,((Resumen!$Q$1-1)*12))=0," ",OFFSET(Canarias_datos!Y41,0,((Resumen!$Q$1-1)*12)))," ") -> 
A17: Generación neta | B17: =IF(B$1<=Resumen!$P$1,IF(OFFSET(Canarias_datos!N42,0,((Resumen!$Q$1-1)*12))=0," ",OFFSET(Canarias_datos!N42,0,((Resumen!$Q$1-1)*12)))," ") -> 747835.241 | C17: =IF(C$1<=Resumen!$P$1,IF(OFFSET(Canarias_datos!O42,0,((Resumen!$Q$1-1)*12))=0," ",OFFSET(Canarias_datos!O42,0,((Resumen!$Q$1-1)*12)))," ") -> 666383.712 | D17: =IF(D$1<=Resumen!$P$1,IF(OFFSET(Canarias_datos!P42,0,((Resumen!$Q$1-1)*12))=0," ",OFFSET(Canarias_datos!P42,0,((Resumen!$Q$1-1)*12)))," ") -> 739433.544 | E17: =IF(E$1<=Resumen!$P$1,IF(OFFSET(Canarias_datos!Q42,0,((Resumen!$Q$1-1)*12))=0," ",OFFSET(Canarias_datos!Q42,0,((Resumen!$Q$1-1)*12)))," ") -> 707771.666 | F17: =IF(F$1<=Resumen!$P$1,IF(OFFSET(Canarias_datos!R42,0,((Resumen!$Q$1-1)*12))=0," ",OFFSET(Canarias_datos!R42,0,((Resumen!$Q$1-1)*12)))," ") -> 731579.324 | G17: =IF(G$1<=Resumen!$P$1,IF(OFFSET(Canarias_datos!S42,0,((Resumen!$Q$1-1)*12))=0," ",OFFSET(Canarias_datos!S42,0,((Resumen!$Q$1-1)*12)))," ") -> 732376.207 | H17: =IF(H$1<=Resumen!$P$1,IF(OFFSET(Canarias_datos!T42,0,((Resumen!$Q$1-1)*12))=0," ",OFFSET(Canarias_datos!T42,0,((Resumen!$Q$1-1)*12)))," ") -> 772528.761 | I17: =IF(I$1<=Resumen!$P$1,IF(OFFSET(Canarias_datos!U42,0,((Resumen!$Q$1-1)*12))=0," ",OFFSET(Canarias_datos!U42,0,((Resumen!$Q$1-1)*12)))," ") -> 809420.678 | J17: =IF(J$1<=Resumen!$P$1,IF(OFFSET(Canarias_datos!V42,0,((Resumen!$Q$1-1)*12))=0," ",OFFSET(Canarias_datos!V42,0,((Resumen!$Q$1-1)*12)))," ") -> 761528.716 | K17: =IF(K$1<=Resumen!$P$1,IF(OFFSET(Canarias_datos!W42,0,((Resumen!$Q$1-1)*12))=0," ",OFFSET(Canarias_datos!W42,0,((Resumen!$Q$1-1)*12)))," ") ->  | L17: =IF(L$1<=Resumen!$P$1,IF(OFFSET(Canarias_datos!X42,0,((Resumen!$Q$1-1)*12))=0," ",OFFSET(Canarias_datos!X42,0,((Resumen!$Q$1-1)*12)))," ") ->  | M17: =IF(M$1<=Resumen!$P$1,IF(OFFSET(Canarias_datos!Y42,0,((Resumen!$Q$1-1)*12))=0," ",OFFSET(Canarias_datos!Y42,0,((Resumen!$Q$1-1)*12)))," ") ->  | N17: 6668857.849
A18: Consumos en bombeo | B18: =IF(B$1<=Resumen!$P$1,IF(OFFSET(Canarias_datos!N43,0,((Resumen!$Q$1-1)*12))=0," ",OFFSET(Canarias_datos!N43,0,((Resumen!$Q$1-1)*12)))," ") -> - | C18: =IF(C$1<=Resumen!$P$1,IF(OFFSET(Canarias_datos!O43,0,((Resumen!$Q$1-1)*12))=0," ",OFFSET(Canarias_datos!O43,0,((Resumen!$Q$1-1)*12)))," ") -> - | D18: =IF(D$1<=Resumen!$P$1,IF(OFFSET(Canarias_datos!P43,0,((Resumen!$Q$1-1)*12))=0," ",OFFSET(Canarias_datos!P43,0,((Resumen!$Q$1-1)*12)))," ") -> - | E18: =IF(E$1<=Resumen!$P$1,IF(OFFSET(Canarias_datos!Q43,0,((Resumen!$Q$1-1)*12))=0," ",OFFSET(Canarias_datos!Q43,0,((Resumen!$Q$1-1)*12)))," ") -> - | F18: =IF(F$1<=Resumen!$P$1,IF(OFFSET(Canarias_datos!R43,0,((Resumen!$Q$1-1)*12))=0," ",OFFSET(Canarias_datos!R43,0,((Resumen!$Q$1-1)*12)))," ") -> - | G18: =IF(G$1<=Resumen!$P$1,IF(OFFSET(Canarias_datos!S43,0,((Resumen!$Q$1-1)*12))=0," ",OFFSET(Canarias_datos!S43,0,((Resumen!$Q$1-1)*12)))," ") -> - | H18: =IF(H$1<=Resumen!$P$1,IF(OFFSET(Canarias_datos!T43,0,((Resumen!$Q$1-1)*12))=0," ",OFFSET(Canarias_datos!T43,0,((Resumen!$Q$1-1)*12)))," ") -> - | I18: =IF(I$1<=Resumen!$P$1,IF(OFFSET(Canarias_datos!U43,0,((Resumen!$Q$1-1)*12))=0," ",OFFSET(Canarias_datos!U43,0,((Resumen!$Q$1-1)*12)))," ") -> - | J18: =IF(J$1<=Resumen!$P$1,IF(OFFSET(Canarias_datos!V43,0,((Resumen!$Q$1-1)*12))=0," ",OFFSET(Canarias_datos!V43,0,((Resumen!$Q$1-1)*12)))," ") -> - | K18: =IF(K$1<=Resumen!$P$1,IF(OFFSET(Canarias_datos!W43,0,((Resumen!$Q$1-1)*12))=0," ",OFFSET(Canarias_datos!W43,0,((Resumen!$Q$1-1)*12)))," ") ->  | L18: =IF(L$1<=Resumen!$P$1,IF(OFFSET(Canarias_datos!X43,0,((Resumen!$Q$1-1)*12))=0," ",OFFSET(Canarias_datos!X43,0,((Resumen!$Q$1-1)*12)))," ") ->  | M18: =IF(M$1<=Resumen!$P$1,IF(OFFSET(Canarias_datos!Y43,0,((Resumen!$Q$1-1)*12))=0," ",OFFSET(Canarias_datos!Y43,0,((Resumen!$Q$1-1)*12)))," ") -> 
A19: Saldo Intercambios | B19: =IF(B$1<=Resumen!$P$1,IF(OFFSET(Canarias_datos!N44,0,((Resumen!$Q$1-1)*12))=0," ",OFFSET(Canarias_datos!N44,0,((Resumen!$Q$1-1)*12)))," ") -> - | C19: =IF(C$1<=Resumen!$P$1,IF(OFFSET(Canarias_datos!O44,0,((Resumen!$Q$1-1)*12))=0," ",OFFSET(Canarias_datos!O44,0,((Resumen!$Q$1-1)*12)))," ") -> - | D19: =IF(D$1<=Resumen!$P$1,IF(OFFSET(Canarias_datos!P44,0,((Resumen!$Q$1-1)*12))=0," ",OFFSET(Canarias_datos!P44,0,((Resumen!$Q$1-1)*12)))," ") -> - | E19: =IF(E$1<=Resumen!$P$1,IF(OFFSET(Canarias_datos!Q44,0,((Resumen!$Q$1-1)*12))=0," ",OFFSET(Canarias_datos!Q44,0,((Resumen!$Q$1-1)*12)))," ") -> - | F19: =IF(F$1<=Resumen!$P$1,IF(OFFSET(Canarias_datos!R44,0,((Resumen!$Q$1-1)*12))=0," ",OFFSET(Canarias_datos!R44,0,((Resumen!$Q$1-1)*12)))," ") -> - | G19: =IF(G$1<=Resumen!$P$1,IF(OFFSET(Canarias_datos!S44,0,((Resumen!$Q$1-1)*12))=0," ",OFFSET(Canarias_datos!S44,0,((Resumen!$Q$1-1)*12)))," ") -> - | H19: =IF(H$1<=Resumen!$P$1,IF(OFFSET(Canarias_datos!T44,0,((Resumen!$Q$1-1)*12))=0," ",OFFSET(Canarias_datos!T44,0,((Resumen!$Q$1-1)*12)))," ") -> - | I19: =IF(I$1<=Resumen!$P$1,IF(OFFSET(Canarias_datos!U44,0,((Resumen!$Q$1-1)*12))=0," ",OFFSET(Canarias_datos!U44,0,((Resumen!$Q$1-1)*12)))," ") -> - | J19: =IF(J$1<=Resumen!$P$1,IF(OFFSET(Canarias_datos!V44,0,((Resumen!$Q$1-1)*12))=0," ",OFFSET(Canarias_datos!V44,0,((Resumen!$Q$1-1)*12)))," ") -> - | K19: =IF(K$1<=Resumen!$P$1,IF(OFFSET(Canarias_datos!W44,0,((Resumen!$Q$1-1)*12))=0," ",OFFSET(Canarias_datos!W44,0,((Resumen!$Q$1-1)*12)))," ") ->  | L19: =IF(L$1<=Resumen!$P$1,IF(OFFSET(Canarias_datos!X44,0,((Resumen!$Q$1-1)*12))=0," ",OFFSET(Canarias_datos!X44,0,((Resumen!$Q$1-1)*12)))," ") ->  | M19: =IF(M$1<=Resumen!$P$1,IF(OFFSET(Canarias_datos!Y44,0,((Resumen!$Q$1-1)*12))=0," ",OFFSET(Canarias_datos!Y44,0,((Resumen!$Q$1-1)*12)))," ") -> 
A20: Demanda B.C | B20: =IF(B$1<=Resumen!$P$1,IF(OFFSET(Canarias_datos!N45,0,((Resumen!$Q$1-1)*12))=0," ",OFFSET(Canarias_datos!N45,0,((Resumen!$Q$1-1)*12)))," ") -> 747835.241 | C20: =IF(C$1<=Resumen!$P$1,IF(OFFSET(Canarias_datos!O45,0,((Resumen!$Q$1-1)*12))=0," ",OFFSET(Canarias_datos!O45,0,((Resumen!$Q$1-1)*12)))," ") -> 666383.712 | D20: =IF(D$1<=Resumen!$P$1,IF(OFFSET(Canarias_datos!P45,0,((Resumen!$Q$1-1)*12))=0," ",OFFSET(Canarias_datos!P45,0,((Resumen!$Q$1-1)*12)))," ") -> 739433.544 | E20: =IF(E$1<=Resumen!$P$1,IF(OFFSET(Canarias_datos!Q45,0,((Resumen!$Q$1-1)*12))=0," ",OFFSET(Canarias_datos!Q45,0,((Resumen!$Q$1-1)*12)))," ") -> 707771.666 | F20: =IF(F$1<=Resumen!$P$1,IF(OFFSET(Canarias_datos!R45,0,((Resumen!$Q$1-1)*12))=0," ",OFFSET(Canarias_datos!R45,0,((Resumen!$Q$1-1)*12)))," ") -> 731579.324 | G20: =IF(G$1<=Resumen!$P$1,IF(OFFSET(Canarias_datos!S45,0,((Resumen!$Q$1-1)*12))=0," ",OFFSET(Canarias_datos!S45,0,((Resumen!$Q$1-1)*12)))," ") -> 732376.207 | H20: =IF(H$1<=Resumen!$P$1,IF(OFFSET(Canarias_datos!T45,0,((Resumen!$Q$1-1)*12))=0," ",OFFSET(Canarias_datos!T45,0,((Resumen!$Q$1-1)*12)))," ") -> 772528.761 | I20: =IF(I$1<=Resumen!$P$1,IF(OFFSET(Canarias_datos!U45,0,((Resumen!$Q$1-1)*12))=0," ",OFFSET(Canarias_datos!U45,0,((Resumen!$Q$1-1)*12)))," ") -> 809420.678 | J20: =IF(J$1<=Resumen!$P$1,IF(OFFSET(Canarias_datos!V45,0,((Resumen!$Q$1-1)*12))=0," ",OFFSET(Canarias_datos!V45,0,((Resumen!$Q$1-1)*12)))," ") -> 761531.716 | K20: =IF(K$1<=Resumen!$P$1,IF(OFFSET(Canarias_datos!W45,0,((Resumen!$Q$1-1)*12))=0," ",OFFSET(Canarias_datos!W45,0,((Resumen!$Q$1-1)*12)))," ") ->  | L20: =IF(L$1<=Resumen!$P$1,IF(OFFSET(Canarias_datos!X45,0,((Resumen!$Q$1-1)*12))=0," ",OFFSET(Canarias_datos!X45,0,((Resumen!$Q$1-1)*12)))," ") ->  | M20: =IF(M$1<=Resumen!$P$1,IF(OFFSET(Canarias_datos!Y45,0,((Resumen!$Q$1-1)*12))=0," ",OFFSET(Canarias_datos!Y45,0,((Resumen!$Q$1-1)*12)))," ") ->  | N20: 6668860.849
A21: =Resumen!A22 -> %Δ 17/16 | B21: =IF(B$1<=Resumen!$P$1,IF(OFFSET(Canarias_datos!N46,0,((Resumen!$Q$1-1)*12))=0," ",OFFSET(Canarias_datos!N46,0,((Resumen!$Q$1-1)*12)))," ") -> 2.810896164 | C21: =IF(C$1<=Resumen!$P$1,IF(OFFSET(Canarias_datos!O46,0,((Resumen!$Q$1-1)*12))=0," ",OFFSET(Canarias_datos!O46,0,((Resumen!$Q$1-1)*12)))," ") -> -2.143689589 | D21: =IF(D$1<=Resumen!$P$1,IF(OFFSET(Canarias_datos!P46,0,((Resumen!$Q$1-1)*12))=0," ",OFFSET(Canarias_datos!P46,0,((Resumen!$Q$1-1)*12)))," ") -> 2.527042166 | E21: =IF(E$1<=Resumen!$P$1,IF(OFFSET(Canarias_datos!Q46,0,((Resumen!$Q$1-1)*12))=0," ",OFFSET(Canarias_datos!Q46,0,((Resumen!$Q$1-1)*12)))," ") -> 2.269002337 | F21: =IF(F$1<=Resumen!$P$1,IF(OFFSET(Canarias_datos!R46,0,((Resumen!$Q$1-1)*12))=0," ",OFFSET(Canarias_datos!R46,0,((Resumen!$Q$1-1)*12)))," ") -> 4.214189357 | G21: =IF(G$1<=Resumen!$P$1,IF(OFFSET(Canarias_datos!S46,0,((Resumen!$Q$1-1)*12))=0," ",OFFSET(Canarias_datos!S46,0,((Resumen!$Q$1-1)*12)))," ") -> 3.293074833 | H21: =IF(H$1<=Resumen!$P$1,IF(OFFSET(Canarias_datos!T46,0,((Resumen!$Q$1-1)*12))=0," ",OFFSET(Canarias_datos!T46,0,((Resumen!$Q$1-1)*12)))," ") -> 1.013702168 | I21: =IF(I$1<=Resumen!$P$1,IF(OFFSET(Canarias_datos!U46,0,((Resumen!$Q$1-1)*12))=0," ",OFFSET(Canarias_datos!U46,0,((Resumen!$Q$1-1)*12)))," ") -> 1.980248982 | J21: =IF(J$1<=Resumen!$P$1,IF(OFFSET(Canarias_datos!V46,0,((Resumen!$Q$1-1)*12))=0," ",OFFSET(Canarias_datos!V46,0,((Resumen!$Q$1-1)*12)))," ") -> 1.417855528 | K21: =IF(K$1<=Resumen!$P$1,IF(OFFSET(Canarias_datos!W46,0,((Resumen!$Q$1-1)*12))=0," ",OFFSET(Canarias_datos!W46,0,((Resumen!$Q$1-1)*12)))," ") ->  | L21: =IF(L$1<=Resumen!$P$1,IF(OFFSET(Canarias_datos!X46,0,((Resumen!$Q$1-1)*12))=0," ",OFFSET(Canarias_datos!X46,0,((Resumen!$Q$1-1)*12)))," ") ->  | M21: =IF(M$1<=Resumen!$P$1,IF(OFFSET(Canarias_datos!Y46,0,((Resumen!$Q$1-1)*12))=0," ",OFFSET(Canarias_datos!Y46,0,((Resumen!$Q$1-1)*12)))," ") ->  | N21: =((N20/SUM(OFFSET(Canarias_datos!N45,0,(Resumen!$Q$1-2)*12):OFFSET(Canarias_datos!N45,0,((Resumen!$Q$1-2)*12)+Resumen!$P$1-1))-1)*100) -> 1.938614667
A69: =A1 -> Canarias | B69: =J20 -> 761531.716
A70: Resto nacional | B70: =Nacional_datos!BR45-B69 -> 20788202.31

Sheet Cantabria
A1: Cantabria | B1: 1 | C1: 2 | D1: 3 | E1: 4 | F1: 5 | G1: 6 | H1: 7 | I1: 8 | J1: 9 | K1: 10 | L1: 11 | M1: 12
A2: Balance mensual de energía electrica. MWh
B3: 2017
B4: Ene | C4: Feb | D4: Mar | E4: Abr | F4: May | G4: Jun | H4: Jul | I4: Ago | J4: Sep | K4: Oct | L4: Nov | M4: Dic | N4: TOTAL
A5: Hidraulica | B5: =IF(B$1<=Resumen!$P$1,IF(OFFSET(Cantabria_datos!N30,0,((Resumen!$Q$1-1)*12))=0," ",OFFSET(Cantabria_datos!N30,0,((Resumen!$Q$1-1)*12)))," ") -> 53039.18261 | C5: =IF(C$1<=Resumen!$P$1,IF(OFFSET(Cantabria_datos!O30,0,((Resumen!$Q$1-1)*12))=0," ",OFFSET(Cantabria_datos!O30,0,((Resumen!$Q$1-1)*12)))," ") -> 64007.33684 | D5: =IF(D$1<=Resumen!$P$1,IF(OFFSET(Cantabria_datos!P30,0,((Resumen!$Q$1-1)*12))=0," ",OFFSET(Cantabria_datos!P30,0,((Resumen!$Q$1-1)*12)))," ") -> 66345.28505 | E5: =IF(E$1<=Resumen!$P$1,IF(OFFSET(Cantabria_datos!Q30,0,((Resumen!$Q$1-1)*12))=0," ",OFFSET(Cantabria_datos!Q30,0,((Resumen!$Q$1-1)*12)))," ") -> 53873.03387 | F5: =IF(F$1<=Resumen!$P$1,IF(OFFSET(Cantabria_datos!R30,0,((Resumen!$Q$1-1)*12))=0," ",OFFSET(Cantabria_datos!R30,0,((Resumen!$Q$1-1)*12)))," ") -> 45121.42925 | G5: =IF(G$1<=Resumen!$P$1,IF(OFFSET(Cantabria_datos!S30,0,((Resumen!$Q$1-1)*12))=0," ",OFFSET(Cantabria_datos!S30,0,((Resumen!$Q$1-1)*12)))," ") -> 28779.41476 | H5: =IF(H$1<=Resumen!$P$1,IF(OFFSET(Cantabria_datos!T30,0,((Resumen!$Q$1-1)*12))=0," ",OFFSET(Cantabria_datos!T30,0,((Resumen!$Q$1-1)*12)))," ") -> 21247.14108 | I5: =IF(I$1<=Resumen!$P$1,IF(OFFSET(Cantabria_datos!U30,0,((Resumen!$Q$1-1)*12))=0," ",OFFSET(Cantabria_datos!U30,0,((Resumen!$Q$1-1)*12)))," ") -> 31883.86726 | J5: =IF(J$1<=Resumen!$P$1,IF(OFFSET(Cantabria_datos!V30,0,((Resumen!$Q$1-1)*12))=0," ",OFFSET(Cantabria_datos!V30,0,((Resumen!$Q$1-1)*12)))," ") -> 29943.87702 | K5: =IF(K$1<=Resumen!$P$1,IF(OFFSET(Cantabria_datos!W30,0,((Resumen!$Q$1-1)*12))=0," ",OFFSET(Cantabria_datos!W30,0,((Resumen!$Q$1-1)*12)))," ") ->  | L5: =IF(L$1<=Resumen!$P$1,IF(OFFSET(Cantabria_datos!X30,0,((Resumen!$Q$1-1)*12))=0," ",OFFSET(Cantabria_datos!X30,0,((Resumen!$Q$1-1)*12)))," ") ->  | M5: =IF(M$1<=Resumen!$P$1,IF(OFFSET(Cantabria_datos!Y30,0,((Resumen!$Q$1-1)*12))=0," ",OFFSET(Cantabria_datos!Y30,0,((Resumen!$Q$1-1)*12)))," ") ->  | N5: =IF(SUM(B5:M5)=0," ",SUM(B5:M5)) -> 394240.5677
A6: Nuclear | B6: =IF(B$1<=Resumen!$P$1,IF(OFFSET(Cantabria_datos!N31,0,((Resumen!$Q$1-1)*12))=0," ",OFFSET(Cantabria_datos!N31,0,((Resumen!$Q$1-1)*12)))," ") -> - | C6: =IF(C$1<=Resumen!$P$1,IF(OFFSET(Cantabria_datos!O31,0,((Resumen!$Q$1-1)*12))=0," ",OFFSET(Cantabria_datos!O31,0,((Resumen!$Q$1-1)*12)))," ") -> - | D6: =IF(D$1<=Resumen!$P$1,IF(OFFSET(Cantabria_datos!P31,0,((Resumen!$Q$1-1)*12))=0," ",OFFSET(Cantabria_datos!P31,0,((Resumen!$Q$1-1)*12)))," ") -> - | E6: =IF(E$1<=Resumen!$P$1,IF(OFFSET(Cantabria_datos!Q31,0,((Resumen!$Q$1-1)*12))=0," ",OFFSET(Cantabria_datos!Q31,0,((Resumen!$Q$1-1)*12)))," ") -> - | F6: =IF(F$1<=Resumen!$P$1,IF(OFFSET(Cantabria_datos!R31,0,((Resumen!$Q$1-1)*12))=0," ",OFFSET(Cantabria_datos!R31,0,((Resumen!$Q$1-1)*12)))," ") -> - | G6: =IF(G$1<=Resumen!$P$1,IF(OFFSET(Cantabria_datos!S31,0,((Resumen!$Q$1-1)*12))=0," ",OFFSET(Cantabria_datos!S31,0,((Resumen!$Q$1-1)*12)))," ") -> - | H6: =IF(H$1<=Resumen!$P$1,IF(OFFSET(Cantabria_datos!T31,0,((Resumen!$Q$1-1)*12))=0," ",OFFSET(Cantabria_datos!T31,0,((Resumen!$Q$1-1)*12)))," ") -> - | I6: =IF(I$1<=Resumen!$P$1,IF(OFFSET(Cantabria_datos!U31,0,((Resumen!$Q$1-1)*12))=0," ",OFFSET(Cantabria_datos!U31,0,((Resumen!$Q$1-1)*12)))," ") -> - | J6: =IF(J$1<=Resumen!$P$1,IF(OFFSET(Cantabria_datos!V31,0,((Resumen!$Q$1-1)*12))=0," ",OFFSET(Cantabria_datos!V31,0,((Resumen!$Q$1-1)*12)))," ") -> - | K6: =IF(K$1<=Resumen!$P$1,IF(OFFSET(Cantabria_datos!W31,0,((Resumen!$Q$1-1)*12))=0," ",OFFSET(Cantabria_datos!W31,0,((Resumen!$Q$1-1)*12)))," ") ->  | L6: =IF(L$1<=Resumen!$P$1,IF(OFFSET(Cantabria_datos!X31,0,((Resumen!$Q$1-1)*12))=0," ",OFFSET(Cantabria_datos!X31,0,((Resumen!$Q$1-1)*12)))," ") ->  | M6: =IF(M$1<=Resumen!$P$1,IF(OFFSET(Cantabria_datos!Y31,0,((Resumen!$Q$1-1)*12))=0," ",OFFSET(Cantabria_datos!Y31,0,((Resumen!$Q$1-1)*12)))," ") ->  | N6: =IF(SUM(B6:M6)=0," ",SUM(B6:M6)) -> 
A7: Carbón | B7: =IF(B$1<=Resumen!$P$1,IF(OFFSET(Cantabria_datos!N32,0,((Resumen!$Q$1-1)*12))=0," ",OFFSET(Cantabria_datos!N32,0,((Resumen!$Q$1-1)*12)))," ") ->  | C7: =IF(C$1<=Resumen!$P$1,IF(OFFSET(Cantabria_datos!O32,0,((Resumen!$Q$1-1)*12))=0," ",OFFSET(Cantabria_datos!O32,0,((Resumen!$Q$1-1)*12)))," ") ->  | D7: =IF(D$1<=Resumen!$P$1,IF(OFFSET(Cantabria_datos!P32,0,((Resumen!$Q$1-1)*12))=0," ",OFFSET(Cantabria_datos!P32,0,((Resumen!$Q$1-1)*12)))," ") ->  | E7: =IF(E$1<=Resumen!$P$1,IF(OFFSET(Cantabria_datos!Q32,0,((Resumen!$Q$1-1)*12))=0," ",OFFSET(Cantabria_datos!Q32,0,((Resumen!$Q$1-1)*12)))," ") ->  | F7: =IF(F$1<=Resumen!$P$1,IF(OFFSET(Cantabria_datos!R32,0,((Resumen!$Q$1-1)*12))=0," ",OFFSET(Cantabria_datos!R32,0,((Resumen!$Q$1-1)*12)))," ") ->  | G7: =IF(G$1<=Resumen!$P$1,IF(OFFSET(Cantabria_datos!S32,0,((Resumen!$Q$1-1)*12))=0," ",OFFSET(Cantabria_datos!S32,0,((Resumen!$Q$1-1)*12)))," ") ->  | H7: =IF(H$1<=Resumen!$P$1,IF(OFFSET(Cantabria_datos!T32,0,((Resumen!$Q$1-1)*12))=0," ",OFFSET(Cantabria_datos!T32,0,((Resumen!$Q$1-1)*12)))," ") ->  | I7: =IF(I$1<=Resumen!$P$1,IF(OFFSET(Cantabria_datos!U32,0,((Resumen!$Q$1-1)*12))=0," ",OFFSET(Cantabria_datos!U32,0,((Resumen!$Q$1-1)*12)))," ") ->  | J7: =IF(J$1<=Resumen!$P$1,IF(OFFSET(Cantabria_datos!V32,0,((Resumen!$Q$1-1)*12))=0," ",OFFSET(Cantabria_datos!V32,0,((Resumen!$Q$1-1)*12)))," ") ->  | K7: =IF(K$1<=Resumen!$P$1,IF(OFFSET(Cantabria_datos!W32,0,((Resumen!$Q$1-1)*12))=0," ",OFFSET(Cantabria_datos!W32,0,((Resumen!$Q$1-1)*12)))," ") ->  | L7: =IF(L$1<=Resumen!$P$1,IF(OFFSET(Cantabria_datos!X32,0,((Resumen!$Q$1-1)*12))=0," ",OFFSET(Cantabria_datos!X32,0,((Resumen!$Q$1-1)*12)))," ") ->  | M7: =IF(M$1<=Resumen!$P$1,IF(OFFSET(Cantabria_datos!Y32,0,((Resumen!$Q$1-1)*12))=0," ",OFFSET(Cantabria_datos!Y32,0,((Resumen!$Q$1-1)*12)))," ") -> 
A8: Fuel-Gas | B8: =IF(B$1<=Resumen!$P$1,IF(OFFSET(Cantabria_datos!N33,0,((Resumen!$Q$1-1)*12))=0," ",OFFSET(Cantabria_datos!N33,0,((Resumen!$Q$1-1)*12)))," ") ->  | C8: =IF(C$1<=Resumen!$P$1,IF(OFFSET(Cantabria_datos!O33,0,((Resumen!$Q$1-1)*12))=0," ",OFFSET(Cantabria_datos!O33,0,((Resumen!$Q$1-1)*12)))," ") ->  | D8: =IF(D$1<=Resumen!$P$1,IF(OFFSET(Cantabria_datos!P33,0,((Resumen!$Q$1-1)*12))=0," ",OFFSET(Cantabria_datos!P33,0,((Resumen!$Q$1-1)*12)))," ") ->  | E8: =IF(E$1<=Resumen!$P$1,IF(OFFSET(Cantabria_datos!Q33,0,((Resumen!$Q$1-1)*12))=0," ",OFFSET(Cantabria_datos!Q33,0,((Resumen!$Q$1-1)*12)))," ") ->  | F8: =IF(F$1<=Resumen!$P$1,IF(OFFSET(Cantabria_datos!R33,0,((Resumen!$Q$1-1)*12))=0," ",OFFSET(Cantabria_datos!R33,0,((Resumen!$Q$1-1)*12)))," ") ->  | G8: =IF(G$1<=Resumen!$P$1,IF(OFFSET(Cantabria_datos!S33,0,((Resumen!$Q$1-1)*12))=0," ",OFFSET(Cantabria_datos!S33,0,((Resumen!$Q$1-1)*12)))," ") ->  | H8: =IF(H$1<=Resumen!$P$1,IF(OFFSET(Cantabria_datos!T33,0,((Resumen!$Q$1-1)*12))=0," ",OFFSET(Cantabria_datos!T33,0,((Resumen!$Q$1-1)*12)))," ") ->  | I8: =IF(I$1<=Resumen!$P$1,IF(OFFSET(Cantabria_datos!U33,0,((Resumen!$Q$1-1)*12))=0," ",OFFSET(Cantabria_datos!U33,0,((Resumen!$Q$1-1)*12)))," ") ->  | J8: =IF(J$1<=Resumen!$P$1,IF(OFFSET(Cantabria_datos!V33,0,((Resumen!$Q$1-1)*12))=0," ",OFFSET(Cantabria_datos!V33,0,((Resumen!$Q$1-1)*12)))," ") ->  | K8: =IF(K$1<=Resumen!$P$1,IF(OFFSET(Cantabria_datos!W33,0,((Resumen!$Q$1-1)*12))=0," ",OFFSET(Cantabria_datos!W33,0,((Resumen!$Q$1-1)*12)))," ") ->  | L8: =IF(L$1<=Resumen!$P$1,IF(OFFSET(Cantabria_datos!X33,0,((Resumen!$Q$1-1)*12))=0," ",OFFSET(Cantabria_datos!X33,0,((Resumen!$Q$1-1)*12)))," ") ->  | M8: =IF(M$1<=Resumen!$P$1,IF(OFFSET(Cantabria_datos!Y33,0,((Resumen!$Q$1-1)*12))=0," ",OFFSET(Cantabria_datos!Y33,0,((Resumen!$Q$1-1)*12)))," ") -> 
A9: Ciclo combinado | B9: =IF(B$1<=Resumen!$P$1,IF(OFFSET(Cantabria_datos!N34,0,((Resumen!$Q$1-1)*12))=0," ",OFFSET(Cantabria_datos!N34,0,((Resumen!$Q$1-1)*12)))," ") -> - | C9: =IF(C$1<=Resumen!$P$1,IF(OFFSET(Cantabria_datos!O34,0,((Resumen!$Q$1-1)*12))=0," ",OFFSET(Cantabria_datos!O34,0,((Resumen!$Q$1-1)*12)))," ") -> - | D9: =IF(D$1<=Resumen!$P$1,IF(OFFSET(Cantabria_datos!P34,0,((Resumen!$Q$1-1)*12))=0," ",OFFSET(Cantabria_datos!P34,0,((Resumen!$Q$1-1)*12)))," ") -> - | E9: =IF(E$1<=Resumen!$P$1,IF(OFFSET(Cantabria_datos!Q34,0,((Resumen!$Q$1-1)*12))=0," ",OFFSET(Cantabria_datos!Q34,0,((Resumen!$Q$1-1)*12)))," ") -> - | F9: =IF(F$1<=Resumen!$P$1,IF(OFFSET(Cantabria_datos!R34,0,((Resumen!$Q$1-1)*12))=0," ",OFFSET(Cantabria_datos!R34,0,((Resumen!$Q$1-1)*12)))," ") -> - | G9: =IF(G$1<=Resumen!$P$1,IF(OFFSET(Cantabria_datos!S34,0,((Resumen!$Q$1-1)*12))=0," ",OFFSET(Cantabria_datos!S34,0,((Resumen!$Q$1-1)*12)))," ") -> - | H9: =IF(H$1<=Resumen!$P$1,IF(OFFSET(Cantabria_datos!T34,0,((Resumen!$Q$1-1)*12))=0," ",OFFSET(Cantabria_datos!T34,0,((Resumen!$Q$1-1)*12)))," ") -> - | I9: =IF(I$1<=Resumen!$P$1,IF(OFFSET(Cantabria_datos!U34,0,((Resumen!$Q$1-1)*12))=0," ",OFFSET(Cantabria_datos!U34,0,((Resumen!$Q$1-1)*12)))," ") -> - | J9: =IF(J$1<=Resumen!$P$1,IF(OFFSET(Cantabria_datos!V34,0,((Resumen!$Q$1-1)*12))=0," ",OFFSET(Cantabria_datos!V34,0,((Resumen!$Q$1-1)*12)))," ") -> - | K9: =IF(K$1<=Resumen!$P$1,IF(OFFSET(Cantabria_datos!W34,0,((Resumen!$Q$1-1)*12))=0," ",OFFSET(Cantabria_datos!W34,0,((Resumen!$Q$1-1)*12)))," ") ->  | L9: =IF(L$1<=Resumen!$P$1,IF(OFFSET(Cantabria_datos!X34,0,((Resumen!$Q$1-1)*12))=0," ",OFFSET(Cantabria_datos!X34,0,((Resumen!$Q$1-1)*12)))," ") ->  | M9: =IF(M$1<=Resumen!$P$1,IF(OFFSET(Cantabria_datos!Y34,0,((Resumen!$Q$1-1)*12))=0," ",OFFSET(Cantabria_datos!Y34,0,((Resumen!$Q$1-1)*12)))," ") -> 
A10: Hidroeólica | B10: =IF(B$1<=Resumen!$P$1,IF(OFFSET(Cantabria_datos!N35,0,((Resumen!$Q$1-1)*12))=0," ",OFFSET(Cantabria_datos!N35,0,((Resumen!$Q$1-1)*12)))," ") ->  | C10: =IF(C$1<=Resumen!$P$1,IF(OFFSET(Cantabria_datos!O35,0,((Resumen!$Q$1-1)*12))=0," ",OFFSET(Cantabria_datos!O35,0,((Resumen!$Q$1-1)*12)))," ") ->  | D10: =IF(D$1<=Resumen!$P$1,IF(OFFSET(Cantabria_datos!P35,0,((Resumen!$Q$1-1)*12))=0," ",OFFSET(Cantabria_datos!P35,0,((Resumen!$Q$1-1)*12)))," ") ->  | E10: =IF(E$1<=Resumen!$P$1,IF(OFFSET(Cantabria_datos!Q35,0,((Resumen!$Q$1-1)*12))=0," ",OFFSET(Cantabria_datos!Q35,0,((Resumen!$Q$1-1)*12)))," ") ->  | F10: =IF(F$1<=Resumen!$P$1,IF(OFFSET(Cantabria_datos!R35,0,((Resumen!$Q$1-1)*12))=0," ",OFFSET(Cantabria_datos!R35,0,((Resumen!$Q$1-1)*12)))," ") ->  | G10: =IF(G$1<=Resumen!$P$1,IF(OFFSET(Cantabria_datos!S35,0,((Resumen!$Q$1-1)*12))=0," ",OFFSET(Cantabria_datos!S35,0,((Resumen!$Q$1-1)*12)))," ") ->  | H10: =IF(H$1<=Resumen!$P$1,IF(OFFSET(Cantabria_datos!T35,0,((Resumen!$Q$1-1)*12))=0," ",OFFSET(Cantabria_datos!T35,0,((Resumen!$Q$1-1)*12)))," ") ->  | I10: =IF(I$1<=Resumen!$P$1,IF(OFFSET(Cantabria_datos!U35,0,((Resumen!$Q$1-1)*12))=0," ",OFFSET(Cantabria_datos!U35,0,((Resumen!$Q$1-1)*12)))," ") ->  | J10: =IF(J$1<=Resumen!$P$1,IF(OFFSET(Cantabria_datos!V35,0,((Resumen!$Q$1-1)*12))=0," ",OFFSET(Cantabria_datos!V35,0,((Resumen!$Q$1-1)*12)))," ") ->  | K10: =IF(K$1<=Resumen!$P$1,IF(OFFSET(Cantabria_datos!W35,0,((Resumen!$Q$1-1)*12))=0," ",OFFSET(Cantabria_datos!W35,0,((Resumen!$Q$1-1)*12)))," ") ->  | L10: =IF(L$1<=Resumen!$P$1,IF(OFFSET(Cantabria_datos!X35,0,((Resumen!$Q$1-1)*12))=0," ",OFFSET(Cantabria_datos!X35,0,((Resumen!$Q$1-1)*12)))," ") ->  | M10: =IF(M$1<=Resumen!$P$1,IF(OFFSET(Cantabria_datos!Y35,0,((Resumen!$Q$1-1)*12))=0," ",OFFSET(Cantabria_datos!Y35,0,((Resumen!$Q$1-1)*12)))," ") -> 
A11: Eólica | B11: =IF(B$1<=Resumen!$P$1,IF(OFFSET(Cantabria_datos!N36,0,((Resumen!$Q$1-1)*12))=0," ",OFFSET(Cantabria_datos!N36,0,((Resumen!$Q$1-1)*12)))," ") -> 7822.318 | C11: =IF(C$1<=Resumen!$P$1,IF(OFFSET(Cantabria_datos!O36,0,((Resumen!$Q$1-1)*12))=0," ",OFFSET(Cantabria_datos!O36,0,((Resumen!$Q$1-1)*12)))," ") -> 7112.825 | D11: =IF(D$1<=Resumen!$P$1,IF(OFFSET(Cantabria_datos!P36,0,((Resumen!$Q$1-1)*12))=0," ",OFFSET(Cantabria_datos!P36,0,((Resumen!$Q$1-1)*12)))," ") -> 8473.928 | E11: =IF(E$1<=Resumen!$P$1,IF(OFFSET(Cantabria_datos!Q36,0,((Resumen!$Q$1-1)*12))=0," ",OFFSET(Cantabria_datos!Q36,0,((Resumen!$Q$1-1)*12)))," ") -> 3179.508 | F11: =IF(F$1<=Resumen!$P$1,IF(OFFSET(Cantabria_datos!R36,0,((Resumen!$Q$1-1)*12))=0," ",OFFSET(Cantabria_datos!R36,0,((Resumen!$Q$1-1)*12)))," ") -> 5754.835 | G11: =IF(G$1<=Resumen!$P$1,IF(OFFSET(Cantabria_datos!S36,0,((Resumen!$Q$1-1)*12))=0," ",OFFSET(Cantabria_datos!S36,0,((Resumen!$Q$1-1)*12)))," ") -> 2906.197 | H11: =IF(H$1<=Resumen!$P$1,IF(OFFSET(Cantabria_datos!T36,0,((Resumen!$Q$1-1)*12))=0," ",OFFSET(Cantabria_datos!T36,0,((Resumen!$Q$1-1)*12)))," ") -> 3172.554 | I11: =IF(I$1<=Resumen!$P$1,IF(OFFSET(Cantabria_datos!U36,0,((Resumen!$Q$1-1)*12))=0," ",OFFSET(Cantabria_datos!U36,0,((Resumen!$Q$1-1)*12)))," ") -> 3645.445 | J11: =IF(J$1<=Resumen!$P$1,IF(OFFSET(Cantabria_datos!V36,0,((Resumen!$Q$1-1)*12))=0," ",OFFSET(Cantabria_datos!V36,0,((Resumen!$Q$1-1)*12)))," ") -> 3334.726 | K11: =IF(K$1<=Resumen!$P$1,IF(OFFSET(Cantabria_datos!W36,0,((Resumen!$Q$1-1)*12))=0," ",OFFSET(Cantabria_datos!W36,0,((Resumen!$Q$1-1)*12)))," ") ->  | L11: =IF(L$1<=Resumen!$P$1,IF(OFFSET(Cantabria_datos!X36,0,((Resumen!$Q$1-1)*12))=0," ",OFFSET(Cantabria_datos!X36,0,((Resumen!$Q$1-1)*12)))," ") ->  | M11: =IF(M$1<=Resumen!$P$1,IF(OFFSET(Cantabria_datos!Y36,0,((Resumen!$Q$1-1)*12))=0," ",OFFSET(Cantabria_datos!Y36,0,((Resumen!$Q$1-1)*12)))," ") ->  | N11: 45402.336
A12: Solar fotovoltaico | B12: =IF(B$1<=Resumen!$P$1,IF(OFFSET(Cantabria_datos!N37,0,((Resumen!$Q$1-1)*12))=0," ",OFFSET(Cantabria_datos!N37,0,((Resumen!$Q$1-1)*12)))," ") -> 103.405 | C12: =IF(C$1<=Resumen!$P$1,IF(OFFSET(Cantabria_datos!O37,0,((Resumen!$Q$1-1)*12))=0," ",OFFSET(Cantabria_datos!O37,0,((Resumen!$Q$1-1)*12)))," ") -> 113.716 | D12: =IF(D$1<=Resumen!$P$1,IF(OFFSET(Cantabria_datos!P37,0,((Resumen!$Q$1-1)*12))=0," ",OFFSET(Cantabria_datos!P37,0,((Resumen!$Q$1-1)*12)))," ") -> 167.232 | E12: =IF(E$1<=Resumen!$P$1,IF(OFFSET(Cantabria_datos!Q37,0,((Resumen!$Q$1-1)*12))=0," ",OFFSET(Cantabria_datos!Q37,0,((Resumen!$Q$1-1)*12)))," ") -> 241.126 | F12: =IF(F$1<=Resumen!$P$1,IF(OFFSET(Cantabria_datos!R37,0,((Resumen!$Q$1-1)*12))=0," ",OFFSET(Cantabria_datos!R37,0,((Resumen!$Q$1-1)*12)))," ") -> 241.178 | G12: =IF(G$1<=Resumen!$P$1,IF(OFFSET(Cantabria_datos!S37,0,((Resumen!$Q$1-1)*12))=0," ",OFFSET(Cantabria_datos!S37,0,((Resumen!$Q$1-1)*12)))," ") -> 186.796 | H12: =IF(H$1<=Resumen!$P$1,IF(OFFSET(Cantabria_datos!T37,0,((Resumen!$Q$1-1)*12))=0," ",OFFSET(Cantabria_datos!T37,0,((Resumen!$Q$1-1)*12)))," ") -> 203.239 | I12: =IF(I$1<=Resumen!$P$1,IF(OFFSET(Cantabria_datos!U37,0,((Resumen!$Q$1-1)*12))=0," ",OFFSET(Cantabria_datos!U37,0,((Resumen!$Q$1-1)*12)))," ") -> 192.143 | J12: =IF(J$1<=Resumen!$P$1,IF(OFFSET(Cantabria_datos!V37,0,((Resumen!$Q$1-1)*12))=0," ",OFFSET(Cantabria_datos!V37,0,((Resumen!$Q$1-1)*12)))," ") -> 173.374 | K12: =IF(K$1<=Resumen!$P$1,IF(OFFSET(Cantabria_datos!W37,0,((Resumen!$Q$1-1)*12))=0," ",OFFSET(Cantabria_datos!W37,0,((Resumen!$Q$1-1)*12)))," ") ->  | L12: =IF(L$1<=Resumen!$P$1,IF(OFFSET(Cantabria_datos!X37,0,((Resumen!$Q$1-1)*12))=0," ",OFFSET(Cantabria_datos!X37,0,((Resumen!$Q$1-1)*12)))," ") ->  | M12: =IF(M$1<=Resumen!$P$1,IF(OFFSET(Cantabria_datos!Y37,0,((Resumen!$Q$1-1)*12))=0," ",OFFSET(Cantabria_datos!Y37,0,((Resumen!$Q$1-1)*12)))," ") ->  | N12: 1622.209
A13: Solar térmica | B13: =IF(B$1<=Resumen!$P$1,IF(OFFSET(Cantabria_datos!N38,0,((Resumen!$Q$1-1)*12))=0," ",OFFSET(Cantabria_datos!N38,0,((Resumen!$Q$1-1)*12)))," ") ->  | C13: =IF(C$1<=Resumen!$P$1,IF(OFFSET(Cantabria_datos!O38,0,((Resumen!$Q$1-1)*12))=0," ",OFFSET(Cantabria_datos!O38,0,((Resumen!$Q$1-1)*12)))," ") ->  | D13: =IF(D$1<=Resumen!$P$1,IF(OFFSET(Cantabria_datos!P38,0,((Resumen!$Q$1-1)*12))=0," ",OFFSET(Cantabria_datos!P38,0,((Resumen!$Q$1-1)*12)))," ") ->  | E13: =IF(E$1<=Resumen!$P$1,IF(OFFSET(Cantabria_datos!Q38,0,((Resumen!$Q$1-1)*12))=0," ",OFFSET(Cantabria_datos!Q38,0,((Resumen!$Q$1-1)*12)))," ") ->  | F13: =IF(F$1<=Resumen!$P$1,IF(OFFSET(Cantabria_datos!R38,0,((Resumen!$Q$1-1)*12))=0," ",OFFSET(Cantabria_datos!R38,0,((Resumen!$Q$1-1)*12)))," ") ->  | G13: =IF(G$1<=Resumen!$P$1,IF(OFFSET(Cantabria_datos!S38,0,((Resumen!$Q$1-1)*12))=0," ",OFFSET(Cantabria_datos!S38,0,((Resumen!$Q$1-1)*12)))," ") ->  | H13: =IF(H$1<=Resumen!$P$1,IF(OFFSET(Cantabria_datos!T38,0,((Resumen!$Q$1-1)*12))=0," ",OFFSET(Cantabria_datos!T38,0,((Resumen!$Q$1-1)*12)))," ") ->  | I13: =IF(I$1<=Resumen!$P$1,IF(OFFSET(Cantabria_datos!U38,0,((Resumen!$Q$1-1)*12))=0," ",OFFSET(Cantabria_datos!U38,0,((Resumen!$Q$1-1)*12)))," ") ->  | J13: =IF(J$1<=Resumen!$P$1,IF(OFFSET(Cantabria_datos!V38,0,((Resumen!$Q$1-1)*12))=0," ",OFFSET(Cantabria_datos!V38,0,((Resumen!$Q$1-1)*12)))," ") ->  | K13: =IF(K$1<=Resumen!$P$1,IF(OFFSET(Cantabria_datos!W38,0,((Resumen!$Q$1-1)*12))=0," ",OFFSET(Cantabria_datos!W38,0,((Resumen!$Q$1-1)*12)))," ") ->  | L13: =IF(L$1<=Resumen!$P$1,IF(OFFSET(Cantabria_datos!X38,0,((Resumen!$Q$1-1)*12))=0," ",OFFSET(Cantabria_datos!X38,0,((Resumen!$Q$1-1)*12)))," ") ->  | M13: =IF(M$1<=Resumen!$P$1,IF(OFFSET(Cantabria_datos!Y38,0,((Resumen!$Q$1-1)*12))=0," ",OFFSET(Cantabria_datos!Y38,0,((Resumen!$Q$1-1)*12)))," ") -> 
A14: Otras renovables | B14: =IF(B$1<=Resumen!$P$1,IF(OFFSET(Cantabria_datos!N39,0,((Resumen!$Q$1-1)*12))=0," ",OFFSET(Cantabria_datos!N39,0,((Resumen!$Q$1-1)*12)))," ") -> 7349.406 | C14: =IF(C$1<=Resumen!$P$1,IF(OFFSET(Cantabria_datos!O39,0,((Resumen!$Q$1-1)*12))=0," ",OFFSET(Cantabria_datos!O39,0,((Resumen!$Q$1-1)*12)))," ") -> 4609.574 | D14: =IF(D$1<=Resumen!$P$1,IF(OFFSET(Cantabria_datos!P39,0,((Resumen!$Q$1-1)*12))=0," ",OFFSET(Cantabria_datos!P39,0,((Resumen!$Q$1-1)*12)))," ") -> 7318.16 | E14: =IF(E$1<=Resumen!$P$1,IF(OFFSET(Cantabria_datos!Q39,0,((Resumen!$Q$1-1)*12))=0," ",OFFSET(Cantabria_datos!Q39,0,((Resumen!$Q$1-1)*12)))," ") -> 7201.663 | F14: =IF(F$1<=Resumen!$P$1,IF(OFFSET(Cantabria_datos!R39,0,((Resumen!$Q$1-1)*12))=0," ",OFFSET(Cantabria_datos!R39,0,((Resumen!$Q$1-1)*12)))," ") -> 7343.75 | G14: =IF(G$1<=Resumen!$P$1,IF(OFFSET(Cantabria_datos!S39,0,((Resumen!$Q$1-1)*12))=0," ",OFFSET(Cantabria_datos!S39,0,((Resumen!$Q$1-1)*12)))," ") -> 7064.926 | H14: =IF(H$1<=Resumen!$P$1,IF(OFFSET(Cantabria_datos!T39,0,((Resumen!$Q$1-1)*12))=0," ",OFFSET(Cantabria_datos!T39,0,((Resumen!$Q$1-1)*12)))," ") -> 6327.045 | I14: =IF(I$1<=Resumen!$P$1,IF(OFFSET(Cantabria_datos!U39,0,((Resumen!$Q$1-1)*12))=0," ",OFFSET(Cantabria_datos!U39,0,((Resumen!$Q$1-1)*12)))," ") -> 7391.821 | J14: =IF(J$1<=Resumen!$P$1,IF(OFFSET(Cantabria_datos!V39,0,((Resumen!$Q$1-1)*12))=0," ",OFFSET(Cantabria_datos!V39,0,((Resumen!$Q$1-1)*12)))," ") -> 7204.197 | K14: =IF(K$1<=Resumen!$P$1,IF(OFFSET(Cantabria_datos!W39,0,((Resumen!$Q$1-1)*12))=0," ",OFFSET(Cantabria_datos!W39,0,((Resumen!$Q$1-1)*12)))," ") ->  | L14: =IF(L$1<=Resumen!$P$1,IF(OFFSET(Cantabria_datos!X39,0,((Resumen!$Q$1-1)*12))=0," ",OFFSET(Cantabria_datos!X39,0,((Resumen!$Q$1-1)*12)))," ") ->  | M14: =IF(M$1<=Resumen!$P$1,IF(OFFSET(Cantabria_datos!Y39,0,((Resumen!$Q$1-1)*12))=0," ",OFFSET(Cantabria_datos!Y39,0,((Resumen!$Q$1-1)*12)))," ") ->  | N14: 61810.542
A15: Cogeneración | B15: =IF(B$1<=Resumen!$P$1,IF(OFFSET(Cantabria_datos!N40,0,((Resumen!$Q$1-1)*12))=0," ",OFFSET(Cantabria_datos!N40,0,((Resumen!$Q$1-1)*12)))," ") -> 99348.111 | C15: =IF(C$1<=Resumen!$P$1,IF(OFFSET(Cantabria_datos!O40,0,((Resumen!$Q$1-1)*12))=0," ",OFFSET(Cantabria_datos!O40,0,((Resumen!$Q$1-1)*12)))," ") -> 96060.05 | D15: =IF(D$1<=Resumen!$P$1,IF(OFFSET(Cantabria_datos!P40,0,((Resumen!$Q$1-1)*12))=0," ",OFFSET(Cantabria_datos!P40,0,((Resumen!$Q$1-1)*12)))," ") -> 105718.1 | E15: =IF(E$1<=Resumen!$P$1,IF(OFFSET(Cantabria_datos!Q40,0,((Resumen!$Q$1-1)*12))=0," ",OFFSET(Cantabria_datos!Q40,0,((Resumen!$Q$1-1)*12)))," ") -> 100453.899 | F15: =IF(F$1<=Resumen!$P$1,IF(OFFSET(Cantabria_datos!R40,0,((Resumen!$Q$1-1)*12))=0," ",OFFSET(Cantabria_datos!R40,0,((Resumen!$Q$1-1)*12)))," ") -> 85295.948 | G15: =IF(G$1<=Resumen!$P$1,IF(OFFSET(Cantabria_datos!S40,0,((Resumen!$Q$1-1)*12))=0," ",OFFSET(Cantabria_datos!S40,0,((Resumen!$Q$1-1)*12)))," ") -> 86194.941 | H15: =IF(H$1<=Resumen!$P$1,IF(OFFSET(Cantabria_datos!T40,0,((Resumen!$Q$1-1)*12))=0," ",OFFSET(Cantabria_datos!T40,0,((Resumen!$Q$1-1)*12)))," ") -> 94066.868 | I15: =IF(I$1<=Resumen!$P$1,IF(OFFSET(Cantabria_datos!U40,0,((Resumen!$Q$1-1)*12))=0," ",OFFSET(Cantabria_datos!U40,0,((Resumen!$Q$1-1)*12)))," ") -> 73476.743 | J15: =IF(J$1<=Resumen!$P$1,IF(OFFSET(Cantabria_datos!V40,0,((Resumen!$Q$1-1)*12))=0," ",OFFSET(Cantabria_datos!V40,0,((Resumen!$Q$1-1)*12)))," ") -> 86556.846 | K15: =IF(K$1<=Resumen!$P$1,IF(OFFSET(Cantabria_datos!W40,0,((Resumen!$Q$1-1)*12))=0," ",OFFSET(Cantabria_datos!W40,0,((Resumen!$Q$1-1)*12)))," ") ->  | L15: =IF(L$1<=Resumen!$P$1,IF(OFFSET(Cantabria_datos!X40,0,((Resumen!$Q$1-1)*12))=0," ",OFFSET(Cantabria_datos!X40,0,((Resumen!$Q$1-1)*12)))," ") ->  | M15: =IF(M$1<=Resumen!$P$1,IF(OFFSET(Cantabria_datos!Y40,0,((Resumen!$Q$1-1)*12))=0," ",OFFSET(Cantabria_datos!Y40,0,((Resumen!$Q$1-1)*12)))," ") ->  | N15: 827171.506
A16: Residuos | B16: =IF(B$1<=Resumen!$P$1,IF(OFFSET(Cantabria_datos!N41,0,((Resumen!$Q$1-1)*12))=0," ",OFFSET(Cantabria_datos!N41,0,((Resumen!$Q$1-1)*12)))," ") -> 6431.116 | C16: =IF(C$1<=Resumen!$P$1,IF(OFFSET(Cantabria_datos!O41,0,((Resumen!$Q$1-1)*12))=0," ",OFFSET(Cantabria_datos!O41,0,((Resumen!$Q$1-1)*12)))," ") -> 1113.145 | D16: =IF(D$1<=Resumen!$P$1,IF(OFFSET(Cantabria_datos!P41,0,((Resumen!$Q$1-1)*12))=0," ",OFFSET(Cantabria_datos!P41,0,((Resumen!$Q$1-1)*12)))," ") -> 5254.631 | E16: =IF(E$1<=Resumen!$P$1,IF(OFFSET(Cantabria_datos!Q41,0,((Resumen!$Q$1-1)*12))=0," ",OFFSET(Cantabria_datos!Q41,0,((Resumen!$Q$1-1)*12)))," ") -> 6885.079 | F16: =IF(F$1<=Resumen!$P$1,IF(OFFSET(Cantabria_datos!R41,0,((Resumen!$Q$1-1)*12))=0," ",OFFSET(Cantabria_datos!R41,0,((Resumen!$Q$1-1)*12)))," ") -> 6695.953 | G16: =IF(G$1<=Resumen!$P$1,IF(OFFSET(Cantabria_datos!S41,0,((Resumen!$Q$1-1)*12))=0," ",OFFSET(Cantabria_datos!S41,0,((Resumen!$Q$1-1)*12)))," ") -> 6815.374 | H16: =IF(H$1<=Resumen!$P$1,IF(OFFSET(Cantabria_datos!T41,0,((Resumen!$Q$1-1)*12))=0," ",OFFSET(Cantabria_datos!T41,0,((Resumen!$Q$1-1)*12)))," ") -> 7058.621 | I16: =IF(I$1<=Resumen!$P$1,IF(OFFSET(Cantabria_datos!U41,0,((Resumen!$Q$1-1)*12))=0," ",OFFSET(Cantabria_datos!U41,0,((Resumen!$Q$1-1)*12)))," ") -> 6145.447 | J16: =IF(J$1<=Resumen!$P$1,IF(OFFSET(Cantabria_datos!V41,0,((Resumen!$Q$1-1)*12))=0," ",OFFSET(Cantabria_datos!V41,0,((Resumen!$Q$1-1)*12)))," ") -> 6562.31 | K16: =IF(K$1<=Resumen!$P$1,IF(OFFSET(Cantabria_datos!W41,0,((Resumen!$Q$1-1)*12))=0," ",OFFSET(Cantabria_datos!W41,0,((Resumen!$Q$1-1)*12)))," ") ->  | L16: =IF(L$1<=Resumen!$P$1,IF(OFFSET(Cantabria_datos!X41,0,((Resumen!$Q$1-1)*12))=0," ",OFFSET(Cantabria_datos!X41,0,((Resumen!$Q$1-1)*12)))," ") ->  | M16: =IF(M$1<=Resumen!$P$1,IF(OFFSET(Cantabria_datos!Y41,0,((Resumen!$Q$1-1)*12))=0," ",OFFSET(Cantabria_datos!Y41,0,((Resumen!$Q$1-1)*12)))," ") ->  | N16: 52961.676
A17: Generación neta | B17: =IF(B$1<=Resumen!$P$1,IF(OFFSET(Cantabria_datos!N42,0,((Resumen!$Q$1-1)*12))=0," ",OFFSET(Cantabria_datos!N42,0,((Resumen!$Q$1-1)*12)))," ") -> 174093.5386 | C17: =IF(C$1<=Resumen!$P$1,IF(OFFSET(Cantabria_datos!O42,0,((Resumen!$Q$1-1)*12))=0," ",OFFSET(Cantabria_datos!O42,0,((Resumen!$Q$1-1)*12)))," ") -> 173016.6468 | D17: =IF(D$1<=Resumen!$P$1,IF(OFFSET(Cantabria_datos!P42,0,((Resumen!$Q$1-1)*12))=0," ",OFFSET(Cantabria_datos!P42,0,((Resumen!$Q$1-1)*12)))," ") -> 193277.336 | E17: =IF(E$1<=Resumen!$P$1,IF(OFFSET(Cantabria_datos!Q42,0,((Resumen!$Q$1-1)*12))=0," ",OFFSET(Cantabria_datos!Q42,0,((Resumen!$Q$1-1)*12)))," ") -> 171834.3089 | F17: =IF(F$1<=Resumen!$P$1,IF(OFFSET(Cantabria_datos!R42,0,((Resumen!$Q$1-1)*12))=0," ",OFFSET(Cantabria_datos!R42,0,((Resumen!$Q$1-1)*12)))," ") -> 150453.0932 | G17: =IF(G$1<=Resumen!$P$1,IF(OFFSET(Cantabria_datos!S42,0,((Resumen!$Q$1-1)*12))=0," ",OFFSET(Cantabria_datos!S42,0,((Resumen!$Q$1-1)*12)))," ") -> 131947.6488 | H17: =IF(H$1<=Resumen!$P$1,IF(OFFSET(Cantabria_datos!T42,0,((Resumen!$Q$1-1)*12))=0," ",OFFSET(Cantabria_datos!T42,0,((Resumen!$Q$1-1)*12)))," ") -> 132075.4681 | I17: =IF(I$1<=Resumen!$P$1,IF(OFFSET(Cantabria_datos!U42,0,((Resumen!$Q$1-1)*12))=0," ",OFFSET(Cantabria_datos!U42,0,((Resumen!$Q$1-1)*12)))," ") -> 122735.4663 | J17: =IF(J$1<=Resumen!$P$1,IF(OFFSET(Cantabria_datos!V42,0,((Resumen!$Q$1-1)*12))=0," ",OFFSET(Cantabria_datos!V42,0,((Resumen!$Q$1-1)*12)))," ") -> 133775.33 | K17: =IF(K$1<=Resumen!$P$1,IF(OFFSET(Cantabria_datos!W42,0,((Resumen!$Q$1-1)*12))=0," ",OFFSET(Cantabria_datos!W42,0,((Resumen!$Q$1-1)*12)))," ") ->  | L17: =IF(L$1<=Resumen!$P$1,IF(OFFSET(Cantabria_datos!X42,0,((Resumen!$Q$1-1)*12))=0," ",OFFSET(Cantabria_datos!X42,0,((Resumen!$Q$1-1)*12)))," ") ->  | M17: =IF(M$1<=Resumen!$P$1,IF(OFFSET(Cantabria_datos!Y42,0,((Resumen!$Q$1-1)*12))=0," ",OFFSET(Cantabria_datos!Y42,0,((Resumen!$Q$1-1)*12)))," ") ->  | N17: 1383208.837
A18: Consumos en bombeo | B18: =IF(B$1<=Resumen!$P$1,IF(OFFSET(Cantabria_datos!N43,0,((Resumen!$Q$1-1)*12))=0," ",OFFSET(Cantabria_datos!N43,0,((Resumen!$Q$1-1)*12)))," ") -> -58755 | C18: =IF(C$1<=Resumen!$P$1,IF(OFFSET(Cantabria_datos!O43,0,((Resumen!$Q$1-1)*12))=0," ",OFFSET(Cantabria_datos!O43,0,((Resumen!$Q$1-1)*12)))," ") -> -134716 | D18: =IF(D$1<=Resumen!$P$1,IF(OFFSET(Cantabria_datos!P43,0,((Resumen!$Q$1-1)*12))=0," ",OFFSET(Cantabria_datos!P43,0,((Resumen!$Q$1-1)*12)))," ") -> -64103 | E18: =IF(E$1<=Resumen!$P$1,IF(OFFSET(Cantabria_datos!Q43,0,((Resumen!$Q$1-1)*12))=0," ",OFFSET(Cantabria_datos!Q43,0,((Resumen!$Q$1-1)*12)))," ") -> -66246 | F18: =IF(F$1<=Resumen!$P$1,IF(OFFSET(Cantabria_datos!R43,0,((Resumen!$Q$1-1)*12))=0," ",OFFSET(Cantabria_datos!R43,0,((Resumen!$Q$1-1)*12)))," ") -> -44026 | G18: =IF(G$1<=Resumen!$P$1,IF(OFFSET(Cantabria_datos!S43,0,((Resumen!$Q$1-1)*12))=0," ",OFFSET(Cantabria_datos!S43,0,((Resumen!$Q$1-1)*12)))," ") -> -32014 | H18: =IF(H$1<=Resumen!$P$1,IF(OFFSET(Cantabria_datos!T43,0,((Resumen!$Q$1-1)*12))=0," ",OFFSET(Cantabria_datos!T43,0,((Resumen!$Q$1-1)*12)))," ") -> -15725 | I18: =IF(I$1<=Resumen!$P$1,IF(OFFSET(Cantabria_datos!U43,0,((Resumen!$Q$1-1)*12))=0," ",OFFSET(Cantabria_datos!U43,0,((Resumen!$Q$1-1)*12)))," ") -> -46889 | J18: =IF(J$1<=Resumen!$P$1,IF(OFFSET(Cantabria_datos!V43,0,((Resumen!$Q$1-1)*12))=0," ",OFFSET(Cantabria_datos!V43,0,((Resumen!$Q$1-1)*12)))," ") -> -34266 | K18: =IF(K$1<=Resumen!$P$1,IF(OFFSET(Cantabria_datos!W43,0,((Resumen!$Q$1-1)*12))=0," ",OFFSET(Cantabria_datos!W43,0,((Resumen!$Q$1-1)*12)))," ") ->  | L18: =IF(L$1<=Resumen!$P$1,IF(OFFSET(Cantabria_datos!X43,0,((Resumen!$Q$1-1)*12))=0," ",OFFSET(Cantabria_datos!X43,0,((Resumen!$Q$1-1)*12)))," ") ->  | M18: =IF(M$1<=Resumen!$P$1,IF(OFFSET(Cantabria_datos!Y43,0,((Resumen!$Q$1-1)*12))=0," ",OFFSET(Cantabria_datos!Y43,0,((Resumen!$Q$1-1)*12)))," ") ->  | N18: -496740
A19: Saldo Intercambios | B19: =IF(B$1<=Resumen!$P$1,IF(OFFSET(Cantabria_datos!N44,0,((Resumen!$Q$1-1)*12))=0," ",OFFSET(Cantabria_datos!N44,0,((Resumen!$Q$1-1)*12)))," ") -> 266301 | C19: =IF(C$1<=Resumen!$P$1,IF(OFFSET(Cantabria_datos!O44,0,((Resumen!$Q$1-1)*12))=0," ",OFFSET(Cantabria_datos!O44,0,((Resumen!$Q$1-1)*12)))," ") -> 302216 | D19: =IF(D$1<=Resumen!$P$1,IF(OFFSET(Cantabria_datos!P44,0,((Resumen!$Q$1-1)*12))=0," ",OFFSET(Cantabria_datos!P44,0,((Resumen!$Q$1-1)*12)))," ") -> 254686 | E19: =IF(E$1<=Resumen!$P$1,IF(OFFSET(Cantabria_datos!Q44,0,((Resumen!$Q$1-1)*12))=0," ",OFFSET(Cantabria_datos!Q44,0,((Resumen!$Q$1-1)*12)))," ") -> 255696 | F19: =IF(F$1<=Resumen!$P$1,IF(OFFSET(Cantabria_datos!R44,0,((Resumen!$Q$1-1)*12))=0," ",OFFSET(Cantabria_datos!R44,0,((Resumen!$Q$1-1)*12)))," ") -> 265038 | G19: =IF(G$1<=Resumen!$P$1,IF(OFFSET(Cantabria_datos!S44,0,((Resumen!$Q$1-1)*12))=0," ",OFFSET(Cantabria_datos!S44,0,((Resumen!$Q$1-1)*12)))," ") -> 254929 | H19: =IF(H$1<=Resumen!$P$1,IF(OFFSET(Cantabria_datos!T44,0,((Resumen!$Q$1-1)*12))=0," ",OFFSET(Cantabria_datos!T44,0,((Resumen!$Q$1-1)*12)))," ") -> 238872 | I19: =IF(I$1<=Resumen!$P$1,IF(OFFSET(Cantabria_datos!U44,0,((Resumen!$Q$1-1)*12))=0," ",OFFSET(Cantabria_datos!U44,0,((Resumen!$Q$1-1)*12)))," ") -> 288595 | J19: =IF(J$1<=Resumen!$P$1,IF(OFFSET(Cantabria_datos!V44,0,((Resumen!$Q$1-1)*12))=0," ",OFFSET(Cantabria_datos!V44,0,((Resumen!$Q$1-1)*12)))," ") -> 259336 | K19: =IF(K$1<=Resumen!$P$1,IF(OFFSET(Cantabria_datos!W44,0,((Resumen!$Q$1-1)*12))=0," ",OFFSET(Cantabria_datos!W44,0,((Resumen!$Q$1-1)*12)))," ") ->  | L19: =IF(L$1<=Resumen!$P$1,IF(OFFSET(Cantabria_datos!X44,0,((Resumen!$Q$1-1)*12))=0," ",OFFSET(Cantabria_datos!X44,0,((Resumen!$Q$1-1)*12)))," ") ->  | M19: =IF(M$1<=Resumen!$P$1,IF(OFFSET(Cantabria_datos!Y44,0,((Resumen!$Q$1-1)*12))=0," ",OFFSET(Cantabria_datos!Y44,0,((Resumen!$Q$1-1)*12)))," ") ->  | N19: 2385669
A20: Demanda B.C | B20: =IF(B$1<=Resumen!$P$1,IF(OFFSET(Cantabria_datos!N45,0,((Resumen!$Q$1-1)*12))=0," ",OFFSET(Cantabria_datos!N45,0,((Resumen!$Q$1-1)*12)))," ") -> 381640.0046 | C20: =IF(C$1<=Resumen!$P$1,IF(OFFSET(Cantabria_datos!O45,0,((Resumen!$Q$1-1)*12))=0," ",OFFSET(Cantabria_datos!O45,0,((Resumen!$Q$1-1)*12)))," ") -> 340516.2694 | D20: =IF(D$1<=Resumen!$P$1,IF(OFFSET(Cantabria_datos!P45,0,((Resumen!$Q$1-1)*12))=0," ",OFFSET(Cantabria_datos!P45,0,((Resumen!$Q$1-1)*12)))," ") -> 383860.3665 | E20: =IF(E$1<=Resumen!$P$1,IF(OFFSET(Cantabria_datos!Q45,0,((Resumen!$Q$1-1)*12))=0," ",OFFSET(Cantabria_datos!Q45,0,((Resumen!$Q$1-1)*12)))," ") -> 361284.7283 | F20: =IF(F$1<=Resumen!$P$1,IF(OFFSET(Cantabria_datos!R45,0,((Resumen!$Q$1-1)*12))=0," ",OFFSET(Cantabria_datos!R45,0,((Resumen!$Q$1-1)*12)))," ") -> 371464.8922 | G20: =IF(G$1<=Resumen!$P$1,IF(OFFSET(Cantabria_datos!S45,0,((Resumen!$Q$1-1)*12))=0," ",OFFSET(Cantabria_datos!S45,0,((Resumen!$Q$1-1)*12)))," ") -> 354862.7449 | H20: =IF(H$1<=Resumen!$P$1,IF(OFFSET(Cantabria_datos!T45,0,((Resumen!$Q$1-1)*12))=0," ",OFFSET(Cantabria_datos!T45,0,((Resumen!$Q$1-1)*12)))," ") -> 355222.1587 | I20: =IF(I$1<=Resumen!$P$1,IF(OFFSET(Cantabria_datos!U45,0,((Resumen!$Q$1-1)*12))=0," ",OFFSET(Cantabria_datos!U45,0,((Resumen!$Q$1-1)*12)))," ") -> 364441.5835 | J20: =IF(J$1<=Resumen!$P$1,IF(OFFSET(Cantabria_datos!V45,0,((Resumen!$Q$1-1)*12))=0," ",OFFSET(Cantabria_datos!V45,0,((Resumen!$Q$1-1)*12)))," ") -> 358845.4966 | K20: =IF(K$1<=Resumen!$P$1,IF(OFFSET(Cantabria_datos!W45,0,((Resumen!$Q$1-1)*12))=0," ",OFFSET(Cantabria_datos!W45,0,((Resumen!$Q$1-1)*12)))," ") ->  | L20: =IF(L$1<=Resumen!$P$1,IF(OFFSET(Cantabria_datos!X45,0,((Resumen!$Q$1-1)*12))=0," ",OFFSET(Cantabria_datos!X45,0,((Resumen!$Q$1-1)*12)))," ") ->  | M20: =IF(M$1<=Resumen!$P$1,IF(OFFSET(Cantabria_datos!Y45,0,((Resumen!$Q$1-1)*12))=0," ",OFFSET(Cantabria_datos!Y45,0,((Resumen!$Q$1-1)*12)))," ") ->  | N20: 3272138.245
A21: =Resumen!A22 -> %Δ 17/16 | B21: =IF(B$1<=Resumen!$P$1,IF(OFFSET(Cantabria_datos!N46,0,((Resumen!$Q$1-1)*12))=0," ",OFFSET(Cantabria_datos!N46,0,((Resumen!$Q$1-1)*12)))," ") -> 28.31071954 | C21: =IF(C$1<=Resumen!$P$1,IF(OFFSET(Cantabria_datos!O46,0,((Resumen!$Q$1-1)*12))=0," ",OFFSET(Cantabria_datos!O46,0,((Resumen!$Q$1-1)*12)))," ") -> -1.286107174 | D21: =IF(D$1<=Resumen!$P$1,IF(OFFSET(Cantabria_datos!P46,0,((Resumen!$Q$1-1)*12))=0," ",OFFSET(Cantabria_datos!P46,0,((Resumen!$Q$1-1)*12)))," ") -> 0.5246462489 | E21: =IF(E$1<=Resumen!$P$1,IF(OFFSET(Cantabria_datos!Q46,0,((Resumen!$Q$1-1)*12))=0," ",OFFSET(Cantabria_datos!Q46,0,((Resumen!$Q$1-1)*12)))," ") -> -1.789447571 | F21: =IF(F$1<=Resumen!$P$1,IF(OFFSET(Cantabria_datos!R46,0,((Resumen!$Q$1-1)*12))=0," ",OFFSET(Cantabria_datos!R46,0,((Resumen!$Q$1-1)*12)))," ") -> 1.752840879 | G21: =IF(G$1<=Resumen!$P$1,IF(OFFSET(Cantabria_datos!S46,0,((Resumen!$Q$1-1)*12))=0," ",OFFSET(Cantabria_datos!S46,0,((Resumen!$Q$1-1)*12)))," ") -> 7.133746113 | H21: =IF(H$1<=Resumen!$P$1,IF(OFFSET(Cantabria_datos!T46,0,((Resumen!$Q$1-1)*12))=0," ",OFFSET(Cantabria_datos!T46,0,((Resumen!$Q$1-1)*12)))," ") -> 4.819364506 | I21: =IF(I$1<=Resumen!$P$1,IF(OFFSET(Cantabria_datos!U46,0,((Resumen!$Q$1-1)*12))=0," ",OFFSET(Cantabria_datos!U46,0,((Resumen!$Q$1-1)*12)))," ") -> -0.8888643198 | J21: =IF(J$1<=Resumen!$P$1,IF(OFFSET(Cantabria_datos!V46,0,((Resumen!$Q$1-1)*12))=0," ",OFFSET(Cantabria_datos!V46,0,((Resumen!$Q$1-1)*12)))," ") -> 0.3286508009 | K21: =IF(K$1<=Resumen!$P$1,IF(OFFSET(Cantabria_datos!W46,0,((Resumen!$Q$1-1)*12))=0," ",OFFSET(Cantabria_datos!W46,0,((Resumen!$Q$1-1)*12)))," ") ->  | L21: =IF(L$1<=Resumen!$P$1,IF(OFFSET(Cantabria_datos!X46,0,((Resumen!$Q$1-1)*12))=0," ",OFFSET(Cantabria_datos!X46,0,((Resumen!$Q$1-1)*12)))," ") ->  | M21: =IF(M$1<=Resumen!$P$1,IF(OFFSET(Cantabria_datos!Y46,0,((Resumen!$Q$1-1)*12))=0," ",OFFSET(Cantabria_datos!Y46,0,((Resumen!$Q$1-1)*12)))," ") ->  | N21: =((N20/SUM(OFFSET(Cantabria_datos!N45,0,(Resumen!$Q$1-2)*12):OFFSET(Cantabria_datos!N45,0,((Resumen!$Q$1-2)*12)+Resumen!$P$1-1))-1)*100) -> 3.789082325
A69: =A1 -> Cantabria | B69: =J20 -> 358845.4966
A70: Resto nacional | B70: =Nacional_datos!BR45-B69 -> 21190888.53

Sheet Castilla la Mancha
A1: Castilla la Mancha | B1: 1 | C1: 2 | D1: 3 | E1: 4 | F1: 5 | G1: 6 | H1: 7 | I1: 8 | J1: 9 | K1: 10 | L1: 11 | M1: 12
A2: Balance mensual de energía electrica. MWh
B3: 2017
B4: Ene | C4: Feb | D4: Mar | E4: Abr | F4: May | G4: Jun | H4: Jul | I4: Ago | J4: Sep | K4: Oct | L4: Nov | M4: Dic | N4: TOTAL
A5: Hidraulica | B5: =IF(B$1<=Resumen!$P$1,IF(OFFSET('Castilla la Mancha_datos'!N30,0,((Resumen!$Q$1-1)*12))=0," ",OFFSET('Castilla la Mancha_datos'!N30,0,((Resumen!$Q$1-1)*12)))," ") -> 38725.4522 | C5: =IF(C$1<=Resumen!$P$1,IF(OFFSET('Castilla la Mancha_datos'!O30,0,((Resumen!$Q$1-1)*12))=0," ",OFFSET('Castilla la Mancha_datos'!O30,0,((Resumen!$Q$1-1)*12)))," ") -> 59882.53247 | D5: =IF(D$1<=Resumen!$P$1,IF(OFFSET('Castilla la Mancha_datos'!P30,0,((Resumen!$Q$1-1)*12))=0," ",OFFSET('Castilla la Mancha_datos'!P30,0,((Resumen!$Q$1-1)*12)))," ") -> 52812.04069 | E5: =IF(E$1<=Resumen!$P$1,IF(OFFSET('Castilla la Mancha_datos'!Q30,0,((Resumen!$Q$1-1)*12))=0," ",OFFSET('Castilla la Mancha_datos'!Q30,0,((Resumen!$Q$1-1)*12)))," ") -> 55201.31088 | F5: =IF(F$1<=Resumen!$P$1,IF(OFFSET('Castilla la Mancha_datos'!R30,0,((Resumen!$Q$1-1)*12))=0," ",OFFSET('Castilla la Mancha_datos'!R30,0,((Resumen!$Q$1-1)*12)))," ") -> 47366.57049 | G5: =IF(G$1<=Resumen!$P$1,IF(OFFSET('Castilla la Mancha_datos'!S30,0,((Resumen!$Q$1-1)*12))=0," ",OFFSET('Castilla la Mancha_datos'!S30,0,((Resumen!$Q$1-1)*12)))," ") -> 20481.13942 | H5: =IF(H$1<=Resumen!$P$1,IF(OFFSET('Castilla la Mancha_datos'!T30,0,((Resumen!$Q$1-1)*12))=0," ",OFFSET('Castilla la Mancha_datos'!T30,0,((Resumen!$Q$1-1)*12)))," ") -> 32282.87488 | I5: =IF(I$1<=Resumen!$P$1,IF(OFFSET('Castilla la Mancha_datos'!U30,0,((Resumen!$Q$1-1)*12))=0," ",OFFSET('Castilla la Mancha_datos'!U30,0,((Resumen!$Q$1-1)*12)))," ") -> 26301.84791 | J5: =IF(J$1<=Resumen!$P$1,IF(OFFSET('Castilla la Mancha_datos'!V30,0,((Resumen!$Q$1-1)*12))=0," ",OFFSET('Castilla la Mancha_datos'!V30,0,((Resumen!$Q$1-1)*12)))," ") -> 29683.16718 | K5: =IF(K$1<=Resumen!$P$1,IF(OFFSET('Castilla la Mancha_datos'!W30,0,((Resumen!$Q$1-1)*12))=0," ",OFFSET('Castilla la Mancha_datos'!W30,0,((Resumen!$Q$1-1)*12)))," ") ->  | L5: =IF(L$1<=Resumen!$P$1,IF(OFFSET('Castilla la Mancha_datos'!X30,0,((Resumen!$Q$1-1)*12))=0," ",OFFSET('Castilla la Mancha_datos'!X30,0,((Resumen!$Q$1-1)*12)))," ") ->  | M5: =IF(M$1<=Resumen!$P$1,IF(OFFSET('Castilla la Mancha_datos'!Y30,0,((Resumen!$Q$1-1)*12))=0," ",OFFSET('Castilla la Mancha_datos'!Y30,0,((Resumen!$Q$1-1)*12)))," ") ->  | N5: =IF(SUM(B5:M5)=0," ",SUM(B5:M5)) -> 362736.9361
A6: Nuclear | B6: =IF(B$1<=Resumen!$P$1,IF(OFFSET('Castilla la Mancha_datos'!N31,0,((Resumen!$Q$1-1)*12))=0," ",OFFSET('Castilla la Mancha_datos'!N31,0,((Resumen!$Q$1-1)*12)))," ") -> 741131 | C6: =IF(C$1<=Resumen!$P$1,IF(OFFSET('Castilla la Mancha_datos'!O31,0,((Resumen!$Q$1-1)*12))=0," ",OFFSET('Castilla la Mancha_datos'!O31,0,((Resumen!$Q$1-1)*12)))," ") -> 669195 | D6: =IF(D$1<=Resumen!$P$1,IF(OFFSET('Castilla la Mancha_datos'!P31,0,((Resumen!$Q$1-1)*12))=0," ",OFFSET('Castilla la Mancha_datos'!P31,0,((Resumen!$Q$1-1)*12)))," ") -> 739450 | E6: =IF(E$1<=Resumen!$P$1,IF(OFFSET('Castilla la Mancha_datos'!Q31,0,((Resumen!$Q$1-1)*12))=0," ",OFFSET('Castilla la Mancha_datos'!Q31,0,((Resumen!$Q$1-1)*12)))," ") -> 715090 | F6: =IF(F$1<=Resumen!$P$1,IF(OFFSET('Castilla la Mancha_datos'!R31,0,((Resumen!$Q$1-1)*12))=0," ",OFFSET('Castilla la Mancha_datos'!R31,0,((Resumen!$Q$1-1)*12)))," ") -> 110091 | G6: =IF(G$1<=Resumen!$P$1,IF(OFFSET('Castilla la Mancha_datos'!S31,0,((Resumen!$Q$1-1)*12))=0," ",OFFSET('Castilla la Mancha_datos'!S31,0,((Resumen!$Q$1-1)*12)))," ") -> 626502 | H6: =IF(H$1<=Resumen!$P$1,IF(OFFSET('Castilla la Mancha_datos'!T31,0,((Resumen!$Q$1-1)*12))=0," ",OFFSET('Castilla la Mancha_datos'!T31,0,((Resumen!$Q$1-1)*12)))," ") -> 735422 | I6: =IF(I$1<=Resumen!$P$1,IF(OFFSET('Castilla la Mancha_datos'!U31,0,((Resumen!$Q$1-1)*12))=0," ",OFFSET('Castilla la Mancha_datos'!U31,0,((Resumen!$Q$1-1)*12)))," ") -> 734017 | J6: =IF(J$1<=Resumen!$P$1,IF(OFFSET('Castilla la Mancha_datos'!V31,0,((Resumen!$Q$1-1)*12))=0," ",OFFSET('Castilla la Mancha_datos'!V31,0,((Resumen!$Q$1-1)*12)))," ") -> 714547 | K6: =IF(K$1<=Resumen!$P$1,IF(OFFSET('Castilla la Mancha_datos'!W31,0,((Resumen!$Q$1-1)*12))=0," ",OFFSET('Castilla la Mancha_datos'!W31,0,((Resumen!$Q$1-1)*12)))," ") ->  | L6: =IF(L$1<=Resumen!$P$1,IF(OFFSET('Castilla la Mancha_datos'!X31,0,((Resumen!$Q$1-1)*12))=0," ",OFFSET('Castilla la Mancha_datos'!X31,0,((Resumen!$Q$1-1)*12)))," ") ->  | M6: =IF(M$1<=Resumen!$P$1,IF(OFFSET('Castilla la Mancha_datos'!Y31,0,((Resumen!$Q$1-1)*12))=0," ",OFFSET('Castilla la Mancha_datos'!Y31,0,((Resumen!$Q$1-1)*12)))," ") ->  | N6: =IF(SUM(B6:M6)=0," ",SUM(B6:M6)) -> 5785445
A7: Carbón | B7: =IF(B$1<=Resumen!$P$1,IF(OFFSET('Castilla la Mancha_datos'!N32,0,((Resumen!$Q$1-1)*12))=0," ",OFFSET('Castilla la Mancha_datos'!N32,0,((Resumen!$Q$1-1)*12)))," ") ->  | C7: =IF(C$1<=Resumen!$P$1,IF(OFFSET('Castilla la Mancha_datos'!O32,0,((Resumen!$Q$1-1)*12))=0," ",OFFSET('Castilla la Mancha_datos'!O32,0,((Resumen!$Q$1-1)*12)))," ") ->  | D7: =IF(D$1<=Resumen!$P$1,IF(OFFSET('Castilla la Mancha_datos'!P32,0,((Resumen!$Q$1-1)*12))=0," ",OFFSET('Castilla la Mancha_datos'!P32,0,((Resumen!$Q$1-1)*12)))," ") ->  | E7: =IF(E$1<=Resumen!$P$1,IF(OFFSET('Castilla la Mancha_datos'!Q32,0,((Resumen!$Q$1-1)*12))=0," ",OFFSET('Castilla la Mancha_datos'!Q32,0,((Resumen!$Q$1-1)*12)))," ") ->  | F7: =IF(F$1<=Resumen!$P$1,IF(OFFSET('Castilla la Mancha_datos'!R32,0,((Resumen!$Q$1-1)*12))=0," ",OFFSET('Castilla la Mancha_datos'!R32,0,((Resumen!$Q$1-1)*12)))," ") ->  | G7: =IF(G$1<=Resumen!$P$1,IF(OFFSET('Castilla la Mancha_datos'!S32,0,((Resumen!$Q$1-1)*12))=0," ",OFFSET('Castilla la Mancha_datos'!S32,0,((Resumen!$Q$1-1)*12)))," ") ->  | H7: =IF(H$1<=Resumen!$P$1,IF(OFFSET('Castilla la Mancha_datos'!T32,0,((Resumen!$Q$1-1)*12))=0," ",OFFSET('Castilla la Mancha_datos'!T32,0,((Resumen!$Q$1-1)*12)))," ") ->  | I7: =IF(I$1<=Resumen!$P$1,IF(OFFSET('Castilla la Mancha_datos'!U32,0,((Resumen!$Q$1-1)*12))=0," ",OFFSET('Castilla la Mancha_datos'!U32,0,((Resumen!$Q$1-1)*12)))," ") ->  | J7: =IF(J$1<=Resumen!$P$1,IF(OFFSET('Castilla la Mancha_datos'!V32,0,((Resumen!$Q$1-1)*12))=0," ",OFFSET('Castilla la Mancha_datos'!V32,0,((Resumen!$Q$1-1)*12)))," ") ->  | K7: =IF(K$1<=Resumen!$P$1,IF(OFFSET('Castilla la Mancha_datos'!W32,0,((Resumen!$Q$1-1)*12))=0," ",OFFSET('Castilla la Mancha_datos'!W32,0,((Resumen!$Q$1-1)*12)))," ") ->  | L7: =IF(L$1<=Resumen!$P$1,IF(OFFSET('Castilla la Mancha_datos'!X32,0,((Resumen!$Q$1-1)*12))=0," ",OFFSET('Castilla la Mancha_datos'!X32,0,((Resumen!$Q$1-1)*12)))," ") ->  | M7: =IF(M$1<=Resumen!$P$1,IF(OFFSET('Castilla la Mancha_datos'!Y32,0,((Resumen!$Q$1-1)*12))=0," ",OFFSET('Castilla la Mancha_datos'!Y32,0,((Resumen!$Q$1-1)*12)))," ") -> 
A8: Fuel-Gas | B8: =IF(B$1<=Resumen!$P$1,IF(OFFSET('Castilla la Mancha_datos'!N33,0,((Resumen!$Q$1-1)*12))=0," ",OFFSET('Castilla la Mancha_datos'!N33,0,((Resumen!$Q$1-1)*12)))," ") ->  | C8: =IF(C$1<=Resumen!$P$1,IF(OFFSET('Castilla la Mancha_datos'!O33,0,((Resumen!$Q$1-1)*12))=0," ",OFFSET('Castilla la Mancha_datos'!O33,0,((Resumen!$Q$1-1)*12)))," ") ->  | D8: =IF(D$1<=Resumen!$P$1,IF(OFFSET('Castilla la Mancha_datos'!P33,0,((Resumen!$Q$1-1)*12))=0," ",OFFSET('Castilla la Mancha_datos'!P33,0,((Resumen!$Q$1-1)*12)))," ") ->  | E8: =IF(E$1<=Resumen!$P$1,IF(OFFSET('Castilla la Mancha_datos'!Q33,0,((Resumen!$Q$1-1)*12))=0," ",OFFSET('Castilla la Mancha_datos'!Q33,0,((Resumen!$Q$1-1)*12)))," ") ->  | F8: =IF(F$1<=Resumen!$P$1,IF(OFFSET('Castilla la Mancha_datos'!R33,0,((Resumen!$Q$1-1)*12))=0," ",OFFSET('Castilla la Mancha_datos'!R33,0,((Resumen!$Q$1-1)*12)))," ") ->  | G8: =IF(G$1<=Resumen!$P$1,IF(OFFSET('Castilla la Mancha_datos'!S33,0,((Resumen!$Q$1-1)*12))=0," ",OFFSET('Castilla la Mancha_datos'!S33,0,((Resumen!$Q$1-1)*12)))," ") ->  | H8: =IF(H$1<=Resumen!$P$1,IF(OFFSET('Castilla la Mancha_datos'!T33,0,((Resumen!$Q$1-1)*12))=0," ",OFFSET('Castilla la Mancha_datos'!T33,0,((Resumen!$Q$1-1)*12)))," ") ->  | I8: =IF(I$1<=Resumen!$P$1,IF(OFFSET('Castilla la Mancha_datos'!U33,0,((Resumen!$Q$1-1)*12))=0," ",OFFSET('Castilla la Mancha_datos'!U33,0,((Resumen!$Q$1-1)*12)))," ") ->  | J8: =IF(J$1<=Resumen!$P$1,IF(OFFSET('Castilla la Mancha_datos'!V33,0,((Resumen!$Q$1-1)*12))=0," ",OFFSET('Castilla la Mancha_datos'!V33,0,((Resumen!$Q$1-1)*12)))," ") ->  | K8: =IF(K$1<=Resumen!$P$1,IF(OFFSET('Castilla la Mancha_datos'!W33,0,((Resumen!$Q$1-1)*12))=0," ",OFFSET('Castilla la Mancha_datos'!W33,0,((Resumen!$Q$1-1)*12)))," ") ->  | L8: =IF(L$1<=Resumen!$P$1,IF(OFFSET('Castilla la Mancha_datos'!X33,0,((Resumen!$Q$1-1)*12))=0," ",OFFSET('Castilla la Mancha_datos'!X33,0,((Resumen!$Q$1-1)*12)))," ") ->  | M8: =IF(M$1<=Resumen!$P$1,IF(OFFSET('Castilla la Mancha_datos'!Y33,0,((Resumen!$Q$1-1)*12))=0," ",OFFSET('Castilla la Mancha_datos'!Y33,0,((Resumen!$Q$1-1)*12)))," ") -> 
A9: Ciclo combinado | B9: =IF(B$1<=Resumen!$P$1,IF(OFFSET('Castilla la Mancha_datos'!N34,0,((Resumen!$Q$1-1)*12))=0," ",OFFSET('Castilla la Mancha_datos'!N34,0,((Resumen!$Q$1-1)*12)))," ") -> 202407 | C9: =IF(C$1<=Resumen!$P$1,IF(OFFSET('Castilla la Mancha_datos'!O34,0,((Resumen!$Q$1-1)*12))=0," ",OFFSET('Castilla la Mancha_datos'!O34,0,((Resumen!$Q$1-1)*12)))," ") -> 64097 | D9: =IF(D$1<=Resumen!$P$1,IF(OFFSET('Castilla la Mancha_datos'!P34,0,((Resumen!$Q$1-1)*12))=0," ",OFFSET('Castilla la Mancha_datos'!P34,0,((Resumen!$Q$1-1)*12)))," ") -> 57079 | E9: =IF(E$1<=Resumen!$P$1,IF(OFFSET('Castilla la Mancha_datos'!Q34,0,((Resumen!$Q$1-1)*12))=0," ",OFFSET('Castilla la Mancha_datos'!Q34,0,((Resumen!$Q$1-1)*12)))," ") -> 63409 | F9: =IF(F$1<=Resumen!$P$1,IF(OFFSET('Castilla la Mancha_datos'!R34,0,((Resumen!$Q$1-1)*12))=0," ",OFFSET('Castilla la Mancha_datos'!R34,0,((Resumen!$Q$1-1)*12)))," ") -> 98604 | G9: =IF(G$1<=Resumen!$P$1,IF(OFFSET('Castilla la Mancha_datos'!S34,0,((Resumen!$Q$1-1)*12))=0," ",OFFSET('Castilla la Mancha_datos'!S34,0,((Resumen!$Q$1-1)*12)))," ") -> 152225 | H9: =IF(H$1<=Resumen!$P$1,IF(OFFSET('Castilla la Mancha_datos'!T34,0,((Resumen!$Q$1-1)*12))=0," ",OFFSET('Castilla la Mancha_datos'!T34,0,((Resumen!$Q$1-1)*12)))," ") -> 82880 | I9: =IF(I$1<=Resumen!$P$1,IF(OFFSET('Castilla la Mancha_datos'!U34,0,((Resumen!$Q$1-1)*12))=0," ",OFFSET('Castilla la Mancha_datos'!U34,0,((Resumen!$Q$1-1)*12)))," ") -> 157530 | J9: =IF(J$1<=Resumen!$P$1,IF(OFFSET('Castilla la Mancha_datos'!V34,0,((Resumen!$Q$1-1)*12))=0," ",OFFSET('Castilla la Mancha_datos'!V34,0,((Resumen!$Q$1-1)*12)))," ") -> 159797 | K9: =IF(K$1<=Resumen!$P$1,IF(OFFSET('Castilla la Mancha_datos'!W34,0,((Resumen!$Q$1-1)*12))=0," ",OFFSET('Castilla la Mancha_datos'!W34,0,((Resumen!$Q$1-1)*12)))," ") ->  | L9: =IF(L$1<=Resumen!$P$1,IF(OFFSET('Castilla la Mancha_datos'!X34,0,((Resumen!$Q$1-1)*12))=0," ",OFFSET('Castilla la Mancha_datos'!X34,0,((Resumen!$Q$1-1)*12)))," ") ->  | M9: =IF(M$1<=Resumen!$P$1,IF(OFFSET('Castilla la Mancha_datos'!Y34,0,((Resumen!$Q$1-1)*12))=0," ",OFFSET('Castilla la Mancha_datos'!Y34,0,((Resumen!$Q$1-1)*12)))," ") ->  | N9: 1038028
A10: Hidroeólica | B10: =IF(B$1<=Resumen!$P$1,IF(OFFSET('Castilla la Mancha_datos'!N35,0,((Resumen!$Q$1-1)*12))=0," ",OFFSET('Castilla la Mancha_datos'!N35,0,((Resumen!$Q$1-1)*12)))," ") ->  | C10: =IF(C$1<=Resumen!$P$1,IF(OFFSET('Castilla la Mancha_datos'!O35,0,((Resumen!$Q$1-1)*12))=0," ",OFFSET('Castilla la Mancha_datos'!O35,0,((Resumen!$Q$1-1)*12)))," ") ->  | D10: =IF(D$1<=Resumen!$P$1,IF(OFFSET('Castilla la Mancha_datos'!P35,0,((Resumen!$Q$1-1)*12))=0," ",OFFSET('Castilla la Mancha_datos'!P35,0,((Resumen!$Q$1-1)*12)))," ") ->  | E10: =IF(E$1<=Resumen!$P$1,IF(OFFSET('Castilla la Mancha_datos'!Q35,0,((Resumen!$Q$1-1)*12))=0," ",OFFSET('Castilla la Mancha_datos'!Q35,0,((Resumen!$Q$1-1)*12)))," ") ->  | F10: =IF(F$1<=Resumen!$P$1,IF(OFFSET('Castilla la Mancha_datos'!R35,0,((Resumen!$Q$1-1)*12))=0," ",OFFSET('Castilla la Mancha_datos'!R35,0,((Resumen!$Q$1-1)*12)))," ") ->  | G10: =IF(G$1<=Resumen!$P$1,IF(OFFSET('Castilla la Mancha_datos'!S35,0,((Resumen!$Q$1-1)*12))=0," ",OFFSET('Castilla la Mancha_datos'!S35,0,((Resumen!$Q$1-1)*12)))," ") ->  | H10: =IF(H$1<=Resumen!$P$1,IF(OFFSET('Castilla la Mancha_datos'!T35,0,((Resumen!$Q$1-1)*12))=0," ",OFFSET('Castilla la Mancha_datos'!T35,0,((Resumen!$Q$1-1)*12)))," ") ->  | I10: =IF(I$1<=Resumen!$P$1,IF(OFFSET('Castilla la Mancha_datos'!U35,0,((Resumen!$Q$1-1)*12))=0," ",OFFSET('Castilla la Mancha_datos'!U35,0,((Resumen!$Q$1-1)*12)))," ") ->  | J10: =IF(J$1<=Resumen!$P$1,IF(OFFSET('Castilla la Mancha_datos'!V35,0,((Resumen!$Q$1-1)*12))=0," ",OFFSET('Castilla la Mancha_datos'!V35,0,((Resumen!$Q$1-1)*12)))," ") ->  | K10: =IF(K$1<=Resumen!$P$1,IF(OFFSET('Castilla la Mancha_datos'!W35,0,((Resumen!$Q$1-1)*12))=0," ",OFFSET('Castilla la Mancha_datos'!W35,0,((Resumen!$Q$1-1)*12)))," ") ->  | L10: =IF(L$1<=Resumen!$P$1,IF(OFFSET('Castilla la Mancha_datos'!X35,0,((Resumen!$Q$1-1)*12))=0," ",OFFSET('Castilla la Mancha_datos'!X35,0,((Resumen!$Q$1-1)*12)))," ") ->  | M10: =IF(M$1<=Resumen!$P$1,IF(OFFSET('Castilla la Mancha_datos'!Y35,0,((Resumen!$Q$1-1)*12))=0," ",OFFSET('Castilla la Mancha_datos'!Y35,0,((Resumen!$Q$1-1)*12)))," ") -> 
A11: Eólica | B11: =IF(B$1<=Resumen!$P$1,IF(OFFSET('Castilla la Mancha_datos'!N36,0,((Resumen!$Q$1-1)*12))=0," ",OFFSET('Castilla la Mancha_datos'!N36,0,((Resumen!$Q$1-1)*12)))," ") -> 822673.425 | C11: =IF(C$1<=Resumen!$P$1,IF(OFFSET('Castilla la Mancha_datos'!O36,0,((Resumen!$Q$1-1)*12))=0," ",OFFSET('Castilla la Mancha_datos'!O36,0,((Resumen!$Q$1-1)*12)))," ") -> 972700.961 | D11: =IF(D$1<=Resumen!$P$1,IF(OFFSET('Castilla la Mancha_datos'!P36,0,((Resumen!$Q$1-1)*12))=0," ",OFFSET('Castilla la Mancha_datos'!P36,0,((Resumen!$Q$1-1)*12)))," ") -> 792198.22 | E11: =IF(E$1<=Resumen!$P$1,IF(OFFSET('Castilla la Mancha_datos'!Q36,0,((Resumen!$Q$1-1)*12))=0," ",OFFSET('Castilla la Mancha_datos'!Q36,0,((Resumen!$Q$1-1)*12)))," ") -> 586077.131 | F11: =IF(F$1<=Resumen!$P$1,IF(OFFSET('Castilla la Mancha_datos'!R36,0,((Resumen!$Q$1-1)*12))=0," ",OFFSET('Castilla la Mancha_datos'!R36,0,((Resumen!$Q$1-1)*12)))," ") -> 565740.468 | G11: =IF(G$1<=Resumen!$P$1,IF(OFFSET('Castilla la Mancha_datos'!S36,0,((Resumen!$Q$1-1)*12))=0," ",OFFSET('Castilla la Mancha_datos'!S36,0,((Resumen!$Q$1-1)*12)))," ") -> 542610.438 | H11: =IF(H$1<=Resumen!$P$1,IF(OFFSET('Castilla la Mancha_datos'!T36,0,((Resumen!$Q$1-1)*12))=0," ",OFFSET('Castilla la Mancha_datos'!T36,0,((Resumen!$Q$1-1)*12)))," ") -> 469911.095 | I11: =IF(I$1<=Resumen!$P$1,IF(OFFSET('Castilla la Mancha_datos'!U36,0,((Resumen!$Q$1-1)*12))=0," ",OFFSET('Castilla la Mancha_datos'!U36,0,((Resumen!$Q$1-1)*12)))," ") -> 457862.347 | J11: =IF(J$1<=Resumen!$P$1,IF(OFFSET('Castilla la Mancha_datos'!V36,0,((Resumen!$Q$1-1)*12))=0," ",OFFSET('Castilla la Mancha_datos'!V36,0,((Resumen!$Q$1-1)*12)))," ") -> 393822.347 | K11: =IF(K$1<=Resumen!$P$1,IF(OFFSET('Castilla la Mancha_datos'!W36,0,((Resumen!$Q$1-1)*12))=0," ",OFFSET('Castilla la Mancha_datos'!W36,0,((Resumen!$Q$1-1)*12)))," ") ->  | L11: =IF(L$1<=Resumen!$P$1,IF(OFFSET('Castilla la Mancha_datos'!X36,0,((Resumen!$Q$1-1)*12))=0," ",OFFSET('Castilla la Mancha_datos'!X36,0,((Resumen!$Q$1-1)*12)))," ") ->  | M11: =IF(M$1<=Resumen!$P$1,IF(OFFSET('Castilla la Mancha_datos'!Y36,0,((Resumen!$Q$1-1)*12))=0," ",OFFSET('Castilla la Mancha_datos'!Y36,0,((Resumen!$Q$1-1)*12)))," ") ->  | N11: 5603596.432
A12: Solar fotovoltaico | B12: =IF(B$1<=Resumen!$P$1,IF(OFFSET('Castilla la Mancha_datos'!N37,0,((Resumen!$Q$1-1)*12))=0," ",OFFSET('Castilla la Mancha_datos'!N37,0,((Resumen!$Q$1-1)*12)))," ") -> 93197.369 | C12: =IF(C$1<=Resumen!$P$1,IF(OFFSET('Castilla la Mancha_datos'!O37,0,((Resumen!$Q$1-1)*12))=0," ",OFFSET('Castilla la Mancha_datos'!O37,0,((Resumen!$Q$1-1)*12)))," ") -> 89935.746 | D12: =IF(D$1<=Resumen!$P$1,IF(OFFSET('Castilla la Mancha_datos'!P37,0,((Resumen!$Q$1-1)*12))=0," ",OFFSET('Castilla la Mancha_datos'!P37,0,((Resumen!$Q$1-1)*12)))," ") -> 149424.179 | E12: =IF(E$1<=Resumen!$P$1,IF(OFFSET('Castilla la Mancha_datos'!Q37,0,((Resumen!$Q$1-1)*12))=0," ",OFFSET('Castilla la Mancha_datos'!Q37,0,((Resumen!$Q$1-1)*12)))," ") -> 170287.371 | F12: =IF(F$1<=Resumen!$P$1,IF(OFFSET('Castilla la Mancha_datos'!R37,0,((Resumen!$Q$1-1)*12))=0," ",OFFSET('Castilla la Mancha_datos'!R37,0,((Resumen!$Q$1-1)*12)))," ") -> 181142.995 | G12: =IF(G$1<=Resumen!$P$1,IF(OFFSET('Castilla la Mancha_datos'!S37,0,((Resumen!$Q$1-1)*12))=0," ",OFFSET('Castilla la Mancha_datos'!S37,0,((Resumen!$Q$1-1)*12)))," ") -> 181954.136 | H12: =IF(H$1<=Resumen!$P$1,IF(OFFSET('Castilla la Mancha_datos'!T37,0,((Resumen!$Q$1-1)*12))=0," ",OFFSET('Castilla la Mancha_datos'!T37,0,((Resumen!$Q$1-1)*12)))," ") -> 187452.905 | I12: =IF(I$1<=Resumen!$P$1,IF(OFFSET('Castilla la Mancha_datos'!U37,0,((Resumen!$Q$1-1)*12))=0," ",OFFSET('Castilla la Mancha_datos'!U37,0,((Resumen!$Q$1-1)*12)))," ") -> 167502.846 | J12: =IF(J$1<=Resumen!$P$1,IF(OFFSET('Castilla la Mancha_datos'!V37,0,((Resumen!$Q$1-1)*12))=0," ",OFFSET('Castilla la Mancha_datos'!V37,0,((Resumen!$Q$1-1)*12)))," ") -> 163572.624 | K12: =IF(K$1<=Resumen!$P$1,IF(OFFSET('Castilla la Mancha_datos'!W37,0,((Resumen!$Q$1-1)*12))=0," ",OFFSET('Castilla la Mancha_datos'!W37,0,((Resumen!$Q$1-1)*12)))," ") ->  | L12: =IF(L$1<=Resumen!$P$1,IF(OFFSET('Castilla la Mancha_datos'!X37,0,((Resumen!$Q$1-1)*12))=0," ",OFFSET('Castilla la Mancha_datos'!X37,0,((Resumen!$Q$1-1)*12)))," ") ->  | M12: =IF(M$1<=Resumen!$P$1,IF(OFFSET('Castilla la Mancha_datos'!Y37,0,((Resumen!$Q$1-1)*12))=0," ",OFFSET('Castilla la Mancha_datos'!Y37,0,((Resumen!$Q$1-1)*12)))," ") ->  | N12: 1384470.171
A13: Solar térmica | B13: =IF(B$1<=Resumen!$P$1,IF(OFFSET('Castilla la Mancha_datos'!N38,0,((Resumen!$Q$1-1)*12))=0," ",OFFSET('Castilla la Mancha_datos'!N38,0,((Resumen!$Q$1-1)*12)))," ") -> 16230.123 | C13: =IF(C$1<=Resumen!$P$1,IF(OFFSET('Castilla la Mancha_datos'!O38,0,((Resumen!$Q$1-1)*12))=0," ",OFFSET('Castilla la Mancha_datos'!O38,0,((Resumen!$Q$1-1)*12)))," ") -> 13654.467 | D13: =IF(D$1<=Resumen!$P$1,IF(OFFSET('Castilla la Mancha_datos'!P38,0,((Resumen!$Q$1-1)*12))=0," ",OFFSET('Castilla la Mancha_datos'!P38,0,((Resumen!$Q$1-1)*12)))," ") -> 54433.226 | E13: =IF(E$1<=Resumen!$P$1,IF(OFFSET('Castilla la Mancha_datos'!Q38,0,((Resumen!$Q$1-1)*12))=0," ",OFFSET('Castilla la Mancha_datos'!Q38,0,((Resumen!$Q$1-1)*12)))," ") -> 82201.555 | F13: =IF(F$1<=Resumen!$P$1,IF(OFFSET('Castilla la Mancha_datos'!R38,0,((Resumen!$Q$1-1)*12))=0," ",OFFSET('Castilla la Mancha_datos'!R38,0,((Resumen!$Q$1-1)*12)))," ") -> 91483.471 | G13: =IF(G$1<=Resumen!$P$1,IF(OFFSET('Castilla la Mancha_datos'!S38,0,((Resumen!$Q$1-1)*12))=0," ",OFFSET('Castilla la Mancha_datos'!S38,0,((Resumen!$Q$1-1)*12)))," ") -> 104274.533 | H13: =IF(H$1<=Resumen!$P$1,IF(OFFSET('Castilla la Mancha_datos'!T38,0,((Resumen!$Q$1-1)*12))=0," ",OFFSET('Castilla la Mancha_datos'!T38,0,((Resumen!$Q$1-1)*12)))," ") -> 110555.159 | I13: =IF(I$1<=Resumen!$P$1,IF(OFFSET('Castilla la Mancha_datos'!U38,0,((Resumen!$Q$1-1)*12))=0," ",OFFSET('Castilla la Mancha_datos'!U38,0,((Resumen!$Q$1-1)*12)))," ") -> 96972.389 | J13: =IF(J$1<=Resumen!$P$1,IF(OFFSET('Castilla la Mancha_datos'!V38,0,((Resumen!$Q$1-1)*12))=0," ",OFFSET('Castilla la Mancha_datos'!V38,0,((Resumen!$Q$1-1)*12)))," ") -> 85515.02 | K13: =IF(K$1<=Resumen!$P$1,IF(OFFSET('Castilla la Mancha_datos'!W38,0,((Resumen!$Q$1-1)*12))=0," ",OFFSET('Castilla la Mancha_datos'!W38,0,((Resumen!$Q$1-1)*12)))," ") ->  | L13: =IF(L$1<=Resumen!$P$1,IF(OFFSET('Castilla la Mancha_datos'!X38,0,((Resumen!$Q$1-1)*12))=0," ",OFFSET('Castilla la Mancha_datos'!X38,0,((Resumen!$Q$1-1)*12)))," ") ->  | M13: =IF(M$1<=Resumen!$P$1,IF(OFFSET('Castilla la Mancha_datos'!Y38,0,((Resumen!$Q$1-1)*12))=0," ",OFFSET('Castilla la Mancha_datos'!Y38,0,((Resumen!$Q$1-1)*12)))," ") ->  | N13: 655319.943
A14: Otras renovables | B14: =IF(B$1<=Resumen!$P$1,IF(OFFSET('Castilla la Mancha_datos'!N39,0,((Resumen!$Q$1-1)*12))=0," ",OFFSET('Castilla la Mancha_datos'!N39,0,((Resumen!$Q$1-1)*12)))," ") -> 23743.209 | C14: =IF(C$1<=Resumen!$P$1,IF(OFFSET('Castilla la Mancha_datos'!O39,0,((Resumen!$Q$1-1)*12))=0," ",OFFSET('Castilla la Mancha_datos'!O39,0,((Resumen!$Q$1-1)*12)))," ") -> 21205.376 | D14: =IF(D$1<=Resumen!$P$1,IF(OFFSET('Castilla la Mancha_datos'!P39,0,((Resumen!$Q$1-1)*12))=0," ",OFFSET('Castilla la Mancha_datos'!P39,0,((Resumen!$Q$1-1)*12)))," ") -> 23004.473 | E14: =IF(E$1<=Resumen!$P$1,IF(OFFSET('Castilla la Mancha_datos'!Q39,0,((Resumen!$Q$1-1)*12))=0," ",OFFSET('Castilla la Mancha_datos'!Q39,0,((Resumen!$Q$1-1)*12)))," ") -> 19189.659 | F14: =IF(F$1<=Resumen!$P$1,IF(OFFSET('Castilla la Mancha_datos'!R39,0,((Resumen!$Q$1-1)*12))=0," ",OFFSET('Castilla la Mancha_datos'!R39,0,((Resumen!$Q$1-1)*12)))," ") -> 21600.797 | G14: =IF(G$1<=Resumen!$P$1,IF(OFFSET('Castilla la Mancha_datos'!S39,0,((Resumen!$Q$1-1)*12))=0," ",OFFSET('Castilla la Mancha_datos'!S39,0,((Resumen!$Q$1-1)*12)))," ") -> 19693.637 | H14: =IF(H$1<=Resumen!$P$1,IF(OFFSET('Castilla la Mancha_datos'!T39,0,((Resumen!$Q$1-1)*12))=0," ",OFFSET('Castilla la Mancha_datos'!T39,0,((Resumen!$Q$1-1)*12)))," ") -> 25223.087 | I14: =IF(I$1<=Resumen!$P$1,IF(OFFSET('Castilla la Mancha_datos'!U39,0,((Resumen!$Q$1-1)*12))=0," ",OFFSET('Castilla la Mancha_datos'!U39,0,((Resumen!$Q$1-1)*12)))," ") -> 24663.542 | J14: =IF(J$1<=Resumen!$P$1,IF(OFFSET('Castilla la Mancha_datos'!V39,0,((Resumen!$Q$1-1)*12))=0," ",OFFSET('Castilla la Mancha_datos'!V39,0,((Resumen!$Q$1-1)*12)))," ") -> 22532.511 | K14: =IF(K$1<=Resumen!$P$1,IF(OFFSET('Castilla la Mancha_datos'!W39,0,((Resumen!$Q$1-1)*12))=0," ",OFFSET('Castilla la Mancha_datos'!W39,0,((Resumen!$Q$1-1)*12)))," ") ->  | L14: =IF(L$1<=Resumen!$P$1,IF(OFFSET('Castilla la Mancha_datos'!X39,0,((Resumen!$Q$1-1)*12))=0," ",OFFSET('Castilla la Mancha_datos'!X39,0,((Resumen!$Q$1-1)*12)))," ") ->  | M14: =IF(M$1<=Resumen!$P$1,IF(OFFSET('Castilla la Mancha_datos'!Y39,0,((Resumen!$Q$1-1)*12))=0," ",OFFSET('Castilla la Mancha_datos'!Y39,0,((Resumen!$Q$1-1)*12)))," ") ->  | N14: 200856.291
A15: Cogeneración | B15: =IF(B$1<=Resumen!$P$1,IF(OFFSET('Castilla la Mancha_datos'!N40,0,((Resumen!$Q$1-1)*12))=0," ",OFFSET('Castilla la Mancha_datos'!N40,0,((Resumen!$Q$1-1)*12)))," ") -> 93217.871 | C15: =IF(C$1<=Resumen!$P$1,IF(OFFSET('Castilla la Mancha_datos'!O40,0,((Resumen!$Q$1-1)*12))=0," ",OFFSET('Castilla la Mancha_datos'!O40,0,((Resumen!$Q$1-1)*12)))," ") -> 88053.993 | D15: =IF(D$1<=Resumen!$P$1,IF(OFFSET('Castilla la Mancha_datos'!P40,0,((Resumen!$Q$1-1)*12))=0," ",OFFSET('Castilla la Mancha_datos'!P40,0,((Resumen!$Q$1-1)*12)))," ") -> 87002.923 | E15: =IF(E$1<=Resumen!$P$1,IF(OFFSET('Castilla la Mancha_datos'!Q40,0,((Resumen!$Q$1-1)*12))=0," ",OFFSET('Castilla la Mancha_datos'!Q40,0,((Resumen!$Q$1-1)*12)))," ") -> 88586.806 | F15: =IF(F$1<=Resumen!$P$1,IF(OFFSET('Castilla la Mancha_datos'!R40,0,((Resumen!$Q$1-1)*12))=0," ",OFFSET('Castilla la Mancha_datos'!R40,0,((Resumen!$Q$1-1)*12)))," ") -> 93898.124 | G15: =IF(G$1<=Resumen!$P$1,IF(OFFSET('Castilla la Mancha_datos'!S40,0,((Resumen!$Q$1-1)*12))=0," ",OFFSET('Castilla la Mancha_datos'!S40,0,((Resumen!$Q$1-1)*12)))," ") -> 89182.784 | H15: =IF(H$1<=Resumen!$P$1,IF(OFFSET('Castilla la Mancha_datos'!T40,0,((Resumen!$Q$1-1)*12))=0," ",OFFSET('Castilla la Mancha_datos'!T40,0,((Resumen!$Q$1-1)*12)))," ") -> 93878.017 | I15: =IF(I$1<=Resumen!$P$1,IF(OFFSET('Castilla la Mancha_datos'!U40,0,((Resumen!$Q$1-1)*12))=0," ",OFFSET('Castilla la Mancha_datos'!U40,0,((Resumen!$Q$1-1)*12)))," ") -> 91827.06 | J15: =IF(J$1<=Resumen!$P$1,IF(OFFSET('Castilla la Mancha_datos'!V40,0,((Resumen!$Q$1-1)*12))=0," ",OFFSET('Castilla la Mancha_datos'!V40,0,((Resumen!$Q$1-1)*12)))," ") -> 75449.963 | K15: =IF(K$1<=Resumen!$P$1,IF(OFFSET('Castilla la Mancha_datos'!W40,0,((Resumen!$Q$1-1)*12))=0," ",OFFSET('Castilla la Mancha_datos'!W40,0,((Resumen!$Q$1-1)*12)))," ") ->  | L15: =IF(L$1<=Resumen!$P$1,IF(OFFSET('Castilla la Mancha_datos'!X40,0,((Resumen!$Q$1-1)*12))=0," ",OFFSET('Castilla la Mancha_datos'!X40,0,((Resumen!$Q$1-1)*12)))," ") ->  | M15: =IF(M$1<=Resumen!$P$1,IF(OFFSET('Castilla la Mancha_datos'!Y40,0,((Resumen!$Q$1-1)*12))=0," ",OFFSET('Castilla la Mancha_datos'!Y40,0,((Resumen!$Q$1-1)*12)))," ") ->  | N15: 801097.541
A16: Residuos | B16: =IF(B$1<=Resumen!$P$1,IF(OFFSET('Castilla la Mancha_datos'!N41,0,((Resumen!$Q$1-1)*12))=0," ",OFFSET('Castilla la Mancha_datos'!N41,0,((Resumen!$Q$1-1)*12)))," ") ->  | C16: =IF(C$1<=Resumen!$P$1,IF(OFFSET('Castilla la Mancha_datos'!O41,0,((Resumen!$Q$1-1)*12))=0," ",OFFSET('Castilla la Mancha_datos'!O41,0,((Resumen!$Q$1-1)*12)))," ") ->  | D16: =IF(D$1<=Resumen!$P$1,IF(OFFSET('Castilla la Mancha_datos'!P41,0,((Resumen!$Q$1-1)*12))=0," ",OFFSET('Castilla la Mancha_datos'!P41,0,((Resumen!$Q$1-1)*12)))," ") ->  | E16: =IF(E$1<=Resumen!$P$1,IF(OFFSET('Castilla la Mancha_datos'!Q41,0,((Resumen!$Q$1-1)*12))=0," ",OFFSET('Castilla la Mancha_datos'!Q41,0,((Resumen!$Q$1-1)*12)))," ") ->  | F16: =IF(F$1<=Resumen!$P$1,IF(OFFSET('Castilla la Mancha_datos'!R41,0,((Resumen!$Q$1-1)*12))=0," ",OFFSET('Castilla la Mancha_datos'!R41,0,((Resumen!$Q$1-1)*12)))," ") ->  | G16: =IF(G$1<=Resumen!$P$1,IF(OFFSET('Castilla la Mancha_datos'!S41,0,((Resumen!$Q$1-1)*12))=0," ",OFFSET('Castilla la Mancha_datos'!S41,0,((Resumen!$Q$1-1)*12)))," ") ->  | H16: =IF(H$1<=Resumen!$P$1,IF(OFFSET('Castilla la Mancha_datos'!T41,0,((Resumen!$Q$1-1)*12))=0," ",OFFSET('Castilla la Mancha_datos'!T41,0,((Resumen!$Q$1-1)*12)))," ") ->  | I16: =IF(I$1<=Resumen!$P$1,IF(OFFSET('Castilla la Mancha_datos'!U41,0,((Resumen!$Q$1-1)*12))=0," ",OFFSET('Castilla la Mancha_datos'!U41,0,((Resumen!$Q$1-1)*12)))," ") ->  | J16: =IF(J$1<=Resumen!$P$1,IF(OFFSET('Castilla la Mancha_datos'!V41,0,((Resumen!$Q$1-1)*12))=0," ",OFFSET('Castilla la Mancha_datos'!V41,0,((Resumen!$Q$1-1)*12)))," ") ->  | K16: =IF(K$1<=Resumen!$P$1,IF(OFFSET('Castilla la Mancha_datos'!W41,0,((Resumen!$Q$1-1)*12))=0," ",OFFSET('Castilla la Mancha_datos'!W41,0,((Resumen!$Q$1-1)*12)))," ") ->  | L16: =IF(L$1<=Resumen!$P$1,IF(OFFSET('Castilla la Mancha_datos'!X41,0,((Resumen!$Q$1-1)*12))=0," ",OFFSET('Castilla la Mancha_datos'!X41,0,((Resumen!$Q$1-1)*12)))," ") ->  | M16: =IF(M$1<=Resumen!$P$1,IF(OFFSET('Castilla la Mancha_datos'!Y41,0,((Resumen!$Q$1-1)*12))=0," ",OFFSET('Castilla la Mancha_datos'!Y41,0,((Resumen!$Q$1-1)*12)))," ") -> 
A17: Generación neta | B17: =IF(B$1<=Resumen!$P$1,IF(OFFSET('Castilla la Mancha_datos'!N42,0,((Resumen!$Q$1-1)*12))=0," ",OFFSET('Castilla la Mancha_datos'!N42,0,((Resumen!$Q$1-1)*12)))," ") -> 2031325.449 | C17: =IF(C$1<=Resumen!$P$1,IF(OFFSET('Castilla la Mancha_datos'!O42,0,((Resumen!$Q$1-1)*12))=0," ",OFFSET('Castilla la Mancha_datos'!O42,0,((Resumen!$Q$1-1)*12)))," ") -> 1978725.075 | D17: =IF(D$1<=Resumen!$P$1,IF(OFFSET('Castilla la Mancha_datos'!P42,0,((Resumen!$Q$1-1)*12))=0," ",OFFSET('Castilla la Mancha_datos'!P42,0,((Resumen!$Q$1-1)*12)))," ") -> 1955404.062 | E17: =IF(E$1<=Resumen!$P$1,IF(OFFSET('Castilla la Mancha_datos'!Q42,0,((Resumen!$Q$1-1)*12))=0," ",OFFSET('Castilla la Mancha_datos'!Q42,0,((Resumen!$Q$1-1)*12)))," ") -> 1780042.833 | F17: =IF(F$1<=Resumen!$P$1,IF(OFFSET('Castilla la Mancha_datos'!R42,0,((Resumen!$Q$1-1)*12))=0," ",OFFSET('Castilla la Mancha_datos'!R42,0,((Resumen!$Q$1-1)*12)))," ") -> 1209927.425 | G17: =IF(G$1<=Resumen!$P$1,IF(OFFSET('Castilla la Mancha_datos'!S42,0,((Resumen!$Q$1-1)*12))=0," ",OFFSET('Castilla la Mancha_datos'!S42,0,((Resumen!$Q$1-1)*12)))," ") -> 1736923.667 | H17: =IF(H$1<=Resumen!$P$1,IF(OFFSET('Castilla la Mancha_datos'!T42,0,((Resumen!$Q$1-1)*12))=0," ",OFFSET('Castilla la Mancha_datos'!T42,0,((Resumen!$Q$1-1)*12)))," ") -> 1737605.138 | I17: =IF(I$1<=Resumen!$P$1,IF(OFFSET('Castilla la Mancha_datos'!U42,0,((Resumen!$Q$1-1)*12))=0," ",OFFSET('Castilla la Mancha_datos'!U42,0,((Resumen!$Q$1-1)*12)))," ") -> 1756677.032 | J17: =IF(J$1<=Resumen!$P$1,IF(OFFSET('Castilla la Mancha_datos'!V42,0,((Resumen!$Q$1-1)*12))=0," ",OFFSET('Castilla la Mancha_datos'!V42,0,((Resumen!$Q$1-1)*12)))," ") -> 1644919.632 | K17: =IF(K$1<=Resumen!$P$1,IF(OFFSET('Castilla la Mancha_datos'!W42,0,((Resumen!$Q$1-1)*12))=0," ",OFFSET('Castilla la Mancha_datos'!W42,0,((Resumen!$Q$1-1)*12)))," ") ->  | L17: =IF(L$1<=Resumen!$P$1,IF(OFFSET('Castilla la Mancha_datos'!X42,0,((Resumen!$Q$1-1)*12))=0," ",OFFSET('Castilla la Mancha_datos'!X42,0,((Resumen!$Q$1-1)*12)))," ") ->  | M17: =IF(M$1<=Resumen!$P$1,IF(OFFSET('Castilla la Mancha_datos'!Y42,0,((Resumen!$Q$1-1)*12))=0," ",OFFSET('Castilla la Mancha_datos'!Y42,0,((Resumen!$Q$1-1)*12)))," ") ->  | N17: 15831550.31
A18: Consumos en bombeo | B18: =IF(B$1<=Resumen!$P$1,IF(OFFSET('Castilla la Mancha_datos'!N43,0,((Resumen!$Q$1-1)*12))=0," ",OFFSET('Castilla la Mancha_datos'!N43,0,((Resumen!$Q$1-1)*12)))," ") -> -2385 | C18: =IF(C$1<=Resumen!$P$1,IF(OFFSET('Castilla la Mancha_datos'!O43,0,((Resumen!$Q$1-1)*12))=0," ",OFFSET('Castilla la Mancha_datos'!O43,0,((Resumen!$Q$1-1)*12)))," ") -> -4597 | D18: =IF(D$1<=Resumen!$P$1,IF(OFFSET('Castilla la Mancha_datos'!P43,0,((Resumen!$Q$1-1)*12))=0," ",OFFSET('Castilla la Mancha_datos'!P43,0,((Resumen!$Q$1-1)*12)))," ") -> -7873 | E18: =IF(E$1<=Resumen!$P$1,IF(OFFSET('Castilla la Mancha_datos'!Q43,0,((Resumen!$Q$1-1)*12))=0," ",OFFSET('Castilla la Mancha_datos'!Q43,0,((Resumen!$Q$1-1)*12)))," ") -> 613 | F18: =IF(F$1<=Resumen!$P$1,IF(OFFSET('Castilla la Mancha_datos'!R43,0,((Resumen!$Q$1-1)*12))=0," ",OFFSET('Castilla la Mancha_datos'!R43,0,((Resumen!$Q$1-1)*12)))," ") -> 2220 | G18: =IF(G$1<=Resumen!$P$1,IF(OFFSET('Castilla la Mancha_datos'!S43,0,((Resumen!$Q$1-1)*12))=0," ",OFFSET('Castilla la Mancha_datos'!S43,0,((Resumen!$Q$1-1)*12)))," ") -> -1585 | H18: =IF(H$1<=Resumen!$P$1,IF(OFFSET('Castilla la Mancha_datos'!T43,0,((Resumen!$Q$1-1)*12))=0," ",OFFSET('Castilla la Mancha_datos'!T43,0,((Resumen!$Q$1-1)*12)))," ") -> -5139 | I18: =IF(I$1<=Resumen!$P$1,IF(OFFSET('Castilla la Mancha_datos'!U43,0,((Resumen!$Q$1-1)*12))=0," ",OFFSET('Castilla la Mancha_datos'!U43,0,((Resumen!$Q$1-1)*12)))," ") -> -7763 | J18: =IF(J$1<=Resumen!$P$1,IF(OFFSET('Castilla la Mancha_datos'!V43,0,((Resumen!$Q$1-1)*12))=0," ",OFFSET('Castilla la Mancha_datos'!V43,0,((Resumen!$Q$1-1)*12)))," ") -> -10315 | K18: =IF(K$1<=Resumen!$P$1,IF(OFFSET('Castilla la Mancha_datos'!W43,0,((Resumen!$Q$1-1)*12))=0," ",OFFSET('Castilla la Mancha_datos'!W43,0,((Resumen!$Q$1-1)*12)))," ") ->  | L18: =IF(L$1<=Resumen!$P$1,IF(OFFSET('Castilla la Mancha_datos'!X43,0,((Resumen!$Q$1-1)*12))=0," ",OFFSET('Castilla la Mancha_datos'!X43,0,((Resumen!$Q$1-1)*12)))," ") ->  | M18: =IF(M$1<=Resumen!$P$1,IF(OFFSET('Castilla la Mancha_datos'!Y43,0,((Resumen!$Q$1-1)*12))=0," ",OFFSET('Castilla la Mancha_datos'!Y43,0,((Resumen!$Q$1-1)*12)))," ") ->  | N18: -36824
A19: Saldo Intercambios | B19: =IF(B$1<=Resumen!$P$1,IF(OFFSET('Castilla la Mancha_datos'!N44,0,((Resumen!$Q$1-1)*12))=0," ",OFFSET('Castilla la Mancha_datos'!N44,0,((Resumen!$Q$1-1)*12)))," ") -> -965227 | C19: =IF(C$1<=Resumen!$P$1,IF(OFFSET('Castilla la Mancha_datos'!O44,0,((Resumen!$Q$1-1)*12))=0," ",OFFSET('Castilla la Mancha_datos'!O44,0,((Resumen!$Q$1-1)*12)))," ") -> -1059949 | D19: =IF(D$1<=Resumen!$P$1,IF(OFFSET('Castilla la Mancha_datos'!P44,0,((Resumen!$Q$1-1)*12))=0," ",OFFSET('Castilla la Mancha_datos'!P44,0,((Resumen!$Q$1-1)*12)))," ") -> -994393 | E19: =IF(E$1<=Resumen!$P$1,IF(OFFSET('Castilla la Mancha_datos'!Q44,0,((Resumen!$Q$1-1)*12))=0," ",OFFSET('Castilla la Mancha_datos'!Q44,0,((Resumen!$Q$1-1)*12)))," ") -> -878348 | F19: =IF(F$1<=Resumen!$P$1,IF(OFFSET('Castilla la Mancha_datos'!R44,0,((Resumen!$Q$1-1)*12))=0," ",OFFSET('Castilla la Mancha_datos'!R44,0,((Resumen!$Q$1-1)*12)))," ") -> -287050 | G19: =IF(G$1<=Resumen!$P$1,IF(OFFSET('Castilla la Mancha_datos'!S44,0,((Resumen!$Q$1-1)*12))=0," ",OFFSET('Castilla la Mancha_datos'!S44,0,((Resumen!$Q$1-1)*12)))," ") -> -736126 | H19: =IF(H$1<=Resumen!$P$1,IF(OFFSET('Castilla la Mancha_datos'!T44,0,((Resumen!$Q$1-1)*12))=0," ",OFFSET('Castilla la Mancha_datos'!T44,0,((Resumen!$Q$1-1)*12)))," ") -> -678661 | I19: =IF(I$1<=Resumen!$P$1,IF(OFFSET('Castilla la Mancha_datos'!U44,0,((Resumen!$Q$1-1)*12))=0," ",OFFSET('Castilla la Mancha_datos'!U44,0,((Resumen!$Q$1-1)*12)))," ") -> -663807 | J19: =IF(J$1<=Resumen!$P$1,IF(OFFSET('Castilla la Mancha_datos'!V44,0,((Resumen!$Q$1-1)*12))=0," ",OFFSET('Castilla la Mancha_datos'!V44,0,((Resumen!$Q$1-1)*12)))," ") -> -699865 | K19: =IF(K$1<=Resumen!$P$1,IF(OFFSET('Castilla la Mancha_datos'!W44,0,((Resumen!$Q$1-1)*12))=0," ",OFFSET('Castilla la Mancha_datos'!W44,0,((Resumen!$Q$1-1)*12)))," ") ->  | L19: =IF(L$1<=Resumen!$P$1,IF(OFFSET('Castilla la Mancha_datos'!X44,0,((Resumen!$Q$1-1)*12))=0," ",OFFSET('Castilla la Mancha_datos'!X44,0,((Resumen!$Q$1-1)*12)))," ") ->  | M19: =IF(M$1<=Resumen!$P$1,IF(OFFSET('Castilla la Mancha_datos'!Y44,0,((Resumen!$Q$1-1)*12))=0," ",OFFSET('Castilla la Mancha_datos'!Y44,0,((Resumen!$Q$1-1)*12)))," ") ->  | N19: -6963426
A20: Demanda B.C | B20: =IF(B$1<=Resumen!$P$1,IF(OFFSET('Castilla la Mancha_datos'!N45,0,((Resumen!$Q$1-1)*12))=0," ",OFFSET('Castilla la Mancha_datos'!N45,0,((Resumen!$Q$1-1)*12)))," ") -> 1063713.808 | C20: =IF(C$1<=Resumen!$P$1,IF(OFFSET('Castilla la Mancha_datos'!O45,0,((Resumen!$Q$1-1)*12))=0," ",OFFSET('Castilla la Mancha_datos'!O45,0,((Resumen!$Q$1-1)*12)))," ") -> 914178.6543 | D20: =IF(D$1<=Resumen!$P$1,IF(OFFSET('Castilla la Mancha_datos'!P45,0,((Resumen!$Q$1-1)*12))=0," ",OFFSET('Castilla la Mancha_datos'!P45,0,((Resumen!$Q$1-1)*12)))," ") -> 953138.0658 | E20: =IF(E$1<=Resumen!$P$1,IF(OFFSET('Castilla la Mancha_datos'!Q45,0,((Resumen!$Q$1-1)*12))=0," ",OFFSET('Castilla la Mancha_datos'!Q45,0,((Resumen!$Q$1-1)*12)))," ") -> 902307.6838 | F20: =IF(F$1<=Resumen!$P$1,IF(OFFSET('Castilla la Mancha_datos'!R45,0,((Resumen!$Q$1-1)*12))=0," ",OFFSET('Castilla la Mancha_datos'!R45,0,((Resumen!$Q$1-1)*12)))," ") -> 925097.3164 | G20: =IF(G$1<=Resumen!$P$1,IF(OFFSET('Castilla la Mancha_datos'!S45,0,((Resumen!$Q$1-1)*12))=0," ",OFFSET('Castilla la Mancha_datos'!S45,0,((Resumen!$Q$1-1)*12)))," ") -> 999212.6535 | H20: =IF(H$1<=Resumen!$P$1,IF(OFFSET('Castilla la Mancha_datos'!T45,0,((Resumen!$Q$1-1)*12))=0," ",OFFSET('Castilla la Mancha_datos'!T45,0,((Resumen!$Q$1-1)*12)))," ") -> 1053805.586 | I20: =IF(I$1<=Resumen!$P$1,IF(OFFSET('Castilla la Mancha_datos'!U45,0,((Resumen!$Q$1-1)*12))=0," ",OFFSET('Castilla la Mancha_datos'!U45,0,((Resumen!$Q$1-1)*12)))," ") -> 1085107.49 | J20: =IF(J$1<=Resumen!$P$1,IF(OFFSET('Castilla la Mancha_datos'!V45,0,((Resumen!$Q$1-1)*12))=0," ",OFFSET('Castilla la Mancha_datos'!V45,0,((Resumen!$Q$1-1)*12)))," ") -> 934739.2493 | K20: =IF(K$1<=Resumen!$P$1,IF(OFFSET('Castilla la Mancha_datos'!W45,0,((Resumen!$Q$1-1)*12))=0," ",OFFSET('Castilla la Mancha_datos'!W45,0,((Resumen!$Q$1-1)*12)))," ") ->  | L20: =IF(L$1<=Resumen!$P$1,IF(OFFSET('Castilla la Mancha_datos'!X45,0,((Resumen!$Q$1-1)*12))=0," ",OFFSET('Castilla la Mancha_datos'!X45,0,((Resumen!$Q$1-1)*12)))," ") ->  | M20: =IF(M$1<=Resumen!$P$1,IF(OFFSET('Castilla la Mancha_datos'!Y45,0,((Resumen!$Q$1-1)*12))=0," ",OFFSET('Castilla la Mancha_datos'!Y45,0,((Resumen!$Q$1-1)*12)))," ") ->  | N20: 8831300.507
A21: =Resumen!A22 -> %Δ 17/16 | B21: =IF(B$1<=Resumen!$P$1,IF(OFFSET('Castilla la Mancha_datos'!N46,0,((Resumen!$Q$1-1)*12))=0," ",OFFSET('Castilla la Mancha_datos'!N46,0,((Resumen!$Q$1-1)*12)))," ") -> 8.397367455 | C21: =IF(C$1<=Resumen!$P$1,IF(OFFSET('Castilla la Mancha_datos'!O46,0,((Resumen!$Q$1-1)*12))=0," ",OFFSET('Castilla la Mancha_datos'!O46,0,((Resumen!$Q$1-1)*12)))," ") -> -4.920332705 | D21: =IF(D$1<=Resumen!$P$1,IF(OFFSET('Castilla la Mancha_datos'!P46,0,((Resumen!$Q$1-1)*12))=0," ",OFFSET('Castilla la Mancha_datos'!P46,0,((Resumen!$Q$1-1)*12)))," ") -> -4.482886287 | E21: =IF(E$1<=Resumen!$P$1,IF(OFFSET('Castilla la Mancha_datos'!Q46,0,((Resumen!$Q$1-1)*12))=0," ",OFFSET('Castilla la Mancha_datos'!Q46,0,((Resumen!$Q$1-1)*12)))," ") -> -3.345269599 | F21: =IF(F$1<=Resumen!$P$1,IF(OFFSET('Castilla la Mancha_datos'!R46,0,((Resumen!$Q$1-1)*12))=0," ",OFFSET('Castilla la Mancha_datos'!R46,0,((Resumen!$Q$1-1)*12)))," ") -> 3.94909968 | G21: =IF(G$1<=Resumen!$P$1,IF(OFFSET('Castilla la Mancha_datos'!S46,0,((Resumen!$Q$1-1)*12))=0," ",OFFSET('Castilla la Mancha_datos'!S46,0,((Resumen!$Q$1-1)*12)))," ") -> 1.724915188 | H21: =IF(H$1<=Resumen!$P$1,IF(OFFSET('Castilla la Mancha_datos'!T46,0,((Resumen!$Q$1-1)*12))=0," ",OFFSET('Castilla la Mancha_datos'!T46,0,((Resumen!$Q$1-1)*12)))," ") -> -3.053287394 | I21: =IF(I$1<=Resumen!$P$1,IF(OFFSET('Castilla la Mancha_datos'!U46,0,((Resumen!$Q$1-1)*12))=0," ",OFFSET('Castilla la Mancha_datos'!U46,0,((Resumen!$Q$1-1)*12)))," ") -> 0.3821341179 | J21: =IF(J$1<=Resumen!$P$1,IF(OFFSET('Castilla la Mancha_datos'!V46,0,((Resumen!$Q$1-1)*12))=0," ",OFFSET('Castilla la Mancha_datos'!V46,0,((Resumen!$Q$1-1)*12)))," ") -> -4.117527353 | K21: =IF(K$1<=Resumen!$P$1,IF(OFFSET('Castilla la Mancha_datos'!W46,0,((Resumen!$Q$1-1)*12))=0," ",OFFSET('Castilla la Mancha_datos'!W46,0,((Resumen!$Q$1-1)*12)))," ") ->  | L21: =IF(L$1<=Resumen!$P$1,IF(OFFSET('Castilla la Mancha_datos'!X46,0,((Resumen!$Q$1-1)*12))=0," ",OFFSET('Castilla la Mancha_datos'!X46,0,((Resumen!$Q$1-1)*12)))," ") ->  | M21: =IF(M$1<=Resumen!$P$1,IF(OFFSET('Castilla la Mancha_datos'!Y46,0,((Resumen!$Q$1-1)*12))=0," ",OFFSET('Castilla la Mancha_datos'!Y46,0,((Resumen!$Q$1-1)*12)))," ") ->  | N21: =((N20/SUM(OFFSET('Castilla la Mancha_datos'!N45,0,(Resumen!$Q$1-2)*12):OFFSET('Castilla la Mancha_datos'!N45,0,((Resumen!$Q$1-2)*12)+Resumen!$P$1-1))-1)*100) -> -0.6522216262
A69: =A1 -> Castilla la Mancha | B69: =J20 -> 934739.2493
A70: Resto nacional | B70: =Nacional_datos!BR45-B69 -> 20614994.78

Sheet Castilla León
A1: Castilla y León | B1: 1 | C1: 2 | D1: 3 | E1: 4 | F1: 5 | G1: 6 | H1: 7 | I1: 8 | J1: 9 | K1: 10 | L1: 11 | M1: 12
A2: Balance mensual de energía electrica. MWh
B3: 2017
B4: Ene | C4: Feb | D4: Mar | E4: Abr | F4: May | G4: Jun | H4: Jul | I4: Ago | J4: Sep | K4: Oct | L4: Nov | M4: Dic | N4: TOTAL
A5: Hidraulica | B5: =IF(B$1<=Resumen!$P$1,IF(OFFSET('Castilla León_datos'!N30,0,((Resumen!$Q$1-1)*12))=0," ",OFFSET('Castilla León_datos'!N30,0,((Resumen!$Q$1-1)*12)))," ") -> 720406.392 | C5: =IF(C$1<=Resumen!$P$1,IF(OFFSET('Castilla León_datos'!O30,0,((Resumen!$Q$1-1)*12))=0," ",OFFSET('Castilla León_datos'!O30,0,((Resumen!$Q$1-1)*12)))," ") -> 460221.7198 | D5: =IF(D$1<=Resumen!$P$1,IF(OFFSET('Castilla León_datos'!P30,0,((Resumen!$Q$1-1)*12))=0," ",OFFSET('Castilla León_datos'!P30,0,((Resumen!$Q$1-1)*12)))," ") -> 719782.9438 | E5: =IF(E$1<=Resumen!$P$1,IF(OFFSET('Castilla León_datos'!Q30,0,((Resumen!$Q$1-1)*12))=0," ",OFFSET('Castilla León_datos'!Q30,0,((Resumen!$Q$1-1)*12)))," ") -> 428804.7655 | F5: =IF(F$1<=Resumen!$P$1,IF(OFFSET('Castilla León_datos'!R30,0,((Resumen!$Q$1-1)*12))=0," ",OFFSET('Castilla León_datos'!R30,0,((Resumen!$Q$1-1)*12)))," ") -> 398733.8608 | G5: =IF(G$1<=Resumen!$P$1,IF(OFFSET('Castilla León_datos'!S30,0,((Resumen!$Q$1-1)*12))=0," ",OFFSET('Castilla León_datos'!S30,0,((Resumen!$Q$1-1)*12)))," ") -> 384948.0165 | H5: =IF(H$1<=Resumen!$P$1,IF(OFFSET('Castilla León_datos'!T30,0,((Resumen!$Q$1-1)*12))=0," ",OFFSET('Castilla León_datos'!T30,0,((Resumen!$Q$1-1)*12)))," ") -> 250105.4817 | I5: =IF(I$1<=Resumen!$P$1,IF(OFFSET('Castilla León_datos'!U30,0,((Resumen!$Q$1-1)*12))=0," ",OFFSET('Castilla León_datos'!U30,0,((Resumen!$Q$1-1)*12)))," ") -> 224266.2167 | J5: =IF(J$1<=Resumen!$P$1,IF(OFFSET('Castilla León_datos'!V30,0,((Resumen!$Q$1-1)*12))=0," ",OFFSET('Castilla León_datos'!V30,0,((Resumen!$Q$1-1)*12)))," ") -> 172900.8223 | K5: =IF(K$1<=Resumen!$P$1,IF(OFFSET('Castilla León_datos'!W30,0,((Resumen!$Q$1-1)*12))=0," ",OFFSET('Castilla León_datos'!W30,0,((Resumen!$Q$1-1)*12)))," ") ->  | L5: =IF(L$1<=Resumen!$P$1,IF(OFFSET('Castilla León_datos'!X30,0,((Resumen!$Q$1-1)*12))=0," ",OFFSET('Castilla León_datos'!X30,0,((Resumen!$Q$1-1)*12)))," ") ->  | M5: =IF(M$1<=Resumen!$P$1,IF(OFFSET('Castilla León_datos'!Y30,0,((Resumen!$Q$1-1)*12))=0," ",OFFSET('Castilla León_datos'!Y30,0,((Resumen!$Q$1-1)*12)))," ") ->  | N5: =IF(SUM(B5:M5)=0," ",SUM(B5:M5)) -> 3760170.219
A6: Nuclear | B6: =IF(B$1<=Resumen!$P$1,IF(OFFSET('Castilla León_datos'!N31,0,((Resumen!$Q$1-1)*12))=0," ",OFFSET('Castilla León_datos'!N31,0,((Resumen!$Q$1-1)*12)))," ") ->  | C6: =IF(C$1<=Resumen!$P$1,IF(OFFSET('Castilla León_datos'!O31,0,((Resumen!$Q$1-1)*12))=0," ",OFFSET('Castilla León_datos'!O31,0,((Resumen!$Q$1-1)*12)))," ") ->  | D6: =IF(D$1<=Resumen!$P$1,IF(OFFSET('Castilla León_datos'!P31,0,((Resumen!$Q$1-1)*12))=0," ",OFFSET('Castilla León_datos'!P31,0,((Resumen!$Q$1-1)*12)))," ") ->  | E6: =IF(E$1<=Resumen!$P$1,IF(OFFSET('Castilla León_datos'!Q31,0,((Resumen!$Q$1-1)*12))=0," ",OFFSET('Castilla León_datos'!Q31,0,((Resumen!$Q$1-1)*12)))," ") ->  | F6: =IF(F$1<=Resumen!$P$1,IF(OFFSET('Castilla León_datos'!R31,0,((Resumen!$Q$1-1)*12))=0," ",OFFSET('Castilla León_datos'!R31,0,((Resumen!$Q$1-1)*12)))," ") ->  | G6: =IF(G$1<=Resumen!$P$1,IF(OFFSET('Castilla León_datos'!S31,0,((Resumen!$Q$1-1)*12))=0," ",OFFSET('Castilla León_datos'!S31,0,((Resumen!$Q$1-1)*12)))," ") ->  | H6: =IF(H$1<=Resumen!$P$1,IF(OFFSET('Castilla León_datos'!T31,0,((Resumen!$Q$1-1)*12))=0," ",OFFSET('Castilla León_datos'!T31,0,((Resumen!$Q$1-1)*12)))," ") ->  | I6: =IF(I$1<=Resumen!$P$1,IF(OFFSET('Castilla León_datos'!U31,0,((Resumen!$Q$1-1)*12))=0," ",OFFSET('Castilla León_datos'!U31,0,((Resumen!$Q$1-1)*12)))," ") ->  | J6: =IF(J$1<=Resumen!$P$1,IF(OFFSET('Castilla León_datos'!V31,0,((Resumen!$Q$1-1)*12))=0," ",OFFSET('Castilla León_datos'!V31,0,((Resumen!$Q$1-1)*12)))," ") ->  | K6: =IF(K$1<=Resumen!$P$1,IF(OFFSET('Castilla León_datos'!W31,0,((Resumen!$Q$1-1)*12))=0," ",OFFSET('Castilla León_datos'!W31,0,((Resumen!$Q$1-1)*12)))," ") ->  | L6: =IF(L$1<=Resumen!$P$1,IF(OFFSET('Castilla León_datos'!X31,0,((Resumen!$Q$1-1)*12))=0," ",OFFSET('Castilla León_datos'!X31,0,((Resumen!$Q$1-1)*12)))," ") ->  | M6: =IF(M$1<=Resumen!$P$1,IF(OFFSET('Castilla León_datos'!Y31,0,((Resumen!$Q$1-1)*12))=0," ",OFFSET('Castilla León_datos'!Y31,0,((Resumen!$Q$1-1)*12)))," ") ->  | N6: =IF(SUM(B6:M6)=0," ",SUM(B6:M6)) -> 
A7: Carbón | B7: =IF(B$1<=Resumen!$P$1,IF(OFFSET('Castilla León_datos'!N32,0,((Resumen!$Q$1-1)*12))=0," ",OFFSET('Castilla León_datos'!N32,0,((Resumen!$Q$1-1)*12)))," ") -> 1298391 | C7: =IF(C$1<=Resumen!$P$1,IF(OFFSET('Castilla León_datos'!O32,0,((Resumen!$Q$1-1)*12))=0," ",OFFSET('Castilla León_datos'!O32,0,((Resumen!$Q$1-1)*12)))," ") -> 673705 | D7: =IF(D$1<=Resumen!$P$1,IF(OFFSET('Castilla León_datos'!P32,0,((Resumen!$Q$1-1)*12))=0," ",OFFSET('Castilla León_datos'!P32,0,((Resumen!$Q$1-1)*12)))," ") -> 60975 | E7: =IF(E$1<=Resumen!$P$1,IF(OFFSET('Castilla León_datos'!Q32,0,((Resumen!$Q$1-1)*12))=0," ",OFFSET('Castilla León_datos'!Q32,0,((Resumen!$Q$1-1)*12)))," ") ->  | F7: =IF(F$1<=Resumen!$P$1,IF(OFFSET('Castilla León_datos'!R32,0,((Resumen!$Q$1-1)*12))=0," ",OFFSET('Castilla León_datos'!R32,0,((Resumen!$Q$1-1)*12)))," ") -> 424272 | G7: =IF(G$1<=Resumen!$P$1,IF(OFFSET('Castilla León_datos'!S32,0,((Resumen!$Q$1-1)*12))=0," ",OFFSET('Castilla León_datos'!S32,0,((Resumen!$Q$1-1)*12)))," ") -> 759227 | H7: =IF(H$1<=Resumen!$P$1,IF(OFFSET('Castilla León_datos'!T32,0,((Resumen!$Q$1-1)*12))=0," ",OFFSET('Castilla León_datos'!T32,0,((Resumen!$Q$1-1)*12)))," ") -> 244818 | I7: =IF(I$1<=Resumen!$P$1,IF(OFFSET('Castilla León_datos'!U32,0,((Resumen!$Q$1-1)*12))=0," ",OFFSET('Castilla León_datos'!U32,0,((Resumen!$Q$1-1)*12)))," ") -> 99415 | J7: =IF(J$1<=Resumen!$P$1,IF(OFFSET('Castilla León_datos'!V32,0,((Resumen!$Q$1-1)*12))=0," ",OFFSET('Castilla León_datos'!V32,0,((Resumen!$Q$1-1)*12)))," ") -> 81421 | K7: =IF(K$1<=Resumen!$P$1,IF(OFFSET('Castilla León_datos'!W32,0,((Resumen!$Q$1-1)*12))=0," ",OFFSET('Castilla León_datos'!W32,0,((Resumen!$Q$1-1)*12)))," ") ->  | L7: =IF(L$1<=Resumen!$P$1,IF(OFFSET('Castilla León_datos'!X32,0,((Resumen!$Q$1-1)*12))=0," ",OFFSET('Castilla León_datos'!X32,0,((Resumen!$Q$1-1)*12)))," ") ->  | M7: =IF(M$1<=Resumen!$P$1,IF(OFFSET('Castilla León_datos'!Y32,0,((Resumen!$Q$1-1)*12))=0," ",OFFSET('Castilla León_datos'!Y32,0,((Resumen!$Q$1-1)*12)))," ") ->  | N7: 3642224
A8: Fuel-Gas | B8: =IF(B$1<=Resumen!$P$1,IF(OFFSET('Castilla León_datos'!N33,0,((Resumen!$Q$1-1)*12))=0," ",OFFSET('Castilla León_datos'!N33,0,((Resumen!$Q$1-1)*12)))," ") ->  | C8: =IF(C$1<=Resumen!$P$1,IF(OFFSET('Castilla León_datos'!O33,0,((Resumen!$Q$1-1)*12))=0," ",OFFSET('Castilla León_datos'!O33,0,((Resumen!$Q$1-1)*12)))," ") ->  | D8: =IF(D$1<=Resumen!$P$1,IF(OFFSET('Castilla León_datos'!P33,0,((Resumen!$Q$1-1)*12))=0," ",OFFSET('Castilla León_datos'!P33,0,((Resumen!$Q$1-1)*12)))," ") ->  | E8: =IF(E$1<=Resumen!$P$1,IF(OFFSET('Castilla León_datos'!Q33,0,((Resumen!$Q$1-1)*12))=0," ",OFFSET('Castilla León_datos'!Q33,0,((Resumen!$Q$1-1)*12)))," ") ->  | F8: =IF(F$1<=Resumen!$P$1,IF(OFFSET('Castilla León_datos'!R33,0,((Resumen!$Q$1-1)*12))=0," ",OFFSET('Castilla León_datos'!R33,0,((Resumen!$Q$1-1)*12)))," ") ->  | G8: =IF(G$1<=Resumen!$P$1,IF(OFFSET('Castilla León_datos'!S33,0,((Resumen!$Q$1-1)*12))=0," ",OFFSET('Castilla León_datos'!S33,0,((Resumen!$Q$1-1)*12)))," ") ->  | H8: =IF(H$1<=Resumen!$P$1,IF(OFFSET('Castilla León_datos'!T33,0,((Resumen!$Q$1-1)*12))=0," ",OFFSET('Castilla León_datos'!T33,0,((Resumen!$Q$1-1)*12)))," ") ->  | I8: =IF(I$1<=Resumen!$P$1,IF(OFFSET('Castilla León_datos'!U33,0,((Resumen!$Q$1-1)*12))=0," ",OFFSET('Castilla León_datos'!U33,0,((Resumen!$Q$1-1)*12)))," ") ->  | J8: =IF(J$1<=Resumen!$P$1,IF(OFFSET('Castilla León_datos'!V33,0,((Resumen!$Q$1-1)*12))=0," ",OFFSET('Castilla León_datos'!V33,0,((Resumen!$Q$1-1)*12)))," ") ->  | K8: =IF(K$1<=Resumen!$P$1,IF(OFFSET('Castilla León_datos'!W33,0,((Resumen!$Q$1-1)*12))=0," ",OFFSET('Castilla León_datos'!W33,0,((Resumen!$Q$1-1)*12)))," ") ->  | L8: =IF(L$1<=Resumen!$P$1,IF(OFFSET('Castilla León_datos'!X33,0,((Resumen!$Q$1-1)*12))=0," ",OFFSET('Castilla León_datos'!X33,0,((Resumen!$Q$1-1)*12)))," ") ->  | M8: =IF(M$1<=Resumen!$P$1,IF(OFFSET('Castilla León_datos'!Y33,0,((Resumen!$Q$1-1)*12))=0," ",OFFSET('Castilla León_datos'!Y33,0,((Resumen!$Q$1-1)*12)))," ") -> 
A9: Ciclo combinado | B9: =IF(B$1<=Resumen!$P$1,IF(OFFSET('Castilla León_datos'!N34,0,((Resumen!$Q$1-1)*12))=0," ",OFFSET('Castilla León_datos'!N34,0,((Resumen!$Q$1-1)*12)))," ") -> - | C9: =IF(C$1<=Resumen!$P$1,IF(OFFSET('Castilla León_datos'!O34,0,((Resumen!$Q$1-1)*12))=0," ",OFFSET('Castilla León_datos'!O34,0,((Resumen!$Q$1-1)*12)))," ") -> - | D9: =IF(D$1<=Resumen!$P$1,IF(OFFSET('Castilla León_datos'!P34,0,((Resumen!$Q$1-1)*12))=0," ",OFFSET('Castilla León_datos'!P34,0,((Resumen!$Q$1-1)*12)))," ") -> - | E9: =IF(E$1<=Resumen!$P$1,IF(OFFSET('Castilla León_datos'!Q34,0,((Resumen!$Q$1-1)*12))=0," ",OFFSET('Castilla León_datos'!Q34,0,((Resumen!$Q$1-1)*12)))," ") -> - | F9: =IF(F$1<=Resumen!$P$1,IF(OFFSET('Castilla León_datos'!R34,0,((Resumen!$Q$1-1)*12))=0," ",OFFSET('Castilla León_datos'!R34,0,((Resumen!$Q$1-1)*12)))," ") -> - | G9: =IF(G$1<=Resumen!$P$1,IF(OFFSET('Castilla León_datos'!S34,0,((Resumen!$Q$1-1)*12))=0," ",OFFSET('Castilla León_datos'!S34,0,((Resumen!$Q$1-1)*12)))," ") -> - | H9: =IF(H$1<=Resumen!$P$1,IF(OFFSET('Castilla León_datos'!T34,0,((Resumen!$Q$1-1)*12))=0," ",OFFSET('Castilla León_datos'!T34,0,((Resumen!$Q$1-1)*12)))," ") -> - | I9: =IF(I$1<=Resumen!$P$1,IF(OFFSET('Castilla León_datos'!U34,0,((Resumen!$Q$1-1)*12))=0," ",OFFSET('Castilla León_datos'!U34,0,((Resumen!$Q$1-1)*12)))," ") -> - | J9: =IF(J$1<=Resumen!$P$1,IF(OFFSET('Castilla León_datos'!V34,0,((Resumen!$Q$1-1)*12))=0," ",OFFSET('Castilla León_datos'!V34,0,((Resumen!$Q$1-1)*12)))," ") -> - | K9: =IF(K$1<=Resumen!$P$1,IF(OFFSET('Castilla León_datos'!W34,0,((Resumen!$Q$1-1)*12))=0," ",OFFSET('Castilla León_datos'!W34,0,((Resumen!$Q$1-1)*12)))," ") ->  | L9: =IF(L$1<=Resumen!$P$1,IF(OFFSET('Castilla León_datos'!X34,0,((Resumen!$Q$1-1)*12))=0," ",OFFSET('Castilla León_datos'!X34,0,((Resumen!$Q$1-1)*12)))," ") ->  | M9: =IF(M$1<=Resumen!$P$1,IF(OFFSET('Castilla León_datos'!Y34,0,((Resumen!$Q$1-1)*12))=0," ",OFFSET('Castilla León_datos'!Y34,0,((Resumen!$Q$1-1)*12)))," ") -> 
A10: Hidroeólica | B10: =IF(B$1<=Resumen!$P$1,IF(OFFSET('Castilla León_datos'!N35,0,((Resumen!$Q$1-1)*12))=0," ",OFFSET('Castilla León_datos'!N35,0,((Resumen!$Q$1-1)*12)))," ") ->  | C10: =IF(C$1<=Resumen!$P$1,IF(OFFSET('Castilla León_datos'!O35,0,((Resumen!$Q$1-1)*12))=0," ",OFFSET('Castilla León_datos'!O35,0,((Resumen!$Q$1-1)*12)))," ") ->  | D10: =IF(D$1<=Resumen!$P$1,IF(OFFSET('Castilla León_datos'!P35,0,((Resumen!$Q$1-1)*12))=0," ",OFFSET('Castilla León_datos'!P35,0,((Resumen!$Q$1-1)*12)))," ") ->  | E10: =IF(E$1<=Resumen!$P$1,IF(OFFSET('Castilla León_datos'!Q35,0,((Resumen!$Q$1-1)*12))=0," ",OFFSET('Castilla León_datos'!Q35,0,((Resumen!$Q$1-1)*12)))," ") ->  | F10: =IF(F$1<=Resumen!$P$1,IF(OFFSET('Castilla León_datos'!R35,0,((Resumen!$Q$1-1)*12))=0," ",OFFSET('Castilla León_datos'!R35,0,((Resumen!$Q$1-1)*12)))," ") ->  | G10: =IF(G$1<=Resumen!$P$1,IF(OFFSET('Castilla León_datos'!S35,0,((Resumen!$Q$1-1)*12))=0," ",OFFSET('Castilla León_datos'!S35,0,((Resumen!$Q$1-1)*12)))," ") ->  | H10: =IF(H$1<=Resumen!$P$1,IF(OFFSET('Castilla León_datos'!T35,0,((Resumen!$Q$1-1)*12))=0," ",OFFSET('Castilla León_datos'!T35,0,((Resumen!$Q$1-1)*12)))," ") ->  | I10: =IF(I$1<=Resumen!$P$1,IF(OFFSET('Castilla León_datos'!U35,0,((Resumen!$Q$1-1)*12))=0," ",OFFSET('Castilla León_datos'!U35,0,((Resumen!$Q$1-1)*12)))," ") ->  | J10: =IF(J$1<=Resumen!$P$1,IF(OFFSET('Castilla León_datos'!V35,0,((Resumen!$Q$1-1)*12))=0," ",OFFSET('Castilla León_datos'!V35,0,((Resumen!$Q$1-1)*12)))," ") ->  | K10: =IF(K$1<=Resumen!$P$1,IF(OFFSET('Castilla León_datos'!W35,0,((Resumen!$Q$1-1)*12))=0," ",OFFSET('Castilla León_datos'!W35,0,((Resumen!$Q$1-1)*12)))," ") ->  | L10: =IF(L$1<=Resumen!$P$1,IF(OFFSET('Castilla León_datos'!X35,0,((Resumen!$Q$1-1)*12))=0," ",OFFSET('Castilla León_datos'!X35,0,((Resumen!$Q$1-1)*12)))," ") ->  | M10: =IF(M$1<=Resumen!$P$1,IF(OFFSET('Castilla León_datos'!Y35,0,((Resumen!$Q$1-1)*12))=0," ",OFFSET('Castilla León_datos'!Y35,0,((Resumen!$Q$1-1)*12)))," ") -> 
A11: Eólica | B11: =IF(B$1<=Resumen!$P$1,IF(OFFSET('Castilla León_datos'!N36,0,((Resumen!$Q$1-1)*12))=0," ",OFFSET('Castilla León_datos'!N36,0,((Resumen!$Q$1-1)*12)))," ") -> 1058838.44 | C11: =IF(C$1<=Resumen!$P$1,IF(OFFSET('Castilla León_datos'!O36,0,((Resumen!$Q$1-1)*12))=0," ",OFFSET('Castilla León_datos'!O36,0,((Resumen!$Q$1-1)*12)))," ") -> 1236091.062 | D11: =IF(D$1<=Resumen!$P$1,IF(OFFSET('Castilla León_datos'!P36,0,((Resumen!$Q$1-1)*12))=0," ",OFFSET('Castilla León_datos'!P36,0,((Resumen!$Q$1-1)*12)))," ") -> 1100376.868 | E11: =IF(E$1<=Resumen!$P$1,IF(OFFSET('Castilla León_datos'!Q36,0,((Resumen!$Q$1-1)*12))=0," ",OFFSET('Castilla León_datos'!Q36,0,((Resumen!$Q$1-1)*12)))," ") -> 1030506.397 | F11: =IF(F$1<=Resumen!$P$1,IF(OFFSET('Castilla León_datos'!R36,0,((Resumen!$Q$1-1)*12))=0," ",OFFSET('Castilla León_datos'!R36,0,((Resumen!$Q$1-1)*12)))," ") -> 782901.786 | G11: =IF(G$1<=Resumen!$P$1,IF(OFFSET('Castilla León_datos'!S36,0,((Resumen!$Q$1-1)*12))=0," ",OFFSET('Castilla León_datos'!S36,0,((Resumen!$Q$1-1)*12)))," ") -> 723751.957 | H11: =IF(H$1<=Resumen!$P$1,IF(OFFSET('Castilla León_datos'!T36,0,((Resumen!$Q$1-1)*12))=0," ",OFFSET('Castilla León_datos'!T36,0,((Resumen!$Q$1-1)*12)))," ") -> 796502.955 | I11: =IF(I$1<=Resumen!$P$1,IF(OFFSET('Castilla León_datos'!U36,0,((Resumen!$Q$1-1)*12))=0," ",OFFSET('Castilla León_datos'!U36,0,((Resumen!$Q$1-1)*12)))," ") -> 778856.957 | J11: =IF(J$1<=Resumen!$P$1,IF(OFFSET('Castilla León_datos'!V36,0,((Resumen!$Q$1-1)*12))=0," ",OFFSET('Castilla León_datos'!V36,0,((Resumen!$Q$1-1)*12)))," ") -> 615927.071 | K11: =IF(K$1<=Resumen!$P$1,IF(OFFSET('Castilla León_datos'!W36,0,((Resumen!$Q$1-1)*12))=0," ",OFFSET('Castilla León_datos'!W36,0,((Resumen!$Q$1-1)*12)))," ") ->  | L11: =IF(L$1<=Resumen!$P$1,IF(OFFSET('Castilla León_datos'!X36,0,((Resumen!$Q$1-1)*12))=0," ",OFFSET('Castilla León_datos'!X36,0,((Resumen!$Q$1-1)*12)))," ") ->  | M11: =IF(M$1<=Resumen!$P$1,IF(OFFSET('Castilla León_datos'!Y36,0,((Resumen!$Q$1-1)*12))=0," ",OFFSET('Castilla León_datos'!Y36,0,((Resumen!$Q$1-1)*12)))," ") ->  | N11: 8123753.493
A12: Solar fotovoltaico | B12: =IF(B$1<=Resumen!$P$1,IF(OFFSET('Castilla León_datos'!N37,0,((Resumen!$Q$1-1)*12))=0," ",OFFSET('Castilla León_datos'!N37,0,((Resumen!$Q$1-1)*12)))," ") -> 49348.671 | C12: =IF(C$1<=Resumen!$P$1,IF(OFFSET('Castilla León_datos'!O37,0,((Resumen!$Q$1-1)*12))=0," ",OFFSET('Castilla León_datos'!O37,0,((Resumen!$Q$1-1)*12)))," ") -> 49205.665 | D12: =IF(D$1<=Resumen!$P$1,IF(OFFSET('Castilla León_datos'!P37,0,((Resumen!$Q$1-1)*12))=0," ",OFFSET('Castilla León_datos'!P37,0,((Resumen!$Q$1-1)*12)))," ") -> 71853.196 | E12: =IF(E$1<=Resumen!$P$1,IF(OFFSET('Castilla León_datos'!Q37,0,((Resumen!$Q$1-1)*12))=0," ",OFFSET('Castilla León_datos'!Q37,0,((Resumen!$Q$1-1)*12)))," ") -> 96917.322 | F12: =IF(F$1<=Resumen!$P$1,IF(OFFSET('Castilla León_datos'!R37,0,((Resumen!$Q$1-1)*12))=0," ",OFFSET('Castilla León_datos'!R37,0,((Resumen!$Q$1-1)*12)))," ") -> 85527.251 | G12: =IF(G$1<=Resumen!$P$1,IF(OFFSET('Castilla León_datos'!S37,0,((Resumen!$Q$1-1)*12))=0," ",OFFSET('Castilla León_datos'!S37,0,((Resumen!$Q$1-1)*12)))," ") -> 89996.196 | H12: =IF(H$1<=Resumen!$P$1,IF(OFFSET('Castilla León_datos'!T37,0,((Resumen!$Q$1-1)*12))=0," ",OFFSET('Castilla León_datos'!T37,0,((Resumen!$Q$1-1)*12)))," ") -> 100477.504 | I12: =IF(I$1<=Resumen!$P$1,IF(OFFSET('Castilla León_datos'!U37,0,((Resumen!$Q$1-1)*12))=0," ",OFFSET('Castilla León_datos'!U37,0,((Resumen!$Q$1-1)*12)))," ") -> 92978.094 | J12: =IF(J$1<=Resumen!$P$1,IF(OFFSET('Castilla León_datos'!V37,0,((Resumen!$Q$1-1)*12))=0," ",OFFSET('Castilla León_datos'!V37,0,((Resumen!$Q$1-1)*12)))," ") -> 88877.888 | K12: =IF(K$1<=Resumen!$P$1,IF(OFFSET('Castilla León_datos'!W37,0,((Resumen!$Q$1-1)*12))=0," ",OFFSET('Castilla León_datos'!W37,0,((Resumen!$Q$1-1)*12)))," ") ->  | L12: =IF(L$1<=Resumen!$P$1,IF(OFFSET('Castilla León_datos'!X37,0,((Resumen!$Q$1-1)*12))=0," ",OFFSET('Castilla León_datos'!X37,0,((Resumen!$Q$1-1)*12)))," ") ->  | M12: =IF(M$1<=Resumen!$P$1,IF(OFFSET('Castilla León_datos'!Y37,0,((Resumen!$Q$1-1)*12))=0," ",OFFSET('Castilla León_datos'!Y37,0,((Resumen!$Q$1-1)*12)))," ") ->  | N12: 725181.787
A13: Solar térmica | B13: =IF(B$1<=Resumen!$P$1,IF(OFFSET('Castilla León_datos'!N38,0,((Resumen!$Q$1-1)*12))=0," ",OFFSET('Castilla León_datos'!N38,0,((Resumen!$Q$1-1)*12)))," ") ->  | C13: =IF(C$1<=Resumen!$P$1,IF(OFFSET('Castilla León_datos'!O38,0,((Resumen!$Q$1-1)*12))=0," ",OFFSET('Castilla León_datos'!O38,0,((Resumen!$Q$1-1)*12)))," ") ->  | D13: =IF(D$1<=Resumen!$P$1,IF(OFFSET('Castilla León_datos'!P38,0,((Resumen!$Q$1-1)*12))=0," ",OFFSET('Castilla León_datos'!P38,0,((Resumen!$Q$1-1)*12)))," ") ->  | E13: =IF(E$1<=Resumen!$P$1,IF(OFFSET('Castilla León_datos'!Q38,0,((Resumen!$Q$1-1)*12))=0," ",OFFSET('Castilla León_datos'!Q38,0,((Resumen!$Q$1-1)*12)))," ") ->  | F13: =IF(F$1<=Resumen!$P$1,IF(OFFSET('Castilla León_datos'!R38,0,((Resumen!$Q$1-1)*12))=0," ",OFFSET('Castilla León_datos'!R38,0,((Resumen!$Q$1-1)*12)))," ") ->  | G13: =IF(G$1<=Resumen!$P$1,IF(OFFSET('Castilla León_datos'!S38,0,((Resumen!$Q$1-1)*12))=0," ",OFFSET('Castilla León_datos'!S38,0,((Resumen!$Q$1-1)*12)))," ") ->  | H13: =IF(H$1<=Resumen!$P$1,IF(OFFSET('Castilla León_datos'!T38,0,((Resumen!$Q$1-1)*12))=0," ",OFFSET('Castilla León_datos'!T38,0,((Resumen!$Q$1-1)*12)))," ") ->  | I13: =IF(I$1<=Resumen!$P$1,IF(OFFSET('Castilla León_datos'!U38,0,((Resumen!$Q$1-1)*12))=0," ",OFFSET('Castilla León_datos'!U38,0,((Resumen!$Q$1-1)*12)))," ") ->  | J13: =IF(J$1<=Resumen!$P$1,IF(OFFSET('Castilla León_datos'!V38,0,((Resumen!$Q$1-1)*12))=0," ",OFFSET('Castilla León_datos'!V38,0,((Resumen!$Q$1-1)*12)))," ") ->  | K13: =IF(K$1<=Resumen!$P$1,IF(OFFSET('Castilla León_datos'!W38,0,((Resumen!$Q$1-1)*12))=0," ",OFFSET('Castilla León_datos'!W38,0,((Resumen!$Q$1-1)*12)))," ") ->  | L13: =IF(L$1<=Resumen!$P$1,IF(OFFSET('Castilla León_datos'!X38,0,((Resumen!$Q$1-1)*12))=0," ",OFFSET('Castilla León_datos'!X38,0,((Resumen!$Q$1-1)*12)))," ") ->  | M13: =IF(M$1<=Resumen!$P$1,IF(OFFSET('Castilla León_datos'!Y38,0,((Resumen!$Q$1-1)*12))=0," ",OFFSET('Castilla León_datos'!Y38,0,((Resumen!$Q$1-1)*12)))," ") -> 
A14: Otras renovables | B14: =IF(B$1<=Resumen!$P$1,IF(OFFSET('Castilla León_datos'!N39,0,((Resumen!$Q$1-1)*12))=0," ",OFFSET('Castilla León_datos'!N39,0,((Resumen!$Q$1-1)*12)))," ") -> 22769.086 | C14: =IF(C$1<=Resumen!$P$1,IF(OFFSET('Castilla León_datos'!O39,0,((Resumen!$Q$1-1)*12))=0," ",OFFSET('Castilla León_datos'!O39,0,((Resumen!$Q$1-1)*12)))," ") -> 24052.548 | D14: =IF(D$1<=Resumen!$P$1,IF(OFFSET('Castilla León_datos'!P39,0,((Resumen!$Q$1-1)*12))=0," ",OFFSET('Castilla León_datos'!P39,0,((Resumen!$Q$1-1)*12)))," ") -> 16467.348 | E14: =IF(E$1<=Resumen!$P$1,IF(OFFSET('Castilla León_datos'!Q39,0,((Resumen!$Q$1-1)*12))=0," ",OFFSET('Castilla León_datos'!Q39,0,((Resumen!$Q$1-1)*12)))," ") -> 9937.932 | F14: =IF(F$1<=Resumen!$P$1,IF(OFFSET('Castilla León_datos'!R39,0,((Resumen!$Q$1-1)*12))=0," ",OFFSET('Castilla León_datos'!R39,0,((Resumen!$Q$1-1)*12)))," ") -> 26170.64 | G14: =IF(G$1<=Resumen!$P$1,IF(OFFSET('Castilla León_datos'!S39,0,((Resumen!$Q$1-1)*12))=0," ",OFFSET('Castilla León_datos'!S39,0,((Resumen!$Q$1-1)*12)))," ") -> 22423.654 | H14: =IF(H$1<=Resumen!$P$1,IF(OFFSET('Castilla León_datos'!T39,0,((Resumen!$Q$1-1)*12))=0," ",OFFSET('Castilla León_datos'!T39,0,((Resumen!$Q$1-1)*12)))," ") -> 24963.881 | I14: =IF(I$1<=Resumen!$P$1,IF(OFFSET('Castilla León_datos'!U39,0,((Resumen!$Q$1-1)*12))=0," ",OFFSET('Castilla León_datos'!U39,0,((Resumen!$Q$1-1)*12)))," ") -> 26675.259 | J14: =IF(J$1<=Resumen!$P$1,IF(OFFSET('Castilla León_datos'!V39,0,((Resumen!$Q$1-1)*12))=0," ",OFFSET('Castilla León_datos'!V39,0,((Resumen!$Q$1-1)*12)))," ") -> 22792.612 | K14: =IF(K$1<=Resumen!$P$1,IF(OFFSET('Castilla León_datos'!W39,0,((Resumen!$Q$1-1)*12))=0," ",OFFSET('Castilla León_datos'!W39,0,((Resumen!$Q$1-1)*12)))," ") ->  | L14: =IF(L$1<=Resumen!$P$1,IF(OFFSET('Castilla León_datos'!X39,0,((Resumen!$Q$1-1)*12))=0," ",OFFSET('Castilla León_datos'!X39,0,((Resumen!$Q$1-1)*12)))," ") ->  | M14: =IF(M$1<=Resumen!$P$1,IF(OFFSET('Castilla León_datos'!Y39,0,((Resumen!$Q$1-1)*12))=0," ",OFFSET('Castilla León_datos'!Y39,0,((Resumen!$Q$1-1)*12)))," ") ->  | N14: 196252.96
A15: Cogeneración | B15: =IF(B$1<=Resumen!$P$1,IF(OFFSET('Castilla León_datos'!N40,0,((Resumen!$Q$1-1)*12))=0," ",OFFSET('Castilla León_datos'!N40,0,((Resumen!$Q$1-1)*12)))," ") -> 177788.855 | C15: =IF(C$1<=Resumen!$P$1,IF(OFFSET('Castilla León_datos'!O40,0,((Resumen!$Q$1-1)*12))=0," ",OFFSET('Castilla León_datos'!O40,0,((Resumen!$Q$1-1)*12)))," ") -> 161763.791 | D15: =IF(D$1<=Resumen!$P$1,IF(OFFSET('Castilla León_datos'!P40,0,((Resumen!$Q$1-1)*12))=0," ",OFFSET('Castilla León_datos'!P40,0,((Resumen!$Q$1-1)*12)))," ") -> 180125.247 | E15: =IF(E$1<=Resumen!$P$1,IF(OFFSET('Castilla León_datos'!Q40,0,((Resumen!$Q$1-1)*12))=0," ",OFFSET('Castilla León_datos'!Q40,0,((Resumen!$Q$1-1)*12)))," ") -> 163424.496 | F15: =IF(F$1<=Resumen!$P$1,IF(OFFSET('Castilla León_datos'!R40,0,((Resumen!$Q$1-1)*12))=0," ",OFFSET('Castilla León_datos'!R40,0,((Resumen!$Q$1-1)*12)))," ") -> 176401.561 | G15: =IF(G$1<=Resumen!$P$1,IF(OFFSET('Castilla León_datos'!S40,0,((Resumen!$Q$1-1)*12))=0," ",OFFSET('Castilla León_datos'!S40,0,((Resumen!$Q$1-1)*12)))," ") -> 193371.126 | H15: =IF(H$1<=Resumen!$P$1,IF(OFFSET('Castilla León_datos'!T40,0,((Resumen!$Q$1-1)*12))=0," ",OFFSET('Castilla León_datos'!T40,0,((Resumen!$Q$1-1)*12)))," ") -> 208265.738 | I15: =IF(I$1<=Resumen!$P$1,IF(OFFSET('Castilla León_datos'!U40,0,((Resumen!$Q$1-1)*12))=0," ",OFFSET('Castilla León_datos'!U40,0,((Resumen!$Q$1-1)*12)))," ") -> 202746.59 | J15: =IF(J$1<=Resumen!$P$1,IF(OFFSET('Castilla León_datos'!V40,0,((Resumen!$Q$1-1)*12))=0," ",OFFSET('Castilla León_datos'!V40,0,((Resumen!$Q$1-1)*12)))," ") -> 204464.031 | K15: =IF(K$1<=Resumen!$P$1,IF(OFFSET('Castilla León_datos'!W40,0,((Resumen!$Q$1-1)*12))=0," ",OFFSET('Castilla León_datos'!W40,0,((Resumen!$Q$1-1)*12)))," ") ->  | L15: =IF(L$1<=Resumen!$P$1,IF(OFFSET('Castilla León_datos'!X40,0,((Resumen!$Q$1-1)*12))=0," ",OFFSET('Castilla León_datos'!X40,0,((Resumen!$Q$1-1)*12)))," ") ->  | M15: =IF(M$1<=Resumen!$P$1,IF(OFFSET('Castilla León_datos'!Y40,0,((Resumen!$Q$1-1)*12))=0," ",OFFSET('Castilla León_datos'!Y40,0,((Resumen!$Q$1-1)*12)))," ") ->  | N15: 1668351.435
A16: Residuos | B16: =IF(B$1<=Resumen!$P$1,IF(OFFSET('Castilla León_datos'!N41,0,((Resumen!$Q$1-1)*12))=0," ",OFFSET('Castilla León_datos'!N41,0,((Resumen!$Q$1-1)*12)))," ") ->  | C16: =IF(C$1<=Resumen!$P$1,IF(OFFSET('Castilla León_datos'!O41,0,((Resumen!$Q$1-1)*12))=0," ",OFFSET('Castilla León_datos'!O41,0,((Resumen!$Q$1-1)*12)))," ") ->  | D16: =IF(D$1<=Resumen!$P$1,IF(OFFSET('Castilla León_datos'!P41,0,((Resumen!$Q$1-1)*12))=0," ",OFFSET('Castilla León_datos'!P41,0,((Resumen!$Q$1-1)*12)))," ") ->  | E16: =IF(E$1<=Resumen!$P$1,IF(OFFSET('Castilla León_datos'!Q41,0,((Resumen!$Q$1-1)*12))=0," ",OFFSET('Castilla León_datos'!Q41,0,((Resumen!$Q$1-1)*12)))," ") ->  | F16: =IF(F$1<=Resumen!$P$1,IF(OFFSET('Castilla León_datos'!R41,0,((Resumen!$Q$1-1)*12))=0," ",OFFSET('Castilla León_datos'!R41,0,((Resumen!$Q$1-1)*12)))," ") ->  | G16: =IF(G$1<=Resumen!$P$1,IF(OFFSET('Castilla León_datos'!S41,0,((Resumen!$Q$1-1)*12))=0," ",OFFSET('Castilla León_datos'!S41,0,((Resumen!$Q$1-1)*12)))," ") ->  | H16: =IF(H$1<=Resumen!$P$1,IF(OFFSET('Castilla León_datos'!T41,0,((Resumen!$Q$1-1)*12))=0," ",OFFSET('Castilla León_datos'!T41,0,((Resumen!$Q$1-1)*12)))," ") ->  | I16: =IF(I$1<=Resumen!$P$1,IF(OFFSET('Castilla León_datos'!U41,0,((Resumen!$Q$1-1)*12))=0," ",OFFSET('Castilla León_datos'!U41,0,((Resumen!$Q$1-1)*12)))," ") ->  | J16: =IF(J$1<=Resumen!$P$1,IF(OFFSET('Castilla León_datos'!V41,0,((Resumen!$Q$1-1)*12))=0," ",OFFSET('Castilla León_datos'!V41,0,((Resumen!$Q$1-1)*12)))," ") ->  | K16: =IF(K$1<=Resumen!$P$1,IF(OFFSET('Castilla León_datos'!W41,0,((Resumen!$Q$1-1)*12))=0," ",OFFSET('Castilla León_datos'!W41,0,((Resumen!$Q$1-1)*12)))," ") ->  | L16: =IF(L$1<=Resumen!$P$1,IF(OFFSET('Castilla León_datos'!X41,0,((Resumen!$Q$1-1)*12))=0," ",OFFSET('Castilla León_datos'!X41,0,((Resumen!$Q$1-1)*12)))," ") ->  | M16: =IF(M$1<=Resumen!$P$1,IF(OFFSET('Castilla León_datos'!Y41,0,((Resumen!$Q$1-1)*12))=0," ",OFFSET('Castilla León_datos'!Y41,0,((Resumen!$Q$1-1)*12)))," ") -> 
A17: Generación neta | B17: =IF(B$1<=Resumen!$P$1,IF(OFFSET('Castilla León_datos'!N42,0,((Resumen!$Q$1-1)*12))=0," ",OFFSET('Castilla León_datos'!N42,0,((Resumen!$Q$1-1)*12)))," ") -> 3327542.444 | C17: =IF(C$1<=Resumen!$P$1,IF(OFFSET('Castilla León_datos'!O42,0,((Resumen!$Q$1-1)*12))=0," ",OFFSET('Castilla León_datos'!O42,0,((Resumen!$Q$1-1)*12)))," ") -> 2605039.786 | D17: =IF(D$1<=Resumen!$P$1,IF(OFFSET('Castilla León_datos'!P42,0,((Resumen!$Q$1-1)*12))=0," ",OFFSET('Castilla León_datos'!P42,0,((Resumen!$Q$1-1)*12)))," ") -> 2149580.603 | E17: =IF(E$1<=Resumen!$P$1,IF(OFFSET('Castilla León_datos'!Q42,0,((Resumen!$Q$1-1)*12))=0," ",OFFSET('Castilla León_datos'!Q42,0,((Resumen!$Q$1-1)*12)))," ") -> 1729590.912 | F17: =IF(F$1<=Resumen!$P$1,IF(OFFSET('Castilla León_datos'!R42,0,((Resumen!$Q$1-1)*12))=0," ",OFFSET('Castilla León_datos'!R42,0,((Resumen!$Q$1-1)*12)))," ") -> 1894007.099 | G17: =IF(G$1<=Resumen!$P$1,IF(OFFSET('Castilla León_datos'!S42,0,((Resumen!$Q$1-1)*12))=0," ",OFFSET('Castilla León_datos'!S42,0,((Resumen!$Q$1-1)*12)))," ") -> 2173717.949 | H17: =IF(H$1<=Resumen!$P$1,IF(OFFSET('Castilla León_datos'!T42,0,((Resumen!$Q$1-1)*12))=0," ",OFFSET('Castilla León_datos'!T42,0,((Resumen!$Q$1-1)*12)))," ") -> 1625133.56 | I17: =IF(I$1<=Resumen!$P$1,IF(OFFSET('Castilla León_datos'!U42,0,((Resumen!$Q$1-1)*12))=0," ",OFFSET('Castilla León_datos'!U42,0,((Resumen!$Q$1-1)*12)))," ") -> 1424938.117 | J17: =IF(J$1<=Resumen!$P$1,IF(OFFSET('Castilla León_datos'!V42,0,((Resumen!$Q$1-1)*12))=0," ",OFFSET('Castilla León_datos'!V42,0,((Resumen!$Q$1-1)*12)))," ") -> 1186383.424 | K17: =IF(K$1<=Resumen!$P$1,IF(OFFSET('Castilla León_datos'!W42,0,((Resumen!$Q$1-1)*12))=0," ",OFFSET('Castilla León_datos'!W42,0,((Resumen!$Q$1-1)*12)))," ") ->  | L17: =IF(L$1<=Resumen!$P$1,IF(OFFSET('Castilla León_datos'!X42,0,((Resumen!$Q$1-1)*12))=0," ",OFFSET('Castilla León_datos'!X42,0,((Resumen!$Q$1-1)*12)))," ") ->  | M17: =IF(M$1<=Resumen!$P$1,IF(OFFSET('Castilla León_datos'!Y42,0,((Resumen!$Q$1-1)*12))=0," ",OFFSET('Castilla León_datos'!Y42,0,((Resumen!$Q$1-1)*12)))," ") ->  | N17: 18115933.89
A18: Consumos en bombeo | B18: =IF(B$1<=Resumen!$P$1,IF(OFFSET('Castilla León_datos'!N43,0,((Resumen!$Q$1-1)*12))=0," ",OFFSET('Castilla León_datos'!N43,0,((Resumen!$Q$1-1)*12)))," ") -> -66135 | C18: =IF(C$1<=Resumen!$P$1,IF(OFFSET('Castilla León_datos'!O43,0,((Resumen!$Q$1-1)*12))=0," ",OFFSET('Castilla León_datos'!O43,0,((Resumen!$Q$1-1)*12)))," ") -> -116627 | D18: =IF(D$1<=Resumen!$P$1,IF(OFFSET('Castilla León_datos'!P43,0,((Resumen!$Q$1-1)*12))=0," ",OFFSET('Castilla León_datos'!P43,0,((Resumen!$Q$1-1)*12)))," ") -> -46238 | E18: =IF(E$1<=Resumen!$P$1,IF(OFFSET('Castilla León_datos'!Q43,0,((Resumen!$Q$1-1)*12))=0," ",OFFSET('Castilla León_datos'!Q43,0,((Resumen!$Q$1-1)*12)))," ") -> -66318 | F18: =IF(F$1<=Resumen!$P$1,IF(OFFSET('Castilla León_datos'!R43,0,((Resumen!$Q$1-1)*12))=0," ",OFFSET('Castilla León_datos'!R43,0,((Resumen!$Q$1-1)*12)))," ") -> -58171 | G18: =IF(G$1<=Resumen!$P$1,IF(OFFSET('Castilla León_datos'!S43,0,((Resumen!$Q$1-1)*12))=0," ",OFFSET('Castilla León_datos'!S43,0,((Resumen!$Q$1-1)*12)))," ") -> -47320 | H18: =IF(H$1<=Resumen!$P$1,IF(OFFSET('Castilla León_datos'!T43,0,((Resumen!$Q$1-1)*12))=0," ",OFFSET('Castilla León_datos'!T43,0,((Resumen!$Q$1-1)*12)))," ") -> -91809 | I18: =IF(I$1<=Resumen!$P$1,IF(OFFSET('Castilla León_datos'!U43,0,((Resumen!$Q$1-1)*12))=0," ",OFFSET('Castilla León_datos'!U43,0,((Resumen!$Q$1-1)*12)))," ") -> -59642 | J18: =IF(J$1<=Resumen!$P$1,IF(OFFSET('Castilla León_datos'!V43,0,((Resumen!$Q$1-1)*12))=0," ",OFFSET('Castilla León_datos'!V43,0,((Resumen!$Q$1-1)*12)))," ") -> -28262 | K18: =IF(K$1<=Resumen!$P$1,IF(OFFSET('Castilla León_datos'!W43,0,((Resumen!$Q$1-1)*12))=0," ",OFFSET('Castilla León_datos'!W43,0,((Resumen!$Q$1-1)*12)))," ") ->  | L18: =IF(L$1<=Resumen!$P$1,IF(OFFSET('Castilla León_datos'!X43,0,((Resumen!$Q$1-1)*12))=0," ",OFFSET('Castilla León_datos'!X43,0,((Resumen!$Q$1-1)*12)))," ") ->  | M18: =IF(M$1<=Resumen!$P$1,IF(OFFSET('Castilla León_datos'!Y43,0,((Resumen!$Q$1-1)*12))=0," ",OFFSET('Castilla León_datos'!Y43,0,((Resumen!$Q$1-1)*12)))," ") ->  | N18: -580522
A19: Saldo Intercambios | B19: =IF(B$1<=Resumen!$P$1,IF(OFFSET('Castilla León_datos'!N44,0,((Resumen!$Q$1-1)*12))=0," ",OFFSET('Castilla León_datos'!N44,0,((Resumen!$Q$1-1)*12)))," ") -> -1976851 | C19: =IF(C$1<=Resumen!$P$1,IF(OFFSET('Castilla León_datos'!O44,0,((Resumen!$Q$1-1)*12))=0," ",OFFSET('Castilla León_datos'!O44,0,((Resumen!$Q$1-1)*12)))," ") -> -1353482 | D19: =IF(D$1<=Resumen!$P$1,IF(OFFSET('Castilla León_datos'!P44,0,((Resumen!$Q$1-1)*12))=0," ",OFFSET('Castilla León_datos'!P44,0,((Resumen!$Q$1-1)*12)))," ") -> -886529 | E19: =IF(E$1<=Resumen!$P$1,IF(OFFSET('Castilla León_datos'!Q44,0,((Resumen!$Q$1-1)*12))=0," ",OFFSET('Castilla León_datos'!Q44,0,((Resumen!$Q$1-1)*12)))," ") -> -587709 | F19: =IF(F$1<=Resumen!$P$1,IF(OFFSET('Castilla León_datos'!R44,0,((Resumen!$Q$1-1)*12))=0," ",OFFSET('Castilla León_datos'!R44,0,((Resumen!$Q$1-1)*12)))," ") -> -701004 | G19: =IF(G$1<=Resumen!$P$1,IF(OFFSET('Castilla León_datos'!S44,0,((Resumen!$Q$1-1)*12))=0," ",OFFSET('Castilla León_datos'!S44,0,((Resumen!$Q$1-1)*12)))," ") -> -936075 | H19: =IF(H$1<=Resumen!$P$1,IF(OFFSET('Castilla León_datos'!T44,0,((Resumen!$Q$1-1)*12))=0," ",OFFSET('Castilla León_datos'!T44,0,((Resumen!$Q$1-1)*12)))," ") -> -328968 | I19: =IF(I$1<=Resumen!$P$1,IF(OFFSET('Castilla León_datos'!U44,0,((Resumen!$Q$1-1)*12))=0," ",OFFSET('Castilla León_datos'!U44,0,((Resumen!$Q$1-1)*12)))," ") -> -206796 | J19: =IF(J$1<=Resumen!$P$1,IF(OFFSET('Castilla León_datos'!V44,0,((Resumen!$Q$1-1)*12))=0," ",OFFSET('Castilla León_datos'!V44,0,((Resumen!$Q$1-1)*12)))," ") -> -46186 | K19: =IF(K$1<=Resumen!$P$1,IF(OFFSET('Castilla León_datos'!W44,0,((Resumen!$Q$1-1)*12))=0," ",OFFSET('Castilla León_datos'!W44,0,((Resumen!$Q$1-1)*12)))," ") ->  | L19: =IF(L$1<=Resumen!$P$1,IF(OFFSET('Castilla León_datos'!X44,0,((Resumen!$Q$1-1)*12))=0," ",OFFSET('Castilla León_datos'!X44,0,((Resumen!$Q$1-1)*12)))," ") ->  | M19: =IF(M$1<=Resumen!$P$1,IF(OFFSET('Castilla León_datos'!Y44,0,((Resumen!$Q$1-1)*12))=0," ",OFFSET('Castilla León_datos'!Y44,0,((Resumen!$Q$1-1)*12)))," ") ->  | N19: -7023600
A20: Demanda B.C | B20: =IF(B$1<=Resumen!$P$1,IF(OFFSET('Castilla León_datos'!N45,0,((Resumen!$Q$1-1)*12))=0," ",OFFSET('Castilla León_datos'!N45,0,((Resumen!$Q$1-1)*12)))," ") -> 1284556.454 | C20: =IF(C$1<=Resumen!$P$1,IF(OFFSET('Castilla León_datos'!O45,0,((Resumen!$Q$1-1)*12))=0," ",OFFSET('Castilla León_datos'!O45,0,((Resumen!$Q$1-1)*12)))," ") -> 1134930.632 | D20: =IF(D$1<=Resumen!$P$1,IF(OFFSET('Castilla León_datos'!P45,0,((Resumen!$Q$1-1)*12))=0," ",OFFSET('Castilla León_datos'!P45,0,((Resumen!$Q$1-1)*12)))," ") -> 1216814.048 | E20: =IF(E$1<=Resumen!$P$1,IF(OFFSET('Castilla León_datos'!Q45,0,((Resumen!$Q$1-1)*12))=0," ",OFFSET('Castilla León_datos'!Q45,0,((Resumen!$Q$1-1)*12)))," ") -> 1075564.089 | F20: =IF(F$1<=Resumen!$P$1,IF(OFFSET('Castilla León_datos'!R45,0,((Resumen!$Q$1-1)*12))=0," ",OFFSET('Castilla León_datos'!R45,0,((Resumen!$Q$1-1)*12)))," ") -> 1134832.511 | G20: =IF(G$1<=Resumen!$P$1,IF(OFFSET('Castilla León_datos'!S45,0,((Resumen!$Q$1-1)*12))=0," ",OFFSET('Castilla León_datos'!S45,0,((Resumen!$Q$1-1)*12)))," ") -> 1190323.386 | H20: =IF(H$1<=Resumen!$P$1,IF(OFFSET('Castilla León_datos'!T45,0,((Resumen!$Q$1-1)*12))=0," ",OFFSET('Castilla León_datos'!T45,0,((Resumen!$Q$1-1)*12)))," ") -> 1204356.377 | I20: =IF(I$1<=Resumen!$P$1,IF(OFFSET('Castilla León_datos'!U45,0,((Resumen!$Q$1-1)*12))=0," ",OFFSET('Castilla León_datos'!U45,0,((Resumen!$Q$1-1)*12)))," ") -> 1158500.522 | J20: =IF(J$1<=Resumen!$P$1,IF(OFFSET('Castilla León_datos'!V45,0,((Resumen!$Q$1-1)*12))=0," ",OFFSET('Castilla León_datos'!V45,0,((Resumen!$Q$1-1)*12)))," ") -> 1111935.342 | K20: =IF(K$1<=Resumen!$P$1,IF(OFFSET('Castilla León_datos'!W45,0,((Resumen!$Q$1-1)*12))=0," ",OFFSET('Castilla León_datos'!W45,0,((Resumen!$Q$1-1)*12)))," ") ->  | L20: =IF(L$1<=Resumen!$P$1,IF(OFFSET('Castilla León_datos'!X45,0,((Resumen!$Q$1-1)*12))=0," ",OFFSET('Castilla León_datos'!X45,0,((Resumen!$Q$1-1)*12)))," ") ->  | M20: =IF(M$1<=Resumen!$P$1,IF(OFFSET('Castilla León_datos'!Y45,0,((Resumen!$Q$1-1)*12))=0," ",OFFSET('Castilla León_datos'!Y45,0,((Resumen!$Q$1-1)*12)))," ") ->  | N20: 10511813.36
A21: =Resumen!A22 -> %Δ 17/16 | B21: =IF(B$1<=Resumen!$P$1,IF(OFFSET('Castilla León_datos'!N46,0,((Resumen!$Q$1-1)*12))=0," ",OFFSET('Castilla León_datos'!N46,0,((Resumen!$Q$1-1)*12)))," ") -> 4.781272732 | C21: =IF(C$1<=Resumen!$P$1,IF(OFFSET('Castilla León_datos'!O46,0,((Resumen!$Q$1-1)*12))=0," ",OFFSET('Castilla León_datos'!O46,0,((Resumen!$Q$1-1)*12)))," ") -> -4.620092392 | D21: =IF(D$1<=Resumen!$P$1,IF(OFFSET('Castilla León_datos'!P46,0,((Resumen!$Q$1-1)*12))=0," ",OFFSET('Castilla León_datos'!P46,0,((Resumen!$Q$1-1)*12)))," ") -> -1.495618116 | E21: =IF(E$1<=Resumen!$P$1,IF(OFFSET('Castilla León_datos'!Q46,0,((Resumen!$Q$1-1)*12))=0," ",OFFSET('Castilla León_datos'!Q46,0,((Resumen!$Q$1-1)*12)))," ") -> -5.348598326 | F21: =IF(F$1<=Resumen!$P$1,IF(OFFSET('Castilla León_datos'!R46,0,((Resumen!$Q$1-1)*12))=0," ",OFFSET('Castilla León_datos'!R46,0,((Resumen!$Q$1-1)*12)))," ") -> 2.742092493 | G21: =IF(G$1<=Resumen!$P$1,IF(OFFSET('Castilla León_datos'!S46,0,((Resumen!$Q$1-1)*12))=0," ",OFFSET('Castilla León_datos'!S46,0,((Resumen!$Q$1-1)*12)))," ") -> 6.346160406 | H21: =IF(H$1<=Resumen!$P$1,IF(OFFSET('Castilla León_datos'!T46,0,((Resumen!$Q$1-1)*12))=0," ",OFFSET('Castilla León_datos'!T46,0,((Resumen!$Q$1-1)*12)))," ") -> -0.9128631066 | I21: =IF(I$1<=Resumen!$P$1,IF(OFFSET('Castilla León_datos'!U46,0,((Resumen!$Q$1-1)*12))=0," ",OFFSET('Castilla León_datos'!U46,0,((Resumen!$Q$1-1)*12)))," ") -> -0.7750089273 | J21: =IF(J$1<=Resumen!$P$1,IF(OFFSET('Castilla León_datos'!V46,0,((Resumen!$Q$1-1)*12))=0," ",OFFSET('Castilla León_datos'!V46,0,((Resumen!$Q$1-1)*12)))," ") -> -0.7963090385 | K21: =IF(K$1<=Resumen!$P$1,IF(OFFSET('Castilla León_datos'!W46,0,((Resumen!$Q$1-1)*12))=0," ",OFFSET('Castilla León_datos'!W46,0,((Resumen!$Q$1-1)*12)))," ") ->  | L21: =IF(L$1<=Resumen!$P$1,IF(OFFSET('Castilla León_datos'!X46,0,((Resumen!$Q$1-1)*12))=0," ",OFFSET('Castilla León_datos'!X46,0,((Resumen!$Q$1-1)*12)))," ") ->  | M21: =IF(M$1<=Resumen!$P$1,IF(OFFSET('Castilla León_datos'!Y46,0,((Resumen!$Q$1-1)*12))=0," ",OFFSET('Castilla León_datos'!Y46,0,((Resumen!$Q$1-1)*12)))," ") ->  | N21: =((N20/SUM(OFFSET('Castilla León_datos'!N45,0,(Resumen!$Q$1-2)*12):OFFSET('Castilla León_datos'!N45,0,((Resumen!$Q$1-2)*12)+Resumen!$P$1-1))-1)*100) -> -0.03197878256
A69: =A1 -> Castilla y León | B69: =J20 -> 1111935.342
A70: Resto nacional | B70: =Nacional_datos!BR45-B69 -> 20437798.68

Sheet Cataluña
A1: Cataluña | B1: 1 | C1: 2 | D1: 3 | E1: 4 | F1: 5 | G1: 6 | H1: 7 | I1: 8 | J1: 9 | K1: 10 | L1: 11 | M1: 12
A2: Balance mensual de energía electrica. MWh
B3: 2017
B4: Ene | C4: Feb | D4: Mar | E4: Abr | F4: May | G4: Jun | H4: Jul | I4: Ago | J4: Sep | K4: Oct | L4: Nov | M4: Dic | N4: TOTAL
A5: Hidraulica | B5: =IF(B$1<=Resumen!$P$1,IF(OFFSET(Cataluña_datos!N30,0,((Resumen!$Q$1-1)*12))=0," ",OFFSET(Cataluña_datos!N30,0,((Resumen!$Q$1-1)*12)))," ") -> 272439.6487 | C5: =IF(C$1<=Resumen!$P$1,IF(OFFSET(Cataluña_datos!O30,0,((Resumen!$Q$1-1)*12))=0," ",OFFSET(Cataluña_datos!O30,0,((Resumen!$Q$1-1)*12)))," ") -> 318678.5543 | D5: =IF(D$1<=Resumen!$P$1,IF(OFFSET(Cataluña_datos!P30,0,((Resumen!$Q$1-1)*12))=0," ",OFFSET(Cataluña_datos!P30,0,((Resumen!$Q$1-1)*12)))," ") -> 460558.5559 | E5: =IF(E$1<=Resumen!$P$1,IF(OFFSET(Cataluña_datos!Q30,0,((Resumen!$Q$1-1)*12))=0," ",OFFSET(Cataluña_datos!Q30,0,((Resumen!$Q$1-1)*12)))," ") -> 464016.2016 | F5: =IF(F$1<=Resumen!$P$1,IF(OFFSET(Cataluña_datos!R30,0,((Resumen!$Q$1-1)*12))=0," ",OFFSET(Cataluña_datos!R30,0,((Resumen!$Q$1-1)*12)))," ") -> 550892.0528 | G5: =IF(G$1<=Resumen!$P$1,IF(OFFSET(Cataluña_datos!S30,0,((Resumen!$Q$1-1)*12))=0," ",OFFSET(Cataluña_datos!S30,0,((Resumen!$Q$1-1)*12)))," ") -> 436049.3666 | H5: =IF(H$1<=Resumen!$P$1,IF(OFFSET(Cataluña_datos!T30,0,((Resumen!$Q$1-1)*12))=0," ",OFFSET(Cataluña_datos!T30,0,((Resumen!$Q$1-1)*12)))," ") -> 299667.0395 | I5: =IF(I$1<=Resumen!$P$1,IF(OFFSET(Cataluña_datos!U30,0,((Resumen!$Q$1-1)*12))=0," ",OFFSET(Cataluña_datos!U30,0,((Resumen!$Q$1-1)*12)))," ") -> 270403.6237 | J5: =IF(J$1<=Resumen!$P$1,IF(OFFSET(Cataluña_datos!V30,0,((Resumen!$Q$1-1)*12))=0," ",OFFSET(Cataluña_datos!V30,0,((Resumen!$Q$1-1)*12)))," ") -> 238013.5344 | K5: =IF(K$1<=Resumen!$P$1,IF(OFFSET(Cataluña_datos!W30,0,((Resumen!$Q$1-1)*12))=0," ",OFFSET(Cataluña_datos!W30,0,((Resumen!$Q$1-1)*12)))," ") ->  | L5: =IF(L$1<=Resumen!$P$1,IF(OFFSET(Cataluña_datos!X30,0,((Resumen!$Q$1-1)*12))=0," ",OFFSET(Cataluña_datos!X30,0,((Resumen!$Q$1-1)*12)))," ") ->  | M5: =IF(M$1<=Resumen!$P$1,IF(OFFSET(Cataluña_datos!Y30,0,((Resumen!$Q$1-1)*12))=0," ",OFFSET(Cataluña_datos!Y30,0,((Resumen!$Q$1-1)*12)))," ") ->  | N5: =IF(SUM(B5:M5)=0," ",SUM(B5:M5)) -> 3310718.578
A6: Nuclear | B6: =IF(B$1<=Resumen!$P$1,IF(OFFSET(Cataluña_datos!N31,0,((Resumen!$Q$1-1)*12))=0," ",OFFSET(Cataluña_datos!N31,0,((Resumen!$Q$1-1)*12)))," ") -> 2254939 | C6: =IF(C$1<=Resumen!$P$1,IF(OFFSET(Cataluña_datos!O31,0,((Resumen!$Q$1-1)*12))=0," ",OFFSET(Cataluña_datos!O31,0,((Resumen!$Q$1-1)*12)))," ") -> 2048963 | D6: =IF(D$1<=Resumen!$P$1,IF(OFFSET(Cataluña_datos!P31,0,((Resumen!$Q$1-1)*12))=0," ",OFFSET(Cataluña_datos!P31,0,((Resumen!$Q$1-1)*12)))," ") -> 2269746 | E6: =IF(E$1<=Resumen!$P$1,IF(OFFSET(Cataluña_datos!Q31,0,((Resumen!$Q$1-1)*12))=0," ",OFFSET(Cataluña_datos!Q31,0,((Resumen!$Q$1-1)*12)))," ") -> 2136915 | F6: =IF(F$1<=Resumen!$P$1,IF(OFFSET(Cataluña_datos!R31,0,((Resumen!$Q$1-1)*12))=0," ",OFFSET(Cataluña_datos!R31,0,((Resumen!$Q$1-1)*12)))," ") -> 1772447 | G6: =IF(G$1<=Resumen!$P$1,IF(OFFSET(Cataluña_datos!S31,0,((Resumen!$Q$1-1)*12))=0," ",OFFSET(Cataluña_datos!S31,0,((Resumen!$Q$1-1)*12)))," ") -> 1517685 | H6: =IF(H$1<=Resumen!$P$1,IF(OFFSET(Cataluña_datos!T31,0,((Resumen!$Q$1-1)*12))=0," ",OFFSET(Cataluña_datos!T31,0,((Resumen!$Q$1-1)*12)))," ") -> 2195835 | I6: =IF(I$1<=Resumen!$P$1,IF(OFFSET(Cataluña_datos!U31,0,((Resumen!$Q$1-1)*12))=0," ",OFFSET(Cataluña_datos!U31,0,((Resumen!$Q$1-1)*12)))," ") -> 2190029 | J6: =IF(J$1<=Resumen!$P$1,IF(OFFSET(Cataluña_datos!V31,0,((Resumen!$Q$1-1)*12))=0," ",OFFSET(Cataluña_datos!V31,0,((Resumen!$Q$1-1)*12)))," ") -> 2129958 | K6: =IF(K$1<=Resumen!$P$1,IF(OFFSET(Cataluña_datos!W31,0,((Resumen!$Q$1-1)*12))=0," ",OFFSET(Cataluña_datos!W31,0,((Resumen!$Q$1-1)*12)))," ") ->  | L6: =IF(L$1<=Resumen!$P$1,IF(OFFSET(Cataluña_datos!X31,0,((Resumen!$Q$1-1)*12))=0," ",OFFSET(Cataluña_datos!X31,0,((Resumen!$Q$1-1)*12)))," ") ->  | M6: =IF(M$1<=Resumen!$P$1,IF(OFFSET(Cataluña_datos!Y31,0,((Resumen!$Q$1-1)*12))=0," ",OFFSET(Cataluña_datos!Y31,0,((Resumen!$Q$1-1)*12)))," ") ->  | N6: =IF(SUM(B6:M6)=0," ",SUM(B6:M6)) -> 18516517
A7: Carbón | B7: =IF(B$1<=Resumen!$P$1,IF(OFFSET(Cataluña_datos!N32,0,((Resumen!$Q$1-1)*12))=0," ",OFFSET(Cataluña_datos!N32,0,((Resumen!$Q$1-1)*12)))," ") ->  | C7: =IF(C$1<=Resumen!$P$1,IF(OFFSET(Cataluña_datos!O32,0,((Resumen!$Q$1-1)*12))=0," ",OFFSET(Cataluña_datos!O32,0,((Resumen!$Q$1-1)*12)))," ") ->  | D7: =IF(D$1<=Resumen!$P$1,IF(OFFSET(Cataluña_datos!P32,0,((Resumen!$Q$1-1)*12))=0," ",OFFSET(Cataluña_datos!P32,0,((Resumen!$Q$1-1)*12)))," ") ->  | E7: =IF(E$1<=Resumen!$P$1,IF(OFFSET(Cataluña_datos!Q32,0,((Resumen!$Q$1-1)*12))=0," ",OFFSET(Cataluña_datos!Q32,0,((Resumen!$Q$1-1)*12)))," ") ->  | F7: =IF(F$1<=Resumen!$P$1,IF(OFFSET(Cataluña_datos!R32,0,((Resumen!$Q$1-1)*12))=0," ",OFFSET(Cataluña_datos!R32,0,((Resumen!$Q$1-1)*12)))," ") ->  | G7: =IF(G$1<=Resumen!$P$1,IF(OFFSET(Cataluña_datos!S32,0,((Resumen!$Q$1-1)*12))=0," ",OFFSET(Cataluña_datos!S32,0,((Resumen!$Q$1-1)*12)))," ") ->  | H7: =IF(H$1<=Resumen!$P$1,IF(OFFSET(Cataluña_datos!T32,0,((Resumen!$Q$1-1)*12))=0," ",OFFSET(Cataluña_datos!T32,0,((Resumen!$Q$1-1)*12)))," ") ->  | I7: =IF(I$1<=Resumen!$P$1,IF(OFFSET(Cataluña_datos!U32,0,((Resumen!$Q$1-1)*12))=0," ",OFFSET(Cataluña_datos!U32,0,((Resumen!$Q$1-1)*12)))," ") ->  | J7: =IF(J$1<=Resumen!$P$1,IF(OFFSET(Cataluña_datos!V32,0,((Resumen!$Q$1-1)*12))=0," ",OFFSET(Cataluña_datos!V32,0,((Resumen!$Q$1-1)*12)))," ") ->  | K7: =IF(K$1<=Resumen!$P$1,IF(OFFSET(Cataluña_datos!W32,0,((Resumen!$Q$1-1)*12))=0," ",OFFSET(Cataluña_datos!W32,0,((Resumen!$Q$1-1)*12)))," ") ->  | L7: =IF(L$1<=Resumen!$P$1,IF(OFFSET(Cataluña_datos!X32,0,((Resumen!$Q$1-1)*12))=0," ",OFFSET(Cataluña_datos!X32,0,((Resumen!$Q$1-1)*12)))," ") ->  | M7: =IF(M$1<=Resumen!$P$1,IF(OFFSET(Cataluña_datos!Y32,0,((Resumen!$Q$1-1)*12))=0," ",OFFSET(Cataluña_datos!Y32,0,((Resumen!$Q$1-1)*12)))," ") -> 
A8: Fuel-Gas | B8: =IF(B$1<=Resumen!$P$1,IF(OFFSET(Cataluña_datos!N33,0,((Resumen!$Q$1-1)*12))=0," ",OFFSET(Cataluña_datos!N33,0,((Resumen!$Q$1-1)*12)))," ") ->  | C8: =IF(C$1<=Resumen!$P$1,IF(OFFSET(Cataluña_datos!O33,0,((Resumen!$Q$1-1)*12))=0," ",OFFSET(Cataluña_datos!O33,0,((Resumen!$Q$1-1)*12)))," ") ->  | D8: =IF(D$1<=Resumen!$P$1,IF(OFFSET(Cataluña_datos!P33,0,((Resumen!$Q$1-1)*12))=0," ",OFFSET(Cataluña_datos!P33,0,((Resumen!$Q$1-1)*12)))," ") ->  | E8: =IF(E$1<=Resumen!$P$1,IF(OFFSET(Cataluña_datos!Q33,0,((Resumen!$Q$1-1)*12))=0," ",OFFSET(Cataluña_datos!Q33,0,((Resumen!$Q$1-1)*12)))," ") ->  | F8: =IF(F$1<=Resumen!$P$1,IF(OFFSET(Cataluña_datos!R33,0,((Resumen!$Q$1-1)*12))=0," ",OFFSET(Cataluña_datos!R33,0,((Resumen!$Q$1-1)*12)))," ") ->  | G8: =IF(G$1<=Resumen!$P$1,IF(OFFSET(Cataluña_datos!S33,0,((Resumen!$Q$1-1)*12))=0," ",OFFSET(Cataluña_datos!S33,0,((Resumen!$Q$1-1)*12)))," ") ->  | H8: =IF(H$1<=Resumen!$P$1,IF(OFFSET(Cataluña_datos!T33,0,((Resumen!$Q$1-1)*12))=0," ",OFFSET(Cataluña_datos!T33,0,((Resumen!$Q$1-1)*12)))," ") ->  | I8: =IF(I$1<=Resumen!$P$1,IF(OFFSET(Cataluña_datos!U33,0,((Resumen!$Q$1-1)*12))=0," ",OFFSET(Cataluña_datos!U33,0,((Resumen!$Q$1-1)*12)))," ") ->  | J8: =IF(J$1<=Resumen!$P$1,IF(OFFSET(Cataluña_datos!V33,0,((Resumen!$Q$1-1)*12))=0," ",OFFSET(Cataluña_datos!V33,0,((Resumen!$Q$1-1)*12)))," ") ->  | K8: =IF(K$1<=Resumen!$P$1,IF(OFFSET(Cataluña_datos!W33,0,((Resumen!$Q$1-1)*12))=0," ",OFFSET(Cataluña_datos!W33,0,((Resumen!$Q$1-1)*12)))," ") ->  | L8: =IF(L$1<=Resumen!$P$1,IF(OFFSET(Cataluña_datos!X33,0,((Resumen!$Q$1-1)*12))=0," ",OFFSET(Cataluña_datos!X33,0,((Resumen!$Q$1-1)*12)))," ") ->  | M8: =IF(M$1<=Resumen!$P$1,IF(OFFSET(Cataluña_datos!Y33,0,((Resumen!$Q$1-1)*12))=0," ",OFFSET(Cataluña_datos!Y33,0,((Resumen!$Q$1-1)*12)))," ") -> 
